Workbook

Sheet README
B3: ="FRAME Report: "&FAllYR&"/"&RIGHT(SpringYR,2)&" Budget" -> FRAME Report: 2023/24 Budget
B5: All pages of the FRAME report containing the tables of financial and statistical data are included in this file.
B7: In most cases, formulas have been left intact to show how statistics such as percentages and average costs per pupil are derived.
B10: Each worksheet tab is numbered to match the corresponding page found in the published document so for example to see page 15, click the worksheet tab - 15 - .
B13: This file is unprotected for data analysis by the user. Data can also be copied to other files or additional data copied to this one. In cases of dispute however, the published FRAME reports and the corresponding files located on the Manitoba Govenment web site remain the final authority.
B20: http://www.edu.gov.mb.ca/k12/finance/frame_report/index.html

Sheet 2023 2024 (hidden)
B1: DRAFT - SUBJECT TO FINAL RECONCILIATION WITH FRAME REPORT | I1: 2023/24 | J1: 2022/23
H2: Budget | I2: Manitoba Budget 2023 | J2: Manitoba Budget 2022
A3: PROVINCIAL CONTRIBUTION TO PUBLIC EDUCATION | H3: Est Exp | I3: estimates-expenditures-budget2023.pdf (manitoba.ca) | J3: estimates-expenditures-budget2022.pdf (manitoba.ca)
I4: Tax Measures | Province of Manitoba | Budget 2023 (gov.mb.ca) | J4: Tax and Fee Measures | Budget 2022 | Province of Manitoba (gov.mb.ca)
G8: Tot Exp | H8: Prov Govt
G9: =C33 -> 2793945717 | H9: =D33 -> 1623212580
G10: Net Trans to Cap | H10: TIG
G11: ='- 44 -'!$B$48 -> 16284056 | H11: 37392862
C14: 2022/2023 ($ millions) | G14: W:\FSP Estimates\Treasury\YY-YY
G15: Sheet: 16-5(e)
C16: Total Expenditure | D16: Provincial | E16: Provincial
C17: on Public Education | D17: Contribution | E17: Contribution as % | G17: Principal | H17: 97025.31257
G18: Interest | H18: 54680.98057
A19: 1 | B19: FRAME Operating Fund | C19: =+C33/1000000 -> 2793.945717 | D19: =+D33/1000000 -> 1623.21258 | E19: =D19/C19 -> 0.5809749882 | H19: =SUM(H17:H18) -> 151706.2931
A20: 2 | B20: School division capital (net transfers to capital fund) | C20: =G11/1000000 -> 16.284056 | D20: 0 | E20: 0 | G20: =+G39*1000 -> 203900000 | H20: ='- 41 -'!G47 -> 132683552
A21: 3 | B21: Provincial Capital Grant Funding and Other | C21: =H19/1000 -> 151.7062931 | D21: =C21 -> 151.7062931 | E21: =D21/C21 -> 1 | G21: (Total EPTC | H21: (EPTC from
A22: 4 | B22: Manitoba Education Property Tax Credit (1) | C22: n/a | D22: =((G20-H20)/1000000) -> 71.216448 | E22: 1 | G22: from Estimates) | H22: FRAME)
A23: 5 | B23: Farmland School Tax Rebate | C23: n/a | D23: =G28/1000 -> 22.831 | E23: 1
A24: 6 | B24: School Tax Assistance | C24: n/a | D24: =G29/1000 -> 0.185 | E24: 1
A25: 7 | B25: Teachers' Retirement Allowances Fund | C25: =D25 -> 229.265 | D25: =G30/1000 -> 229.265 | E25: =D25/C25 -> 1
A26: 8 | B26: Education Property Tax Rebate | C26: n/a | D26: 463.1 | E26: 1
B27: Adjusted Total | C27: =SUM(C19:C26) -> 3191.201066 | D27: =SUM(D19:D26) -> 2561.516321 | E27: =D27/C27 -> 0.8026809556 | G27: =G20 -> 203900000 | H27: EPTC
G28: =D35 -> 22831 | H28: Farmland
G29: =D40 -> 185 | H29: School Tax Assistance for Tenants and Homeowners
G30: =D42 -> 229265 | H30: Teachers’ Retirement Allowances Fund
A33: 1 | B33: FRAME Operating Fund | C33: ='- 3 -'!$B$48+('- 3 -'!$B$50)*0 -> 2793945717 | D33: ='- 41 -'!$I$47+('- 41 -'!$I$49)*0 -> 1623212580 | G33: 2023 MANITOBA ESTIMATES OF EXPENDITURE (gov.mb.ca)
G34: p. 33 (34 of 165) : 3.2(g) Agriculture, Risk Management Credit and Income Support Prgms
A35: 5 | B35: Farmland School Tax Rebate | D35: 22831 | H35: Due to further reduction in the Education Property Tax of 12.5% (from $48,843 to $32,731)
A37: 4 | B37: Manitoba Education Property Tax Credit and School Tax Rebate (1) | D37: =D70 -> 71216.448 | G37: p. 162 (163 of 165) | H37: Income tax Credit
G39: =D69 -> 203900 | H39: Total per estimate
A40: 6 | B40: School Tax Assistance | D40: 185 | E40: 550 | G40: p. 162 (163 of 165) 33NV1(g)
A42: 7 | B42: Teachers' Retirement Allowances Fund | D42: 229265 | G42: email fr. Michel St. Amant - Finance (TBS) - budget (previous year - projection used) dated Oct 18/22
G43: W:\Edusfb\Frame\REPORTS\Provincial Contribution\TRAF Pension Projections xxx
D57: 2023/24 | E57: 2022/23
E59: 0 | G59: Teams call from Carlos Matias - not to include School Tax Rebate - Mar21/22
D60: 90000 | E60: 90000 | G60: Renters Tax Credit
D61: 10900 | E61: 10000 | G61: EPTC
D62: 103000 | E62: 111300 | G62: HEPTR
D63: =SUM(D59:D62) -> 203900 | E63: =SUM(E59:E62) -> 211300 | G63: EPTCA
G66: Income tax | H66: estimated by our Branch
D67: =D63-D68 -> 71216.448 | E67: =+E62+E61-E68 -> -8249.079 | G67: EPTCA (w/o XW)
D68: ='- 41 -'!G47/1000 -> 132683.552 | E68: 129549.079 | G68: p. 41 ($155,862,579 + $305,781 = $156,168,360 EPTCA)
D69: =SUM(D66:D68) -> 203900 | E69: =SUM(E66:E68) -> 121300
D70: =+D66+D67 -> 71216.448 | E70: =+E66+E67 -> -8249.079
D71: =+E27 -> 0.8026809556 | E71: 0.675
D78: 2023 MANITOBA ESTIMATES OF EXPENDITURE (gov.mb.ca)
D79: p. 34 (34 of 165) | E79: Due to further reduction in the Education Property Tax of 12.5% (from $48,843 to $32,731)

Sheet viii
A1: =IF(Lang=1,H1,I1) -> PROVINCIAL CONTRIBUTION TO PUBLIC EDUCATION | H1: PROVINCIAL CONTRIBUTION TO PUBLIC EDUCATION | I1: CONTRIBUTION PROVINCIALE À L'ÉDUCATION PUBLIQUE
A3: ="The total cost of public education in Manitoba includes direct expenditures for the operation of schools (e.g. educator and administrator salaries, teaching supplies, pupil transportation, utilities, building maintenance)"&" and capital expenditures for school building construction and major building repairs and renovations. "&"Also included are provincial expenditures for pensions for retired teachers and the provincial education tax credit programs for homeowners, tenants and farmers which results in reduced property tax bills."&"The total provincial contribution to public education accounts for "&ROUND(PrvCntPer*100,1)&"% of the total of these expenditures." -> The total cost of public education in Manitoba includes direct expenditures for the operation of schools (e.g. educator and administrator salaries, teaching supplies, pupil transportation, utilities, building maintenance) and capital expenditures for school building construction and major building repairs and renovations. Also included are provincial expenditures for pensions for retired teachers and the provincial education tax credit programs for homeowners, tenants and farmers which results in reduced property tax bills.The total provincial contribution to public education accounts for 80.3% of the total of these expenditures.
L7: .
C12: =FAllYR&"/"&SpringYR&" ($ millions)" -> 2023/2024 ($ millions)
C14: Total Expenditure | D14: Provincial | E14: Provincial
C15: on Public Education | D15: Contribution | E15: Contribution as %
A17: 1 | B17: FRAME Operating Fund | C17: ='2023 2024'!C19 -> 2793.945717 | D17: ='2023 2024'!D19 -> 1623.21258 | E17: =D17/C17 -> 0.5809749882
A18: 2 | B18: School division capital (net transfers to capital fund) | C18: ='2023 2024'!C20 -> 16.284056 | D18: 0 | E18: 0
A19: 3 | B19: Provincial Capital Grant Funding and Other | C19: ='2023 2024'!C21 -> 151.7062931 | D19: ='2023 2024'!D21 -> 151.7062931 | E19: =D19/C19 -> 1
A20: 4 | B20: Manitoba Education Property Tax Credit (1) | C20: n/a | D20: ='2023 2024'!D22 -> 71.216448 | E20: n/a | P20: =IF('- 3 -'!$I$48=0,"","check updated file with W drive") -> 
A21: 5 | B21: Farmland School Tax Rebate | C21: n/a | D21: ='2023 2024'!D23 -> 22.831 | E21: n/a | P21: =IF('- 43 -'!$I$63298=0,"","check updated file with W drive") -> 
A22: 6 | B22: School Tax Assistance for Tenants and Homeowners (55+) | C22: n/a | D22: ='2023 2024'!D24 -> 0.185 | E22: n/a
A23: 7 | B23: Teachers' Retirement Allowances Fund | C23: ='2023 2024'!C25 -> 229.265 | D23: ='2023 2024'!D25 -> 229.265 | E23: =D23/C23 -> 1
A24: 8 | B24: Education Property Tax Rebate | C24: ='2023 2024'!C26 -> n/a | D24: ='2023 2024'!D26 -> 463.1 | E24: n/a
B26: Adjusted Total | C26: =SUM(C17:C24) -> 3191.201066 | D26: =SUM(D17:D24) -> 2561.516321 | E26: =D26/C26 -> 0.8026809556
A28: (1) | B28: The portion of the Education Property Tax Credit (EPTC) delivered through the income tax system directly to homeowners and renters.
B29: ="Starting in the 2022 taxation year, the renters component of the EPTC has been replaced with a new Residential Renters Tax Credit. EPTC reported by school divisions of $"&ROUND('- 41 -'!G47/1000000,1)&" million is adjusted by $"&ROUND(D20,1)&" million to equal the Total EPTC as per the Manitoba "&YEAR&" Estimates of Expenditure of $"&ROUND('2023 2024'!D63/1000,1)&" million. See page 41 for more information." -> Starting in the 2022 taxation year, the renters component of the EPTC has been replaced with a new Residential Renters Tax Credit. EPTC reported by school divisions of $132.7 million is adjusted by $71.2 million to equal the Total EPTC as per the Manitoba 2023 Estimates of Expenditure of $203.9 million. See page 41 for more information.
B31: Note: In-year additional funding such as a $5.0 million increase to the Teachers Idea Fund, $2.4 million for Additional Intensive Newcomer Support and an additional $0.5 million to the Community Schools Program are not included in the Provincial Contribution or anywhere in this FRAME Report, as these were announced after the school divisions' 2023/24 Budget submission.
A33: Source:
A35: 1 | B35: ="FRAME "&FAllYR&"/"&SpringYR&" Budget page 3, page 41" -> FRAME 2023/2024 Budget page 3, page 41
A36: 2 | B36: ="FRAME "&FAllYR&"/"&SpringYR&" Budget page 44" -> FRAME 2023/2024 Budget page 44
A37: 3 | B37: 2023/2024 Funding Announcement February 2023
A38: 4 | B38: Manitoba 2023 Estimates of Expenditure for the fiscal year ending March 31, 2024
A39: 5 | B39: =B38 -> Manitoba 2023 Estimates of Expenditure for the fiscal year ending March 31, 2024
A40: 6 | B40: =B39 -> Manitoba 2023 Estimates of Expenditure for the fiscal year ending March 31, 2024
A41: 7 | B41: Department of Finance
A42: 8 | B42: Department of Finance
C48: `

Sheet - 1 -
U3: YEAR | V3: 1968 | W3: 1969 | X3: 1970 | Y3: 1971 | Z3: 1972 | AA3: 1973 | AB3: 1974 | AC3: 1975 | AD3: 1976 | AE3: 1977 | AF3: 1978 | AG3: 1979 | AH3: 1980 | AI3: 1981 | AJ3: 1982 | AK3: 1983 | AL3: 1984 | AM3: 1985 | AN3: 1986 | AO3: 1987 | AP3: 1988 | AQ3: 1989 | AR3: 1990 | AS3: 1991 | AT3: 1992 | AU3: 1993 | AV3: 1994 | AW3: 1995 | AX3: 1996 | AY3: 1997 | AZ3: 1998 | BA3: 1999 | BB3: 2000 | BC3: 2001 | BD3: 2002 | BE3: 2003 | BF3: 2004 | BG3: 2005 | BH3: 2006 | BI3: 2007 | BJ3: 2008 | BK3: 2009 | BL3: 2010 | BM3: 2011 | BN3: 2012 | BO3: =+BN3+1 -> 2013 | BP3: =+BO3+1 -> 2014 | BQ3: =+BP3+1 -> 2015 | BR3: =+BQ3+1 -> 2016 | BS3: =+BR3+1 -> 2017 | BT3: =+BS3+1 -> 2018 | BU3: 2019 | BV3: 2020 | BW3: =+BV3+1 -> 2021 | BX3: 2022 | BY3: 2023 | BZ3: 2024
U4: ENROLMENT | V4: 232.2 | W4: 245.5 | X4: 247.5 | Y4: 245.6 | Z4: 239.7 | AA4: 231.4 | AB4: 227.5 | AC4: 225.6 | AD4: 223.2 | AE4: 219.2 | AF4: 213.4 | AG4: 206.7 | AH4: 202.4 | AI4: 199.1 | AJ4: 199 | AK4: 198.2 | AL4: 198 | AM4: 197.6 | AN4: 197.7 | AO4: 198.3 | AP4: 197.7 | AQ4: 196.7 | AR4: 196.4 | AS4: 195.9 | AT4: 195.6 | AU4: 195.2 | AV4: 194.2 | AW4: 194.7 | AX4: 194.7 | AY4: 194.3 | AZ4: 194.7 | BA4: =199-7.2 -> 191.8 | BB4: 191.9 | BC4: 190.7 | BD4: 188.8 | BE4: 188.1 | BF4: 186.3 | BG4: 184.3 | BH4: 182 | BI4: 181.2 | BJ4: 179.892 | BK4: 179.593 | BL4: 179.784 | BM4: 181.147 | BN4: 181.561 | BO4: 181.278 | BP4: 181.901 | BQ4: 183.13 | BR4: 185.225 | BS4: 186.8 | BT4: 188.5 | BU4: 189.9 | BV4: 180.9 | BW4: 184.1 | BX4: =+'- 8 -'!B48/1000 -> 189.726 | BY4: =+'- 8 -'!E48/1000 -> 183.3591

Sheet - 2 -
S24: - 2 -
F99: W:\Edusfb\CPI/CPI.xlsx
H101: TOTAL | I101: CPI
H102: EXPENSES | I102: 2002 = 100 | J102: CPI ADJUSTED | K102: Actual | L102: Adjusted
C103: Total Expenses | D103: - Wpg Tech Coll | E103: + Pine Falls | H103: CURRENT | J103: CONSTANT | K103: $millions | L103: $millions
C105: 1173479619 | D105: 5177094 | E105: 1262055 | F105: Actual | G105: 98/99 | H105: =C105-D105+E105 -> 1169564580 | I105: 92.55347956 | J105: =H105*(100/I105) -> 1263663544 | K105: =H105/1000000 -> 1169.56458 | L105: =J105/1000000 -> 1263.663544
C106: 1217264871 | D106: 4980674 | E106: 1311494 | F106: Actual | G106: 99/00 | H106: 1213595691 | I106: 94.70620092 | J106: 1281432133 | K106: 1213.595691 | L106: 1281.432133
C107: 1267547075 | D107: 5350449 | E107: 1339216 | F107: Actual | G107: 00/01 | H107: 1263535842 | I107: 97.48849174 | J107: 1296087179 | K107: 1263.535842 | L107: 1296.087179
C108: 1319006844 | D108: 8710460 | E108: 1285933.47 | F108: Actual | G108: 01/02 | H108: 1311582318 | I108: 98.85594368 | J108: 1326761213 | K108: 1311.582318 | L108: 1326.761213
C109: 1368981369 | D109: 9203863 | E109: 1342032 | F109: Actual | G109: 02/03 | H109: 1361119538 | I109: 101.2997563 | J109: 1343655294 | K109: 1361.119538 | L109: 1343.655294
C110: 1428062065 | D110: 9972592 | E110: 1333610 | F110: Actual | G110: 03/04 | H110: 1419423083 | I110: 102.3558083 | J110: 1386753822 | K110: 1419.423083 | L110: 1386.753822
C111: 1467949861 | E111: 1450110 | F111: Actual | G111: 04/05 | H111: =C111+E111 -> 1469399971 | I111: 105.2703967 | J111: 1395833983 | K111: 1469.399971 | L111: 1395.833983
F112: Actual | G112: 05/06 | H112: 1536007876 | I112: 107.7583333 | J112: 1425419110 | K112: 1536.007876 | L112: 1425.41911
F113: Actual | G113: 06/07 | H113: 1603516300 | I113: 109.8333333 | J113: 1459954143 | K113: 1603.5163 | L113: 1459.954143
F114: Actual | G114: 07/08 | H114: 1677944959 | I114: 111.85 | J114: 1500174304 | K114: =H114/1000000 -> 1677.944959 | L114: =J114/1000000 -> 1500.174304
F115: Actual | G115: 08/09 | H115: 1752304867 | I115: 114 | J115: 1537109532 | K115: 1752.304867 | L115: 1537.109532
F116: Actual | G116: 09/10 | H116: 1818421619 | I116: 114.6333333 | J116: 1586293939 | K116: 1818.421619 | L116: 1586.293939
F117: Actual | G117: 10/11 | H117: 1875139076 | I117: 116.6583333 | J117: 1607376878 | K117: 1875.139076 | L117: 1607.376878
F118: Actual | G118: 11/12 | H118: 1945942424 | I118: 119.4166667 | J118: 1629540062 | K118: 1945.942424 | L118: 1629.540062
F119: Actual | G119: 12/13 | H119: 2017420276 | I119: 121.4833333 | J119: 1660656010 | K119: 2017.420276 | L119: 1660.65601
F120: Actual | G120: 13/14 | H120: 2086402489 | I120: 124.4 | J120: 1677172419 | K120: 2086.402489 | L120: 1677.172419
F121: Actual | G121: 14/15 | H121: 2156918416 | I121: 125.7833333 | J121: =H121*(100/I121) -> 1714788723 | K121: =H121/1000000 -> 2156.918416 | L121: =J121/1000000 -> 1714.788723
F122: Actual | G122: 15/16 | H122: 2235012397 | I122: 127.725 | J122: 1749862906 | K122: =H122/1000000 -> 2235.012397 | L122: 1749.862906
F123: Actual | G123: 16/17 | H123: 2313048846 | I123: 129.325 | J123: =H123*(100/I123) -> 1788555071 | K123: =H123/1000000 -> 2313.048846 | L123: =J123/1000000 -> 1788.555071
F124: Actual | G124: 17/18 | H124: 2377682744 | I124: 132.1333333 | J124: =H124*(100/I124) -> 1799457173 | K124: 2377.682744 | L124: =J124/1000000 -> 1799.457173
F125: Actual | G125: 18/19 | H125: 2418150519 | I125: 135.2916667 | J125: =H125*(100/I125) -> 1787361024 | K125: 2418.150519 | L125: =J125/1000000 -> 1787.361024
F126: Actual | G126: 19/20 | H126: 2431876352 | I126: 137.4 | J126: 1769924565 | K126: 2431.876352 | L126: 1769.924565
F127: Actual | G127: 20/21 | H127: 2502532235 | I127: 138.9416667 | J127: =H127*(100/I127) -> 1801138776 | K127: 2502.532235 | L127: =J127/1000000 -> 1801.138776
F128: Actual | G128: 21/22 | H128: 2545291671 | I128: 147.2083333 | J128: =H128*(100/I128) -> 1729040478 | K128: =H128/1000000 -> 2545.291671 | L128: =J128/1000000 -> 1729.040478
F129: Actual | G129: 22/23 | H129: 2663111725 | I129: 156.0583333 | J129: =H129*(100/I129) -> 1706484792 | K129: =H129/1000000 -> 2663.111725 | L129: =J129/1000000 -> 1706.484792
F130: Budget | G130: 23/24 | H130: ='- 3 -'!B48 -> 2793945717 | I130: 158.9454125 | J130: =H130*(100/I130) -> 1757802049 | K130: 2793.945717 | L130: =J130/1000000 -> 1757.802049
B136: The latest CPI data is found here
B137: Province of Manitoba | Manitoba Bureau of Statistics (gov.mb.ca)
B139: The latest CPI forecast is found here
B140: Province of Manitoba | Manitoba Bureau of Statistics (gov.mb.ca)

Sheet - 3 -
A2: =IF(Lang=1,BA2,BB2) -> RECONCILIATION OF EXPENSES | BA2: RECONCILIATION OF EXPENSES | BB2: CONCILIATION DES DÉPENSES
A3: =IF(Lang=1,BA3,BB3) -> OPERATING FUND 2023/2024 BUDGET | BA3: ="OPERATING FUND "&YEAR&"/"&YEAR+1&" BUDGET" -> OPERATING FUND 2023/2024 BUDGET | BB3: ="FONDS DE FONCTIONNEMENT – BUDGET "&YEAR&" - "&YEAR+1 -> FONDS DE FONCTIONNEMENT – BUDGET 2023 - 2024
C6: LESS OPERATING FUND TRANSFERS (2) | D6: EXPENSES NET OF TRANSFERS (3) | E6: LESS NON K-12 EDUCATION & SERVICES (4) | F6: TOTAL EXPENSES FOR PER PUPIL COSTS (5)
B8: TOTAL EXPENSES (1)
A9: DIVISION / DISTRICT
A11: BEAUTIFUL PLAINS | B11: 26557996 | C11: =-Data!L11 -> -85700 | D11: =B11+C11 -> 26472296 | E11: =-'- 15 -'!H11-'- 16 -'!B11 -> -32980 | F11: =D11+E11 -> 26439316
A12: BORDER LAND | B12: 38524395 | C12: =-Data!L12 -> -560000 | D12: =B12+C12 -> 37964395 | E12: =-'- 15 -'!H12-'- 16 -'!B12 -> -411985 | F12: =D12+E12 -> 37552410
A13: BRANDON | B13: 122173967 | C13: =-Data!L13 -> -92950 | D13: 122081017 | E13: =-'- 15 -'!H13-'- 16 -'!B13 -> -431630 | F13: 121649387
A14: DSFM | B14: 111021156 | C14: =-Data!L14 -> -1079733 | D14: 109941423 | E14: =-'- 15 -'!H14-'- 16 -'!B14 -> -1167181 | F14: 108774242
A15: EVERGREEN | B15: 23507800 | C15: =-Data!L15 -> -70500 | D15: 23437300 | E15: =-'- 15 -'!H15-'- 16 -'!B15 -> -56600 | F15: 23380700
A16: FLIN FLON | B16: 16848718 | C16: =-Data!L16 -> -1300 | D16: 16847418 | E16: =-'- 15 -'!H16-'- 16 -'!B16 -> -111661 | F16: 16735757
A17: FORT LA BOSSE | B17: 21571758 | C17: =-Data!L17 -> -76050 | D17: 21495708 | E17: =-'- 15 -'!H17-'- 16 -'!B17 -> -250780 | F17: 21244928
A18: FRONTIER | B18: 168341065 | C18: =-Data!L18 -> -2761001 | D18: 165580064 | E18: =-'- 15 -'!H18-'- 16 -'!B18 -> -4923835 | F18: 160656229
A19: GARDEN VALLEY | B19: 56563410 | C19: =-Data!L19 -> -508000 | D19: 56055410 | E19: =-'- 15 -'!H19-'- 16 -'!B19 -> -52370 | F19: 56003040
A20: HANOVER | B20: 105146400 | C20: =-Data!L20 -> -2800700 | D20: 102345700 | E20: =-'- 15 -'!H20-'- 16 -'!B20 -> -111200 | F20: 102234500
A21: INTERLAKE | B21: 41235000 | C21: =-Data!L21 -> -261036 | D21: 40973964 | E21: =-'- 15 -'!H21-'- 16 -'!B21 -> 0 | F21: 40973964
A22: KELSEY | B22: 21906025 | C22: =-Data!L22 -> -11000 | D22: 21895025 | E22: =-'- 15 -'!H22-'- 16 -'!B22 -> -920770 | F22: 20974255
A23: LAKESHORE | B23: 17116879 | C23: =-Data!L23 -> -80700 | D23: 17036179 | E23: =-'- 15 -'!H23-'- 16 -'!B23 -> -386850 | F23: 16649329
A24: LORD SELKIRK | B24: 63703861 | C24: =-Data!L24 -> -182000 | D24: 63521861 | E24: =-'- 15 -'!H24-'- 16 -'!B24 -> -731963 | F24: 62789898
A25: LOUIS RIEL | B25: 223545879 | C25: =-Data!L25 -> -1138500 | D25: 222407379 | E25: =-'- 15 -'!H25-'- 16 -'!B25 -> -3624293 | F25: 218783086
A26: MOUNTAIN VIEW | B26: 46137463 | C26: =-Data!L26 -> -5000 | D26: 46132463 | E26: =-'- 15 -'!H26-'- 16 -'!B26 -> -100573 | F26: 46031890
A27: MYSTERY LAKE | B27: 46390227 | C27: =-Data!L27 -> -9200 | D27: 46381027 | E27: =-'- 15 -'!H27-'- 16 -'!B27 -> -60491 | F27: 46320536
A28: PARK WEST | B28: 32570598 | C28: =-Data!L28 -> -145000 | D28: 32425598 | E28: =-'- 15 -'!H28-'- 16 -'!B28 -> -202952 | F28: 32222646
A29: PEMBINA TRAILS | B29: 206537578 | C29: =-Data!L29 -> -2466000 | D29: 204071578 | E29: =-'- 15 -'!H29-'- 16 -'!B29 -> -234016 | F29: 203837562
A30: PINE CREEK | B30: 17288369 | C30: =-Data!L30 -> 0 | D30: 17288369 | E30: =-'- 15 -'!H30-'- 16 -'!B30 -> -14790 | F30: 17273579
A31: PORTAGE LA PRAIRIE | B31: 46343259 | C31: =-Data!L31 -> -45000 | D31: 46298259 | E31: =-'- 15 -'!H31-'- 16 -'!B31 -> -58165 | F31: 46240094
A32: PRAIRIE ROSE | B32: 34983442 | C32: =-Data!L32 -> -175500 | D32: 34807942 | E32: =-'- 15 -'!H32-'- 16 -'!B32 -> -365038 | F32: 34442904
A33: PRAIRIE SPIRIT | B33: 31368590 | C33: =-Data!L33 -> -80000 | D33: 31288590 | E33: =-'- 15 -'!H33-'- 16 -'!B33 -> -38900 | F33: 31249690
A34: RED RIVER VALLEY | B34: 35808754 | C34: =-Data!L34 -> -392363 | D34: 35416391 | E34: =-'- 15 -'!H34-'- 16 -'!B34 -> -65372 | F34: 35351019
A35: RIVER EAST TRANSCONA | B35: 224892401 | C35: =-Data!L35 -> -57800 | D35: 224834601 | E35: =-'- 15 -'!H35-'- 16 -'!B35 -> -2254998 | F35: 222579603
A36: ROLLING RIVER | B36: 27111655 | C36: =-Data!L36 -> -360000 | D36: 26751655 | E36: =-'- 15 -'!H36-'- 16 -'!B36 -> -30390 | F36: 26721265
A37: SEINE RIVER | B37: 61531662 | C37: =-Data!L37 -> -514600 | D37: 61017062 | E37: =-'- 15 -'!H37-'- 16 -'!B37 -> -1111210 | F37: 59905852
A38: SEVEN OAKS | B38: 168486575 | C38: =-Data!L38 -> -1135250 | D38: 167351325 | E38: =-'- 15 -'!H38-'- 16 -'!B38 -> -4983990 | F38: 162367335
A39: SOUTHWEST HORIZON | B39: 25793700 | C39: =-Data!L39 -> -286100 | D39: 25507600 | E39: =-'- 15 -'!H39-'- 16 -'!B39 -> -203800 | F39: 25303800
A40: ST. JAMES-ASSINIBOIA | B40: 123310708 | C40: =-Data!L40 -> -391000 | D40: 122919708 | E40: =-'- 15 -'!H40-'- 16 -'!B40 -> -956755 | F40: 121962953
A41: SUNRISE | B41: 74841554 | C41: =-Data!L41 -> -774000 | D41: 74067554 | E41: =-'- 15 -'!H41-'- 16 -'!B41 -> -1110491 | F41: 72957063
A42: SWAN VALLEY | B42: 25341416 | C42: =-Data!L42 -> -62600 | D42: 25278816 | E42: =-'- 15 -'!H42-'- 16 -'!B42 -> -95766 | F42: 25183050
A43: TURTLE MOUNTAIN | B43: 14954385 | C43: =-Data!L43 -> -26000 | D43: 14928385 | E43: =-'- 15 -'!H43-'- 16 -'!B43 -> -220377 | F43: 14708008
A44: TURTLE RIVER | B44: 12347227 | C44: =-Data!L44 -> -150180 | D44: 12197047 | E44: =-'- 15 -'!H44-'- 16 -'!B44 -> -28040 | F44: 12169007
A45: WESTERN | B45: 26991845 | C45: =-Data!L45 -> -114500 | D45: 26877345 | E45: =-'- 15 -'!H45-'- 16 -'!B45 -> -531680 | F45: 26345665
A46: WINNIPEG | B46: 453150000 | C46: =-Data!L46 -> -2452450 | D46: 450697550 | E46: =-'- 15 -'!H46-'- 16 -'!B46 -> -9067403 | F46: 441630147
A48: PROVINCE | B48: =SUM(B11:B46) -> 2793945717 | C48: =SUM(C11:C46) -> -19351713 | D48: =SUM(D11:D46) -> 2774594004 | E48: =SUM(E11:E46) -> -34949295 | F48: =SUM(F11:F46) -> 2739644709 | I48: 0
A50: WHITESHELL | B50: 3994311 | C50: =-Data!L50 -> -18200 | D50: =B50+C50 -> 3976111 | E50: =-'- 15 -'!H50-'- 16 -'!B50 -> -208700 | F50: =D50+E50 -> 3767411
A52: (1) Total operating expenses as reported on the Schedule of Revenues and Expenses in each school division's budget.
A53: (2) Operating fund transfers are payments to other school divisions, organizations and individuals. These are removed to provide more
A54: accurate per pupil costs.
A55: (3) As reported on pages 10 and 13 (on a provincial basis).
A56: (4) Expenses for Adult Learning Centres and Community Education and Services (Functions 300 and 400).
A57: (5) As reported on page 4.

Sheet - 4 -
A2: =IF(Lang=1,BA2,BB2) -> OPERATING FUND EXPENSE PER PUPIL | BA2: OPERATING FUND EXPENSE PER PUPIL | BB2: DÉPENSES DU FONDS DE FONCTIONNEMENT PAR ÉLÈVE
A3: 2022/23 and 2023/24 BUDGET
B7: =YEAR-1&"/"&YEAR&" BUDGET" -> 2022/2023 BUDGET | D7: =YEAR&"/"&YEAR+1&" BUDGET" -> 2023/2024 BUDGET
A9: DIVISION / DISTRICT | B9: EXPENSES (1) | C9: PER PUPIL | D9: EXPENSES (1) | E9: PER PUPIL
A11: BEAUTIFUL PLAINS | B11: 24715067 | C11: 12053 | D11: ='- 3 -'!F11 -> 26439316 | E11: =ROUND(D11/'- 7 -'!E11,0) -> 12730 | F11: =IF(B11=D11,"Check","") -> 
A12: BORDER LAND | B12: 36153647 | C12: 17046 | D12: ='- 3 -'!F12 -> 37552410 | E12: =ROUND(D12/'- 7 -'!E12,0) -> 18084 | F12: =IF(B12=D12,"Check","") -> 
A13: BRANDON | B13: 113963800 | C13: 13028 | D13: ='- 3 -'!F13 -> 121649387 | E13: =ROUND(D13/'- 7 -'!E13,0) -> 13364
A14: DSFM | B14: 103595519 | C14: 17520 | D14: ='- 3 -'!F14 -> 108774242 | E14: =ROUND(D14/'- 7 -'!E14,0) -> 17902
A15: EVERGREEN | B15: 22069340 | C15: 15958 | D15: ='- 3 -'!F15 -> 23380700 | E15: =ROUND(D15/'- 7 -'!E15,0) -> 16748
A16: FLIN FLON | B16: 16003284 | C16: 16881 | D16: ='- 3 -'!F16 -> 16735757 | E16: =ROUND(D16/'- 7 -'!E16,0) -> 19759
A17: FORT LA BOSSE | B17: 20070739 | C17: 13593 | D17: ='- 3 -'!F17 -> 21244928 | E17: =ROUND(D17/'- 7 -'!E17,0) -> 14042
A18: FRONTIER | B18: 150078151 | C18: 23930 | D18: ='- 3 -'!F18 -> 160656229 | E18: =ROUND(D18/'- 7 -'!E18,0) -> 25854
A19: GARDEN VALLEY | B19: 51467400 | C19: 12474 | D19: ='- 3 -'!F19 -> 56003040 | E19: =ROUND(D19/'- 7 -'!E19,0) -> 13271
A20: HANOVER | B20: 96378100 | C20: 12145 | D20: ='- 3 -'!F20 -> 102234500 | E20: =ROUND(D20/'- 7 -'!E20,0) -> 12589
A21: INTERLAKE | B21: 40191200 | C21: 13792 | D21: ='- 3 -'!F21 -> 40973964 | E21: =ROUND(D21/'- 7 -'!E21,0) -> 14379
A22: KELSEY | B22: 20192691 | C22: 13936 | D22: ='- 3 -'!F22 -> 20974255 | E22: =ROUND(D22/'- 7 -'!E22,0) -> 14667
A23: LAKESHORE | B23: 16288301 | C23: 17724 | D23: ='- 3 -'!F23 -> 16649329 | E23: =ROUND(D23/'- 7 -'!E23,0) -> 18246
A24: LORD SELKIRK | B24: 60860288 | C24: 16360 | D24: ='- 3 -'!F24 -> 62789898 | E24: =ROUND(D24/'- 7 -'!E24,0) -> 16695
A25: LOUIS RIEL | B25: 205136591 | C25: 13458 | D25: ='- 3 -'!F25 -> 218783086 | E25: =ROUND(D25/'- 7 -'!E25,0) -> 13531
A26: MOUNTAIN VIEW | B26: 44420785 | C26: 14631 | D26: ='- 3 -'!F26 -> 46031890 | E26: =ROUND(D26/'- 7 -'!E26,0) -> 15187
A27: MYSTERY LAKE | B27: 45127696 | C27: 16192 | D27: ='- 3 -'!F27 -> 46320536 | E27: =ROUND(D27/'- 7 -'!E27,0) -> 16816
A28: PARK WEST | B28: 31073280 | C28: 14982 | D28: ='- 3 -'!F28 -> 32222646 | E28: =ROUND(D28/'- 7 -'!E28,0) -> 15210
A29: PEMBINA TRAILS | B29: 192400716 | C29: 12985 | D29: ='- 3 -'!F29 -> 203837562 | E29: =ROUND(D29/'- 7 -'!E29,0) -> 13011
A30: PINE CREEK | B30: 16492067 | C30: 14925 | D30: ='- 3 -'!F30 -> 17273579 | E30: =ROUND(D30/'- 7 -'!E30,0) -> 15979
A31: PORTAGE LA PRAIRIE | B31: 43547046 | C31: 12827 | D31: ='- 3 -'!F31 -> 46240094 | E31: =ROUND(D31/'- 7 -'!E31,0) -> 13426
A32: PRAIRIE ROSE | B32: 32692884 | C32: 13498 | D32: ='- 3 -'!F32 -> 34442904 | E32: =ROUND(D32/'- 7 -'!E32,0) -> 14632
A33: PRAIRIE SPIRIT | B33: 29989977 | C33: 14384 | D33: ='- 3 -'!F33 -> 31249690 | E33: =ROUND(D33/'- 7 -'!E33,0) -> 14548
A34: RED RIVER VALLEY | B34: 34146762 | C34: 15335 | D34: ='- 3 -'!F34 -> 35351019 | E34: =ROUND(D34/'- 7 -'!E34,0) -> 15539
A35: RIVER EAST TRANSCONA | B35: 212760119 | C35: 12902 | D35: ='- 3 -'!F35 -> 222579603 | E35: =ROUND(D35/'- 7 -'!E35,0) -> 13047
A36: ROLLING RIVER | B36: 25542545 | C36: 14390 | D36: ='- 3 -'!F36 -> 26721265 | E36: =ROUND(D36/'- 7 -'!E36,0) -> 15088
A37: SEINE RIVER | B37: 57733937 | C37: 13211 | D37: ='- 3 -'!F37 -> 59905852 | E37: =ROUND(D37/'- 7 -'!E37,0) -> 12976
A38: SEVEN OAKS | B38: 155372375 | C38: 13472 | D38: ='- 3 -'!F38 -> 162367335 | E38: =ROUND(D38/'- 7 -'!E38,0) -> 13728
A39: SOUTHWEST HORIZON | B39: 24357700 | C39: 16826 | D39: ='- 3 -'!F39 -> 25303800 | E39: =ROUND(D39/'- 7 -'!E39,0) -> 17548
A40: ST. JAMES-ASSINIBOIA | B40: 116785956 | C40: 14661 | D40: ='- 3 -'!F40 -> 121962953 | E40: =ROUND(D40/'- 7 -'!E40,0) -> 15310
A41: SUNRISE | B41: 70220736 | C41: 15613 | D41: ='- 3 -'!F41 -> 72957063 | E41: =ROUND(D41/'- 7 -'!E41,0) -> 15860
A42: SWAN VALLEY | B42: 23549500 | C42: 18101 | D42: ='- 3 -'!F42 -> 25183050 | E42: =ROUND(D42/'- 7 -'!E42,0) -> 18807
A43: TURTLE MOUNTAIN | B43: 14280816 | C43: 14692 | D43: ='- 3 -'!F43 -> 14708008 | E43: =ROUND(D43/'- 7 -'!E43,0) -> 14224
A44: TURTLE RIVER | B44: 12031861 | C44: 18539 | D44: ='- 3 -'!F44 -> 12169007 | E44: =ROUND(D44/'- 7 -'!E44,0) -> 20855
A45: WESTERN | B45: 24562059 | C45: 11970 | D45: ='- 3 -'!F45 -> 26345665 | E45: =ROUND(D45/'- 7 -'!E45,0) -> 12308
A46: WINNIPEG | B46: 423758971 | C46: 15499 | D46: ='- 3 -'!F46 -> 441630147 | E46: =ROUND(D46/'- 7 -'!E46,0) -> 16152
A48: PROVINCE | B48: 2608011906 | C48: 14524 | D48: =SUM(D11:D46) -> 2739644709 | E48: =ROUND(D48/'- 7 -'!E48,0) -> 14941
A50: WHITESHELL | B50: 3568092.73 | C50: 19713 | D50: ='- 3 -'!F50 -> 3767411 | E50: =ROUND(D50/'- 7 -'!E50,0) -> 21904
A52: (1) Operating fund transfers (i.e. payments to other school divisions, organizations and individuals) are excluded to provide more accurate per pupil costs. Also excluded are expenditures on educational services not provided to K-12 pupils: Function 300 (Adult Learning Centres) and Function 400 (Community Education and Services).

Sheet - 5 -
AA3: =FAllYR&"/"&RIGHT(SpringYR,2)&" OPERATING FUND EXPENSE PER PUPIL" -> 2023/24 OPERATING FUND EXPENSE PER PUPIL
S24: - 5 -
W33: .
B50: FROM PAGE 4, columns A (names) and E (values), sorted highest to lowest
B51: WESTERN | E51: 12308
B52: HANOVER | E52: 12589
B53: BEAUTIFUL PLAINS | E53: 12730
B54: PEMBINA TRAILS | E54: 13011
B55: RIVER EAST TRANSCONA | E55: 13047
B56: SEINE RIVER | E56: 13095
B57: GARDEN VALLEY | E57: 13271
B58: BRANDON | E58: 13364
B59: PORTAGE LA PRAIRIE | E59: 13426
B60: LOUIS RIEL | E60: 13531
B61: SEVEN OAKS | E61: 13728
B62: FORT LA BOSSE | E62: 14042
B63: TURTLE MOUNTAIN | E63: 14224
B64: INTERLAKE | E64: 14379
B65: PRAIRIE SPIRIT | E65: 14548
B66: PRAIRIE ROSE | E66: 14632
B67: KELSEY | E67: 14667
B68: ROLLING RIVER | E68: 15088
B69: PARK WEST | E69: 15182
B70: MOUNTAIN VIEW | E70: 15187
B71: ST. JAMES-ASSINIBOIA | E71: 15310
B72: RED RIVER VALLEY | E72: 15539
B73: SUNRISE | E73: 15860
B74: PINE CREEK | E74: 15979
B75: WINNIPEG | E75: 16152
B76: LORD SELKIRK | E76: 16695
B77: EVERGREEN | E77: 16748
B78: MYSTERY LAKE | E78: 16816
B79: SOUTHWEST HORIZON | E79: 17548
B80: DSFM | E80: 17902
B81: BORDER LAND | E81: 18084
B82: LAKESHORE | E82: 18246
B83: SWAN VALLEY | E83: 18807
B84: FLIN FLON | E84: 19759
B85: TURTLE RIVER | E85: 20855
B86: FRONTIER | E86: 25854

Sheet - 6 -
B2: =IF(Lang=1,BA2,BB2) -> FRAME STUDENT STATISTICS | H2: PAGE 1 OF 2 | BA2: FRAME STUDENT STATISTICS | BB2: STATISTIQUES SUR LES ÉLÈVES (SYSTÈME COMPTABLE FRAME)
B3: =IF(Lang=1,BA3,BB3) -> ESTIMATE SEPTEMBER 29, 2023 | BA3: ="ESTIMATE SEPTEMBER 29, "&YEAR -> ESTIMATE SEPTEMBER 29, 2023 | BB3: ="PRÉVISIONS AU 29 SEPTEMBRE "&YEAR -> PRÉVISIONS AU 29 SEPTEMBRE 2023
B6: REGULAR INSTRUCTION
B7: SINGLE TRACK (1) | E7: DUAL TRACK (2)
B8: ENGLISH LANGUAGE | C8: FRANÇAIS | D8: FRENCH IMMERSION | E8: ENGLISH LANGUAGE | F8: FRANÇAIS | G8: FRENCH IMMERSION | H8: OTHER BILINGUAL
A9: DIVISION / DISTRICT
A11: BEAUTIFUL PLAINS | B11: 2077 | C11: 0 | D11: 0 | E11: 0 | F11: 0 | G11: 0 | H11: 0
A12: BORDER LAND | B12: 1369.5 | C12: 0 | D12: 0 | E12: 412 | F12: 0 | G12: 152 | H12: 0
A13: BRANDON | B13: 7185 | C13: 0 | D13: 313 | E13: 690 | F13: 0 | G13: 449 | H13: 0
A14: DSFM | B14: 0 | C14: 6053.3 | D14: 0 | E14: 0 | F14: 0 | G14: 0 | H14: 0
A15: EVERGREEN | B15: 1376 | C15: 0 | D15: 0 | E15: 0 | F15: 0 | G15: 0 | H15: 0
A16: FLIN FLON | B16: 563 | C16: 0 | D16: 0 | E16: 183 | F16: 0 | G16: 101 | H16: 0
A17: FORT LA BOSSE | B17: 1473 | C17: 0 | D17: 0 | E17: 0 | F17: 0 | G17: 0 | H17: 0
A18: FRONTIER | B18: 6155 | C18: 0 | D18: 0 | E18: 0 | F18: 0 | G18: 0 | H18: 0
A19: GARDEN VALLEY | B19: 4114 | C19: 0 | D19: 0 | E19: 0 | F19: 0 | G19: 0 | H19: 0
A20: HANOVER | B20: 7608.1 | C20: 0 | D20: 0 | E20: 0 | F20: 0 | G20: 0 | H20: 0
A21: INTERLAKE | B21: 1560.5 | C21: 0 | D21: 0 | E21: 871 | F21: 0 | G21: 418 | H21: 0
A22: KELSEY | B22: 798 | C22: 0 | D22: 0 | E22: 457 | F22: 0 | G22: 166 | H22: 0
A23: LAKESHORE | B23: 899.5 | C23: 0 | D23: 0 | E23: 0 | F23: 0 | G23: 0 | H23: 0
A24: LORD SELKIRK | B24: 2605 | C24: 0 | D24: 214 | E24: 581 | F24: 0 | G24: 72 | H24: 81
A25: LOUIS RIEL | B25: 10406 | C25: 0 | D25: 4878 | E25: 309 | F25: 0 | G25: 425 | H25: 0
A26: MOUNTAIN VIEW | B26: 2352.1 | C26: 0 | D26: 136 | E26: 330 | F26: 0 | G26: 69 | H26: 65.5
A27: MYSTERY LAKE | B27: 2251.07 | C27: 0 | D27: 0 | E27: 154.5 | F27: 0 | G27: 195.5 | H27: 0
A28: PARK WEST | B28: 2118.5 | C28: 0 | D28: 0 | E28: 0 | F28: 0 | G28: 0 | H28: 0
A29: PEMBINA TRAILS | B29: 9685.8 | C29: 0 | D29: 1432.5 | E29: 2545.3 | F29: 0 | G29: 2003 | H29: 0
A30: PINE CREEK | B30: 1006 | C30: 0 | D30: 0 | E30: 0 | F30: 0 | G30: 0 | H30: 0
A31: PORTAGE LA PRAIRIE | B31: 2403.5 | C31: 0 | D31: 0 | E31: 531 | F31: 0 | G31: 405.5 | H31: 0
A32: PRAIRIE ROSE | B32: 1748 | C32: 0 | D32: 116.5 | E32: 306.5 | F32: 0 | G32: 183 | H32: 0
A33: PRAIRIE SPIRIT | B33: 1701 | C33: 0 | D33: 0 | E33: 235 | F33: 114.5 | G33: 97.5 | H33: 0
A34: RED RIVER VALLEY | B34: 1702 | C34: 0 | D34: 339 | E34: 86 | F34: 126.5 | G34: 0 | H34: 0
A35: RIVER EAST TRANSCONA | B35: 8369.5 | C35: 0 | D35: 1562.5 | E35: 3782 | F35: 0 | G35: 1926.5 | H35: 515
A36: ROLLING RIVER | B36: 1761 | C36: 0 | D36: 0 | E36: 0 | F36: 0 | G36: 0 | H36: 0
A37: SEINE RIVER | B37: 2275 | C37: 0 | D37: 859 | E37: 795 | F37: 0 | G37: 687.5 | H37: 0
A38: SEVEN OAKS | B38: 7061.7 | C38: 0 | D38: 1169.5 | E38: 1737.8 | F38: 0 | G38: 1313 | H38: 348.5
A39: SOUTHWEST HORIZON | B39: 1442 | C39: 0 | D39: 0 | E39: 0 | F39: 0 | G39: 0 | H39: 0
A40: ST. JAMES-ASSINIBOIA | B40: 5366.5 | C40: 0 | D40: 1382.5 | E40: 538.29 | F40: 0 | G40: 443 | H40: 0
A41: SUNRISE | B41: 1700 | C41: 0 | D41: 0 | E41: 1989 | F41: 0 | G41: 802 | H41: 109
A42: SWAN VALLEY | B42: 972.9 | C42: 0 | D42: 0 | E42: 195 | F42: 0 | G42: 44 | H42: 0
A43: TURTLE MOUNTAIN | B43: 1005 | C43: 0 | D43: 0 | E43: 0 | F43: 0 | G43: 0 | H43: 0
A44: TURTLE RIVER | B44: 561.5 | C44: 0 | D44: 22 | E44: 0 | F44: 0 | G44: 0 | H44: 0
A45: WESTERN | B45: 934 | C45: 0 | D45: 0 | E45: 854 | F45: 0 | G45: 322.5 | H45: 0
A46: WINNIPEG | B46: 17176.5 | C46: 0 | D46: 1406 | E46: 4900 | F46: 0 | G46: 2720 | H46: 441
A48: PROVINCE | B48: =SUM(B11:B46) -> 121783.17 | C48: =SUM(C11:C46) -> 6053.3 | D48: 13830.5 | E48: 22482.39 | F48: 241 | G48: 12995 | H48: 1560
A50: WHITESHELL | B50: 172 | C50: 0 | D50: 0 | E50: 0 | F50: 0 | G50: 0 | H50: 0
A52: (1) 90% or more of Regular Instruction enrolment is in one language program.
A53: (2) No one language program comprises 90% or more of Regular Instruction enrolment.

Sheet - 7 -
B2: =+'- 6 -'!B2 -> FRAME STUDENT STATISTICS | F2: PAGE 2 OF 2
B3: =+STATDATE -> ESTIMATE SEPTEMBER 29, 2023
B6: REGULAR INSTRUCTION (1) | E6: TOTAL
B8: SENIOR YEARS TECHNOLOGY | C8: TOTAL | E8: K-12 FTE ENROLMENT
A9: DIVISION / DISTRICT
A11: BEAUTIFUL PLAINS | B11: 0 | C11: =SUM('- 6 -'!$B11:H11,B11) -> 2077 | E11: =C11 -> 2077
A12: BORDER LAND | B12: 143 | C12: =SUM('- 6 -'!$B12:H12,B12) -> 2076.5 | E12: =C12 -> 2076.5
A13: BRANDON | B13: 466 | C13: =SUM('- 6 -'!$B13:H13,B13) -> 9103 | E13: 9103
A14: DSFM | B14: 22.7 | C14: =SUM('- 6 -'!$B14:H14,B14) -> 6076 | E14: 6076
A15: EVERGREEN | B15: 20 | C15: =SUM('- 6 -'!$B15:H15,B15) -> 1396 | E15: 1396
A16: FLIN FLON | B16: 0 | C16: =SUM('- 6 -'!$B16:H16,B16) -> 847 | E16: 847
A17: FORT LA BOSSE | B17: 40 | C17: =SUM('- 6 -'!$B17:H17,B17) -> 1513 | E17: 1513
A18: FRONTIER | B18: 59 | C18: =SUM('- 6 -'!$B18:H18,B18) -> 6214 | E18: 6214
A19: GARDEN VALLEY | B19: 106 | C19: =SUM('- 6 -'!$B19:H19,B19) -> 4220 | E19: 4220
A20: HANOVER | B20: 512.9 | C20: =SUM('- 6 -'!$B20:H20,B20) -> 8121 | E20: 8121
A21: INTERLAKE | B21: 0 | C21: =SUM('- 6 -'!$B21:H21,B21) -> 2849.5 | E21: 2849.5
A22: KELSEY | B22: 9 | C22: =SUM('- 6 -'!$B22:H22,B22) -> 1430 | E22: 1430
A23: LAKESHORE | B23: 13 | C23: =SUM('- 6 -'!$B23:H23,B23) -> 912.5 | E23: 912.5
A24: LORD SELKIRK | B24: 208 | C24: =SUM('- 6 -'!$B24:H24,B24) -> 3761 | E24: 3761
A25: LOUIS RIEL | B25: 151 | C25: =SUM('- 6 -'!$B25:H25,B25) -> 16169 | E25: 16169
A26: MOUNTAIN VIEW | B26: 78.4 | C26: =SUM('- 6 -'!$B26:H26,B26) -> 3031 | E26: 3031
A27: MYSTERY LAKE | B27: 153.43 | C27: =SUM('- 6 -'!$B27:H27,B27) -> 2754.5 | E27: 2754.5
A28: PARK WEST | B28: 0 | C28: =SUM('- 6 -'!$B28:H28,B28) -> 2118.5 | E28: 2118.5
A29: PEMBINA TRAILS | B29: 0 | C29: =SUM('- 6 -'!$B29:H29,B29) -> 15666.6 | E29: 15666.6
A30: PINE CREEK | B30: 75 | C30: =SUM('- 6 -'!$B30:H30,B30) -> 1081 | E30: 1081
A31: PORTAGE LA PRAIRIE | B31: 104 | C31: =SUM('- 6 -'!$B31:H31,B31) -> 3444 | E31: 3444
A32: PRAIRIE ROSE | B32: 0 | C32: =SUM('- 6 -'!$B32:H32,B32) -> 2354 | E32: 2354
A33: PRAIRIE SPIRIT | B33: 0 | C33: =SUM('- 6 -'!$B33:H33,B33) -> 2148 | E33: 2148
A34: RED RIVER VALLEY | B34: 21.5 | C34: =SUM('- 6 -'!$B34:H34,B34) -> 2275 | E34: 2275
A35: RIVER EAST TRANSCONA | B35: 904 | C35: =SUM('- 6 -'!$B35:H35,B35) -> 17059.5 | E35: 17059.5
A36: ROLLING RIVER | B36: 10 | C36: =SUM('- 6 -'!$B36:H36,B36) -> 1771 | E36: 1771
A37: SEINE RIVER | B37: 0 | C37: =SUM('- 6 -'!$B37:H37,B37) -> 4616.5 | E37: 4616.5
A38: SEVEN OAKS | B38: 197 | C38: =SUM('- 6 -'!$B38:H38,B38) -> 11827.5 | E38: 11827.5
A39: SOUTHWEST HORIZON | B39: 0 | C39: =SUM('- 6 -'!$B39:H39,B39) -> 1442 | E39: 1442
A40: ST. JAMES-ASSINIBOIA | B40: 235.71 | C40: =SUM('- 6 -'!$B40:H40,B40) -> 7966 | E40: 7966
A41: SUNRISE | B41: 0 | C41: =SUM('- 6 -'!$B41:H41,B41) -> 4600 | E41: 4600
A42: SWAN VALLEY | B42: 127.1 | C42: =SUM('- 6 -'!$B42:H42,B42) -> 1339 | E42: 1339
A43: TURTLE MOUNTAIN | B43: 29 | C43: =SUM('- 6 -'!$B43:H43,B43) -> 1034 | E43: 1034
A44: TURTLE RIVER | B44: 0 | C44: =SUM('- 6 -'!$B44:H44,B44) -> 583.5 | E44: 583.5
A45: WESTERN | B45: 30 | C45: =SUM('- 6 -'!$B45:H45,B45) -> 2140.5 | E45: 2140.5
A46: WINNIPEG | B46: 698 | C46: =SUM('- 6 -'!$B46:H46,B46) -> 27341.5 | E46: 27341.5
A48: PROVINCE | B48: =SUM(B11:B46) -> 4413.74 | C48: =SUM(C11:C46) -> 183359.1 | E48: =SUM(E11:E46) -> 183359.1
A50: WHITESHELL | B50: 0 | C50: =SUM('- 6 -'!$B50:H50,B50) -> 172 | E50: =C50 -> 172
A52: (1) Special Placement students are not reported separately. They are included in Regular Instruction Enrolment. As a result, total enrolment in Regular Instruction is equal to Total K-12 FTE enrolment.

Sheet - 8 -
A2: =IF(Lang=1,BA2,BB2) -> ENROLMENTS - HEADCOUNT, FRAME AND ELIGIBLE | BA2: ENROLMENTS - HEADCOUNT, FRAME AND ELIGIBLE | BB2: INSCRIPTIONS – ÉLÈVES PRÉSENTS, SELON LE SYSTÈME COMPTABLE FRAME, ET ADMISSIBLES
BA3: ACTUAL AND ESTIMATES AS OF SEPTEMBER 29 | BB3: CHIFFRES RÉELS ET PRÉVISIONS AU 29 SEPTEMBRE
B5: HEADCOUNT (1) | E5: FRAME (2) | F5: ELIGIBLE (3) | G5: ELIGIBLE (3)
B6: ="ACTUAL SEP. 29, "&FAllYR-1 -> ACTUAL SEP. 29, 2022 | E6: ="ESTIMATE SEP. 29, "&FAllYR -> ESTIMATE SEP. 29, 2023 | F6: ="SEP. 29, "&FAllYR-1 -> SEP. 29, 2022 | G6: ="SEP. 29, "&FAllYR-2 -> SEP. 29, 2021
B8: N-12 ENROLMENT | C8: NURSERY ENROLMENT | D8: K-12 ENROLMENT | E8: K-12 FTE ENROLMENT | F8: K-12 ENROLMENT | G8: K-12 ENROLMENT
A9: DIVISION / DISTRICT
A11: BEAUTIFUL PLAINS | B11: 2092 | C11: 0 | D11: 2092 | E11: ='- 7 -'!E11 -> 2077 | F11: 2022 | G11: 2078
A12: BORDER LAND | B12: 2103 | C12: 0 | D12: 2103 | E12: ='- 7 -'!E12 -> 2076.5 | F12: 1951.4 | G12: 2158.1
A13: BRANDON | B13: 9366 | C13: 0 | D13: 9366 | E13: ='- 7 -'!E13 -> 9103 | F13: 8998.3 | G13: 8772.5
A14: DSFM | B14: 5898 | C14: 44 | D14: 5854 | E14: ='- 7 -'!E14 -> 6076 | F14: 5585.3 | G14: 5645.6
A15: EVERGREEN | B15: 1441 | C15: 0 | D15: 1441 | E15: ='- 7 -'!E15 -> 1396 | F15: 1381.5 | G15: 1444.3
A16: FLIN FLON | B16: 866 | C16: 0 | D16: 866 | E16: ='- 7 -'!E16 -> 847 | F16: 823.4 | G16: 936.1
A17: FORT LA BOSSE | B17: 1548 | C17: 0 | D17: 1548 | E17: ='- 7 -'!E17 -> 1513 | F17: 1406.5 | G17: 1377
A18: FRONTIER | B18: 6858 | C18: 431 | D18: 6427 | E18: ='- 7 -'!E18 -> 6214 | F18: 1956.6 | G18: 2036.7
A19: GARDEN VALLEY | B19: 4098 | C19: 0 | D19: 4098 | E19: ='- 7 -'!E19 -> 4220 | F19: 3945 | G19: 4359.3
A20: HANOVER | B20: 8421 | C20: 0 | D20: 8421 | E20: ='- 7 -'!E20 -> 8121 | F20: 8120.9 | G20: 8248.3
A21: INTERLAKE | B21: 3010 | C21: 0 | D21: 3010 | E21: ='- 7 -'!E21 -> 2849.5 | F21: 2918.1 | G21: 2916
A22: KELSEY | B22: 1466 | C22: 0 | D22: 1466 | E22: ='- 7 -'!E22 -> 1430 | F22: 1417 | G22: 1418.5
A23: LAKESHORE | B23: 952 | C23: 0 | D23: 952 | E23: ='- 7 -'!E23 -> 912.5 | F23: 887.5 | G23: 913
A24: LORD SELKIRK | B24: 3912 | C24: 0 | D24: 3912 | E24: ='- 7 -'!E24 -> 3761 | F24: 3715.1 | G24: 3630.6
A25: LOUIS RIEL | B25: 16293 | C25: 0 | D25: 16293 | E25: ='- 7 -'!E25 -> 16169 | F25: 15439.2 | G25: 15157.1
A26: MOUNTAIN VIEW | B26: 3138 | C26: 0 | D26: 3138 | E26: ='- 7 -'!E26 -> 3031 | F26: 2945.5 | G26: 3012.9
A27: MYSTERY LAKE | B27: 2886 | C27: 0 | D27: 2886 | E27: ='- 7 -'!E27 -> 2754.5 | F27: 2724.5 | G27: 2984.1
A28: PARK WEST | B28: 2178 | C28: 35 | D28: 2143 | E28: ='- 7 -'!E28 -> 2118.5 | F28: 1547.2 | G28: 1525
A29: PEMBINA TRAILS | B29: 15963 | C29: 0 | D29: 15963 | E29: ='- 7 -'!E29 -> 15666.6 | F29: 15232.1 | G29: 15012
A30: PINE CREEK | B30: 1088 | C30: 0 | D30: 1088 | E30: ='- 7 -'!E30 -> 1081 | F30: 1045.5 | G30: 1050.9
A31: PORTAGE LA PRAIRIE | B31: 3481 | C31: 0 | D31: 3481 | E31: ='- 7 -'!E31 -> 3444 | F31: 3075.5 | G31: 3065.6
A32: PRAIRIE ROSE | B32: 2367 | C32: 0 | D32: 2367 | E32: ='- 7 -'!E32 -> 2354 | F32: 2274.5 | G32: 2386.2
A33: PRAIRIE SPIRIT | B33: 2247 | C33: 0 | D33: 2247 | E33: ='- 7 -'!E33 -> 2148 | F33: 2082.5 | G33: 2092.5
A34: RED RIVER VALLEY | B34: 2348 | C34: 0 | D34: 2348 | E34: ='- 7 -'!E34 -> 2275 | F34: 2267.9 | G34: 2345.5
A35: RIVER EAST TRANSCONA | B35: 17719 | C35: 0 | D35: 17719 | E35: ='- 7 -'!E35 -> 17059.5 | F35: 16960.9 | G35: 16395.2
A36: ROLLING RIVER | B36: 1822 | C36: 0 | D36: 1822 | E36: ='- 7 -'!E36 -> 1771 | F36: 1642.5 | G36: 1673
A37: SEINE RIVER | B37: 4663 | C37: 0 | D37: 4663 | E37: ='- 7 -'!E37 -> 4616.5 | F37: 4461 | G37: 4401.9
A38: SEVEN OAKS | B38: 11838 | C38: 0 | D38: 11838 | E38: ='- 7 -'!E38 -> 11827.5 | F38: 11298 | G38: 11438.6
A39: SOUTHWEST HORIZON | B39: 1507 | C39: 0 | D39: 1507 | E39: ='- 7 -'!E39 -> 1442 | F39: 1464.5 | G39: 1499.2
A40: ST. JAMES-ASSINIBOIA | B40: 8319 | C40: 0 | D40: 8319 | E40: ='- 7 -'!E40 -> 7966 | F40: 7932 | G40: 8061.9
A41: SUNRISE | B41: 4754 | C41: 0 | D41: 4754 | E41: ='- 7 -'!E41 -> 4600 | F41: 4553.6 | G41: 4605.9
A42: SWAN VALLEY | B42: 1403 | C42: 0 | D42: 1403 | E42: ='- 7 -'!E42 -> 1339 | F42: 1295.4 | G42: 1308
A43: TURTLE MOUNTAIN | B43: 1066 | C43: 0 | D43: 1066 | E43: ='- 7 -'!E43 -> 1034 | F43: 1029 | G43: 1026.5
A44: TURTLE RIVER | B44: 620 | C44: 7 | D44: 613 | E44: ='- 7 -'!E44 -> 583.5 | F44: 592 | G44: 675.5
A45: WESTERN | B45: 2093 | C45: 0 | D45: 2093 | E45: ='- 7 -'!E45 -> 2140.5 | F45: 2015.8 | G45: 2139.1
A46: WINNIPEG | B46: 29902 | C46: 1261 | D46: 28641 | E46: ='- 7 -'!E46 -> 27341.5 | F46: 27036.5 | G46: 28543.1
A48: PROVINCE | B48: =SUM(B11:B46) -> 189726 | C48: 1778 | D48: 187948 | E48: 183359.1 | F48: 174044.2 | G48: 176333.7
A50: WHITESHELL | B50: 200 | C50: 10 | D50: 190 | E50: ='- 7 -'!E50 -> 172 | F50: 174221 | G50: 176540.7
A52: (1) Pupils taught in schools, whether or not they are counted for grant purposes.
A53: (2) The total number of pupils enrolled in schools adjusted for full time equivalence (FTE). Full time equivalent means pupils are counted on the basis of time attending school - eg. Kindergarten as 1/2. This total is the same as reported on page 7.
A55: ="(3) Provincially supported pupils (actual September 29, "&FAllYR-1&" for "&FAllYR&"/"&RIGHT(SpringYR,2)&" and actual September 29, "&FAllYR-2&" for "&FAllYR-1&"/"&RIGHT(FAllYR,2)&")." -> (3) Provincially supported pupils (actual September 29, 2022 for 2023/24 and actual September 29, 2021 for 2022/23).

Sheet - 9 -
B2: =IF(Lang=1,BA2,BB2) -> PUPIL / TEACHER RATIOS | BA2: PUPIL / TEACHER RATIOS | BB2: RAPPORTS ÉLÈVES-ENSEIGNANT
B3: =STATDATE -> ESTIMATE SEPTEMBER 29, 2023
B7: FRAME PUPIL / TEACHER RATIOS
B8: REGULAR INSTRUCTION (1) | C8: EDUCATOR (2)
A9: DIVISION / DISTRICT
A11: BEAUTIFUL PLAINS | B11: 16.03861004 | C11: 13.82362729
A12: BORDER LAND | B12: 12.72365196 | C12: 10.25204276
A13: BRANDON | B13: 16.31932306 | C13: 12.92204612
A14: DSFM | B14: 14.91189319 | C14: 11.87368092
A15: EVERGREEN | B15: 16.69856459 | C15: 13.13882353
A16: FLIN FLON | B16: 13.5249501 | C16: 10.72151899
A17: FORT LA BOSSE | B17: 15.02781089 | C17: 13.07014513
A18: FRONTIER | B18: 13.93554753 | C18: 11.16240637
A19: GARDEN VALLEY | B19: 17.23363417 | C19: 14.21449744
A20: HANOVER | B20: 18.60993139 | C20: 15.1375662
A21: INTERLAKE | B21: 17.27912195 | C21: 12.91821561
A22: KELSEY | B22: 15.90833241 | C22: 12.27046508
A23: LAKESHORE | B23: 14.89795918 | C23: 11.57994924
A24: LORD SELKIRK | B24: 14.77799607 | C24: 11.76231431
A25: LOUIS RIEL | B25: 18.43325432 | C25: 13.97862375
A26: MOUNTAIN VIEW | B26: 16.16964524 | C26: 12.88580903
A27: MYSTERY LAKE | B27: 14.88918919 | C27: 11.95010846
A28: PARK WEST | B28: 14.89070078 | C28: 12.15433161
A29: PEMBINA TRAILS | B29: 18.58478256 | C29: 14.88145446
A30: PINE CREEK | B30: 14.45767019 | C30: 11.7845852
A31: PORTAGE LA PRAIRIE | B31: 15.80541533 | C31: 12.8627451
A32: PRAIRIE ROSE | B32: 14.92991692 | C32: 11.9997961
A33: PRAIRIE SPIRIT | B33: 16.28580527 | C33: 13.304099
A34: RED RIVER VALLEY | B34: 15.91242918 | C34: 12.5337447
A35: RIVER EAST TRANSCONA | B35: 18.1121799 | C35: 14.16960837
A36: ROLLING RIVER | B36: 16.23653449 | C36: 13.27337455
A37: SEINE RIVER(3) | B37: 18.8221144 | C37: 14.47904905
A38: SEVEN OAKS | B38: 17.06094483 | C38: 13.99869807
A39: SOUTHWEST HORIZON | B39: 13.69680851 | C39: 11.67233285
A40: ST. JAMES-ASSINIBOIA | B40: 17.4448143 | C40: 13.27644539
A41: SUNRISE | B41: 16.20231764 | C41: 12.63875151
A42: SWAN VALLEY | B42: 15.03649635 | C42: 12.01866978
A43: TURTLE MOUNTAIN | B43: 15.73820396 | C43: 13.12016242
A44: TURTLE RIVER | B44: 10.96186361 | C44: 9.384046317
A45: WESTERN | B45: 17.06121473 | C45: 14.24530813
A46: WINNIPEG | B46: 17.08704918 | C46: 12.68246863
A48: PROVINCE | B48: 16.7734258 | C48: 13.19992142
A50: WHITESHELL | B50: 10.48780488 | C50: 8.788962698
A52: (1) Based on object code 330 instructional-teaching personnel and FTE students in Function 100. Included are teachers in physical education, music, EAL, etc. in addition to regular classroom teachers. School-based administrative personnel and Special Placement classroom teachers are excluded.
A55: (2) Based on total instructional-teaching (excluding Community Education and Adult Learning Centres) as well as school-based administrative staff - eg. department heads, coordinators, principals and vice-principals - and K-12 FTE enrolment. Division administrators (Function 500) are excluded.
A58: (3) Budget personnel data not submitted, estimated using 2022/23 actuals reported

Sheet - 10 -
F2: =IF(Lang=1,BA2,BB2) -> TOTAL EXPENSE BY FUNCTION AND OBJECT | BA2: TOTAL EXPENSE BY FUNCTION AND OBJECT | BB2: DÉPENSES PAR FONCTION ET PAR OBJET
F3: =OPYEAR -> OPERATING FUND 2023/2024 BUDGET
C5: OBJECT
C7: SALARIES | D7: EMPLOYEE BENEFITS | E7: SERVICES | F7: SUPPLIES AND MATERIALS | G7: DEBT SERVICES | H7: BAD DEBT EXPENSE | I7: TRANSFERS | K7: TOTALS
A8: FUNCTION | N8: =IF($N$22=0,"","Variance") -> 
A10: 100 | B10: REGULAR INSTRUCTION | C10: ='- 12 -'!B22 -> 1339023671 | D10: ='- 12 -'!B23 -> 88022709 | E10: ='- 12 -'!B40 -> 34896934 | F10: ='- 12 -'!B46 -> 82230294 | K10: =SUM(C10:F10) -> 1544173608 | N10: =IF($N$22=0,"",K10-'- 12 -'!$B$51) -> 
A11: 200 | B11: STUDENT SUPPORT SERVICES | C11: ='- 12 -'!D22 -> 468913910 | D11: ='- 12 -'!D23 -> 51615181 | E11: ='- 12 -'!D40 -> 11131073 | F11: ='- 12 -'!D46 -> 4933205 | K11: =SUM(C11:F11) -> 536593369 | N11: =IF($N$22=0,"",K11-'- 12 -'!$D$51) -> 
A12: 300 | B12: ADULT LEARNING CENTRES | C12: ='- 12 -'!F22 -> 10673360 | D12: ='- 12 -'!F23 -> 824261 | E12: ='- 12 -'!F40 -> 1115049 | F12: ='- 12 -'!F46 -> 485085 | I12: ='- 12 -'!F48 -> 27000 | J12: (1) | K12: =SUM(C12:F12,I12) -> 13124755 | N12: =IF($N$22=0,"",K12-'- 12 -'!$F$51) -> 
A13: 400 | B13: COMMUNITY EDUCATION & SERVICES | C13: ='- 12 -'!H22 -> 16552239 | D13: ='- 12 -'!H23 -> 1806923 | E13: ='- 12 -'!H40 -> 1776586 | F13: ='- 12 -'!H46 -> 1688792 | K13: =SUM(C13:F13) -> 21824540 | N13: =IF($N$22=0,"",K13-'- 12 -'!$H$51) -> 
A14: 500 | B14: DIVISIONAL ADMINISTRATION | C14: ='- 12 -'!J22 -> 55921922 | D14: ='- 12 -'!J23 -> 8075316 | E14: ='- 12 -'!J40 -> 19612996 | F14: ='- 12 -'!J46 -> 2923363 | I14: ='- 12 -'!J48 -> -27000 | J14: (1) | K14: =SUM(C14:F14,I14) -> 86506597 | N14: =IF($N$22=0,"",K14-'- 12 -'!$J$51) -> 
L15: - 10 -
A16: 600 | B16: INSTRUCTIONAL AND OTHER SUPPORT SERVICES | C16: ='- 13 -'!B22 -> 57744009 | D16: ='- 13 -'!B23 -> 6165100 | E16: ='- 13 -'!B40 -> 18339859 | F16: ='- 13 -'!B46 -> 7868060 | K16: =SUM(C16:F16) -> 90117028 | N16: =IF($N$22=0,"",K16-'- 13 -'!$B$54) -> 
A17: 700 | B17: TRANSPORTATION OF PUPILS | C17: ='- 13 -'!D22 -> 54498063 | D17: ='- 13 -'!D23 -> 8774366 | E17: ='- 13 -'!D40 -> 35416664 | F17: ='- 13 -'!D46 -> 24709323 | K17: =SUM(C17:F17) -> 123398416 | N17: =IF($N$22=0,"",K17-'- 13 -'!$D$54) -> 
A18: 800 | B18: OPERATIONS AND MAINTENANCE | C18: ='- 13 -'!F22 -> 138478593 | D18: ='- 13 -'!F23 -> 24488328 | E18: ='- 13 -'!F40 -> 120779137 | F18: ='- 13 -'!F46 -> 27420044 | I18: ='- 13 -'!F52 -> 0 | K18: =SUM(C18:F18,I18) -> 311166102 | N18: =IF($N$22=0,"",K18-'- 13 -'!$F$54) -> 
A19: 900 | B19: FISCAL | G19: 3212290 | H19: 8000 | I19: 44469299 | J19: (2) | K19: =SUM(G19:I19) -> 47689589 | N19: =IF($N$22=0,"",K19-'- 13 -'!$H$54) -> 
B22: TOTALS | C22: =SUM(C10:C19) -> 2141805767 | D22: =SUM(D10:D19) -> 189772184 | E22: =SUM(E10:E19) -> 243068298 | F22: =SUM(F10:F19) -> 152258166 | G22: =G19 -> 3212290 | H22: =H19 -> 8000 | I22: =SUM(I10:I19) -> 44469299 | K22: =SUM(K10:K19) -> 2774594004
A25: (1) | B25: Reallocation of administration costs associated with Adult Learning Centre operations from Function 500 to Function 300.
A26: (2) | B26: Reallocation of school building costs associated with Adult Learning Centre operations to Function 300
A27: (2) | B27: Health and Post Secondary Education Tax Levy

Sheet - 11 -
U23: - 11 -

Sheet - 12 -
F2: =IF(Lang=1,BA2,BB2) -> EXPENSE BY 2ND LEVEL OBJECT | K2: PAGE 1 OF 2 | BA2: EXPENSE BY 2ND LEVEL OBJECT | BB2: DÉPENSES PAR OBJET DE DEUXIÈME CATÉGORIE EXPRIMÉES
F3: =OPYEAR -> OPERATING FUND 2023/2024 BUDGET
BA4: AS A PERCENTAGE OF TOTAL OPERATING FUND EXPENSES | BB4: EN POURCENTAGE DU TOTAL DES DÉPENSES DU FONDS DE FONCTIONNEMENT
B7: FUNCTION
B9: REGULAR INSTRUCTION | D9: STUDENT SUPPORTSERVICES | F9: ADULT LEARNING CENTRES | H9: COMMUNITY EDUCATION | J9: DIVISIONAL ADMINISTRATION
A11: OBJECT | B11: AMOUNT | C11: % | D11: AMOUNT | E11: % | F11: AMOUNT | G11: % | H11: AMOUNT | I11: % | J11: AMOUNT | K11: %
A13: SALARIES
A14: TRUSTEES REMUNERATION | J14: 4451447
A15: EXECUTIVE MANAGERIAL, & SUPERVISORY | B15: 112590266 | C15: =B15/'- 13 -'!$J$54*100 -> 4.057900573 | D15: 8270030 | E15: =D15/'- 13 -'!$J$54*100 -> 0.2980627071 | F15: 1244482 | G15: =F15/'- 13 -'!$J$54*100 -> 0.04485276038 | H15: 847273 | I15: =H15/'- 13 -'!$J$54*100 -> 0.03053682805 | J15: 23895031 | K15: =J15/'- 13 -'!$J$54*100 -> 0.8612081971
A16: INSTRUCTIONAL - TEACHING | B16: 1133314467 | C16: =B16/'- 13 -'!$J$54*100 -> 40.84613696 | D16: 189611059 | E16: =D16/'- 13 -'!$J$54*100 -> 6.833830778 | F16: 7842087 | G16: =F16/'- 13 -'!$J$54*100 -> 0.2826390812 | H16: 8566569 | I16: =H16/'- 13 -'!$J$54*100 -> 0.3087503609 | K16: =J16/'- 13 -'!$J$54*100 -> 0
A17: INSTRUCTIONAL - OTHER | B17: 24206613 | C17: =B17/'- 13 -'!$J$54*100 -> 0.8724380203 | D17: 210593969 | E17: =D17/'- 13 -'!$J$54*100 -> 7.590082322 | F17: 454834 | G17: =F17/'- 13 -'!$J$54*100 -> 0.01639281276 | H17: 4788863 | I17: =H17/'- 13 -'!$J$54*100 -> 0.1725968914 | K17: =J17/'- 13 -'!$J$54*100 -> 0
A18: TECHNICAL, SPECIALIZED AND SERVICE | B18: 8550432 | C18: =B18/'- 13 -'!$J$54*100 -> 0.3081687623 | D18: 5904089 | E18: =D18/'- 13 -'!$J$54*100 -> 0.2127910963 | F18: 563475 | G18: =F18/'- 13 -'!$J$54*100 -> 0.02030837662 | H18: 1239017 | I18: =H18/'- 13 -'!$J$54*100 -> 0.04465579462 | J18: 8236071 | K18: =J18/'- 13 -'!$J$54*100 -> 0.2968387803
A19: SECRETARIAL, CLERICAL AND OTHER | B19: 46068545 | C19: =B19/'- 13 -'!$J$54*100 -> 1.660370668 | D19: 2751310 | E19: =D19/'- 13 -'!$J$54*100 -> 0.09916081402 | F19: 568482 | G19: =F19/'- 13 -'!$J$54*100 -> 0.02048883545 | H19: 606575 | I19: =H19/'- 13 -'!$J$54*100 -> 0.02186175704 | J19: 17401012 | K19: =J19/'- 13 -'!$J$54*100 -> 0.6271552514
A20: CLINICIAN | D20: 51620679 | E20: =D20/'- 13 -'!$J$54*100 -> 1.860476845 | H20: 503942
A21: INFORMATION TECHNOLOGY | B21: 14293348 | C21: =B21/'- 13 -'!$J$54*100 -> 0.5151509727 | D21: 162774 | E21: =D21/'- 13 -'!$J$54*100 -> 0.00586658804 | F21: 0 | G21: =F21/'- 13 -'!$J$54*100 -> 0 | H21: 0 | I21: =H21/'- 13 -'!$J$54*100 -> 0 | J21: 1938361 | K21: =J21/'- 13 -'!$J$54*100 -> 0.06986106786
A22: TOTAL SALARIES | B22: =SUM(B14:B21) -> 1339023671 | C22: =B22/'- 13 -'!$J$54*100 -> 48.26016596 | D22: =SUM(D14:D21) -> 468913910 | E22: =D22/'- 13 -'!$J$54*100 -> 16.90027115 | F22: =SUM(F14:F21) -> 10673360 | G22: =F22/'- 13 -'!$J$54*100 -> 0.3846818664 | H22: =SUM(H14:H21) -> 16552239 | I22: =H22/'- 13 -'!$J$54*100 -> 0.5965643613 | J22: =SUM(J14:J21) -> 55921922 | K22: =J22/'- 13 -'!$J$54*100 -> 2.015499274
A23: EMPLOYEE BENEFITS AND ALLOWANCES | B23: 88022709 | C23: =B23/'- 13 -'!$J$54*100 -> 3.172453659 | D23: 51615181 | E23: =D23/'- 13 -'!$J$54*100 -> 1.86027869 | F23: 824261 | G23: =F23/'- 13 -'!$J$54*100 -> 0.02970744544 | H23: 1806923 | I23: =H23/'- 13 -'!$J$54*100 -> 0.06512387028 | J23: 8075316 | K23: =J23/'- 13 -'!$J$54*100 -> 0.2910449597
A24: SERVICES
A25: PROFESSIONAL, TECHNICAL & SPECIALIZED | B25: 6362489 | C25: =B25/'- 13 -'!$J$54*100 -> 0.2293124324 | D25: 6781925 | E25: =D25/'- 13 -'!$J$54*100 -> 0.2444294549 | F25: 60399 | G25: =F25/'- 13 -'!$J$54*100 -> 0.002176859026 | H25: 929177 | I25: =H25/'- 13 -'!$J$54*100 -> 0.03348875542 | J25: 4904877 | K25: =J25/'- 13 -'!$J$54*100 -> 0.1767781878
A26: COMMUNICATIONS | B26: 3705445 | C26: =B26/'- 13 -'!$J$54*100 -> 0.1335490884 | D26: 295896 | E26: =D26/'- 13 -'!$J$54*100 -> 0.01066447918 | F26: 74599 | G26: =F26/'- 13 -'!$J$54*100 -> 0.002688645614 | H26: 19898 | I26: =H26/'- 13 -'!$J$54*100 -> 0.0007171499676 | J26: 1259032 | K26: =J26/'- 13 -'!$J$54*100 -> 0.04537716142 | L26: - 12 -
A27: UTILITY SERVICES | C27: =B27/'- 13 -'!$J$54*100 -> 0 | E27: =D27/'- 13 -'!$J$54*100 -> 0 | F27: 61564 | G27: =F27/'- 13 -'!$J$54*100 -> 0.002218847151 | I27: =H27/'- 13 -'!$J$54*100 -> 0 | K27: =J27/'- 13 -'!$J$54*100 -> 0
A28: TRAVEL AND MEETINGS | B28: 2733001 | C28: =B28/'- 13 -'!$J$54*100 -> 0.09850093369 | D28: 2237496 | E28: =D28/'- 13 -'!$J$54*100 -> 0.08064228485 | F28: 73399 | G28: =F28/'- 13 -'!$J$54*100 -> 0.002645396043 | H28: 85877 | I28: =H28/'- 13 -'!$J$54*100 -> 0.003095119498 | J28: 2080483 | K28: =J28/'- 13 -'!$J$54*100 -> 0.07498333079
A29: TRANSPORTATION OF PUPILS | C29: =B29/'- 13 -'!$J$54*100 -> 0 | E29: =D29/'- 13 -'!$J$54*100 -> 0 | G29: =F29/'- 13 -'!$J$54*100 -> 0 | I29: =H29/'- 13 -'!$J$54*100 -> 0 | K29: =J29/'- 13 -'!$J$54*100 -> 0
A30: TUITION | B30: 932568 | C30: =B30/'- 13 -'!$J$54*100 -> 0.0336109715 | D30: 946411 | E30: =D30/'- 13 -'!$J$54*100 -> 0.03410989134 | F30: 0 | G30: =F30/'- 13 -'!$J$54*100 -> 0 | I30: =H30/'- 13 -'!$J$54*100 -> 0 | K30: =J30/'- 13 -'!$J$54*100 -> 0
A31: PRINTING AND BINDING | B31: 369246 | C31: =B31/'- 13 -'!$J$54*100 -> 0.0133081092 | D31: 18500 | E31: =D31/'- 13 -'!$J$54*100 -> 0.0006667642175 | F31: 2081 | G31: =F31/'- 13 -'!$J$54*100 -> 7.500196414e-05 | H31: 29350 | I31: =H31/'- 13 -'!$J$54*100 -> 0.001057812421 | J31: 171740 | K31: =J31/'- 13 -'!$J$54*100 -> 0.006189734417
A32: INSURANCE AND BOND PREMIUMS | B32: 188656 | C32: =B32/'- 13 -'!$J$54*100 -> 0.006799409201 | D32: 31711 | E32: =D32/'- 13 -'!$J$54*100 -> 0.001142905951 | F32: 10774 | G32: =F32/'- 13 -'!$J$54*100 -> 0.0003883090638 | H32: 1474 | I32: =H32/'- 13 -'!$J$54*100 -> 5.312488955e-05 | J32: 2741619 | K32: =J32/'- 13 -'!$J$54*100 -> 0.09881153769
A33: MAINTENANCE AND REPAIR SERVICES | B33: 2678457 | C33: =B33/'- 13 -'!$J$54*100 -> 0.09653509653 | D33: 86590 | E33: =D33/'- 13 -'!$J$54*100 -> 0.003120816951 | F33: 55334 | G33: =F33/'- 13 -'!$J$54*100 -> 0.001994309795 | H33: 2230 | I33: =H33/'- 13 -'!$J$54*100 -> 8.037211919e-05 | J33: 155437 | K33: =J33/'- 13 -'!$J$54*100 -> 0.005602152956
A34: RENTALS | B34: 3466263 | C34: =B34/'- 13 -'!$J$54*100 -> 0.124928656 | D34: 212746 | E34: =D34/'- 13 -'!$J$54*100 -> 0.007667644336 | F34: 686316 | G34: =F34/'- 13 -'!$J$54*100 -> 0.02473572707 | H34: 652970 | I34: =H34/'- 13 -'!$J$54*100 -> 0.02353389357 | J34: 443982 | K34: =J34/'- 13 -'!$J$54*100 -> 0.01600169248
A35: PROPERTY TAXES | C35: =B35/'- 13 -'!$J$54*100 -> 0 | E35: =D35/'- 13 -'!$J$54*100 -> 0 | F35: 16052 | G35: =F35/'- 13 -'!$J$54*100 -> 0.0005785350929 | I35: =H35/'- 13 -'!$J$54*100 -> 0 | K35: =J35/'- 13 -'!$J$54*100 -> 0
A36: ADVERTISING | B36: 308760 | C36: =B36/'- 13 -'!$J$54*100 -> 0.01112811458 | D36: 27620 | E36: =D36/'- 13 -'!$J$54*100 -> 0.0009954609561 | F36: 30384 | G36: =F36/'- 13 -'!$J$54*100 -> 0.001095079134 | H36: 19610 | I36: =H36/'- 13 -'!$J$54*100 -> 0.0007067700706 | J36: 585987 | K36: =J36/'- 13 -'!$J$54*100 -> 0.02111973857
A37: DUES AND FEES | B37: 643259 | C37: =B37/'- 13 -'!$J$54*100 -> 0.02318389642 | D37: 116747 | E37: =D37/'- 13 -'!$J$54*100 -> 0.004207714708 | F37: 0 | G37: =F37/'- 13 -'!$J$54*100 -> 0 | H37: 10500 | I37: =H37/'- 13 -'!$J$54*100 -> 0.0003784337451 | J37: 3276413 | K37: =J37/'- 13 -'!$J$54*100 -> 0.1180862135
A38: PROFESSIONAL AND STAFF DEVELOPMENT | B38: 477982 | C38: =B38/'- 13 -'!$J$54*100 -> 0.01722709698 | D38: 214507 | E38: =D38/'- 13 -'!$J$54*100 -> 0.007731113081 | F38: 37638 | G38: =F38/'- 13 -'!$J$54*100 -> 0.00135652279 | H38: 18500 | I38: =H38/'- 13 -'!$J$54*100 -> 0.0006667642175 | J38: 1230966 | K38: =J38/'- 13 -'!$J$54*100 -> 0.04436562604
A39: INFORMATION TECHNOLOGY SERVICES | B39: 13030808 | C39: =B39/'- 13 -'!$J$54*100 -> 0.4696473784 | D39: 160924 | E39: =D39/'- 13 -'!$J$54*100 -> 0.005799911618 | F39: 6509 | G39: =F39/'- 13 -'!$J$54*100 -> 0.0002345928806 | H39: 7000 | I39: =H39/'- 13 -'!$J$54*100 -> 0.0002522891634 | J39: 2762460 | K39: =J39/'- 13 -'!$J$54*100 -> 0.09956267461
A40: TOTAL SERVICES | B40: =SUM(B25:B39) -> 34896934 | C40: =B40/'- 13 -'!$J$54*100 -> 1.257731183 | D40: =SUM(D25:D39) -> 11131073 | E40: =D40/'- 13 -'!$J$54*100 -> 0.4011784421 | F40: =SUM(F25:F39) -> 1115049 | G40: =F40/'- 13 -'!$J$54*100 -> 0.04018782562 | H40: =SUM(H25:H39) -> 1776586 | I40: =H40/'- 13 -'!$J$54*100 -> 0.06403048509 | J40: =SUM(J25:J39) -> 19612996 | K40: =J40/'- 13 -'!$J$54*100 -> 0.7068780503
A41: SUPPLIES AND EQUIPMENT
A42: SUPPLIES | B42: 39552627 | C42: =B42/'- 13 -'!$J$54*100 -> 1.425528454 | D42: 3305729 | E42: =D42/'- 13 -'!$J$54*100 -> 0.1191428005 | F42: 265691 | G42: =F42/'- 13 -'!$J$54*100 -> 0.009575851444 | H42: 1618776 | I42: =H42/'- 13 -'!$J$54*100 -> 0.05834280611 | J42: 1102501 | K42: =J42/'- 13 -'!$J$54*100 -> 0.03973557927
A43: CURRICULAR AND MEDIA MATERIALS | B43: 11609267 | C43: =B43/'- 13 -'!$J$54*100 -> 0.4184131798 | D43: 612665 | E43: =D43/'- 13 -'!$J$54*100 -> 0.02208124861 | F43: 86388 | G43: =F43/'- 13 -'!$J$54*100 -> 0.003113536607 | H43: 54740 | I43: =H43/'- 13 -'!$J$54*100 -> 0.001972901258 | J43: 86180 | K43: =J43/'- 13 -'!$J$54*100 -> 0.003106040014
A44: MINOR EQUIPMENT | B44: 9749179 | C44: =B44/'- 13 -'!$J$54*100 -> 0.3513731734 | D44: 390115 | E44: =D44/'- 13 -'!$J$54*100 -> 0.01406025528 | F44: 30155 | G44: =F44/'- 13 -'!$J$54*100 -> 0.001086825675 | H44: 12320 | I44: =H44/'- 13 -'!$J$54*100 -> 0.0004440289276 | J44: 296851 | K44: =J44/'- 13 -'!$J$54*100 -> 0.01069889863
A45: INFORMATION TECHNOLOGY EQUIPMENT | B45: 21319221 | C45: =B45/'- 13 -'!$J$54*100 -> 0.7683726329 | D45: 624696 | E45: =D45/'- 13 -'!$J$54*100 -> 0.0225148616 | F45: 102851 | G45: =F45/'- 13 -'!$J$54*100 -> 0.003706884678 | H45: 2956 | I45: =H45/'- 13 -'!$J$54*100 -> 0.0001065381096 | J45: 1437831 | K45: =J45/'- 13 -'!$J$54*100 -> 0.05182131144
A46: TOTAL SUPPLIES AND EQUIPMENT | B46: =SUM(B42:B45) -> 82230294 | C46: =B46/'- 13 -'!$J$54*100 -> 2.96368744 | D46: =SUM(D42:D45) -> 4933205 | E46: =D46/'- 13 -'!$J$54*100 -> 0.177799166 | F46: =SUM(F42:F45) -> 485085 | G46: =F46/'- 13 -'!$J$54*100 -> 0.0174830984 | H46: =SUM(H42:H45) -> 1688792 | I46: =H46/'- 13 -'!$J$54*100 -> 0.0608662744 | J46: =SUM(J42:J45) -> 2923363 | K46: =J46/'- 13 -'!$J$54*100 -> 0.1053618294
A47: TRANSFERS
A48: RECHARGE (1) | F48: 27000 | J48: -27000 | M48: =F48+J48+'- 13 -'!F48 -> 0
A49: TOTAL TRANSFERS | F49: =F48 -> 27000 | J49: =J48 -> -27000
A51: PROVINCE | B51: =SUM(B47,B46,B40,B23,B22) -> 1544173608 | C51: =B51/'- 13 -'!$J$54*100 -> 55.65403824 | D51: =SUM(D47,D46,D40,D23,D22) -> 536593369 | E51: =D51/'- 13 -'!$J$54*100 -> 19.33952745 | F51: =SUM(F49,F46,F40,F23,F22) -> 13124755 | G51: =F51/'- 13 -'!$J$54*100 -> 0.4730333512 | H51: =SUM(H47,H46,H40,H23,H22) -> 21824540 | I51: =H51/'- 13 -'!$J$54*100 -> 0.7865849911 | J51: =SUM(J49,J46,J40,J23,J22) -> 86506597 | K51: =J51/'- 13 -'!$J$54*100 -> 3.117810998
A52: (1) Reallocation of administration costs associated with Adult Learning Centre operations from Function 500 to Function 300.

Sheet - 13 -
F2: =+'- 12 -'!F2 -> EXPENSE BY 2ND LEVEL OBJECT | K2: PAGE 2 OF 2
F3: =+'- 12 -'!F3 -> OPERATING FUND 2023/2024 BUDGET
B7: FUNCTION
B9: INSTRUCTIONAL & OTHER SUPPORT SERVICES | D9: TRANSPORTATION OF PUPILS | F9: OPERATIONS AND MAINTENANCE | H9: FISCAL | J9: TOTAL
A11: OBJECT | B11: AMOUNT | C11: % | D11: AMOUNT | E11: % | F11: AMOUNT | G11: % | H11: AMOUNT | I11: % | J11: AMOUNT | K11: %
A13: SALARIES | M13: SALARIES | N13: =K22 -> 77.19348358
A14: TRUSTEES REMUNERATION | J14: =SUM(F14,D14,B14,'- 12 -'!J14,'- 12 -'!H14,'- 12 -'!F14,'- 12 -'!D14,'- 12 -'!B14) -> 4451447 | K14: =J14/$J$54*100 -> 0.1604359771 | M14: EMPLOYEE BENEFITS | N14: =K23 -> 6.839637934
A15: EXECUTIVE MANAGERIAL, & SUPERVISORY | B15: 5513738 | C15: =B15/$J$54*100 -> 0.1987223353 | D15: 3793431 | E15: =D15/$J$54*100 -> 0.136720219 | F15: 5938174 | G15: =F15/$J$54*100 -> 0.2140195644 | J15: =SUM(F15,D15,B15,'- 12 -'!J15,'- 12 -'!H15,'- 12 -'!F15,'- 12 -'!D15,'- 12 -'!B15) -> 162092425 | K15: 5.842023185 | M15: SERVICES | N15: =K40 -> 8.76049965
A16: INSTRUCTIONAL - TEACHING | B16: 26851181 | C16: =B16/$J$54*100 -> 0.9677517129 | E16: =D16/$J$54*100 -> 0 | G16: =F16/$J$54*100 -> 0 | J16: =SUM(F16,D16,B16,'- 12 -'!J16,'- 12 -'!H16,'- 12 -'!F16,'- 12 -'!D16,'- 12 -'!B16) -> 1366185363 | K16: 49.23910889 | M16: SUPPLIES & MATERIALS | N16: =K46 -> 5.487583617
A17: INSTRUCTIONAL - OTHER | B17: 16958561 | C17: =B17/$J$54*100 -> 0.6112087381 | D17: 408822 | E17: =D17/$J$54*100 -> 0.01473448005 | G17: =F17/$J$54*100 -> 0 | J17: =SUM(F17,D17,B17,'- 12 -'!J17,'- 12 -'!H17,'- 12 -'!F17,'- 12 -'!D17,'- 12 -'!B17) -> 257411662 | K17: 9.277453264 | M17: DEBT SERVICES | N17: =K49 -> 0.1157751367
A18: TECHNICAL, SPECIALIZED AND SERVICE | B18: 5468485 | C18: =B18/$J$54*100 -> 0.1970913579 | D18: 48013520 | E18: =D18/$J$54*100 -> 1.730470113 | F18: 129994422 | G18: =F18/$J$54*100 -> 4.685169139 | J18: =SUM(F18,D18,B18,'- 12 -'!J18,'- 12 -'!H18,'- 12 -'!F18,'- 12 -'!D18,'- 12 -'!B18) -> 207969511 | K18: 7.49549342 | M18: TRANSFERS | N18: =K52-N17 -> 1.603020079
A19: SECRETARIAL, CLERICAL AND OTHER | B19: 2707187 | C19: =B19/$J$54*100 -> 0.09757056334 | D19: 2282290 | E19: =D19/$J$54*100 -> 0.08225671924 | F19: 2545997 | G19: =F19/$J$54*100 -> 0.09176106473 | J19: =SUM(F19,D19,B19,'- 12 -'!J19,'- 12 -'!H19,'- 12 -'!F19,'- 12 -'!D19,'- 12 -'!B19) -> 74931398 | K19: 2.700625673
A20: CLINICIAN | J20: =SUM(F20,D20,B20,'- 12 -'!J20,'- 12 -'!H20,'- 12 -'!F20,'- 12 -'!D20,'- 12 -'!B20) -> 52124621 | K20: 1.878639575 | N20: =SUM(N13:N18) -> 100
A21: INFORMATION TECHNOLOGY | B21: 244857 | C21: =B21/'- 13 -'!$J$54*100 -> 0.008824966811 | D21: 0 | E21: =D21/'- 13 -'!$J$54*100 -> 0 | F21: 0 | G21: =F21/'- 13 -'!$J$54*100 -> 0 | J21: =SUM(F21,D21,B21,'- 12 -'!J21,'- 12 -'!H21,'- 12 -'!F21,'- 12 -'!D21,'- 12 -'!B21) -> 16639340 | K21: 0.5997035954
A22: TOTAL SALARIES | B22: =SUM(B14:B21) -> 57744009 | C22: =B22/$J$54*100 -> 2.081169674 | D22: =SUM(D14:D21) -> 54498063 | E22: =D22/$J$54*100 -> 1.964181531 | F22: =SUM(F14:F21) -> 138478593 | G22: =F22/$J$54*100 -> 4.990949768 | J22: =SUM(F22,D22,B22,'- 12 -'!J22,'- 12 -'!H22,'- 12 -'!F22,'- 12 -'!D22,'- 12 -'!B22) -> 2141805767 | K22: 77.19348358
A23: EMPLOYEE BENEFITS AND ALLOWANCES | B23: 6165100 | C23: =B23/$J$54*100 -> 0.2221982745 | D23: 8774366 | E23: =D23/$J$54*100 -> 0.3162396368 | F23: 24488328 | G23: =F23/$J$54*100 -> 0.8825913977 | J23: =SUM(F23,D23,B23,'- 12 -'!J23,'- 12 -'!H23,'- 12 -'!F23,'- 12 -'!D23,'- 12 -'!B23) -> 189772184 | K23: 6.839637934
A24: SERVICES | M24: REGULAR INSTRUCTION | N24: ='- 12 -'!C51 -> 55.65403824
A25: PROFESSIONAL, TECHNICAL & SPECIALIZED | B25: 2912114 | C25: =B25/$J$54*100 -> 0.1049564007 | D25: 343800 | E25: =D25/$J$54*100 -> 0.01239100205 | F25: 5686738 | G25: =F25/$J$54*100 -> 0.2049574818 | J25: =SUM(F25,D25,B25,'- 12 -'!J25,'- 12 -'!H25,'- 12 -'!F25,'- 12 -'!D25,'- 12 -'!B25) -> 27981519 | K25: =J25/$J$54*100 -> 1.008490574 | L25: - 13 - | M25: STUDENT SUPPORT SERVICES | N25: ='- 12 -'!E51 -> 19.33952745
A26: COMMUNICATIONS | B26: 84990 | C26: 0.003063150857 | D26: 378345 | E26: 0.01363604907 | F26: 682566 | G26: 0.02460057216 | J26: =SUM(F26,D26,B26,'- 12 -'!J26,'- 12 -'!H26,'- 12 -'!F26,'- 12 -'!D26,'- 12 -'!B26) -> 6500771 | K26: 0.2342962967 | M26: ADULT LEARNING CENTRES | N26: ='- 12 -'!G51 -> 0.4730333512
A27: UTILITY SERVICES | C27: 0 | E27: 0 | F27: 55000719 | G27: 1.982297912 | J27: =SUM(F27,D27,B27,'- 12 -'!J27,'- 12 -'!H27,'- 12 -'!F27,'- 12 -'!D27,'- 12 -'!B27) -> 55062283 | K27: 1.984516759 | M27: COMMUNITY EDUCATION | N27: ='- 12 -'!I51 -> 0.7865849911
A28: TRAVEL AND MEETINGS | B28: 1156155 | C28: 0.04166933967 | D28: 1973578 | E28: 0.07113033464 | F28: 924819 | G28: 0.0333316874 | J28: =SUM(F28,D28,B28,'- 12 -'!J28,'- 12 -'!H28,'- 12 -'!F28,'- 12 -'!D28,'- 12 -'!B28) -> 11264808 | K28: 0.4059984266 | M28: DIVISIONAL ADMINISTRATION | N28: ='- 12 -'!K51 -> 3.117810998
A29: TRANSPORTATION OF PUPILS | C29: 0 | D29: 25031956 | E29: 0.9021844624 | G29: 0 | J29: =SUM(F29,D29,B29,'- 12 -'!J29,'- 12 -'!H29,'- 12 -'!F29,'- 12 -'!D29,'- 12 -'!B29) -> 25031956 | K29: 0.9021844624 | M29: INSTRUCTIONAL & PUPIL SUPPORT SERVICES | N29: =C54 -> 3.247935657
A30: TUITION | B30: 6600 | C30: 0.0002378726398 | E30: 0 | G30: 0 | J30: =SUM(F30,D30,B30,'- 12 -'!J30,'- 12 -'!H30,'- 12 -'!F30,'- 12 -'!D30,'- 12 -'!B30) -> 1885579 | K30: 0.06795873549 | M30: TRANSPORTATION OF PUPILS | N30: =E54 -> 4.447440448
A31: PRINTING AND BINDING | B31: 22800 | C31: 0.0008217418465 | D31: 352120 | E31: 0.01269086574 | F31: 6500 | G31: 0.0002342685089 | J31: =SUM(F31,D31,B31,'- 12 -'!J31,'- 12 -'!H31,'- 12 -'!F31,'- 12 -'!D31,'- 12 -'!B31) -> 972337 | K31: 0.03504429832 | M31: OPERATIONS & MAINTENANCE | N31: =G54 -> 11.21483365
A32: INSURANCE AND BOND PREMIUMS | B32: 150464 | C32: 0.005422919526 | D32: 1536174 | E32: 0.0553657219 | F32: 14902053 | G32: 0.5370894977 | J32: =SUM(F32,D32,B32,'- 12 -'!J32,'- 12 -'!H32,'- 12 -'!F32,'- 12 -'!D32,'- 12 -'!B32) -> 19562925 | K32: 0.7050734259 | M32: FISCAL | N32: =I54 -> 1.718795216
A33: MAINTENANCE AND REPAIR SERVICES | B33: 69750 | C33: 0.002513881307 | D33: 3440595 | E33: 0.1240035477 | F33: 33668875 | G33: 1.213470329 | J33: =SUM(F33,D33,B33,'- 12 -'!J33,'- 12 -'!H33,'- 12 -'!F33,'- 12 -'!D33,'- 12 -'!B33) -> 40157268 | K33: 1.447320507
A34: RENTALS | B34: 216423 | C34: 0.00780016823 | D34: 1345792 | E34: 0.0485041054 | F34: 3364038 | G34: 0.1212443332 | J34: =SUM(F34,D34,B34,'- 12 -'!J34,'- 12 -'!H34,'- 12 -'!F34,'- 12 -'!D34,'- 12 -'!B34) -> 10388530 | K34: 0.3744162204 | N34: =SUM(N24:N32) -> 100
A35: PROPERTY TAXES | C35: 0 | E35: 0 | F35: 5613026 | G35: 0.2023008048 | J35: =SUM(F35,D35,B35,'- 12 -'!J35,'- 12 -'!H35,'- 12 -'!F35,'- 12 -'!D35,'- 12 -'!B35) -> 5629078 | K35: 0.2028793399
A36: ADVERTISING | B36: 12920 | C36: =B36/J54 -> 4.65653713e-06 | D36: 26845 | E36: =D36/J54 -> 9.675289416e-06 | F36: 41200 | G36: =F36/J54 -> 1.484901933e-05 | J36: =SUM(F36,D36,B36,'- 12 -'!J36,'- 12 -'!H36,'- 12 -'!F36,'- 12 -'!D36,'- 12 -'!B36) -> 1053326 | K36: 0.0379632479
A37: DUES AND FEES | B37: 167830 | C37: =B37/$J$54*100 -> 0.006048812899 | D37: 66499 | E37: =D37/$J$54*100 -> 0.002396711011 | F37: 118065 | G37: =F37/$J$54*100 -> 0.004255217154 | J37: =SUM(F37,D37,B37,'- 12 -'!J37,'- 12 -'!H37,'- 12 -'!F37,'- 12 -'!D37,'- 12 -'!B37) -> 4399313 | K37: 0.1585569995
A38: PROFESSIONAL AND STAFF DEVELOPMENT | B38: 12678235 | C38: =B38/'- 13 -'!$J$54*100 -> 0.4569401859 | D38: 249360 | E38: =D38/'- 13 -'!$J$54*100 -> 0.008987260826 | F38: 337865 | G38: =F38/'- 13 -'!$J$54*100 -> 0.01217709688 | J38: =SUM(F38,D38,B38,'- 12 -'!J38,'- 12 -'!H38,'- 12 -'!F38,'- 12 -'!D38,'- 12 -'!B38) -> 15245053 | K38: 0.5494516667
A39: INFORMATION TECHNOLOGY SERVICES | B39: 861578 | C39: =B39/$J$54*100 -> 0.03105239897 | D39: 671600 | E39: =D39/$J$54*100 -> 0.02420534316 | F39: 432673 | G39: =F39/$J$54*100 -> 0.01559410131 | J39: =SUM(F39,D39,B39,'- 12 -'!J39,'- 12 -'!H39,'- 12 -'!F39,'- 12 -'!D39,'- 12 -'!B39) -> 17933552 | K39: 0.6463486901
A40: TOTAL SERVICES | B40: =SUM(B25:B39) -> 18339859 | C40: =B40/$J$54*100 -> 0.6609925262 | D40: =SUM(D25:D39) -> 35416664 | E40: =D40/$J$54*100 -> 1.276462933 | F40: =SUM(F25:F39) -> 120779137 | G40: =F40/$J$54*100 -> 4.353038204 | J40: =SUM(F40,D40,B40,'- 12 -'!J40,'- 12 -'!H40,'- 12 -'!F40,'- 12 -'!D40,'- 12 -'!B40) -> 243068298 | K40: 8.76049965
A41: SUPPLIES AND EQUIPMENT
A42: SUPPLIES | B42: 4542101 | C42: =B42/$J$54*100 -> 0.1637032659 | D42: 24096847 | E42: =D42/$J$54*100 -> 0.86848191 | F42: 23193776 | G42: =F42/$J$54*100 -> 0.835934049 | J42: =SUM(F42,D42,B42,'- 12 -'!J42,'- 12 -'!H42,'- 12 -'!F42,'- 12 -'!D42,'- 12 -'!B42) -> 97678048 | K42: =J42/$J$54*100 -> 3.520444716
A43: CURRICULAR AND MEDIA MATERIALS | B43: 2801798 | C43: =B43/$J$54*100 -> 0.1009804676 | D43: 13920 | E43: =D43/$J$54*100 -> 0.000501695022 | F43: 174680 | G43: =F43/$J$54*100 -> 0.006295695866 | J43: =SUM(F43,D43,B43,'- 12 -'!J43,'- 12 -'!H43,'- 12 -'!F43,'- 12 -'!D43,'- 12 -'!B43) -> 15439638 | K43: =J43/$J$54*100 -> 0.5564647649
A44: MINOR EQUIPMENT | B44: 182737 | C44: =B44/$J$54*100 -> 0.006586080693 | D44: 399006 | E44: =D44/$J$54*100 -> 0.01438069856 | F44: 3897573 | G44: =F44/$J$54*100 -> 0.1404736331 | J44: =SUM(F44,D44,B44,'- 12 -'!J44,'- 12 -'!H44,'- 12 -'!F44,'- 12 -'!D44,'- 12 -'!B44) -> 14957936 | K44: =J44/$J$54*100 -> 0.5391035942
A45: INFORMATION TECHNOLOGY EQUIPMENT | B45: 341424 | C45: =B45/$J$54*100 -> 0.0123053679 | D45: 199550 | E45: =D45/$J$54*100 -> 0.007192043222 | F45: 154015 | G45: =F45/$J$54*100 -> 0.005550902214 | J45: =SUM(F45,D45,B45,'- 12 -'!J45,'- 12 -'!H45,'- 12 -'!F45,'- 12 -'!D45,'- 12 -'!B45) -> 24182544 | K45: =J45/$J$54*100 -> 0.871570542
A46: TOTAL SUPPLIES AND EQUIPMENT | B46: =SUM(B42:B45) -> 7868060 | C46: =B46/$J$54*100 -> 0.2835751821 | D46: =SUM(D42:D45) -> 24709323 | E46: =D46/$J$54*100 -> 0.8905563468 | F46: =SUM(F42:F45) -> 27420044 | G46: =F46/$J$54*100 -> 0.9882542801 | J46: =SUM(F46,D46,B46,'- 12 -'!J46,'- 12 -'!H46,'- 12 -'!F46,'- 12 -'!D46,'- 12 -'!B46) -> 152258166 | K46: =J46/$J$54*100 -> 5.487583617
A47: TRANSFERS
A48: RECHARGE | F48: 0 | J48: ='- 12 -'!F48+'- 12 -'!J48+'- 13 -'!F48 -> 0
A49: DEBT SERVICES | H49: ='- 10 -'!G19 -> 3212290 | I49: =H49/$J$54*100 -> 0.1157751367 | J49: =H49 -> 3212290 | K49: =J49/$J$54*100 -> 0.1157751367
A50: BAD DEBT EXPENSE | H50: ='- 10 -'!H19 -> 8000 | J50: =H50 -> 8000
A51: OTHER GOVERNMENT AUTHORITIES | H51: ='- 10 -'!I19 -> 44469299 | I51: =H51/$J$54*100 -> 1.602731749 | J51: =H51 -> 44469299 | K51: =J51/$J$54*100 -> 1.602731749
A52: TOTAL TRANSFERS | F52: =F48 -> 0 | H52: =SUM(H49:H51) -> 47689589 | I52: =H52/$J$54*100 -> 1.718795216 | J52: =SUM(J48:J51) -> 47689589 | K52: =J52/$J$54*100 -> 1.718795216
A54: PROVINCE | B54: =SUM(B52,B46,B40,B23,B22) -> 90117028 | C54: =B54/$J$54*100 -> 3.247935657 | D54: =SUM(D52,D46,D40,D23,D22) -> 123398416 | E54: =D54/$J$54*100 -> 4.447440448 | F54: =SUM(F52,F46,F40,F23,F22) -> 311166102 | G54: =F54/$J$54*100 -> 11.21483365 | H54: =SUM(H52,H46,H40,H23,H22) -> 47689589 | I54: =H54/$J$54*100 -> 1.718795216 | J54: =SUM(J52,J46,J40,J23,J22) -> 2774594004 | K54: =J54/$J$54*100 -> 100
M56: =J54-'- 3 -'!D48 -> 0

Sheet - 14 -
U23: - 14 -

Sheet - 15 -
B2: =IF(Lang=1,BA2,BB2) -> ANALYSIS OF EXPENSE BY FUNCTION | I2: PAGE 1 OF 3 | BA2: ANALYSIS OF EXPENSE BY FUNCTION | BB2: ANALYSE DES DÉPENSES PAR FONCTION
B3: =OPYEAR -> OPERATING FUND 2023/2024 BUDGET
B6: REGULAR INSTRUCTION | E6: STUDENT SUPPORT SERVICES | H6: ADULT LEARNING CENTRES
D8: PER PUPIL | G8: PER PUPIL
A9: DIVISION / DISTRICT | B9: AMOUNT | C9: % | E9: AMOUNT | F9: % | H9: AMOUNT | I9: %
A11: BEAUTIFUL PLAINS | B11: =SUM('- 18 -'!B11,'- 18 -'!E11,'- 19 -'!B11,'- 19 -'!E11,'- 19 -'!H11,'- 20 -'!B11) -> 16927908 | C11: =B11/'- 3 -'!D11*100 -> 63.94574917 | D11: =B11/'- 7 -'!C11 -> 8150.172364 | E11: =SUM('- 21 -'!B11,'- 21 -'!E11,'- 21 -'!H11,'- 22 -'!B11,'- 22 -'!E11,'- 22 -'!H11) -> 3513212 | F11: =E11/'- 3 -'!D11*100 -> 13.27127802 | G11: =E11/'- 7 -'!E11 -> 1691.483871 | H11: =SUM('- 23 -'!D11,'- 23 -'!B11) -> 0 | I11: =H11/'- 3 -'!D11*100 -> 0
A12: BORDER LAND | B12: =SUM('- 18 -'!B12,'- 18 -'!E12,'- 19 -'!B12,'- 19 -'!E12,'- 19 -'!H12,'- 20 -'!B12) -> 22269248 | C12: =B12/'- 3 -'!D12*100 -> 58.65824544 | D12: =B12/'- 7 -'!C12 -> 10724.41512 | E12: =SUM('- 21 -'!B12,'- 21 -'!E12,'- 21 -'!H12,'- 22 -'!B12,'- 22 -'!E12,'- 22 -'!H12) -> 5842534 | F12: =E12/'- 3 -'!D12*100 -> 15.38950904 | G12: =E12/'- 7 -'!E12 -> 2813.645076 | H12: =SUM('- 23 -'!D12,'- 23 -'!B12) -> 351180 | I12: =H12/'- 3 -'!D12*100 -> 0.9250246185
A13: BRANDON | B13: =SUM('- 18 -'!B13,'- 18 -'!E13,'- 19 -'!B13,'- 19 -'!E13,'- 19 -'!H13,'- 20 -'!B13) -> 74843108 | C13: =B13/'- 3 -'!D13*100 -> 61.30609806 | D13: =B13/'- 7 -'!C13 -> 8221.806877 | E13: =SUM('- 21 -'!B13,'- 21 -'!E13,'- 21 -'!H13,'- 22 -'!B13,'- 22 -'!E13,'- 22 -'!H13) -> 24372290 | F13: =E13/'- 3 -'!D13*100 -> 19.9640293 | G13: =E13/'- 7 -'!E13 -> 2677.39097 | H13: =SUM('- 23 -'!D13,'- 23 -'!B13) -> 0 | I13: =H13/'- 3 -'!D13*100 -> 0
A14: DSFM | B14: =SUM('- 18 -'!B14,'- 18 -'!E14,'- 19 -'!B14,'- 19 -'!E14,'- 19 -'!H14,'- 20 -'!B14) -> 60468046 | C14: =B14/'- 3 -'!D14*100 -> 55.00023954 | D14: =B14/'- 7 -'!C14 -> 9951.949638 | E14: =SUM('- 21 -'!B14,'- 21 -'!E14,'- 21 -'!H14,'- 22 -'!B14,'- 22 -'!E14,'- 22 -'!H14) -> 14283329 | F14: =E14/'- 3 -'!D14*100 -> 12.9917629 | G14: =E14/'- 7 -'!E14 -> 2350.778308 | H14: =SUM('- 23 -'!D14,'- 23 -'!B14) -> 260702 | I14: =H14/'- 3 -'!D14*100 -> 0.2371280932
A15: EVERGREEN | B15: =SUM('- 18 -'!B15,'- 18 -'!E15,'- 19 -'!B15,'- 19 -'!E15,'- 19 -'!H15,'- 20 -'!B15) -> 12813928 | C15: =B15/'- 3 -'!D15*100 -> 54.67322601 | D15: =B15/'- 7 -'!C15 -> 9179.031519 | E15: =SUM('- 21 -'!B15,'- 21 -'!E15,'- 21 -'!H15,'- 22 -'!B15,'- 22 -'!E15,'- 22 -'!H15) -> 3848230 | F15: =E15/'- 3 -'!D15*100 -> 16.41925478 | G15: =E15/'- 7 -'!E15 -> 2756.611748 | H15: =SUM('- 23 -'!D15,'- 23 -'!B15) -> 0 | I15: =H15/'- 3 -'!D15*100 -> 0
A16: FLIN FLON | B16: =SUM('- 18 -'!B16,'- 18 -'!E16,'- 19 -'!B16,'- 19 -'!E16,'- 19 -'!H16,'- 20 -'!B16) -> 9252696 | C16: =B16/'- 3 -'!D16*100 -> 54.92055815 | D16: =B16/'- 7 -'!C16 -> 10924.08028 | E16: =SUM('- 21 -'!B16,'- 21 -'!E16,'- 21 -'!H16,'- 22 -'!B16,'- 22 -'!E16,'- 22 -'!H16) -> 3181160 | F16: =E16/'- 3 -'!D16*100 -> 18.88218123 | G16: =E16/'- 7 -'!E16 -> 3755.79693 | H16: =SUM('- 23 -'!D16,'- 23 -'!B16) -> 94000 | I16: =H16/'- 3 -'!D16*100 -> 0.5579489985
A17: FORT LA BOSSE | B17: =SUM('- 18 -'!B17,'- 18 -'!E17,'- 19 -'!B17,'- 19 -'!E17,'- 19 -'!H17,'- 20 -'!B17) -> 13202940 | C17: =B17/'- 3 -'!D17*100 -> 61.42128466 | D17: =B17/'- 7 -'!C17 -> 8726.331791 | E17: =SUM('- 21 -'!B17,'- 21 -'!E17,'- 21 -'!H17,'- 22 -'!B17,'- 22 -'!E17,'- 22 -'!H17) -> 2564350 | F17: =E17/'- 3 -'!D17*100 -> 11.92959078 | G17: =E17/'- 7 -'!E17 -> 1694.877726 | H17: =SUM('- 23 -'!D17,'- 23 -'!B17) -> 0 | I17: =H17/'- 3 -'!D17*100 -> 0
A18: FRONTIER | B18: =SUM('- 18 -'!B18,'- 18 -'!E18,'- 19 -'!B18,'- 19 -'!E18,'- 19 -'!H18,'- 20 -'!B18) -> 70530803 | C18: =B18/'- 3 -'!D18*100 -> 42.59619262 | D18: =B18/'- 7 -'!C18 -> 11350.30624 | E18: =SUM('- 21 -'!B18,'- 21 -'!E18,'- 21 -'!H18,'- 22 -'!B18,'- 22 -'!E18,'- 22 -'!H18) -> 26983444 | F18: =E18/'- 3 -'!D18*100 -> 16.2963121 | G18: =E18/'- 7 -'!E18 -> 4342.363051 | H18: =SUM('- 23 -'!D18,'- 23 -'!B18) -> 2536587 | I18: =H18/'- 3 -'!D18*100 -> 1.53193986
A19: GARDEN VALLEY | B19: =SUM('- 18 -'!B19,'- 18 -'!E19,'- 19 -'!B19,'- 19 -'!E19,'- 19 -'!H19,'- 20 -'!B19) -> 32746450 | C19: =B19/'- 3 -'!D19*100 -> 58.41800105 | D19: =B19/'- 7 -'!C19 -> 7759.822275 | E19: =SUM('- 21 -'!B19,'- 21 -'!E19,'- 21 -'!H19,'- 22 -'!B19,'- 22 -'!E19,'- 22 -'!H19) -> 10365850 | F19: =E19/'- 3 -'!D19*100 -> 18.49214911 | G19: =E19/'- 7 -'!E19 -> 2456.362559 | H19: =SUM('- 23 -'!D19,'- 23 -'!B19) -> 0 | I19: =H19/'- 3 -'!D19*100 -> 0
A20: HANOVER | B20: =SUM('- 18 -'!B20,'- 18 -'!E20,'- 19 -'!B20,'- 19 -'!E20,'- 19 -'!H20,'- 20 -'!B20) -> 61549100 | C20: =B20/'- 3 -'!D20*100 -> 60.13843278 | D20: =B20/'- 7 -'!C20 -> 7579.005049 | E20: =SUM('- 21 -'!B20,'- 21 -'!E20,'- 21 -'!H20,'- 22 -'!B20,'- 22 -'!E20,'- 22 -'!H20) -> 19494600 | F20: =E20/'- 3 -'!D20*100 -> 19.04779585 | G20: =E20/'- 7 -'!E20 -> 2400.517178 | H20: =SUM('- 23 -'!D20,'- 23 -'!B20) -> 0 | I20: =H20/'- 3 -'!D20*100 -> 0
A21: INTERLAKE | B21: =SUM('- 18 -'!B21,'- 18 -'!E21,'- 19 -'!B21,'- 19 -'!E21,'- 19 -'!H21,'- 20 -'!B21) -> 22794264 | C21: =B21/'- 3 -'!D21*100 -> 55.63109295 | D21: =B21/'- 7 -'!C21 -> 7999.39077 | E21: =SUM('- 21 -'!B21,'- 21 -'!E21,'- 21 -'!H21,'- 22 -'!B21,'- 22 -'!E21,'- 22 -'!H21) -> 8326000 | F21: =E21/'- 3 -'!D21*100 -> 20.32022091 | G21: =E21/'- 7 -'!E21 -> 2921.916126 | H21: =SUM('- 23 -'!D21,'- 23 -'!B21) -> 0 | I21: =H21/'- 3 -'!D21*100 -> 0
A22: KELSEY | B22: =SUM('- 18 -'!B22,'- 18 -'!E22,'- 19 -'!B22,'- 19 -'!E22,'- 19 -'!H22,'- 20 -'!B22) -> 11544670 | C22: =B22/'- 3 -'!D22*100 -> 52.72736615 | D22: =B22/'- 7 -'!C22 -> 8073.195804 | E22: =SUM('- 21 -'!B22,'- 21 -'!E22,'- 21 -'!H22,'- 22 -'!B22,'- 22 -'!E22,'- 22 -'!H22) -> 4397504 | F22: =E22/'- 3 -'!D22*100 -> 20.08448951 | G22: =E22/'- 7 -'!E22 -> 3075.177622 | H22: =SUM('- 23 -'!D22,'- 23 -'!B22) -> 860206 | I22: =H22/'- 3 -'!D22*100 -> 3.928773774
A23: LAKESHORE | B23: =SUM('- 18 -'!B23,'- 18 -'!E23,'- 19 -'!B23,'- 19 -'!E23,'- 19 -'!H23,'- 20 -'!B23) -> 8747634 | C23: =B23/'- 3 -'!D23*100 -> 51.34739427 | D23: =B23/'- 7 -'!C23 -> 9586.448219 | E23: =SUM('- 21 -'!B23,'- 21 -'!E23,'- 21 -'!H23,'- 22 -'!B23,'- 22 -'!E23,'- 22 -'!H23) -> 3116250 | F23: =E23/'- 3 -'!D23*100 -> 18.29195385 | G23: =E23/'- 7 -'!E23 -> 3415.068493 | H23: =SUM('- 23 -'!D23,'- 23 -'!B23) -> 275650 | I23: =H23/'- 3 -'!D23*100 -> 1.618027141
A24: LORD SELKIRK | B24: =SUM('- 18 -'!B24,'- 18 -'!E24,'- 19 -'!B24,'- 19 -'!E24,'- 19 -'!H24,'- 20 -'!B24) -> 37995267 | C24: =B24/'- 3 -'!D24*100 -> 59.81447395 | D24: =B24/'- 7 -'!C24 -> 10102.43738 | E24: =SUM('- 21 -'!B24,'- 21 -'!E24,'- 21 -'!H24,'- 22 -'!B24,'- 22 -'!E24,'- 22 -'!H24) -> 10742838 | F24: =E24/'- 3 -'!D24*100 -> 16.91203285 | G24: =E24/'- 7 -'!E24 -> 2856.378091 | H24: =SUM('- 23 -'!D24,'- 23 -'!B24) -> 335559 | I24: =H24/'- 3 -'!D24*100 -> 0.5282575081
A25: LOUIS RIEL | B25: =SUM('- 18 -'!B25,'- 18 -'!E25,'- 19 -'!B25,'- 19 -'!E25,'- 19 -'!H25,'- 20 -'!B25) -> 121693279 | C25: =B25/'- 3 -'!D25*100 -> 54.71638556 | D25: =B25/'- 7 -'!C25 -> 7526.333045 | E25: =SUM('- 21 -'!B25,'- 21 -'!E25,'- 21 -'!H25,'- 22 -'!B25,'- 22 -'!E25,'- 22 -'!H25) -> 47031799 | F25: =E25/'- 3 -'!D25*100 -> 21.14669001 | G25: =E25/'- 7 -'!E25 -> 2908.763622 | H25: =SUM('- 23 -'!D25,'- 23 -'!B25) -> 1261421 | I25: =H25/'- 3 -'!D25*100 -> 0.5671668834
A26: MOUNTAIN VIEW | B26: =SUM('- 18 -'!B26,'- 18 -'!E26,'- 19 -'!B26,'- 19 -'!E26,'- 19 -'!H26,'- 20 -'!B26) -> 26202672 | C26: =B26/'- 3 -'!D26*100 -> 56.79877097 | D26: =B26/'- 7 -'!C26 -> 8644.893435 | E26: =SUM('- 21 -'!B26,'- 21 -'!E26,'- 21 -'!H26,'- 22 -'!B26,'- 22 -'!E26,'- 22 -'!H26) -> 6746974 | F26: =E26/'- 3 -'!D26*100 -> 14.62521956 | G26: =E26/'- 7 -'!E26 -> 2225.989442 | H26: =SUM('- 23 -'!D26,'- 23 -'!B26) -> 0 | I26: =H26/'- 3 -'!D26*100 -> 0
A27: MYSTERY LAKE | B27: =SUM('- 18 -'!B27,'- 18 -'!E27,'- 19 -'!B27,'- 19 -'!E27,'- 19 -'!H27,'- 20 -'!B27) -> 25870308 | C27: =B27/'- 3 -'!D27*100 -> 55.77778172 | D27: =B27/'- 7 -'!C27 -> 9392.015974 | E27: =SUM('- 21 -'!B27,'- 21 -'!E27,'- 21 -'!H27,'- 22 -'!B27,'- 22 -'!E27,'- 22 -'!H27) -> 9345447 | F27: =E27/'- 3 -'!D27*100 -> 20.14928863 | G27: =E27/'- 7 -'!E27 -> 3392.792521 | H27: =SUM('- 23 -'!D27,'- 23 -'!B27) -> 0 | I27: =H27/'- 3 -'!D27*100 -> 0
A28: PARK WEST | B28: =SUM('- 18 -'!B28,'- 18 -'!E28,'- 19 -'!B28,'- 19 -'!E28,'- 19 -'!H28,'- 20 -'!B28) -> 19389076 | C28: =B28/'- 3 -'!D28*100 -> 59.79558496 | D28: =B28/'- 7 -'!C28 -> 9152.266226 | E28: =SUM('- 21 -'!B28,'- 21 -'!E28,'- 21 -'!H28,'- 22 -'!B28,'- 22 -'!E28,'- 22 -'!H28) -> 4485286 | F28: =E28/'- 3 -'!D28*100 -> 13.83254674 | G28: =E28/'- 7 -'!E28 -> 2117.198962 | H28: =SUM('- 23 -'!D28,'- 23 -'!B28) -> 80620 | I28: =H28/'- 3 -'!D28*100 -> 0.2486307269
A29: PEMBINA TRAILS | B29: =SUM('- 18 -'!B29,'- 18 -'!E29,'- 19 -'!B29,'- 19 -'!E29,'- 19 -'!H29,'- 20 -'!B29) -> 117589439 | C29: =B29/'- 3 -'!D29*100 -> 57.621664 | D29: =B29/'- 7 -'!C29 -> 7505.740812 | E29: =SUM('- 21 -'!B29,'- 21 -'!E29,'- 21 -'!H29,'- 22 -'!B29,'- 22 -'!E29,'- 22 -'!H29) -> 41270739 | F29: =E29/'- 3 -'!D29*100 -> 20.22365849 | G29: =E29/'- 7 -'!E29 -> 2634.313699 | H29: =SUM('- 23 -'!D29,'- 23 -'!B29) -> 0 | I29: =H29/'- 3 -'!D29*100 -> 0
A30: PINE CREEK | B30: =SUM('- 18 -'!B30,'- 18 -'!E30,'- 19 -'!B30,'- 19 -'!E30,'- 19 -'!H30,'- 20 -'!B30) -> 10470148 | C30: =B30/'- 3 -'!D30*100 -> 60.56180314 | D30: =B30/'- 7 -'!C30 -> 9685.613321 | E30: =SUM('- 21 -'!B30,'- 21 -'!E30,'- 21 -'!H30,'- 22 -'!B30,'- 22 -'!E30,'- 22 -'!H30) -> 2088600 | F30: =E30/'- 3 -'!D30*100 -> 12.08095454 | G30: =E30/'- 7 -'!E30 -> 1932.099907 | H30: =SUM('- 23 -'!D30,'- 23 -'!B30) -> 0 | I30: =H30/'- 3 -'!D30*100 -> 0
A31: PORTAGE LA PRAIRIE | B31: =SUM('- 18 -'!B31,'- 18 -'!E31,'- 19 -'!B31,'- 19 -'!E31,'- 19 -'!H31,'- 20 -'!B31) -> 28287971 | C31: =B31/'- 3 -'!D31*100 -> 61.09942709 | D31: =B31/'- 7 -'!C31 -> 8213.696574 | E31: =SUM('- 21 -'!B31,'- 21 -'!E31,'- 21 -'!H31,'- 22 -'!B31,'- 22 -'!E31,'- 22 -'!H31) -> 8266267 | F31: =E31/'- 3 -'!D31*100 -> 17.85437979 | G31: =E31/'- 7 -'!E31 -> 2400.19367 | H31: =SUM('- 23 -'!D31,'- 23 -'!B31) -> 0 | I31: =H31/'- 3 -'!D31*100 -> 0
A32: PRAIRIE ROSE | B32: =SUM('- 18 -'!B32,'- 18 -'!E32,'- 19 -'!B32,'- 19 -'!E32,'- 19 -'!H32,'- 20 -'!B32) -> 20020285 | C32: =B32/'- 3 -'!D32*100 -> 57.51642829 | D32: =B32/'- 7 -'!C32 -> 8504.793968 | E32: =SUM('- 21 -'!B32,'- 21 -'!E32,'- 21 -'!H32,'- 22 -'!B32,'- 22 -'!E32,'- 22 -'!H32) -> 5642180 | F32: =E32/'- 3 -'!D32*100 -> 16.20946162 | G32: =E32/'- 7 -'!E32 -> 2396.847918 | H32: =SUM('- 23 -'!D32,'- 23 -'!B32) -> 328715 | I32: =H32/'- 3 -'!D32*100 -> 0.9443678112
A33: PRAIRIE SPIRIT | B33: =SUM('- 18 -'!B33,'- 18 -'!E33,'- 19 -'!B33,'- 19 -'!E33,'- 19 -'!H33,'- 20 -'!B33) -> 17998340 | C33: =B33/'- 3 -'!D33*100 -> 57.52365319 | D33: =B33/'- 7 -'!C33 -> 8379.115456 | E33: =SUM('- 21 -'!B33,'- 21 -'!E33,'- 21 -'!H33,'- 22 -'!B33,'- 22 -'!E33,'- 22 -'!H33) -> 4698200 | F33: =E33/'- 3 -'!D33*100 -> 15.01569742 | G33: =E33/'- 7 -'!E33 -> 2187.243948 | H33: =SUM('- 23 -'!D33,'- 23 -'!B33) -> 0 | I33: =H33/'- 3 -'!D33*100 -> 0
A34: RED RIVER VALLEY | B34: =SUM('- 18 -'!B34,'- 18 -'!E34,'- 19 -'!B34,'- 19 -'!E34,'- 19 -'!H34,'- 20 -'!B34) -> 20242356 | C34: =B34/'- 3 -'!D34*100 -> 57.1553324 | D34: =B34/'- 7 -'!C34 -> 8897.738901 | E34: =SUM('- 21 -'!B34,'- 21 -'!E34,'- 21 -'!H34,'- 22 -'!B34,'- 22 -'!E34,'- 22 -'!H34) -> 6119888 | F34: =E34/'- 3 -'!D34*100 -> 17.27981826 | G34: =E34/'- 7 -'!E34 -> 2690.060659 | H34: =SUM('- 23 -'!D34,'- 23 -'!B34) -> 0 | I34: =H34/'- 3 -'!D34*100 -> 0
A35: RIVER EAST TRANSCONA | B35: =SUM('- 18 -'!B35,'- 18 -'!E35,'- 19 -'!B35,'- 19 -'!E35,'- 19 -'!H35,'- 20 -'!B35) -> 130727435 | C35: =B35/'- 3 -'!D35*100 -> 58.14382413 | D35: =B35/'- 7 -'!C35 -> 7663.028518 | E35: =SUM('- 21 -'!B35,'- 21 -'!E35,'- 21 -'!H35,'- 22 -'!B35,'- 22 -'!E35,'- 22 -'!H35) -> 44434362 | F35: =E35/'- 3 -'!D35*100 -> 19.76313334 | G35: =E35/'- 7 -'!E35 -> 2604.669656 | H35: =SUM('- 23 -'!D35,'- 23 -'!B35) -> 1660750 | I35: =H35/'- 3 -'!D35*100 -> 0.7386541007
A36: ROLLING RIVER | B36: =SUM('- 18 -'!B36,'- 18 -'!E36,'- 19 -'!B36,'- 19 -'!E36,'- 19 -'!H36,'- 20 -'!B36) -> 15746510 | C36: =B36/'- 3 -'!D36*100 -> 58.86181621 | D36: =B36/'- 7 -'!C36 -> 8891.309994 | E36: =SUM('- 21 -'!B36,'- 21 -'!E36,'- 21 -'!H36,'- 22 -'!B36,'- 22 -'!E36,'- 22 -'!H36) -> 3613085 | F36: =E36/'- 3 -'!D36*100 -> 13.50602421 | G36: =E36/'- 7 -'!E36 -> 2040.13834 | H36: =SUM('- 23 -'!D36,'- 23 -'!B36) -> 0 | I36: =H36/'- 3 -'!D36*100 -> 0
A37: SEINE RIVER | B37: =SUM('- 18 -'!B37,'- 18 -'!E37,'- 19 -'!B37,'- 19 -'!E37,'- 19 -'!H37,'- 20 -'!B37) -> 34483480 | C37: =B37/'- 3 -'!D37*100 -> 56.5144877 | D37: =B37/'- 7 -'!C37 -> 7469.61551 | E37: =SUM('- 21 -'!B37,'- 21 -'!E37,'- 21 -'!H37,'- 22 -'!B37,'- 22 -'!E37,'- 22 -'!H37) -> 10874901 | F37: =E37/'- 3 -'!D37*100 -> 17.82272145 | G37: =E37/'- 7 -'!E37 -> 2355.659266 | H37: =SUM('- 23 -'!D37,'- 23 -'!B37) -> 316499 | I37: =H37/'- 3 -'!D37*100 -> 0.5187057351
A38: SEVEN OAKS | B38: =SUM('- 18 -'!B38,'- 18 -'!E38,'- 19 -'!B38,'- 19 -'!E38,'- 19 -'!H38,'- 20 -'!B38) -> 99226552 | C38: =B38/'- 3 -'!D38*100 -> 59.29236115 | D38: =B38/'- 7 -'!C38 -> 8389.478081 | E38: =SUM('- 21 -'!B38,'- 21 -'!E38,'- 21 -'!H38,'- 22 -'!B38,'- 22 -'!E38,'- 22 -'!H38) -> 29673680 | F38: =E38/'- 3 -'!D38*100 -> 17.73136843 | G38: =E38/'- 7 -'!E38 -> 2508.871697 | H38: =SUM('- 23 -'!D38,'- 23 -'!B38) -> 2238835 | I38: =H38/'- 3 -'!D38*100 -> 1.337805362
A39: SOUTHWEST HORIZON | B39: =SUM('- 18 -'!B39,'- 18 -'!E39,'- 19 -'!B39,'- 19 -'!E39,'- 19 -'!H39,'- 20 -'!B39) -> 14251700 | C39: =B39/'- 3 -'!D39*100 -> 55.87236745 | D39: =B39/'- 7 -'!C39 -> 9883.287101 | E39: =SUM('- 21 -'!B39,'- 21 -'!E39,'- 21 -'!H39,'- 22 -'!B39,'- 22 -'!E39,'- 22 -'!H39) -> 4114400 | F39: =E39/'- 3 -'!D39*100 -> 16.13009456 | G39: =E39/'- 7 -'!E39 -> 2853.259362 | H39: =SUM('- 23 -'!D39,'- 23 -'!B39) -> 0 | I39: =H39/'- 3 -'!D39*100 -> 0
A40: ST. JAMES-ASSINIBOIA | B40: =SUM('- 18 -'!B40,'- 18 -'!E40,'- 19 -'!B40,'- 19 -'!E40,'- 19 -'!H40,'- 20 -'!B40) -> 67243085 | C40: =B40/'- 3 -'!D40*100 -> 54.70488508 | D40: =B40/'- 7 -'!C40 -> 8441.260984 | E40: =SUM('- 21 -'!B40,'- 21 -'!E40,'- 21 -'!H40,'- 22 -'!B40,'- 22 -'!E40,'- 22 -'!H40) -> 29489603 | F40: =E40/'- 3 -'!D40*100 -> 23.99094781 | G40: =E40/'- 7 -'!E40 -> 3701.933593 | H40: =SUM('- 23 -'!D40,'- 23 -'!B40) -> 0 | I40: =H40/'- 3 -'!D40*100 -> 0
A41: SUNRISE | B41: =SUM('- 18 -'!B41,'- 18 -'!E41,'- 19 -'!B41,'- 19 -'!E41,'- 19 -'!H41,'- 20 -'!B41) -> 40221620 | C41: =B41/'- 3 -'!D41*100 -> 54.30396689 | D41: =B41/'- 7 -'!C41 -> 8743.830435 | E41: =SUM('- 21 -'!B41,'- 21 -'!E41,'- 21 -'!H41,'- 22 -'!B41,'- 22 -'!E41,'- 22 -'!H41) -> 13887536 | F41: =E41/'- 3 -'!D41*100 -> 18.74982398 | G41: =E41/'- 7 -'!E41 -> 3019.029565 | H41: =SUM('- 23 -'!D41,'- 23 -'!B41) -> 1040680 | I41: =H41/'- 3 -'!D41*100 -> 1.405041673
A42: SWAN VALLEY | B42: =SUM('- 18 -'!B42,'- 18 -'!E42,'- 19 -'!B42,'- 19 -'!E42,'- 19 -'!H42,'- 20 -'!B42) -> 12976158 | C42: =B42/'- 3 -'!D42*100 -> 51.33214309 | D42: =B42/'- 7 -'!C42 -> 9690.932039 | E42: =SUM('- 21 -'!B42,'- 21 -'!E42,'- 21 -'!H42,'- 22 -'!B42,'- 22 -'!E42,'- 22 -'!H42) -> 5680058 | F42: =E42/'- 3 -'!D42*100 -> 22.46963624 | G42: =E42/'- 7 -'!E42 -> 4242.014937 | H42: =SUM('- 23 -'!D42,'- 23 -'!B42) -> 0 | I42: =H42/'- 3 -'!D42*100 -> 0
A43: TURTLE MOUNTAIN | B43: =SUM('- 18 -'!B43,'- 18 -'!E43,'- 19 -'!B43,'- 19 -'!E43,'- 19 -'!H43,'- 20 -'!B43) -> 8043276 | C43: =B43/'- 3 -'!D43*100 -> 53.87907667 | D43: =B43/'- 7 -'!C43 -> 7778.796905 | E43: =SUM('- 21 -'!B43,'- 21 -'!E43,'- 21 -'!H43,'- 22 -'!B43,'- 22 -'!E43,'- 22 -'!H43) -> 2906536 | F43: =E43/'- 3 -'!D43*100 -> 19.46986228 | G43: =E43/'- 7 -'!E43 -> 2810.96325 | H43: =SUM('- 23 -'!D43,'- 23 -'!B43) -> 206422 | I43: =H43/'- 3 -'!D43*100 -> 1.382748368
A44: TURTLE RIVER | B44: =SUM('- 18 -'!B44,'- 18 -'!E44,'- 19 -'!B44,'- 19 -'!E44,'- 19 -'!H44,'- 20 -'!B44) -> 6791415 | C44: =B44/'- 3 -'!D44*100 -> 55.68081356 | D44: =B44/'- 7 -'!C44 -> 11639.10026 | E44: =SUM('- 21 -'!B44,'- 21 -'!E44,'- 21 -'!H44,'- 22 -'!B44,'- 22 -'!E44,'- 22 -'!H44) -> 1887405 | F44: =E44/'- 3 -'!D44*100 -> 15.47427832 | G44: =E44/'- 7 -'!E44 -> 3234.627249 | H44: =SUM('- 23 -'!D44,'- 23 -'!B44) -> 0 | I44: =H44/'- 3 -'!D44*100 -> 0
A45: WESTERN | B45: =SUM('- 18 -'!B45,'- 18 -'!E45,'- 19 -'!B45,'- 19 -'!E45,'- 19 -'!H45,'- 20 -'!B45) -> 16674718 | C45: =B45/'- 3 -'!D45*100 -> 62.04004897 | D45: =B45/'- 7 -'!C45 -> 7790.104181 | E45: =SUM('- 21 -'!B45,'- 21 -'!E45,'- 21 -'!H45,'- 22 -'!B45,'- 22 -'!E45,'- 22 -'!H45) -> 4158466 | F45: =E45/'- 3 -'!D45*100 -> 15.47201184 | G45: =E45/'- 7 -'!E45 -> 1942.754497 | H45: =SUM('- 23 -'!D45,'- 23 -'!B45) -> 484146 | I45: =H45/'- 3 -'!D45*100 -> 1.801316313
A46: WINNIPEG | B46: =SUM('- 18 -'!B46,'- 18 -'!E46,'- 19 -'!B46,'- 19 -'!E46,'- 19 -'!H46,'- 20 -'!B46) -> 234337723 | C46: =B46/'- 3 -'!D46*100 -> 51.99445238 | D46: =B46/'- 7 -'!C46 -> 8570.77055 | E46: =SUM('- 21 -'!B46,'- 21 -'!E46,'- 21 -'!H46,'- 22 -'!B46,'- 22 -'!E46,'- 22 -'!H46) -> 109146366 | F46: =E46/'- 3 -'!D46*100 -> 24.21720864 | G46: =E46/'- 7 -'!E46 -> 3991.96701 | H46: =SUM('- 23 -'!D46,'- 23 -'!B46) -> 792783 | I46: =H46/'- 3 -'!D46*100 -> 0.1759013334
A48: PROVINCE | B48: =SUM(B11:B46) -> 1544173608 | C48: =B48/'- 3 -'!D48*100 -> 55.65403824 | D48: =B48/'- 7 -'!C48 -> 8421.58152 | E48: =SUM(E11:E46) -> 536593369 | F48: =E48/'- 3 -'!D48*100 -> 19.33952745 | G48: =E48/'- 7 -'!E48 -> 2926.461621 | H48: =SUM(H11:H46) -> 13124755 | I48: =H48/'- 3 -'!D48*100 -> 0.4730333512
A50: WHITESHELL | B50: =SUM('- 18 -'!B50,'- 18 -'!E50,'- 19 -'!B50,'- 19 -'!E50,'- 19 -'!H50,'- 20 -'!B50) -> 2321609 | C50: =B50/'- 3 -'!D50*100 -> 58.38893834 | D50: =B50/'- 7 -'!C50 -> 13497.72674 | E50: =SUM('- 21 -'!B50,'- 21 -'!E50,'- 21 -'!H50,'- 22 -'!B50,'- 22 -'!E50,'- 22 -'!H50) -> 494481 | F50: =E50/'- 3 -'!D50*100 -> 12.43629768 | G50: =E50/'- 7 -'!E50 -> 2874.889535 | H50: =SUM('- 23 -'!D50,'- 23 -'!B50) -> 0 | I50: =H50/'- 3 -'!D50*100 -> 0

Sheet - 16 -
B2: =AEXP_BF -> ANALYSIS OF EXPENSE BY FUNCTION | I2: PAGE 2 OF 3
B3: =+'- 15 -'!B3 -> OPERATING FUND 2023/2024 BUDGET
B6: COMMUNITY EDUCATION AND SERVICES | D6: DIVISIONAL ADMINISTRATION | G6: INSTRUCTIONAL & OTHER SUPPORT SERVICES
F8: PER PUPIL | I8: PER PUPIL
A9: DIVISION / DISTRICT | B9: AMOUNT | C9: % | D9: AMOUNT | E9: % | G9: AMOUNT | H9: %
A11: BEAUTIFUL PLAINS | B11: =SUM('- 24 -'!H11,'- 24 -'!F11,'- 24 -'!D11,'- 24 -'!B11) -> 32980 | C11: =B11/'- 3 -'!D11*100 -> 0.1245830736 | D11: =SUM('- 25 -'!B11,'- 25 -'!E11,'- 25 -'!H11,'- 26 -'!B11) -> 793927 | E11: =D11/'- 3 -'!D11*100 -> 2.99908629 | F11: =D11/'- 7 -'!E11 -> 382.2469909 | G11: =SUM('- 27 -'!B11,'- 27 -'!E11,'- 27 -'!H11,'- 28 -'!B11,'- 28 -'!E11) -> 590475 | H11: =G11/'- 3 -'!D11*100 -> 2.230539429 | I11: =G11/'- 7 -'!E11 -> 284.2922484
A12: BORDER LAND | B12: =SUM('- 24 -'!H12,'- 24 -'!F12,'- 24 -'!D12,'- 24 -'!B12) -> 60805 | C12: =B12/'- 3 -'!D12*100 -> 0.1601632266 | D12: =SUM('- 25 -'!B12,'- 25 -'!E12,'- 25 -'!H12,'- 26 -'!B12) -> 1128486 | E12: =D12/'- 3 -'!D12*100 -> 2.97248514 | F12: =D12/'- 7 -'!E12 -> 543.4558151 | G12: =SUM('- 27 -'!B12,'- 27 -'!E12,'- 27 -'!H12,'- 28 -'!B12,'- 28 -'!E12) -> 821401 | H12: =G12/'- 3 -'!D12*100 -> 2.163608823 | I12: =G12/'- 7 -'!E12 -> 395.5699494
A13: BRANDON | B13: =SUM('- 24 -'!H13,'- 24 -'!F13,'- 24 -'!D13,'- 24 -'!B13) -> 431630 | C13: =B13/'- 3 -'!D13*100 -> 0.3535602919 | D13: =SUM('- 25 -'!B13,'- 25 -'!E13,'- 25 -'!H13,'- 26 -'!B13) -> 3279610 | E13: =D13/'- 3 -'!D13*100 -> 2.686420936 | F13: =D13/'- 7 -'!E13 -> 360.2779304 | G13: =SUM('- 27 -'!B13,'- 27 -'!E13,'- 27 -'!H13,'- 28 -'!B13,'- 28 -'!E13) -> 3150253 | H13: =G13/'- 3 -'!D13*100 -> 2.580460974 | I13: =G13/'- 7 -'!E13 -> 346.0675601
A14: DSFM | B14: =SUM('- 24 -'!H14,'- 24 -'!F14,'- 24 -'!D14,'- 24 -'!B14) -> 906479 | C14: =B14/'- 3 -'!D14*100 -> 0.8245108852 | D14: =SUM('- 25 -'!B14,'- 25 -'!E14,'- 25 -'!H14,'- 26 -'!B14) -> 3902402 | E14: =D14/'- 3 -'!D14*100 -> 3.54952837 | F14: =D14/'- 7 -'!E14 -> 642.264977 | G14: =SUM('- 27 -'!B14,'- 27 -'!E14,'- 27 -'!H14,'- 28 -'!B14,'- 28 -'!E14) -> 4207918 | H14: =G14/'- 3 -'!D14*100 -> 3.82741817 | I14: =G14/'- 7 -'!E14 -> 692.5473996
A15: EVERGREEN | B15: =SUM('- 24 -'!H15,'- 24 -'!F15,'- 24 -'!D15,'- 24 -'!B15) -> 56600 | C15: =B15/'- 3 -'!D15*100 -> 0.2414953941 | D15: =SUM('- 25 -'!B15,'- 25 -'!E15,'- 25 -'!H15,'- 26 -'!B15) -> 755539 | E15: =D15/'- 3 -'!D15*100 -> 3.223660575 | F15: =D15/'- 7 -'!E15 -> 541.2170487 | G15: =SUM('- 27 -'!B15,'- 27 -'!E15,'- 27 -'!H15,'- 28 -'!B15,'- 28 -'!E15) -> 650197 | H15: =G15/'- 3 -'!D15*100 -> 2.77419754 | I15: =G15/'- 7 -'!E15 -> 465.7571633
A16: FLIN FLON | B16: =SUM('- 24 -'!H16,'- 24 -'!F16,'- 24 -'!D16,'- 24 -'!B16) -> 17661 | C16: =B16/'- 3 -'!D16*100 -> 0.1048291198 | D16: =SUM('- 25 -'!B16,'- 25 -'!E16,'- 25 -'!H16,'- 26 -'!B16) -> 715970 | E16: =D16/'- 3 -'!D16*100 -> 4.249731324 | F16: =D16/'- 7 -'!E16 -> 845.3010626 | G16: =SUM('- 27 -'!B16,'- 27 -'!E16,'- 27 -'!H16,'- 28 -'!B16,'- 28 -'!E16) -> 320101 | H16: =G16/'- 3 -'!D16*100 -> 1.900000344 | I16: =G16/'- 7 -'!E16 -> 377.9232586
A17: FORT LA BOSSE | B17: =SUM('- 24 -'!H17,'- 24 -'!F17,'- 24 -'!D17,'- 24 -'!B17) -> 250780 | C17: =B17/'- 3 -'!D17*100 -> 1.166651501 | D17: =SUM('- 25 -'!B17,'- 25 -'!E17,'- 25 -'!H17,'- 26 -'!B17) -> 789773 | E17: =D17/'- 3 -'!D17*100 -> 3.674096243 | F17: =D17/'- 7 -'!E17 -> 521.9914078 | G17: =SUM('- 27 -'!B17,'- 27 -'!E17,'- 27 -'!H17,'- 28 -'!B17,'- 28 -'!E17) -> 433850 | H17: =G17/'- 3 -'!D17*100 -> 2.018309888 | I17: =G17/'- 7 -'!E17 -> 286.7481824
A18: FRONTIER | B18: =SUM('- 24 -'!H18,'- 24 -'!F18,'- 24 -'!D18,'- 24 -'!B18) -> 2387248 | C18: =B18/'- 3 -'!D18*100 -> 1.441748446 | D18: =SUM('- 25 -'!B18,'- 25 -'!E18,'- 25 -'!H18,'- 26 -'!B18) -> 8593361 | E18: =D18/'- 3 -'!D18*100 -> 5.189852445 | F18: =D18/'- 7 -'!E18 -> 1382.903283 | G18: =SUM('- 27 -'!B18,'- 27 -'!E18,'- 27 -'!H18,'- 28 -'!B18,'- 28 -'!E18) -> 10938148 | H18: =G18/'- 3 -'!D18*100 -> 6.605957104 | I18: =G18/'- 7 -'!E18 -> 1760.242678
A19: GARDEN VALLEY | B19: =SUM('- 24 -'!H19,'- 24 -'!F19,'- 24 -'!D19,'- 24 -'!B19) -> 52370 | C19: =B19/'- 3 -'!D19*100 -> 0.09342541603 | D19: =SUM('- 25 -'!B19,'- 25 -'!E19,'- 25 -'!H19,'- 26 -'!B19) -> 1684740 | E19: =D19/'- 3 -'!D19*100 -> 3.00549046 | F19: =D19/'- 7 -'!E19 -> 399.2274882 | G19: =SUM('- 27 -'!B19,'- 27 -'!E19,'- 27 -'!H19,'- 28 -'!B19,'- 28 -'!E19) -> 1586800 | H19: =G19/'- 3 -'!D19*100 -> 2.830770482 | I19: =G19/'- 7 -'!E19 -> 376.0189573
A20: HANOVER | B20: =SUM('- 24 -'!H20,'- 24 -'!F20,'- 24 -'!D20,'- 24 -'!B20) -> 111200 | C20: =B20/'- 3 -'!D20*100 -> 0.1086513649 | D20: =SUM('- 25 -'!B20,'- 25 -'!E20,'- 25 -'!H20,'- 26 -'!B20) -> 2422200 | E20: =D20/'- 3 -'!D20*100 -> 2.366684678 | F20: =D20/'- 7 -'!E20 -> 298.2637606 | G20: =SUM('- 27 -'!B20,'- 27 -'!E20,'- 27 -'!H20,'- 28 -'!B20,'- 28 -'!E20) -> 2021500 | H20: =G20/'- 3 -'!D20*100 -> 1.975168473 | I20: =G20/'- 7 -'!E20 -> 248.9225465
A21: INTERLAKE | B21: =SUM('- 24 -'!H21,'- 24 -'!F21,'- 24 -'!D21,'- 24 -'!B21) -> 0 | C21: =B21/'- 3 -'!D21*100 -> 0 | D21: =SUM('- 25 -'!B21,'- 25 -'!E21,'- 25 -'!H21,'- 26 -'!B21) -> 1356100 | E21: =D21/'- 3 -'!D21*100 -> 3.309662692 | F21: =D21/'- 7 -'!E21 -> 475.908054 | G21: =SUM('- 27 -'!B21,'- 27 -'!E21,'- 27 -'!H21,'- 28 -'!B21,'- 28 -'!E21) -> 1116300 | H21: =G21/'- 3 -'!D21*100 -> 2.724412996 | I21: =G21/'- 7 -'!E21 -> 391.7529391
A22: KELSEY | B22: =SUM('- 24 -'!H22,'- 24 -'!F22,'- 24 -'!D22,'- 24 -'!B22) -> 60564 | C22: =B22/'- 3 -'!D22*100 -> 0.2766107826 | D22: =SUM('- 25 -'!B22,'- 25 -'!E22,'- 25 -'!H22,'- 26 -'!B22) -> 961669 | E22: =D22/'- 3 -'!D22*100 -> 4.392180415 | F22: =D22/'- 7 -'!E22 -> 672.4958042 | G22: =SUM('- 27 -'!B22,'- 27 -'!E22,'- 27 -'!H22,'- 28 -'!B22,'- 28 -'!E22) -> 536907 | H22: =G22/'- 3 -'!D22*100 -> 2.452187198 | I22: =G22/'- 7 -'!E22 -> 375.4594406
A23: LAKESHORE | B23: =SUM('- 24 -'!H23,'- 24 -'!F23,'- 24 -'!D23,'- 24 -'!B23) -> 111200 | C23: =B23/'- 3 -'!D23*100 -> 0.6527285256 | D23: =SUM('- 25 -'!B23,'- 25 -'!E23,'- 25 -'!H23,'- 26 -'!B23) -> 576500 | E23: =D23/'- 3 -'!D23*100 -> 3.383974775 | F23: =D23/'- 7 -'!E23 -> 631.7808219 | G23: =SUM('- 27 -'!B23,'- 27 -'!E23,'- 27 -'!H23,'- 28 -'!B23,'- 28 -'!E23) -> 335300 | H23: =G23/'- 3 -'!D23*100 -> 1.96816434 | I23: =G23/'- 7 -'!E23 -> 367.4520548
A24: LORD SELKIRK | B24: =SUM('- 24 -'!H24,'- 24 -'!F24,'- 24 -'!D24,'- 24 -'!B24) -> 396404 | C24: =B24/'- 3 -'!D24*100 -> 0.6240434297 | D24: =SUM('- 25 -'!B24,'- 25 -'!E24,'- 25 -'!H24,'- 26 -'!B24) -> 1878944 | E24: =D24/'- 3 -'!D24*100 -> 2.957948603 | F24: =D24/'- 7 -'!E24 -> 499.5862802 | G24: =SUM('- 27 -'!B24,'- 27 -'!E24,'- 27 -'!H24,'- 28 -'!B24,'- 28 -'!E24) -> 1214459 | H24: =G24/'- 3 -'!D24*100 -> 1.911875661 | I24: =G24/'- 7 -'!E24 -> 322.908535
A25: LOUIS RIEL | B25: =SUM('- 24 -'!H25,'- 24 -'!F25,'- 24 -'!D25,'- 24 -'!B25) -> 2362872 | C25: =B25/'- 3 -'!D25*100 -> 1.062407196 | D25: =SUM('- 25 -'!B25,'- 25 -'!E25,'- 25 -'!H25,'- 26 -'!B25) -> 7397673 | E25: =D25/'- 3 -'!D25*100 -> 3.326181457 | F25: =D25/'- 7 -'!E25 -> 457.5219865 | G25: =SUM('- 27 -'!B25,'- 27 -'!E25,'- 27 -'!H25,'- 28 -'!B25,'- 28 -'!E25) -> 9322396 | H25: =G25/'- 3 -'!D25*100 -> 4.191585748 | I25: =G25/'- 7 -'!E25 -> 576.5598367
A26: MOUNTAIN VIEW | B26: =SUM('- 24 -'!H26,'- 24 -'!F26,'- 24 -'!D26,'- 24 -'!B26) -> 100573 | C26: =B26/'- 3 -'!D26*100 -> 0.2180091707 | D26: =SUM('- 25 -'!B26,'- 25 -'!E26,'- 25 -'!H26,'- 26 -'!B26) -> 1437549 | E26: =D26/'- 3 -'!D26*100 -> 3.11613321 | F26: =D26/'- 7 -'!E26 -> 474.2820851 | G26: =SUM('- 27 -'!B26,'- 27 -'!E26,'- 27 -'!H26,'- 28 -'!B26,'- 28 -'!E26) -> 1659618 | H26: =G26/'- 3 -'!D26*100 -> 3.59750573 | I26: =G26/'- 7 -'!E26 -> 547.548004
A27: MYSTERY LAKE | B27: =SUM('- 24 -'!H27,'- 24 -'!F27,'- 24 -'!D27,'- 24 -'!B27) -> 60491 | C27: =B27/'- 3 -'!D27*100 -> 0.1304218641 | D27: =SUM('- 25 -'!B27,'- 25 -'!E27,'- 25 -'!H27,'- 26 -'!B27) -> 1903378 | E27: =D27/'- 3 -'!D27*100 -> 4.1037858 | F27: =D27/'- 7 -'!E27 -> 691.0067163 | G27: =SUM('- 27 -'!B27,'- 27 -'!E27,'- 27 -'!H27,'- 28 -'!B27,'- 28 -'!E27) -> 1788606 | H27: =G27/'- 3 -'!D27*100 -> 3.856331167 | I27: =G27/'- 7 -'!E27 -> 649.3396261
A28: PARK WEST | B28: =SUM('- 24 -'!H28,'- 24 -'!F28,'- 24 -'!D28,'- 24 -'!B28) -> 122332 | C28: =B28/'- 3 -'!D28*100 -> 0.3772698348 | D28: =SUM('- 25 -'!B28,'- 25 -'!E28,'- 25 -'!H28,'- 26 -'!B28) -> 1160493 | E28: =D28/'- 3 -'!D28*100 -> 3.578940934 | F28: =D28/'- 7 -'!E28 -> 547.7899457 | G28: =SUM('- 27 -'!B28,'- 27 -'!E28,'- 27 -'!H28,'- 28 -'!B28,'- 28 -'!E28) -> 738834 | H28: =G28/'- 3 -'!D28*100 -> 2.278551655 | I28: =G28/'- 7 -'!E28 -> 348.7533632
A29: PEMBINA TRAILS | B29: =SUM('- 24 -'!H29,'- 24 -'!F29,'- 24 -'!D29,'- 24 -'!B29) -> 234016 | C29: =B29/'- 3 -'!D29*100 -> 0.1146734897 | D29: =SUM('- 25 -'!B29,'- 25 -'!E29,'- 25 -'!H29,'- 26 -'!B29) -> 6318437 | E29: =D29/'- 3 -'!D29*100 -> 3.096186672 | F29: =D29/'- 7 -'!E29 -> 403.3062056 | G29: =SUM('- 27 -'!B29,'- 27 -'!E29,'- 27 -'!H29,'- 28 -'!B29,'- 28 -'!E29) -> 7507334 | H29: =G29/'- 3 -'!D29*100 -> 3.678774905 | I29: =G29/'- 7 -'!E29 -> 479.193571
A30: PINE CREEK | B30: =SUM('- 24 -'!H30,'- 24 -'!F30,'- 24 -'!D30,'- 24 -'!B30) -> 14790 | C30: =B30/'- 3 -'!D30*100 -> 0.08554884501 | D30: =SUM('- 25 -'!B30,'- 25 -'!E30,'- 25 -'!H30,'- 26 -'!B30) -> 594414 | E30: =D30/'- 3 -'!D30*100 -> 3.438230639 | F30: =D30/'- 7 -'!E30 -> 549.8741906 | G30: =SUM('- 27 -'!B30,'- 27 -'!E30,'- 27 -'!H30,'- 28 -'!B30,'- 28 -'!E30) -> 454728 | H30: =G30/'- 3 -'!D30*100 -> 2.630253901 | I30: =G30/'- 7 -'!E30 -> 420.6549491
A31: PORTAGE LA PRAIRIE | B31: =SUM('- 24 -'!H31,'- 24 -'!F31,'- 24 -'!D31,'- 24 -'!B31) -> 58165 | C31: =B31/'- 3 -'!D31*100 -> 0.1256310739 | D31: =SUM('- 25 -'!B31,'- 25 -'!E31,'- 25 -'!H31,'- 26 -'!B31) -> 1102203 | E31: =D31/'- 3 -'!D31*100 -> 2.380657553 | F31: =D31/'- 7 -'!E31 -> 320.0357143 | G31: =SUM('- 27 -'!B31,'- 27 -'!E31,'- 27 -'!H31,'- 28 -'!B31,'- 28 -'!E31) -> 1832870 | H31: =G31/'- 3 -'!D31*100 -> 3.958831368 | I31: =G31/'- 7 -'!E31 -> 532.1922184
A32: PRAIRIE ROSE | B32: =SUM('- 24 -'!H32,'- 24 -'!F32,'- 24 -'!D32,'- 24 -'!B32) -> 36323 | C32: =B32/'- 3 -'!D32*100 -> 0.1043526216 | D32: =SUM('- 25 -'!B32,'- 25 -'!E32,'- 25 -'!H32,'- 26 -'!B32) -> 1066250 | E32: =D32/'- 3 -'!D32*100 -> 3.063237694 | F32: =D32/'- 7 -'!E32 -> 452.9524214 | G32: =SUM('- 27 -'!B32,'- 27 -'!E32,'- 27 -'!H32,'- 28 -'!B32,'- 28 -'!E32) -> 821215 | H32: =G32/'- 3 -'!D32*100 -> 2.359274788 | I32: =G32/'- 7 -'!E32 -> 348.8593883
A33: PRAIRIE SPIRIT | B33: =SUM('- 24 -'!H33,'- 24 -'!F33,'- 24 -'!D33,'- 24 -'!B33) -> 38900 | C33: =B33/'- 3 -'!D33*100 -> 0.1243264717 | D33: =SUM('- 25 -'!B33,'- 25 -'!E33,'- 25 -'!H33,'- 26 -'!B33) -> 903530 | E33: =D33/'- 3 -'!D33*100 -> 2.88773 | F33: =D33/'- 7 -'!E33 -> 420.6378026 | G33: =SUM('- 27 -'!B33,'- 27 -'!E33,'- 27 -'!H33,'- 28 -'!B33,'- 28 -'!E33) -> 747880 | H33: =G33/'- 3 -'!D33*100 -> 2.39026431 | I33: =G33/'- 7 -'!E33 -> 348.1750466
A34: RED RIVER VALLEY | B34: =SUM('- 24 -'!H34,'- 24 -'!F34,'- 24 -'!D34,'- 24 -'!B34) -> 65372 | C34: =B34/'- 3 -'!D34*100 -> 0.1845812014 | D34: =SUM('- 25 -'!B34,'- 25 -'!E34,'- 25 -'!H34,'- 26 -'!B34) -> 1186300 | E34: =D34/'- 3 -'!D34*100 -> 3.349579013 | F34: =D34/'- 7 -'!E34 -> 521.4505495 | G34: =SUM('- 27 -'!B34,'- 27 -'!E34,'- 27 -'!H34,'- 28 -'!B34,'- 28 -'!E34) -> 659017 | H34: =G34/'- 3 -'!D34*100 -> 1.860768366 | I34: =G34/'- 7 -'!E34 -> 289.6778022
A35: RIVER EAST TRANSCONA | B35: =SUM('- 24 -'!H35,'- 24 -'!F35,'- 24 -'!D35,'- 24 -'!B35) -> 594248 | C35: =B35/'- 3 -'!D35*100 -> 0.2643045142 | D35: =SUM('- 25 -'!B35,'- 25 -'!E35,'- 25 -'!H35,'- 26 -'!B35) -> 5746828 | E35: =D35/'- 3 -'!D35*100 -> 2.556024729 | F35: =D35/'- 7 -'!E35 -> 336.8696621 | G35: =SUM('- 27 -'!B35,'- 27 -'!E35,'- 27 -'!H35,'- 28 -'!B35,'- 28 -'!E35) -> 8835448 | H35: =G35/'- 3 -'!D35*100 -> 3.929754567 | I35: =G35/'- 7 -'!E35 -> 517.919517
A36: ROLLING RIVER | B36: =SUM('- 24 -'!H36,'- 24 -'!F36,'- 24 -'!D36,'- 24 -'!B36) -> 30390 | C36: =B36/'- 3 -'!D36*100 -> 0.1136004483 | D36: =SUM('- 25 -'!B36,'- 25 -'!E36,'- 25 -'!H36,'- 26 -'!B36) -> 939270 | E36: =D36/'- 3 -'!D36*100 -> 3.511072493 | F36: =D36/'- 7 -'!E36 -> 530.3613778 | G36: =SUM('- 27 -'!B36,'- 27 -'!E36,'- 27 -'!H36,'- 28 -'!B36,'- 28 -'!E36) -> 526130 | H36: =G36/'- 3 -'!D36*100 -> 1.966719442 | I36: =G36/'- 7 -'!E36 -> 297.0807453
A37: SEINE RIVER | B37: =SUM('- 24 -'!H37,'- 24 -'!F37,'- 24 -'!D37,'- 24 -'!B37) -> 794711 | C37: =B37/'- 3 -'!D37*100 -> 1.302440619 | D37: =SUM('- 25 -'!B37,'- 25 -'!E37,'- 25 -'!H37,'- 26 -'!B37) -> 1950941 | E37: =D37/'- 3 -'!D37*100 -> 3.197369614 | F37: =D37/'- 7 -'!E37 -> 422.6017546 | G37: =SUM('- 27 -'!B37,'- 27 -'!E37,'- 27 -'!H37,'- 28 -'!B37,'- 28 -'!E37) -> 1945074 | H37: =G37/'- 3 -'!D37*100 -> 3.187754271 | I37: =G37/'- 7 -'!E37 -> 421.3308784
A38: SEVEN OAKS | B38: =SUM('- 24 -'!H38,'- 24 -'!F38,'- 24 -'!D38,'- 24 -'!B38) -> 2745155 | C38: =B38/'- 3 -'!D38*100 -> 1.640354506 | D38: =SUM('- 25 -'!B38,'- 25 -'!E38,'- 25 -'!H38,'- 26 -'!B38) -> 4547790 | E38: =D38/'- 3 -'!D38*100 -> 2.717510602 | F38: =D38/'- 7 -'!E38 -> 384.5098288 | G38: =SUM('- 27 -'!B38,'- 27 -'!E38,'- 27 -'!H38,'- 28 -'!B38,'- 28 -'!E38) -> 6117730 | H38: =G38/'- 3 -'!D38*100 -> 3.655620892 | I38: =G38/'- 7 -'!E38 -> 517.2462482
A39: SOUTHWEST HORIZON | B39: =SUM('- 24 -'!H39,'- 24 -'!F39,'- 24 -'!D39,'- 24 -'!B39) -> 203800 | C39: =B39/'- 3 -'!D39*100 -> 0.7989775596 | D39: =SUM('- 25 -'!B39,'- 25 -'!E39,'- 25 -'!H39,'- 26 -'!B39) -> 831900 | E39: =D39/'- 3 -'!D39*100 -> 3.261380922 | F39: =D39/'- 7 -'!E39 -> 576.9070735 | G39: =SUM('- 27 -'!B39,'- 27 -'!E39,'- 27 -'!H39,'- 28 -'!B39,'- 28 -'!E39) -> 523500 | H39: =G39/'- 3 -'!D39*100 -> 2.052329502 | I39: =G39/'- 7 -'!E39 -> 363.037448
A40: ST. JAMES-ASSINIBOIA | B40: =SUM('- 24 -'!H40,'- 24 -'!F40,'- 24 -'!D40,'- 24 -'!B40) -> 956755 | C40: =B40/'- 3 -'!D40*100 -> 0.7783576902 | D40: =SUM('- 25 -'!B40,'- 25 -'!E40,'- 25 -'!H40,'- 26 -'!B40) -> 3794156 | E40: =D40/'- 3 -'!D40*100 -> 3.086694609 | F40: =D40/'- 7 -'!E40 -> 476.2937484 | G40: =SUM('- 27 -'!B40,'- 27 -'!E40,'- 27 -'!H40,'- 28 -'!B40,'- 28 -'!E40) -> 4635647 | H40: =G40/'- 3 -'!D40*100 -> 3.771280518 | I40: =G40/'- 7 -'!E40 -> 581.9290736
A41: SUNRISE | B41: =SUM('- 24 -'!H41,'- 24 -'!F41,'- 24 -'!D41,'- 24 -'!B41) -> 69811 | C41: =B41/'- 3 -'!D41*100 -> 0.09425314626 | D41: =SUM('- 25 -'!B41,'- 25 -'!E41,'- 25 -'!H41,'- 26 -'!B41) -> 2282301 | E41: =D41/'- 3 -'!D41*100 -> 3.081377576 | F41: =D41/'- 7 -'!E41 -> 496.1523913 | G41: =SUM('- 27 -'!B41,'- 27 -'!E41,'- 27 -'!H41,'- 28 -'!B41,'- 28 -'!E41) -> 1614453 | H41: =G41/'- 3 -'!D41*100 -> 2.17970341 | I41: =G41/'- 7 -'!E41 -> 350.9680435
A42: SWAN VALLEY | B42: =SUM('- 24 -'!H42,'- 24 -'!F42,'- 24 -'!D42,'- 24 -'!B42) -> 95766 | C42: =B42/'- 3 -'!D42*100 -> 0.3788389456 | D42: =SUM('- 25 -'!B42,'- 25 -'!E42,'- 25 -'!H42,'- 26 -'!B42) -> 778816 | E42: =D42/'- 3 -'!D42*100 -> 3.080903789 | F42: =D42/'- 7 -'!E42 -> 581.6400299 | G42: =SUM('- 27 -'!B42,'- 27 -'!E42,'- 27 -'!H42,'- 28 -'!B42,'- 28 -'!E42) -> 435839 | H42: =G42/'- 3 -'!D42*100 -> 1.724127427 | I42: =G42/'- 7 -'!E42 -> 325.4958925
A43: TURTLE MOUNTAIN | B43: =SUM('- 24 -'!H43,'- 24 -'!F43,'- 24 -'!D43,'- 24 -'!B43) -> 13955 | C43: =B43/'- 3 -'!D43*100 -> 0.09347963628 | D43: =SUM('- 25 -'!B43,'- 25 -'!E43,'- 25 -'!H43,'- 26 -'!B43) -> 485432 | E43: =D43/'- 3 -'!D43*100 -> 3.251738215 | F43: =D43/'- 7 -'!E43 -> 469.4700193 | G43: =SUM('- 27 -'!B43,'- 27 -'!E43,'- 27 -'!H43,'- 28 -'!B43,'- 28 -'!E43) -> 442664 | H43: =G43/'- 3 -'!D43*100 -> 2.965250427 | I43: =G43/'- 7 -'!E43 -> 428.1083172
A44: TURTLE RIVER | B44: =SUM('- 24 -'!H44,'- 24 -'!F44,'- 24 -'!D44,'- 24 -'!B44) -> 28040 | C44: =B44/'- 3 -'!D44*100 -> 0.2298917107 | D44: =SUM('- 25 -'!B44,'- 25 -'!E44,'- 25 -'!H44,'- 26 -'!B44) -> 432215 | E44: =D44/'- 3 -'!D44*100 -> 3.543603628 | F44: =D44/'- 7 -'!E44 -> 740.7283633 | G44: =SUM('- 27 -'!B44,'- 27 -'!E44,'- 27 -'!H44,'- 28 -'!B44,'- 28 -'!E44) -> 253730 | H44: =G44/'- 3 -'!D44*100 -> 2.080257623 | I44: =G44/'- 7 -'!E44 -> 434.8414739
A45: WESTERN | B45: =SUM('- 24 -'!H45,'- 24 -'!F45,'- 24 -'!D45,'- 24 -'!B45) -> 47534 | C45: =B45/'- 3 -'!D45*100 -> 0.176855266 | D45: =SUM('- 25 -'!B45,'- 25 -'!E45,'- 25 -'!H45,'- 26 -'!B45) -> 884195 | E45: =D45/'- 3 -'!D45*100 -> 3.289740858 | F45: =D45/'- 7 -'!E45 -> 413.0787199 | G45: =SUM('- 27 -'!B45,'- 27 -'!E45,'- 27 -'!H45,'- 28 -'!B45,'- 28 -'!E45) -> 615418 | H45: =G45/'- 3 -'!D45*100 -> 2.28972765 | I45: =G45/'- 7 -'!E45 -> 287.5113291
A46: WINNIPEG | B46: =SUM('- 24 -'!H46,'- 24 -'!F46,'- 24 -'!D46,'- 24 -'!B46) -> 8274620 | C46: =B46/'- 3 -'!D46*100 -> 1.835958505 | D46: =SUM('- 25 -'!B46,'- 25 -'!E46,'- 25 -'!H46,'- 26 -'!B46) -> 11923305 | E46: =D46/'- 3 -'!D46*100 -> 2.64552248 | F46: =D46/'- 7 -'!E46 -> 436.088181 | G46: =SUM('- 27 -'!B46,'- 27 -'!E46,'- 27 -'!H46,'- 28 -'!B46,'- 28 -'!E46) -> 10715288 | H46: =G46/'- 3 -'!D46*100 -> 2.377489738 | I46: =G46/'- 7 -'!E46 -> 391.9056379
A48: PROVINCE | B48: =SUM(B11:B46) -> 21824540 | C48: =B48/'- 3 -'!D48*100 -> 0.7865849911 | D48: =SUM(D11:D46) -> 86506597 | E48: =D48/'- 3 -'!D48*100 -> 3.117810998 | F48: =D48/'- 7 -'!E48 -> 471.7878578 | G48: =SUM(G11:G46) -> 90117028 | H48: =G48/'- 3 -'!D48*100 -> 3.247935657 | I48: =G48/'- 7 -'!E48 -> 491.4783504
A50: WHITESHELL | B50: =SUM('- 24 -'!H50,'- 24 -'!F50,'- 24 -'!D50,'- 24 -'!B50) -> 208700 | C50: =B50/'- 3 -'!D50*100 -> 5.248847429 | D50: =SUM('- 25 -'!B50,'- 25 -'!E50,'- 25 -'!H50,'- 26 -'!B50) -> 171977 | E50: =D50/'- 3 -'!D50*100 -> 4.325256513 | F50: =D50/'- 7 -'!E50 -> 999.8662791 | G50: =SUM('- 27 -'!B50,'- 27 -'!E50,'- 27 -'!H50,'- 28 -'!B50,'- 28 -'!E50) -> 112466 | H50: =G50/'- 3 -'!D50*100 -> 2.828542765 | I50: =G50/'- 7 -'!E50 -> 653.872093

Sheet - 17 -
B2: =AEXP_BF -> ANALYSIS OF EXPENSE BY FUNCTION | J2: PAGE 3 OF 3
B3: =+'- 16 -'!B3 -> OPERATING FUND 2023/2024 BUDGET
B6: TRANSPORTATION OF PUPILS | E6: OPERATIONS AND MAINTENANCE | H6: FISCAL
D8: PER PUPIL | G8: PER PUPIL | J8: PER PUPIL
A9: DIVISION / DISTRICT | B9: AMOUNT | C9: % | E9: AMOUNT | F9: % | H9: AMOUNT | I9: %
A11: BEAUTIFUL PLAINS | B11: =SUM('- 30 -'!D11,'- 30 -'!B11,'- 29 -'!F11,'- 29 -'!D11,'- 29 -'!B11) -> 1661326 | C11: =B11/'- 3 -'!D11*100 -> 6.275715563 | D11: =B11/'- 7 -'!E11 -> 799.868079 | E11: =SUM('- 32 -'!D11,'- 32 -'!B11,'- 31 -'!F11,'- 31 -'!D11,'- 31 -'!B11) -> 2503600 | F11: =E11/'- 3 -'!D11*100 -> 9.457434293 | G11: =E11/'- 7 -'!E11 -> 1205.392393 | H11: =SUM('- 33 -'!B11,'- 33 -'!D11) -> 448868 | I11: =H11/'- 3 -'!D11*100 -> 1.695614162 | J11: =H11/'- 7 -'!E11 -> 216.1136254
A12: BORDER LAND | B12: =SUM('- 30 -'!D12,'- 30 -'!B12,'- 29 -'!F12,'- 29 -'!D12,'- 29 -'!B12) -> 2706352 | C12: =B12/'- 3 -'!D12*100 -> 7.128658313 | D12: =B12/'- 7 -'!E12 -> 1303.323862 | E12: =SUM('- 32 -'!D12,'- 32 -'!B12,'- 31 -'!F12,'- 31 -'!D12,'- 31 -'!B12) -> 4142389 | F12: =E12/'- 3 -'!D12*100 -> 10.91124724 | G12: =E12/'- 7 -'!E12 -> 1994.889959 | H12: =SUM('- 33 -'!B12,'- 33 -'!D12) -> 642000 | I12: =H12/'- 3 -'!D12*100 -> 1.691058161 | J12: =H12/'- 7 -'!E12 -> 309.174091
A13: BRANDON | B13: =SUM('- 30 -'!D13,'- 30 -'!B13,'- 29 -'!F13,'- 29 -'!D13,'- 29 -'!B13) -> 2974790 | C13: =B13/'- 3 -'!D13*100 -> 2.436734288 | D13: =B13/'- 7 -'!E13 -> 326.7922663 | E13: =SUM('- 32 -'!D13,'- 32 -'!B13,'- 31 -'!F13,'- 31 -'!D13,'- 31 -'!B13) -> 10909157 | F13: =E13/'- 3 -'!D13*100 -> 8.935997805 | G13: =E13/'- 7 -'!E13 -> 1198.41338 | H13: =SUM('- 33 -'!B13,'- 33 -'!D13) -> 2120179 | I13: =H13/'- 3 -'!D13*100 -> 1.736698344 | J13: =H13/'- 7 -'!E13 -> 232.9099198
A14: DSFM | B14: =SUM('- 30 -'!D14,'- 30 -'!B14,'- 29 -'!F14,'- 29 -'!D14,'- 29 -'!B14) -> 12178557 | C14: =B14/'- 3 -'!D14*100 -> 11.07731433 | D14: =B14/'- 7 -'!E14 -> 2004.370803 | E14: =SUM('- 32 -'!D14,'- 32 -'!B14,'- 31 -'!F14,'- 31 -'!D14,'- 31 -'!B14) -> 12112713 | F14: =E14/'- 3 -'!D14*100 -> 11.01742425 | G14: =E14/'- 7 -'!E14 -> 1993.534068 | H14: =SUM('- 33 -'!B14,'- 33 -'!D14) -> 1621277 | I14: =H14/'- 3 -'!D14*100 -> 1.474673472 | J14: =H14/'- 7 -'!E14 -> 266.8329493
A15: EVERGREEN | B15: =SUM('- 30 -'!D15,'- 30 -'!B15,'- 29 -'!F15,'- 29 -'!D15,'- 29 -'!B15) -> 1885203 | C15: =B15/'- 3 -'!D15*100 -> 8.043601439 | D15: =B15/'- 7 -'!E15 -> 1350.431948 | E15: =SUM('- 32 -'!D15,'- 32 -'!B15,'- 31 -'!F15,'- 31 -'!D15,'- 31 -'!B15) -> 3051410 | F15: =E15/'- 3 -'!D15*100 -> 13.01946043 | G15: =E15/'- 7 -'!E15 -> 2185.823782 | H15: =SUM('- 33 -'!B15,'- 33 -'!D15) -> 376193 | I15: =H15/'- 3 -'!D15*100 -> 1.60510383 | J15: =H15/'- 7 -'!E15 -> 269.4792264
A16: FLIN FLON | B16: =SUM('- 30 -'!D16,'- 30 -'!B16,'- 29 -'!F16,'- 29 -'!D16,'- 29 -'!B16) -> 558622 | C16: =B16/'- 3 -'!D16*100 -> 3.315772185 | D16: =B16/'- 7 -'!E16 -> 659.5301063 | E16: =SUM('- 32 -'!D16,'- 32 -'!B16,'- 31 -'!F16,'- 31 -'!D16,'- 31 -'!B16) -> 2419316 | F16: =E16/'- 3 -'!D16*100 -> 14.36015893 | G16: =E16/'- 7 -'!E16 -> 2856.335301 | H16: =SUM('- 33 -'!B16,'- 33 -'!D16) -> 287892 | I16: =H16/'- 3 -'!D16*100 -> 1.708819714 | J16: =H16/'- 7 -'!E16 -> 339.8961039
A17: FORT LA BOSSE | B17: =SUM('- 30 -'!D17,'- 30 -'!B17,'- 29 -'!F17,'- 29 -'!D17,'- 29 -'!B17) -> 1682921 | C17: =B17/'- 3 -'!D17*100 -> 7.829102442 | D17: =B17/'- 7 -'!E17 -> 1112.307336 | E17: =SUM('- 32 -'!D17,'- 32 -'!B17,'- 31 -'!F17,'- 31 -'!D17,'- 31 -'!B17) -> 2107094 | F17: =E17/'- 3 -'!D17*100 -> 9.802394041 | G17: =E17/'- 7 -'!E17 -> 1392.659617 | H17: =SUM('- 33 -'!B17,'- 33 -'!D17) -> 464000 | I17: =H17/'- 3 -'!D17*100 -> 2.158570446 | J17: =H17/'- 7 -'!E17 -> 306.6754792
A18: FRONTIER | B18: =SUM('- 30 -'!D18,'- 30 -'!B18,'- 29 -'!F18,'- 29 -'!D18,'- 29 -'!B18) -> 13542273 | C18: =B18/'- 3 -'!D18*100 -> 8.17868569 | D18: =B18/'- 7 -'!E18 -> 2179.316543 | E18: =SUM('- 32 -'!D18,'- 32 -'!B18,'- 31 -'!F18,'- 31 -'!D18,'- 31 -'!B18) -> 28735825 | F18: =E18/'- 3 -'!D18*100 -> 17.35464059 | G18: =E18/'- 7 -'!E18 -> 4624.368362 | H18: =SUM('- 33 -'!B18,'- 33 -'!D18) -> 1332375 | I18: =H18/'- 3 -'!D18*100 -> 0.8046711469 | J18: =H18/'- 7 -'!E18 -> 214.4150306
A19: GARDEN VALLEY | B19: =SUM('- 30 -'!D19,'- 30 -'!B19,'- 29 -'!F19,'- 29 -'!D19,'- 29 -'!B19) -> 2992170 | C19: =B19/'- 3 -'!D19*100 -> 5.337879074 | D19: =B19/'- 7 -'!E19 -> 709.0450237 | E19: =SUM('- 32 -'!D19,'- 32 -'!B19,'- 31 -'!F19,'- 31 -'!D19,'- 31 -'!B19) -> 5662230 | F19: =E19/'- 3 -'!D19*100 -> 10.10113029 | G19: =E19/'- 7 -'!E19 -> 1341.760664 | H19: =SUM('- 33 -'!B19,'- 33 -'!D19) -> 964800 | I19: =H19/'- 3 -'!D19*100 -> 1.721154122 | J19: =H19/'- 7 -'!E19 -> 228.6255924
A20: HANOVER | B20: =SUM('- 30 -'!D20,'- 30 -'!B20,'- 29 -'!F20,'- 29 -'!D20,'- 29 -'!B20) -> 4750600 | C20: =B20/'- 3 -'!D20*100 -> 4.641719193 | D20: =B20/'- 7 -'!E20 -> 584.9772196 | E20: =SUM('- 32 -'!D20,'- 32 -'!B20,'- 31 -'!F20,'- 31 -'!D20,'- 31 -'!B20) -> 9957800 | F20: =E20/'- 3 -'!D20*100 -> 9.729573397 | G20: =E20/'- 7 -'!E20 -> 1226.179042 | H20: =SUM('- 33 -'!B20,'- 33 -'!D20) -> 2038700 | I20: =H20/'- 3 -'!D20*100 -> 1.99197426 | J20: =H20/'- 7 -'!E20 -> 251.0405123
A21: INTERLAKE | B21: =SUM('- 30 -'!D21,'- 30 -'!B21,'- 29 -'!F21,'- 29 -'!D21,'- 29 -'!B21) -> 2737500 | C21: =B21/'- 3 -'!D21*100 -> 6.681071912 | D21: =B21/'- 7 -'!E21 -> 960.6948587 | E21: =SUM('- 32 -'!D21,'- 32 -'!B21,'- 31 -'!F21,'- 31 -'!D21,'- 31 -'!B21) -> 3892800 | F21: =E21/'- 3 -'!D21*100 -> 9.500667302 | G21: =E21/'- 7 -'!E21 -> 1366.13441 | H21: =SUM('- 33 -'!B21,'- 33 -'!D21) -> 751000 | I21: =H21/'- 3 -'!D21*100 -> 1.832871235 | J21: =H21/'- 7 -'!E21 -> 263.5550097
A22: KELSEY | B22: =SUM('- 30 -'!D22,'- 30 -'!B22,'- 29 -'!F22,'- 29 -'!D22,'- 29 -'!B22) -> 562092 | C22: =B22/'- 3 -'!D22*100 -> 2.567213328 | D22: =B22/'- 7 -'!E22 -> 393.0713287 | E22: =SUM('- 32 -'!D22,'- 32 -'!B22,'- 31 -'!F22,'- 31 -'!D22,'- 31 -'!B22) -> 2593694 | F22: =E22/'- 3 -'!D22*100 -> 11.84604265 | G22: =E22/'- 7 -'!E22 -> 1813.772028 | H22: =SUM('- 33 -'!B22,'- 33 -'!D22) -> 377719 | I22: =H22/'- 3 -'!D22*100 -> 1.72513619 | J22: =H22/'- 7 -'!E22 -> 264.1391608
A23: LAKESHORE | B23: =SUM('- 30 -'!D23,'- 30 -'!B23,'- 29 -'!F23,'- 29 -'!D23,'- 29 -'!B23) -> 1844600 | C23: =B23/'- 3 -'!D23*100 -> 10.82754531 | D23: =B23/'- 7 -'!E23 -> 2021.479452 | E23: =SUM('- 32 -'!D23,'- 32 -'!B23,'- 31 -'!F23,'- 31 -'!D23,'- 31 -'!B23) -> 1764045 | F23: =E23/'- 3 -'!D23*100 -> 10.35469867 | G23: =E23/'- 7 -'!E23 -> 1933.2 | H23: =SUM('- 33 -'!B23,'- 33 -'!D23) -> 265000 | I23: =H23/'- 3 -'!D23*100 -> 1.555513123 | J23: =H23/'- 7 -'!E23 -> 290.4109589
A24: LORD SELKIRK | B24: =SUM('- 30 -'!D24,'- 30 -'!B24,'- 29 -'!F24,'- 29 -'!D24,'- 29 -'!B24) -> 3068714 | C24: =B24/'- 3 -'!D24*100 -> 4.83095733 | D24: =B24/'- 7 -'!E24 -> 815.9303377 | E24: =SUM('- 32 -'!D24,'- 32 -'!B24,'- 31 -'!F24,'- 31 -'!D24,'- 31 -'!B24) -> 6696976 | F24: =E24/'- 3 -'!D24*100 -> 10.54278936 | G24: =E24/'- 7 -'!E24 -> 1780.637065 | H24: =SUM('- 33 -'!B24,'- 33 -'!D24) -> 1192700 | I24: =H24/'- 3 -'!D24*100 -> 1.877621312 | J24: =H24/'- 7 -'!E24 -> 317.1231056
A25: LOUIS RIEL | B25: =SUM('- 30 -'!D25,'- 30 -'!B25,'- 29 -'!F25,'- 29 -'!D25,'- 29 -'!B25) -> 6576842 | C25: =B25/'- 3 -'!D25*100 -> 2.957115016 | D25: =B25/'- 7 -'!E25 -> 406.756262 | E25: =SUM('- 32 -'!D25,'- 32 -'!B25,'- 31 -'!F25,'- 31 -'!D25,'- 31 -'!B25) -> 22878938 | F25: =E25/'- 3 -'!D25*100 -> 10.28695096 | G25: =E25/'- 7 -'!E25 -> 1414.987816 | H25: =SUM('- 33 -'!B25,'- 33 -'!D25) -> 3882159 | I25: =H25/'- 3 -'!D25*100 -> 1.745517175 | J25: =H25/'- 7 -'!E25 -> 240.0988929
A26: MOUNTAIN VIEW | B26: =SUM('- 30 -'!D26,'- 30 -'!B26,'- 29 -'!F26,'- 29 -'!D26,'- 29 -'!B26) -> 3286328 | C26: =B26/'- 3 -'!D26*100 -> 7.123677745 | D26: =B26/'- 7 -'!E26 -> 1084.238865 | E26: =SUM('- 32 -'!D26,'- 32 -'!B26,'- 31 -'!F26,'- 31 -'!D26,'- 31 -'!B26) -> 5824845 | F26: =E26/'- 3 -'!D26*100 -> 12.62634731 | G26: =E26/'- 7 -'!E26 -> 1921.756846 | H26: =SUM('- 33 -'!B26,'- 33 -'!D26) -> 873904 | I26: =H26/'- 3 -'!D26*100 -> 1.894336316 | J26: =H26/'- 7 -'!E26 -> 288.3220059
A27: MYSTERY LAKE | B27: =SUM('- 30 -'!D27,'- 30 -'!B27,'- 29 -'!F27,'- 29 -'!D27,'- 29 -'!B27) -> 499500 | C27: =B27/'- 3 -'!D27*100 -> 1.076948986 | D27: =B27/'- 7 -'!E27 -> 181.3396261 | E27: =SUM('- 32 -'!D27,'- 32 -'!B27,'- 31 -'!F27,'- 31 -'!D27,'- 31 -'!B27) -> 6110686 | F27: =E27/'- 3 -'!D27*100 -> 13.17496915 | G27: =E27/'- 7 -'!E27 -> 2218.437466 | H27: =SUM('- 33 -'!B27,'- 33 -'!D27) -> 802611 | I27: =H27/'- 3 -'!D27*100 -> 1.730472678 | J27: =H27/'- 7 -'!E27 -> 291.381739
A28: PARK WEST | B28: =SUM('- 30 -'!D28,'- 30 -'!B28,'- 29 -'!F28,'- 29 -'!D28,'- 29 -'!B28) -> 2207974 | C28: =B28/'- 3 -'!D28*100 -> 6.809354757 | D28: =B28/'- 7 -'!E28 -> 1042.2346 | E28: =SUM('- 32 -'!D28,'- 32 -'!B28,'- 31 -'!F28,'- 31 -'!D28,'- 31 -'!B28) -> 3714383 | F28: =E28/'- 3 -'!D28*100 -> 11.45509483 | G28: =E28/'- 7 -'!E28 -> 1753.308001 | H28: =SUM('- 33 -'!B28,'- 33 -'!D28) -> 526600 | I28: =H28/'- 3 -'!D28*100 -> 1.624025562 | J28: =H28/'- 7 -'!E28 -> 248.5721029
A29: PEMBINA TRAILS | B29: =SUM('- 30 -'!D29,'- 30 -'!B29,'- 29 -'!F29,'- 29 -'!D29,'- 29 -'!B29) -> 4540192 | C29: =B29/'- 3 -'!D29*100 -> 2.224803691 | D29: =B29/'- 7 -'!E29 -> 289.8007226 | E29: =SUM('- 32 -'!D29,'- 32 -'!B29,'- 31 -'!F29,'- 31 -'!D29,'- 31 -'!B29) -> 22899954 | F29: =E29/'- 3 -'!D29*100 -> 11.22153032 | G29: =E29/'- 7 -'!E29 -> 1461.705412 | H29: =SUM('- 33 -'!B29,'- 33 -'!D29) -> 3711467 | I29: =H29/'- 3 -'!D29*100 -> 1.818708434 | J29: =H29/'- 7 -'!E29 -> 236.903157
A30: PINE CREEK | B30: =SUM('- 30 -'!D30,'- 30 -'!B30,'- 29 -'!F30,'- 29 -'!D30,'- 29 -'!B30) -> 1628942 | C30: =B30/'- 3 -'!D30*100 -> 9.42218436 | D30: =B30/'- 7 -'!E30 -> 1506.884366 | E30: =SUM('- 32 -'!D30,'- 32 -'!B30,'- 31 -'!F30,'- 31 -'!D30,'- 31 -'!B30) -> 1758142 | F30: =E30/'- 3 -'!D30*100 -> 10.1695076 | G30: =E30/'- 7 -'!E30 -> 1626.40333 | H30: =SUM('- 33 -'!B30,'- 33 -'!D30) -> 278605 | I30: =H30/'- 3 -'!D30*100 -> 1.611516968 | J30: =H30/'- 7 -'!E30 -> 257.7289547
A31: PORTAGE LA PRAIRIE | B31: =SUM('- 30 -'!D31,'- 30 -'!B31,'- 29 -'!F31,'- 29 -'!D31,'- 29 -'!B31) -> 1467793 | C31: =B31/'- 3 -'!D31*100 -> 3.170298477 | D31: =B31/'- 7 -'!E31 -> 426.1884437 | E31: =SUM('- 32 -'!D31,'- 32 -'!B31,'- 31 -'!F31,'- 31 -'!D31,'- 31 -'!B31) -> 4493990 | F31: =E31/'- 3 -'!D31*100 -> 9.706606894 | G31: =E31/'- 7 -'!E31 -> 1304.875145 | H31: =SUM('- 33 -'!B31,'- 33 -'!D31) -> 789000 | I31: =H31/'- 3 -'!D31*100 -> 1.704167753 | J31: =H31/'- 7 -'!E31 -> 229.0940767
A32: PRAIRIE ROSE | B32: =SUM('- 30 -'!D32,'- 30 -'!B32,'- 29 -'!F32,'- 29 -'!D32,'- 29 -'!B32) -> 2738848 | C32: =B32/'- 3 -'!D32*100 -> 7.868457147 | D32: =B32/'- 7 -'!E32 -> 1163.486831 | E32: =SUM('- 32 -'!D32,'- 32 -'!B32,'- 31 -'!F32,'- 31 -'!D32,'- 31 -'!B32) -> 3509126 | F32: =E32/'- 3 -'!D32*100 -> 10.08139464 | G32: =E32/'- 7 -'!E32 -> 1490.707732 | H32: =SUM('- 33 -'!B32,'- 33 -'!D32) -> 645000 | I32: =H32/'- 3 -'!D32*100 -> 1.853025381 | J32: =H32/'- 7 -'!E32 -> 274.0016992
A33: PRAIRIE SPIRIT | B33: =SUM('- 30 -'!D33,'- 30 -'!B33,'- 29 -'!F33,'- 29 -'!D33,'- 29 -'!B33) -> 2809240 | C33: =B33/'- 3 -'!D33*100 -> 8.978480654 | D33: =B33/'- 7 -'!E33 -> 1307.839851 | E33: =SUM('- 32 -'!D33,'- 32 -'!B33,'- 31 -'!F33,'- 31 -'!D33,'- 31 -'!B33) -> 3585500 | F33: =E33/'- 3 -'!D33*100 -> 11.45944896 | G33: =E33/'- 7 -'!E33 -> 1669.227188 | H33: =SUM('- 33 -'!B33,'- 33 -'!D33) -> 507000 | I33: =H33/'- 3 -'!D33*100 -> 1.620399002 | J33: =H33/'- 7 -'!E33 -> 236.0335196
A34: RED RIVER VALLEY | B34: =SUM('- 30 -'!D34,'- 30 -'!B34,'- 29 -'!F34,'- 29 -'!D34,'- 29 -'!B34) -> 3185364 | C34: =B34/'- 3 -'!D34*100 -> 8.994038947 | D34: =B34/'- 7 -'!E34 -> 1400.16 | E34: =SUM('- 32 -'!D34,'- 32 -'!B34,'- 31 -'!F34,'- 31 -'!D34,'- 31 -'!B34) -> 3250977 | F34: =E34/'- 3 -'!D34*100 -> 9.179300624 | G34: =E34/'- 7 -'!E34 -> 1429.000879 | H34: =SUM('- 33 -'!B34,'- 33 -'!D34) -> 707117 | I34: =H34/'- 3 -'!D34*100 -> 1.996581188 | J34: =H34/'- 7 -'!E34 -> 310.8206593
A35: RIVER EAST TRANSCONA | B35: =SUM('- 30 -'!D35,'- 30 -'!B35,'- 29 -'!F35,'- 29 -'!D35,'- 29 -'!B35) -> 5526978 | C35: =B35/'- 3 -'!D35*100 -> 2.458241737 | D35: =B35/'- 7 -'!E35 -> 323.9824145 | E35: =SUM('- 32 -'!D35,'- 32 -'!B35,'- 31 -'!F35,'- 31 -'!D35,'- 31 -'!B35) -> 23578552 | F35: =E35/'- 3 -'!D35*100 -> 10.48706556 | G35: =E35/'- 7 -'!E35 -> 1382.13617 | H35: =SUM('- 33 -'!B35,'- 33 -'!D35) -> 3730000 | I35: =H35/'- 3 -'!D35*100 -> 1.658997318 | J35: =H35/'- 7 -'!E35 -> 218.6465019
A36: ROLLING RIVER | B36: =SUM('- 30 -'!D36,'- 30 -'!B36,'- 29 -'!F36,'- 29 -'!D36,'- 29 -'!B36) -> 2015375 | C36: =B36/'- 3 -'!D36*100 -> 7.533646049 | D36: =B36/'- 7 -'!E36 -> 1137.987013 | E36: =SUM('- 32 -'!D36,'- 32 -'!B36,'- 31 -'!F36,'- 31 -'!D36,'- 31 -'!B36) -> 3253395 | F36: =E36/'- 3 -'!D36*100 -> 12.16147188 | G36: =E36/'- 7 -'!E36 -> 1837.038396 | H36: =SUM('- 33 -'!B36,'- 33 -'!D36) -> 627500 | I36: =H36/'- 3 -'!D36*100 -> 2.345649269 | J36: =H36/'- 7 -'!E36 -> 354.3195935
A37: SEINE RIVER | B37: =SUM('- 30 -'!D37,'- 30 -'!B37,'- 29 -'!F37,'- 29 -'!D37,'- 29 -'!B37) -> 4098200 | C37: =B37/'- 3 -'!D37*100 -> 6.716482023 | D37: =B37/'- 7 -'!E37 -> 887.7287989 | E37: =SUM('- 32 -'!D37,'- 32 -'!B37,'- 31 -'!F37,'- 31 -'!D37,'- 31 -'!B37) -> 5643256 | F37: =E37/'- 3 -'!D37*100 -> 9.248652451 | G37: =E37/'- 7 -'!E37 -> 1222.410051 | H37: =SUM('- 33 -'!B37,'- 33 -'!D37) -> 910000 | I37: =H37/'- 3 -'!D37*100 -> 1.491386131 | J37: =H37/'- 7 -'!E37 -> 197.1190296
A38: SEVEN OAKS | B38: =SUM('- 30 -'!D38,'- 30 -'!B38,'- 29 -'!F38,'- 29 -'!D38,'- 29 -'!B38) -> 4527794 | C38: =B38/'- 3 -'!D38*100 -> 2.705562086 | D38: =B38/'- 7 -'!E38 -> 382.8191926 | E38: =SUM('- 32 -'!D38,'- 32 -'!B38,'- 31 -'!F38,'- 31 -'!D38,'- 31 -'!B38) -> 15245636 | F38: =E38/'- 3 -'!D38*100 -> 9.109958347 | G38: =E38/'- 7 -'!E38 -> 1288.999028 | H38: =SUM('- 33 -'!B38,'- 33 -'!D38) -> 3028153 | I38: =H38/'- 3 -'!D38*100 -> 1.809458634 | J38: =H38/'- 7 -'!E38 -> 256.0264637
A39: SOUTHWEST HORIZON | B39: =SUM('- 30 -'!D39,'- 30 -'!B39,'- 29 -'!F39,'- 29 -'!D39,'- 29 -'!B39) -> 2469400 | C39: =B39/'- 3 -'!D39*100 -> 9.68103624 | D39: =B39/'- 7 -'!E39 -> 1712.482663 | E39: =SUM('- 32 -'!D39,'- 32 -'!B39,'- 31 -'!F39,'- 31 -'!D39,'- 31 -'!B39) -> 2673700 | F39: =E39/'- 3 -'!D39*100 -> 10.481974 | G39: =E39/'- 7 -'!E39 -> 1854.160888 | H39: =SUM('- 33 -'!B39,'- 33 -'!D39) -> 439200 | I39: =H39/'- 3 -'!D39*100 -> 1.721839765 | J39: =H39/'- 7 -'!E39 -> 304.5769764
A40: ST. JAMES-ASSINIBOIA | B40: =SUM('- 30 -'!D40,'- 30 -'!B40,'- 29 -'!F40,'- 29 -'!D40,'- 29 -'!B40) -> 2849543 | C40: =B40/'- 3 -'!D40*100 -> 2.318214911 | D40: =B40/'- 7 -'!E40 -> 357.7131559 | E40: =SUM('- 32 -'!D40,'- 32 -'!B40,'- 31 -'!F40,'- 31 -'!D40,'- 31 -'!B40) -> 11818738 | F40: =E40/'- 3 -'!D40*100 -> 9.61500657 | G40: =E40/'- 7 -'!E40 -> 1483.647753 | H40: =SUM('- 33 -'!B40,'- 33 -'!D40) -> 2132181 | I40: =H40/'- 3 -'!D40*100 -> 1.734612809 | J40: =H40/'- 7 -'!E40 -> 267.6601808
A41: SUNRISE | B41: =SUM('- 30 -'!D41,'- 30 -'!B41,'- 29 -'!F41,'- 29 -'!D41,'- 29 -'!B41) -> 5938994 | C41: =B41/'- 3 -'!D41*100 -> 8.018347683 | D41: =B41/'- 7 -'!E41 -> 1291.085652 | E41: =SUM('- 32 -'!D41,'- 32 -'!B41,'- 31 -'!F41,'- 31 -'!D41,'- 31 -'!B41) -> 7258016 | F41: =E41/'- 3 -'!D41*100 -> 9.799184134 | G41: =E41/'- 7 -'!E41 -> 1577.829565 | H41: =SUM('- 33 -'!B41,'- 33 -'!D41) -> 1754143 | I41: =H41/'- 3 -'!D41*100 -> 2.36830151 | J41: =H41/'- 7 -'!E41 -> 381.3354348
A42: SWAN VALLEY | B42: =SUM('- 30 -'!D42,'- 30 -'!B42,'- 29 -'!F42,'- 29 -'!D42,'- 29 -'!B42) -> 2140602 | C42: =B42/'- 3 -'!D42*100 -> 8.467967804 | D42: =B42/'- 7 -'!E42 -> 1598.657207 | E42: =SUM('- 32 -'!D42,'- 32 -'!B42,'- 31 -'!F42,'- 31 -'!D42,'- 31 -'!B42) -> 2750977 | F42: =E42/'- 3 -'!D42*100 -> 10.88253896 | G42: =E42/'- 7 -'!E42 -> 2054.50112 | H42: =SUM('- 33 -'!B42,'- 33 -'!D42) -> 420600 | I42: =H42/'- 3 -'!D42*100 -> 1.66384375 | J42: =H42/'- 7 -'!E42 -> 314.1150112
A43: TURTLE MOUNTAIN | B43: =SUM('- 30 -'!D43,'- 30 -'!B43,'- 29 -'!F43,'- 29 -'!D43,'- 29 -'!B43) -> 1300884 | C43: =B43/'- 3 -'!D43*100 -> 8.714164325 | D43: =B43/'- 7 -'!E43 -> 1258.108317 | E43: =SUM('- 32 -'!D43,'- 32 -'!B43,'- 31 -'!F43,'- 31 -'!D43,'- 31 -'!B43) -> 1233216 | F43: =E43/'- 3 -'!D43*100 -> 8.260880196 | G43: =E43/'- 7 -'!E43 -> 1192.665377 | H43: =SUM('- 33 -'!B43,'- 33 -'!D43) -> 296000 | I43: =H43/'- 3 -'!D43*100 -> 1.982799881 | J43: =H43/'- 7 -'!E43 -> 286.2669246
A44: TURTLE RIVER | B44: =SUM('- 30 -'!D44,'- 30 -'!B44,'- 29 -'!F44,'- 29 -'!D44,'- 29 -'!B44) -> 1307273 | C44: =B44/'- 3 -'!D44*100 -> 10.71794673 | D44: =B44/'- 7 -'!E44 -> 2240.399314 | E44: =SUM('- 32 -'!D44,'- 32 -'!B44,'- 31 -'!F44,'- 31 -'!D44,'- 31 -'!B44) -> 1294203 | F44: =E44/'- 3 -'!D44*100 -> 10.61078964 | G44: =E44/'- 7 -'!E44 -> 2218 | H44: =SUM('- 33 -'!B44,'- 33 -'!D44) -> 202766 | I44: =H44/'- 3 -'!D44*100 -> 1.662418781 | J44: =H44/'- 7 -'!E44 -> 347.4995716
A45: WESTERN | B45: =SUM('- 30 -'!D45,'- 30 -'!B45,'- 29 -'!F45,'- 29 -'!D45,'- 29 -'!B45) -> 1171386 | C45: =B45/'- 3 -'!D45*100 -> 4.358265297 | D45: =B45/'- 7 -'!E45 -> 547.2487737 | E45: =SUM('- 32 -'!D45,'- 32 -'!B45,'- 31 -'!F45,'- 31 -'!D45,'- 31 -'!B45) -> 2348344 | F45: =E45/'- 3 -'!D45*100 -> 8.737261809 | G45: =E45/'- 7 -'!E45 -> 1097.100677 | H45: =SUM('- 33 -'!B45,'- 33 -'!D45) -> 493138 | I45: =H45/'- 3 -'!D45*100 -> 1.834771998 | J45: =H45/'- 7 -'!E45 -> 230.3844896
A46: WINNIPEG | B46: =SUM('- 30 -'!D46,'- 30 -'!B46,'- 29 -'!F46,'- 29 -'!D46,'- 29 -'!B46) -> 7965244 | C46: =B46/'- 3 -'!D46*100 -> 1.767314688 | D46: =B46/'- 7 -'!E46 -> 291.3243238 | E46: =SUM('- 32 -'!D46,'- 32 -'!B46,'- 31 -'!F46,'- 31 -'!D46,'- 31 -'!B46) -> 59492479 | F46: =E46/'- 3 -'!D46*100 -> 13.20008928 | G46: =E46/'- 7 -'!E46 -> 2175.903992 | H46: =SUM('- 33 -'!B46,'- 33 -'!D46) -> 8049742 | I46: =H46/'- 3 -'!D46*100 -> 1.78606296 | J46: =H46/'- 7 -'!E46 -> 294.4147907
A48: PROVINCE | B48: =SUM(B11:B46) -> 123398416 | C48: =B48/'- 3 -'!D48*100 -> 4.447440448 | D48: =B48/'- 7 -'!E48 -> 672.9876837 | E48: =SUM(E11:E46) -> 311166102 | F48: =E48/'- 3 -'!D48*100 -> 11.21483365 | G48: =E48/'- 7 -'!E48 -> 1697.031137 | H48: =SUM(H11:H46) -> 47689589 | I48: =H48/'- 3 -'!D48*100 -> 1.718795216 | J48: =H48/'- 7 -'!E48 -> 260.0884767
A50: WHITESHELL | B50: =SUM('- 30 -'!D50,'- 30 -'!B50,'- 29 -'!F50,'- 29 -'!D50,'- 29 -'!B50) -> 59931 | C50: =B50/'- 3 -'!D50*100 -> 1.507276834 | D50: =B50/'- 7 -'!E50 -> 348.4360465 | E50: =SUM('- 32 -'!D50,'- 32 -'!B50,'- 31 -'!F50,'- 31 -'!D50,'- 31 -'!B50) -> 606947 | F50: =E50/'- 3 -'!D50*100 -> 15.26484044 | G50: =E50/'- 7 -'!E50 -> 3528.761628 | H50: =SUM('- 33 -'!B50,'- 33 -'!D50) -> 0 | I50: =H50/'- 3 -'!D50*100 -> 0 | J50: =H50/'- 7 -'!E50 -> 0
B52: =B48-'- 10 -'!K17 -> 0

Sheet - 18 -
B2: =IF(Lang=1,BA2,BB2) -> ANALYSIS OF EXPENSE BY PROGRAM | G2: PAGE 1 OF 16 | BA2: ANALYSIS OF EXPENSE BY PROGRAM | BB2: ANALYSE DES DÉPENSES PAR PROGRAMME
B3: =OPYEAR -> OPERATING FUND 2023/2024 BUDGET
B5: FUNCTION 100: REGULAR INSTRUCTION
B6: ADMINISTRATION | E6: SENIOR YEARS TECHNOLOGY EDUCATION
D8: PER PUPIL | G8: PER PUPIL
A9: DIVISION / DISTRICT | B9: AMOUNT | C9: % | E9: AMOUNT | F9: %
A11: BEAUTIFUL PLAINS | B11: 1801323 | C11: =B11/'- 3 -'!$D11*100 -> 6.804559 | D11: =B11/'- 7 -'!$C11 -> 867.2715455 | E11: 0 | F11: =E11/'- 3 -'!$D11*100 -> 0 | G11: =IF('- 7 -'!$B11=0,"",E11/'- 7 -'!$B11) -> 
A12: BORDER LAND | B12: 3058248 | C12: =B12/'- 3 -'!$D12*100 -> 8.055568909 | D12: =B12/'- 7 -'!$C12 -> 1472.789791 | E12: 1094574 | F12: =E12/'- 3 -'!$D12*100 -> 2.883159339 | G12: =IF('- 7 -'!$B12=0,"",E12/'- 7 -'!$B12) -> 7654.363636
A13: BRANDON | B13: 8607090 | C13: =B13/'- 3 -'!$D13*100 -> 7.050309877 | D13: =B13/'- 7 -'!$C13 -> 945.5223553 | E13: 4028897 | F13: =E13/'- 3 -'!$D13*100 -> 3.300183025 | G13: =IF('- 7 -'!$B13=0,"",E13/'- 7 -'!$B13) -> 8645.701717
A14: DSFM | B14: 7954220 | C14: =B14/'- 3 -'!$D14*100 -> 7.23496184 | D14: =B14/'- 7 -'!$C14 -> 1309.121132 | E14: 275838 | F14: =E14/'- 3 -'!$D14*100 -> 0.2508954246 | G14: =IF('- 7 -'!$B14=0,"",E14/'- 7 -'!$B14) -> 12151.45374
A15: EVERGREEN | B15: 1848594 | C15: =B15/'- 3 -'!$D15*100 -> 7.887401706 | D15: =B15/'- 7 -'!$C15 -> 1324.207736 | E15: 285000 | F15: =E15/'- 3 -'!$D15*100 -> 1.216010377 | G15: =IF('- 7 -'!$B15=0,"",E15/'- 7 -'!$B15) -> 14250
A16: FLIN FLON | B16: 1440447 | C16: =B16/'- 3 -'!$D16*100 -> 8.549957032 | D16: =B16/'- 7 -'!$C16 -> 1700.645809 | E16: 0 | F16: =E16/'- 3 -'!$D16*100 -> 0 | G16: =IF('- 7 -'!$B16=0,"",E16/'- 7 -'!$B16) -> 
A17: FORT LA BOSSE | B17: 1478540 | C17: =B17/'- 3 -'!$D17*100 -> 6.878303334 | D17: =B17/'- 7 -'!$C17 -> 977.2240582 | E17: 234800 | F17: =E17/'- 3 -'!$D17*100 -> 1.092311079 | G17: =IF('- 7 -'!$B17=0,"",E17/'- 7 -'!$B17) -> 5870
A18: FRONTIER | B18: 8910248 | C18: =B18/'- 3 -'!$D18*100 -> 5.381232369 | D18: =B18/'- 7 -'!$C18 -> 1433.898938 | E18: 533500 | F18: =E18/'- 3 -'!$D18*100 -> 0.3222006243 | G18: =IF('- 7 -'!$B18=0,"",E18/'- 7 -'!$B18) -> 9042.372881
A19: GARDEN VALLEY | B19: 3235120 | C19: =B19/'- 3 -'!$D19*100 -> 5.771289515 | D19: =B19/'- 7 -'!$C19 -> 766.6161137 | E19: 1373630 | F19: =E19/'- 3 -'!$D19*100 -> 2.450486046 | G19: =IF('- 7 -'!$B19=0,"",E19/'- 7 -'!$B19) -> 12958.77358
A20: HANOVER | B20: 7118400 | C20: =B20/'- 3 -'!$D20*100 -> 6.955250685 | D20: =B20/'- 7 -'!$C20 -> 876.5422977 | E20: 3310300 | F20: =E20/'- 3 -'!$D20*100 -> 3.234429976 | G20: =IF('- 7 -'!$B20=0,"",E20/'- 7 -'!$B20) -> 6454.084617
A21: INTERLAKE | B21: 3252230 | C21: =B21/'- 3 -'!$D21*100 -> 7.937308677 | D21: =B21/'- 7 -'!$C21 -> 1141.333567 | E21: 0 | F21: =E21/'- 3 -'!$D21*100 -> 0 | G21: =IF('- 7 -'!$B21=0,"",E21/'- 7 -'!$B21) -> 
A22: KELSEY | B22: 1621716 | C22: =B22/'- 3 -'!$D22*100 -> 7.40677848 | D22: =B22/'- 7 -'!$C22 -> 1134.067133 | E22: 55865 | F22: =E22/'- 3 -'!$D22*100 -> 0.2551492862 | G22: =IF('- 7 -'!$B22=0,"",E22/'- 7 -'!$B22) -> 6207.222222
A23: LAKESHORE | B23: 1148100 | C23: =B23/'- 3 -'!$D23*100 -> 6.739187232 | D23: =B23/'- 7 -'!$C23 -> 1258.191781 | E23: 152000 | F23: =E23/'- 3 -'!$D23*100 -> 0.8922188479 | G23: =IF('- 7 -'!$B23=0,"",E23/'- 7 -'!$B23) -> 11692.30769
A24: LORD SELKIRK | B24: 5457938 | C24: =B24/'- 3 -'!$D24*100 -> 8.592219929 | D24: =B24/'- 7 -'!$C24 -> 1451.1933 | E24: 2023170 | F24: =E24/'- 3 -'!$D24*100 -> 3.184997996 | G24: =IF('- 7 -'!$B24=0,"",E24/'- 7 -'!$B24) -> 9726.778846
A25: LOUIS RIEL | B25: 16978500 | C25: =B25/'- 3 -'!$D25*100 -> 7.633964339 | D25: =B25/'- 7 -'!$C25 -> 1050.064939 | E25: 2500220 | F25: =E25/'- 3 -'!$D25*100 -> 1.124162342 | G25: =IF('- 7 -'!$B25=0,"",E25/'- 7 -'!$B25) -> 16557.74834
A26: MOUNTAIN VIEW | B26: 4109376 | C26: =B26/'- 3 -'!$D26*100 -> 8.907774987 | D26: =B26/'- 7 -'!$C26 -> 1355.78225 | E26: 1127361 | F26: =E26/'- 3 -'!$D26*100 -> 2.443747692 | G26: =IF('- 7 -'!$B26=0,"",E26/'- 7 -'!$B26) -> 14379.60459
A27: MYSTERY LAKE | B27: 2974246 | C27: =B27/'- 3 -'!$D27*100 -> 6.412635063 | D27: =B27/'- 7 -'!$C27 -> 1079.777092 | E27: 1319809 | F27: =E27/'- 3 -'!$D27*100 -> 2.845579508 | G27: =IF('- 7 -'!$B27=0,"",E27/'- 7 -'!$B27) -> 8602.026983
A28: PARK WEST | B28: 2538474 | C28: =B28/'- 3 -'!$D28*100 -> 7.82861121 | D28: =B28/'- 7 -'!$C28 -> 1198.241208 | E28: 0 | F28: =E28/'- 3 -'!$D28*100 -> 0 | G28: =IF('- 7 -'!$B28=0,"",E28/'- 7 -'!$B28) -> 
A29: PEMBINA TRAILS | B29: 16679029 | C29: =B29/'- 3 -'!$D29*100 -> 8.173126882 | D29: =B29/'- 7 -'!$C29 -> 1064.623403 | E29: 0 | F29: =E29/'- 3 -'!$D29*100 -> 0 | G29: =IF('- 7 -'!$B29=0,"",E29/'- 7 -'!$B29) -> 
A30: PINE CREEK | B30: 1322270 | C30: =B30/'- 3 -'!$D30*100 -> 7.64832125 | D30: =B30/'- 7 -'!$C30 -> 1223.191489 | E30: 432332 | F30: =E30/'- 3 -'!$D30*100 -> 2.50071016 | G30: =IF('- 7 -'!$B30=0,"",E30/'- 7 -'!$B30) -> 5764.426667
A31: PORTAGE LA PRAIRIE | B31: 3724199 | C31: =B31/'- 3 -'!$D31*100 -> 8.043928822 | D31: =B31/'- 7 -'!$C31 -> 1081.358595 | E31: 693910 | F31: =E31/'- 3 -'!$D31*100 -> 1.49878206 | G31: =IF('- 7 -'!$B31=0,"",E31/'- 7 -'!$B31) -> 6672.211538
A32: PRAIRIE ROSE | B32: 2916524 | C32: =B32/'- 3 -'!$D32*100 -> 8.378903872 | D32: =B32/'- 7 -'!$C32 -> 1238.965166 | E32: 0 | F32: =E32/'- 3 -'!$D32*100 -> 0 | G32: =IF('- 7 -'!$B32=0,"",E32/'- 7 -'!$B32) -> 
A33: PRAIRIE SPIRIT | B33: 3042075 | C33: =B33/'- 3 -'!$D33*100 -> 9.722633714 | D33: =B33/'- 7 -'!$C33 -> 1416.236034 | E33: 0 | F33: =E33/'- 3 -'!$D33*100 -> 0 | G33: =IF('- 7 -'!$B33=0,"",E33/'- 7 -'!$B33) -> 
A34: RED RIVER VALLEY | B34: 3052678 | C34: =B34/'- 3 -'!$D34*100 -> 8.619393207 | D34: =B34/'- 7 -'!$C34 -> 1341.836484 | E34: 380967 | F34: =E34/'- 3 -'!$D34*100 -> 1.075679902 | G34: =IF('- 7 -'!$B34=0,"",E34/'- 7 -'!$B34) -> 17719.39535
A35: RIVER EAST TRANSCONA | B35: 17717850 | C35: =B35/'- 3 -'!$D35*100 -> 7.880392929 | D35: =B35/'- 7 -'!$C35 -> 1038.591401 | E35: 4446041 | F35: =E35/'- 3 -'!$D35*100 -> 1.977471875 | G35: =IF('- 7 -'!$B35=0,"",E35/'- 7 -'!$B35) -> 4918.186947
A36: ROLLING RIVER | B36: 2278170 | C36: =B36/'- 3 -'!$D36*100 -> 8.515996487 | D36: =B36/'- 7 -'!$C36 -> 1286.374929 | E36: 149990 | F36: =E36/'- 3 -'!$D36*100 -> 0.5606755918 | G36: =IF('- 7 -'!$B36=0,"",E36/'- 7 -'!$B36) -> 14999
A37: SEINE RIVER | B37: 5165603 | C37: =B37/'- 3 -'!$D37*100 -> 8.465833704 | D37: =B37/'- 7 -'!$C37 -> 1118.943572 | E37: 0 | F37: =E37/'- 3 -'!$D37*100 -> 0 | G37: =IF('- 7 -'!$B37=0,"",E37/'- 7 -'!$B37) -> 
A38: SEVEN OAKS | B38: 12376684 | C38: =B38/'- 3 -'!$D38*100 -> 7.395629524 | D38: =B38/'- 7 -'!$C38 -> 1046.432805 | E38: 1704530 | F38: =E38/'- 3 -'!$D38*100 -> 1.018533914 | G38: =IF('- 7 -'!$B38=0,"",E38/'- 7 -'!$B38) -> 8652.436548
A39: SOUTHWEST HORIZON | B39: 1595300 | C39: =B39/'- 3 -'!$D39*100 -> 6.25421443 | D39: =B39/'- 7 -'!$C39 -> 1106.31068 | E39: 0 | F39: =E39/'- 3 -'!$D39*100 -> 0 | G39: =IF('- 7 -'!$B39=0,"",E39/'- 7 -'!$B39) -> 
A40: ST. JAMES-ASSINIBOIA | B40: 10037121 | C40: =B40/'- 3 -'!$D40*100 -> 8.165591314 | D40: =B40/'- 7 -'!$C40 -> 1259.995104 | E40: 2074152 | F40: =E40/'- 3 -'!$D40*100 -> 1.687403943 | G40: =IF('- 7 -'!$B40=0,"",E40/'- 7 -'!$B40) -> 8799.59272
A41: SUNRISE | B41: 5047387 | C41: =B41/'- 3 -'!$D41*100 -> 6.814572275 | D41: =B41/'- 7 -'!$C41 -> 1097.258043 | E41: 0 | F41: =E41/'- 3 -'!$D41*100 -> 0 | G41: =IF('- 7 -'!$B41=0,"",E41/'- 7 -'!$B41) -> 
A42: SWAN VALLEY | B42: 2116531 | C42: =B42/'- 3 -'!$D42*100 -> 8.37274578 | D42: =B42/'- 7 -'!$C42 -> 1580.680358 | E42: 1186867 | F42: =E42/'- 3 -'!$D42*100 -> 4.695105182 | G42: =IF('- 7 -'!$B42=0,"",E42/'- 7 -'!$B42) -> 9338.056648
A43: TURTLE MOUNTAIN | B43: 944017 | C43: =B43/'- 3 -'!$D43*100 -> 6.323637822 | D43: =B43/'- 7 -'!$C43 -> 912.9758221 | E43: 62216 | F43: =E43/'- 3 -'!$D43*100 -> 0.4167630993 | G43: =IF('- 7 -'!$B43=0,"",E43/'- 7 -'!$B43) -> 2145.37931
A44: TURTLE RIVER | B44: 745600 | C44: =B44/'- 3 -'!$D44*100 -> 6.112955046 | D44: =B44/'- 7 -'!$C44 -> 1277.806341 | E44: 0 | F44: =E44/'- 3 -'!$D44*100 -> 0 | G44: =IF('- 7 -'!$B44=0,"",E44/'- 7 -'!$B44) -> 
A45: WESTERN | B45: 1999837 | C45: =B45/'- 3 -'!$D45*100 -> 7.440604717 | D45: =B45/'- 7 -'!$C45 -> 934.2849801 | E45: 383098 | F45: =E45/'- 3 -'!$D45*100 -> 1.42535656 | G45: =IF('- 7 -'!$B45=0,"",E45/'- 7 -'!$B45) -> 12769.93333
A46: WINNIPEG | B46: 31599066 | C46: =B46/'- 3 -'!$D46*100 -> 7.01114661 | D46: =B46/'- 7 -'!$C46 -> 1155.718084 | E46: 7335750 | F46: =E46/'- 3 -'!$D46*100 -> 1.627643638 | G46: =IF('- 7 -'!$B46=0,"",E46/'- 7 -'!$B46) -> 10509.67049
A48: PROVINCE | B48: =SUM(B11:B46) -> 205892751 | C48: =B48/'- 3 -'!$D48*100 -> 7.420644271 | D48: =B48/'- 7 -'!$C48 -> 1122.893552 | E48: =SUM(E11:E46) -> 37164817 | F48: =E48/'- 3 -'!$D48*100 -> 1.339468655 | G48: =E48/'- 7 -'!$B48 -> 8420.255158
A50: WHITESHELL | B50: 299547 | C50: =B50/'- 3 -'!$D50*100 -> 7.533667948 | D50: =B50/'- 7 -'!$C50 -> 1741.552326 | E50: 0 | F50: =E50/'- 3 -'!$D50*100 -> 0 | G50: =IF('- 7 -'!$B50=0,"",E50/'- 7 -'!$B50) -> 

Sheet - 19 -
B2: =AEXP_BP -> ANALYSIS OF EXPENSE BY PROGRAM | J2: PAGE 2 OF 16
B3: =OPYEAR -> OPERATING FUND 2023/2024 BUDGET
B5: FUNCTION 100: REGULAR INSTRUCTION (CONT'D)
B6: SINGLE TRACK SCHOOLS (1)
B7: ENGLISH LANGUAGE | E7: FRANÇAIS | H7: FRENCH IMMERSION
D8: PER PUPIL | G8: PER PUPIL | J8: PER PUPIL
A9: DIVISION / DISTRICT | B9: AMOUNT | C9: % | E9: AMOUNT | F9: % | H9: AMOUNT | I9: %
A11: BEAUTIFUL PLAINS | B11: 15126585 | C11: =B11/'- 3 -'!$D11*100 -> 57.14119017 | D11: =B11/'- 6 -'!$B11 -> 7282.900818 | E11: 0 | F11: =E11/'- 3 -'!$D11*100 -> 0 | G11: =IF('- 6 -'!$C11=0,"",E11/'- 6 -'!$C11) ->  | H11: 0 | I11: =H11/'- 3 -'!$D11*100 -> 0 | J11: =IF('- 6 -'!$D11=0,"",H11/'- 6 -'!$D11) -> 
A12: BORDER LAND | B12: 13676463 | C12: =B12/'- 3 -'!$D12*100 -> 36.02444606 | D12: =B12/'- 6 -'!$B12 -> 9986.464403 | E12: 0 | F12: =E12/'- 3 -'!$D12*100 -> 0 | G12: =IF('- 6 -'!$C12=0,"",E12/'- 6 -'!$C12) ->  | H12: 0 | I12: =H12/'- 3 -'!$D12*100 -> 0 | J12: =IF('- 6 -'!$D12=0,"",H12/'- 6 -'!$D12) -> 
A13: BRANDON | B13: 52283211 | C13: =B13/'- 3 -'!$D13*100 -> 42.82665093 | D13: =B13/'- 6 -'!$B13 -> 7276.71691 | E13: 0 | F13: =E13/'- 3 -'!$D13*100 -> 0 | G13: =IF('- 6 -'!$C13=0,"",E13/'- 6 -'!$C13) ->  | H13: 2218500 | I13: =H13/'- 3 -'!$D13*100 -> 1.817235844 | J13: =IF('- 6 -'!$D13=0,"",H13/'- 6 -'!$D13) -> 7087.859425
A14: DSFM | B14: 0 | C14: =B14/'- 3 -'!$D14*100 -> 0 | E14: 52237988 | F14: =E14/'- 3 -'!$D14*100 -> 47.51438227 | G14: =IF('- 6 -'!$C14=0,"",E14/'- 6 -'!$C14) -> 8629.671088 | H14: 0 | I14: =H14/'- 3 -'!$D14*100 -> 0 | J14: =IF('- 6 -'!$D14=0,"",H14/'- 6 -'!$D14) -> 
A15: EVERGREEN | B15: 10680334 | C15: =B15/'- 3 -'!$D15*100 -> 45.56981393 | D15: =B15/'- 6 -'!$B15 -> 7761.87064 | E15: 0 | F15: =E15/'- 3 -'!$D15*100 -> 0 | G15: =IF('- 6 -'!$C15=0,"",E15/'- 6 -'!$C15) ->  | H15: 0 | I15: =H15/'- 3 -'!$D15*100 -> 0 | J15: =IF('- 6 -'!$D15=0,"",H15/'- 6 -'!$D15) -> 
A16: FLIN FLON | B16: 5131259 | C16: =B16/'- 3 -'!$D16*100 -> 30.45724277 | D16: =B16/'- 6 -'!$B16 -> 9114.136767 | E16: 0 | F16: =E16/'- 3 -'!$D16*100 -> 0 | G16: =IF('- 6 -'!$C16=0,"",E16/'- 6 -'!$C16) ->  | H16: 0 | I16: =H16/'- 3 -'!$D16*100 -> 0 | J16: =IF('- 6 -'!$D16=0,"",H16/'- 6 -'!$D16) -> 
A17: FORT LA BOSSE | B17: 11489600 | C17: =B17/'- 3 -'!$D17*100 -> 53.45067025 | D17: =B17/'- 6 -'!$B17 -> 7800.135777 | E17: 0 | F17: =E17/'- 3 -'!$D17*100 -> 0 | G17: =IF('- 6 -'!$C17=0,"",E17/'- 6 -'!$C17) ->  | H17: 0 | I17: =H17/'- 3 -'!$D17*100 -> 0 | J17: =IF('- 6 -'!$D17=0,"",H17/'- 6 -'!$D17) -> 
A18: FRONTIER | B18: 61087055 | C18: =B18/'- 3 -'!$D18*100 -> 36.89275963 | D18: =B18/'- 6 -'!$B18 -> 9924.78554 | E18: 0 | F18: =E18/'- 3 -'!$D18*100 -> 0 | G18: =IF('- 6 -'!$C18=0,"",E18/'- 6 -'!$C18) ->  | H18: 0 | I18: =H18/'- 3 -'!$D18*100 -> 0 | J18: =IF('- 6 -'!$D18=0,"",H18/'- 6 -'!$D18) -> 
A19: GARDEN VALLEY | B19: 28137700 | C19: =B19/'- 3 -'!$D19*100 -> 50.19622548 | D19: =B19/'- 6 -'!$B19 -> 6839.499271 | E19: 0 | F19: =E19/'- 3 -'!$D19*100 -> 0 | G19: =IF('- 6 -'!$C19=0,"",E19/'- 6 -'!$C19) ->  | H19: 0 | I19: =H19/'- 3 -'!$D19*100 -> 0 | J19: =IF('- 6 -'!$D19=0,"",H19/'- 6 -'!$D19) -> 
A20: HANOVER | B20: 51120400 | C20: =B20/'- 3 -'!$D20*100 -> 49.94875212 | D20: =B20/'- 6 -'!$B20 -> 6719.207161 | E20: 0 | F20: =E20/'- 3 -'!$D20*100 -> 0 | G20: =IF('- 6 -'!$C20=0,"",E20/'- 6 -'!$C20) ->  | H20: 0 | I20: =H20/'- 3 -'!$D20*100 -> 0 | J20: =IF('- 6 -'!$D20=0,"",H20/'- 6 -'!$D20) -> 
A21: INTERLAKE | B21: 11655509 | C21: =B21/'- 3 -'!$D21*100 -> 28.44613472 | D21: =B21/'- 6 -'!$B21 -> 7469.08619 | E21: 0 | F21: =E21/'- 3 -'!$D21*100 -> 0 | G21: =IF('- 6 -'!$C21=0,"",E21/'- 6 -'!$C21) ->  | H21: 0 | I21: =H21/'- 3 -'!$D21*100 -> 0 | J21: =IF('- 6 -'!$D21=0,"",H21/'- 6 -'!$D21) -> 
A22: KELSEY | B22: 5064112 | C22: =B22/'- 3 -'!$D22*100 -> 23.12905329 | D22: =B22/'- 6 -'!$B22 -> 6346.005013 | E22: 0 | F22: =E22/'- 3 -'!$D22*100 -> 0 | G22: =IF('- 6 -'!$C22=0,"",E22/'- 6 -'!$C22) ->  | H22: 0 | I22: =H22/'- 3 -'!$D22*100 -> 0 | J22: =IF('- 6 -'!$D22=0,"",H22/'- 6 -'!$D22) -> 
A23: LAKESHORE | B23: 7447534 | C23: =B23/'- 3 -'!$D23*100 -> 43.71598819 | D23: =B23/'- 6 -'!$B23 -> 8279.637576 | E23: 0 | F23: =E23/'- 3 -'!$D23*100 -> 0 | G23: =IF('- 6 -'!$C23=0,"",E23/'- 6 -'!$C23) ->  | H23: 0 | I23: =H23/'- 3 -'!$D23*100 -> 0 | J23: =IF('- 6 -'!$D23=0,"",H23/'- 6 -'!$D23) -> 
A24: LORD SELKIRK | B24: 23080070 | C24: =B24/'- 3 -'!$D24*100 -> 36.33405829 | D24: =B24/'- 6 -'!$B24 -> 8859.911708 | E24: 0 | F24: =E24/'- 3 -'!$D24*100 -> 0 | G24: =IF('- 6 -'!$C24=0,"",E24/'- 6 -'!$C24) ->  | H24: 1813099 | I24: =H24/'- 3 -'!$D24*100 -> 2.854291375 | J24: =IF('- 6 -'!$D24=0,"",H24/'- 6 -'!$D24) -> 8472.425234
A25: LOUIS RIEL | B25: 68696310 | C25: =B25/'- 3 -'!$D25*100 -> 30.88760378 | D25: =B25/'- 6 -'!$B25 -> 6601.605804 | E25: 0 | F25: =E25/'- 3 -'!$D25*100 -> 0 | G25: =IF('- 6 -'!$C25=0,"",E25/'- 6 -'!$C25) ->  | H25: 29634112 | I25: =H25/'- 3 -'!$D25*100 -> 13.32424856 | J25: =IF('- 6 -'!$D25=0,"",H25/'- 6 -'!$D25) -> 6075.053711
A26: MOUNTAIN VIEW | B26: 17457346 | C26: =B26/'- 3 -'!$D26*100 -> 37.84178183 | D26: =B26/'- 6 -'!$B26 -> 7422.025424 | E26: 0 | F26: =E26/'- 3 -'!$D26*100 -> 0 | G26: =IF('- 6 -'!$C26=0,"",E26/'- 6 -'!$C26) ->  | H26: 923880 | I26: =H26/'- 3 -'!$D26*100 -> 2.002667839 | J26: =IF('- 6 -'!$D26=0,"",H26/'- 6 -'!$D26) -> 6793.235294
A27: MYSTERY LAKE | B27: 18896097 | C27: =B27/'- 3 -'!$D27*100 -> 40.74100602 | D27: =B27/'- 6 -'!$B27 -> 8394.27339 | E27: 0 | F27: =E27/'- 3 -'!$D27*100 -> 0 | G27: =IF('- 6 -'!$C27=0,"",E27/'- 6 -'!$C27) ->  | H27: 0 | I27: =H27/'- 3 -'!$D27*100 -> 0 | J27: =IF('- 6 -'!$D27=0,"",H27/'- 6 -'!$D27) -> 
A28: PARK WEST | B28: 16850602 | C28: =B28/'- 3 -'!$D28*100 -> 51.96697375 | D28: =B28/'- 6 -'!$B28 -> 7954.025018 | E28: 0 | F28: =E28/'- 3 -'!$D28*100 -> 0 | G28: =IF('- 6 -'!$C28=0,"",E28/'- 6 -'!$C28) ->  | H28: 0 | I28: =H28/'- 3 -'!$D28*100 -> 0 | J28: =IF('- 6 -'!$D28=0,"",H28/'- 6 -'!$D28) -> 
A29: PEMBINA TRAILS | B29: 63928467 | C29: =B29/'- 3 -'!$D29*100 -> 31.32649222 | D29: =B29/'- 6 -'!$B29 -> 6600.225794 | E29: 0 | F29: =E29/'- 3 -'!$D29*100 -> 0 | G29: =IF('- 6 -'!$C29=0,"",E29/'- 6 -'!$C29) ->  | H29: 9514083 | I29: =H29/'- 3 -'!$D29*100 -> 4.662130363 | J29: =IF('- 6 -'!$D29=0,"",H29/'- 6 -'!$D29) -> 6641.593717
A30: PINE CREEK | B30: 8715546 | C30: =B30/'- 3 -'!$D30*100 -> 50.41277173 | D30: =B30/'- 6 -'!$B30 -> 8663.564612 | E30: 0 | F30: =E30/'- 3 -'!$D30*100 -> 0 | G30: =IF('- 6 -'!$C30=0,"",E30/'- 6 -'!$C30) ->  | H30: 0 | I30: =H30/'- 3 -'!$D30*100 -> 0 | J30: =IF('- 6 -'!$D30=0,"",H30/'- 6 -'!$D30) -> 
A31: PORTAGE LA PRAIRIE | B31: 19151048 | C31: =B31/'- 3 -'!$D31*100 -> 41.36451006 | D31: =B31/'- 6 -'!$B31 -> 7967.983358 | E31: 0 | F31: =E31/'- 3 -'!$D31*100 -> 0 | G31: =IF('- 6 -'!$C31=0,"",E31/'- 6 -'!$C31) ->  | H31: 0 | I31: =H31/'- 3 -'!$D31*100 -> 0 | J31: =IF('- 6 -'!$D31=0,"",H31/'- 6 -'!$D31) -> 
A32: PRAIRIE ROSE | B32: 13138629 | C32: =B32/'- 3 -'!$D32*100 -> 37.74606669 | D32: =B32/'- 6 -'!$B32 -> 7516.378146 | E32: 0 | F32: =E32/'- 3 -'!$D32*100 -> 0 | G32: =IF('- 6 -'!$C32=0,"",E32/'- 6 -'!$C32) ->  | H32: 814537 | I32: =H32/'- 3 -'!$D32*100 -> 2.340089512 | J32: =IF('- 6 -'!$D32=0,"",H32/'- 6 -'!$D32) -> 6991.733906
A33: PRAIRIE SPIRIT | B33: 11867675 | C33: =B33/'- 3 -'!$D33*100 -> 37.92972135 | D33: =B33/'- 6 -'!$B33 -> 6976.881246 | E33: 0 | F33: =E33/'- 3 -'!$D33*100 -> 0 | G33: =IF('- 6 -'!$C33=0,"",E33/'- 6 -'!$C33) ->  | H33: 0 | I33: =H33/'- 3 -'!$D33*100 -> 0 | J33: =IF('- 6 -'!$D33=0,"",H33/'- 6 -'!$D33) -> 
A34: RED RIVER VALLEY | B34: 12787117 | C34: =B34/'- 3 -'!$D34*100 -> 36.10508197 | D34: =B34/'- 6 -'!$B34 -> 7512.994712 | E34: 0 | F34: =E34/'- 3 -'!$D34*100 -> 0 | G34: =IF('- 6 -'!$C34=0,"",E34/'- 6 -'!$C34) ->  | H34: 2346996 | I34: =H34/'- 3 -'!$D34*100 -> 6.626863816 | J34: =IF('- 6 -'!$D34=0,"",H34/'- 6 -'!$D34) -> 6923.292035
A35: RIVER EAST TRANSCONA | B35: 68000820 | C35: =B35/'- 3 -'!$D35*100 -> 30.24481984 | D35: =B35/'- 6 -'!$B35 -> 8124.836609 | E35: 0 | F35: =E35/'- 3 -'!$D35*100 -> 0 | G35: =IF('- 6 -'!$C35=0,"",E35/'- 6 -'!$C35) ->  | H35: 10233638 | I35: =H35/'- 3 -'!$D35*100 -> 4.551629489 | J35: =IF('- 6 -'!$D35=0,"",H35/'- 6 -'!$D35) -> 6549.52832
A36: ROLLING RIVER | B36: 13318350 | C36: =B36/'- 3 -'!$D36*100 -> 49.78514413 | D36: =B36/'- 6 -'!$B36 -> 7562.947189 | E36: 0 | F36: =E36/'- 3 -'!$D36*100 -> 0 | G36: =IF('- 6 -'!$C36=0,"",E36/'- 6 -'!$C36) ->  | H36: 0 | I36: =H36/'- 3 -'!$D36*100 -> 0 | J36: =IF('- 6 -'!$D36=0,"",H36/'- 6 -'!$D36) -> 
A37: SEINE RIVER | B37: 14487198 | C37: =B37/'- 3 -'!$D37*100 -> 23.74286392 | D37: =B37/'- 6 -'!$B37 -> 6367.999121 | E37: 0 | F37: =E37/'- 3 -'!$D37*100 -> 0 | G37: =IF('- 6 -'!$C37=0,"",E37/'- 6 -'!$C37) ->  | H37: 5284966 | I37: =H37/'- 3 -'!$D37*100 -> 8.661456037 | J37: =IF('- 6 -'!$D37=0,"",H37/'- 6 -'!$D37) -> 6152.463329
A38: SEVEN OAKS | B38: 53376621 | C38: =B38/'- 3 -'!$D38*100 -> 31.89494974 | D38: =B38/'- 6 -'!$B38 -> 7558.607842 | E38: 0 | F38: =E38/'- 3 -'!$D38*100 -> 0 | G38: =IF('- 6 -'!$C38=0,"",E38/'- 6 -'!$C38) ->  | H38: 6940255.5 | I38: =H38/'- 3 -'!$D38*100 -> 4.14711715 | J38: =IF('- 6 -'!$D38=0,"",H38/'- 6 -'!$D38) -> 5934.378367
A39: SOUTHWEST HORIZON | B39: 12656400 | C39: =B39/'- 3 -'!$D39*100 -> 49.61815302 | D39: =B39/'- 6 -'!$B39 -> 8776.976422 | E39: 0 | F39: =E39/'- 3 -'!$D39*100 -> 0 | G39: =IF('- 6 -'!$C39=0,"",E39/'- 6 -'!$C39) ->  | H39: 0 | I39: =H39/'- 3 -'!$D39*100 -> 0 | J39: =IF('- 6 -'!$D39=0,"",H39/'- 6 -'!$D39) -> 
A40: ST. JAMES-ASSINIBOIA | B40: 40497931 | C40: =B40/'- 3 -'!$D40*100 -> 32.94665409 | D40: =B40/'- 6 -'!$B40 -> 7546.432684 | E40: 0 | F40: =E40/'- 3 -'!$D40*100 -> 0 | G40: =IF('- 6 -'!$C40=0,"",E40/'- 6 -'!$C40) ->  | H40: 8936000 | I40: =H40/'- 3 -'!$D40*100 -> 7.269786225 | J40: =IF('- 6 -'!$D40=0,"",H40/'- 6 -'!$D40) -> 6463.652803
A41: SUNRISE | B41: 16685912 | C41: =B41/'- 3 -'!$D41*100 -> 22.52796413 | D41: =B41/'- 6 -'!$B41 -> 9815.242353 | E41: 0 | F41: =E41/'- 3 -'!$D41*100 -> 0 | G41: =IF('- 6 -'!$C41=0,"",E41/'- 6 -'!$C41) ->  | H41: 0 | I41: =H41/'- 3 -'!$D41*100 -> 0 | J41: =IF('- 6 -'!$D41=0,"",H41/'- 6 -'!$D41) -> 
A42: SWAN VALLEY | B42: 7695214 | C42: =B42/'- 3 -'!$D42*100 -> 30.44135453 | D42: =B42/'- 6 -'!$B42 -> 7909.563162 | E42: 0 | F42: =E42/'- 3 -'!$D42*100 -> 0 | G42: =IF('- 6 -'!$C42=0,"",E42/'- 6 -'!$C42) ->  | H42: 0 | I42: =H42/'- 3 -'!$D42*100 -> 0 | J42: =IF('- 6 -'!$D42=0,"",H42/'- 6 -'!$D42) -> 
A43: TURTLE MOUNTAIN | B43: 7037043 | C43: =B43/'- 3 -'!$D43*100 -> 47.13867575 | D43: =B43/'- 6 -'!$B43 -> 7002.032836 | E43: 0 | F43: =E43/'- 3 -'!$D43*100 -> 0 | G43: =IF('- 6 -'!$C43=0,"",E43/'- 6 -'!$C43) ->  | H43: 0 | I43: =H43/'- 3 -'!$D43*100 -> 0 | J43: =IF('- 6 -'!$D43=0,"",H43/'- 6 -'!$D43) -> 
A44: TURTLE RIVER | B44: 5700199 | C44: =B44/'- 3 -'!$D44*100 -> 46.73425461 | D44: =B44/'- 6 -'!$B44 -> 10151.73464 | E44: 0 | F44: =E44/'- 3 -'!$D44*100 -> 0 | G44: =IF('- 6 -'!$C44=0,"",E44/'- 6 -'!$C44) ->  | H44: 345616 | I44: =H44/'- 3 -'!$D44*100 -> 2.833603904 | J44: =IF('- 6 -'!$D44=0,"",H44/'- 6 -'!$D44) -> 15709.81818
A45: WESTERN | B45: 6737483 | C45: =B45/'- 3 -'!$D45*100 -> 25.0675169 | D45: =B45/'- 6 -'!$B45 -> 7213.579229 | E45: 0 | F45: =E45/'- 3 -'!$D45*100 -> 0 | G45: =IF('- 6 -'!$C45=0,"",E45/'- 6 -'!$C45) ->  | H45: 0 | I45: =H45/'- 3 -'!$D45*100 -> 0 | J45: =IF('- 6 -'!$D45=0,"",H45/'- 6 -'!$D45) -> 
A46: WINNIPEG | B46: 137167038 | C46: =B46/'- 3 -'!$D46*100 -> 30.43438732 | D46: =B46/'- 6 -'!$B46 -> 7985.738538 | E46: 0 | F46: =E46/'- 3 -'!$D46*100 -> 0 | G46: =IF('- 6 -'!$C46=0,"",E46/'- 6 -'!$C46) ->  | H46: 9462907 | I46: =H46/'- 3 -'!$D46*100 -> 2.099613588 | J46: =IF('- 6 -'!$D46=0,"",H46/'- 6 -'!$D46) -> 6730.374822
A48: PROVINCE | B48: =SUM(B11:B46) -> 930828878 | C48: =B48/'- 3 -'!$D48*100 -> 33.54829127 | D48: =B48/'- 6 -'!$B48 -> 7643.329353 | E48: =SUM(E11:E46) -> 52237988 | F48: =E48/'- 3 -'!$D48*100 -> 1.88272547 | G48: =E48/'- 6 -'!$C48 -> 8629.671088 | H48: =SUM(H11:H46) -> 88468589.5 | I48: =H48/'- 3 -'!$D48*100 -> 3.188523776 | J48: =H48/'- 6 -'!$D48 -> 6396.629876
A50: WHITESHELL | B50: 2022062 | C50: =B50/'- 3 -'!$D50*100 -> 50.85527039 | D50: =B50/'- 6 -'!$B50 -> 11756.17442 | E50: 0 | F50: =E50/'- 3 -'!$D50*100 -> 0 | G50: =IF('- 6 -'!$C50=0,"",E50/'- 6 -'!$C50) ->  | H50: 0 | I50: =H50/'- 3 -'!$D50*100 -> 0 | J50: =IF('- 6 -'!$D50=0,"",H50/'- 6 -'!$D50) -> 
A52: (1) 90% or more of Regular Instruction enrolment is in one language.

Sheet - 20 -
B2: =AEXP_BP -> ANALYSIS OF EXPENSE BY PROGRAM | I2: PAGE 3 OF 16
B3: =OPYEAR -> OPERATING FUND 2023/2024 BUDGET
B5: FUNCTION 100: REGULAR INSTRUCTION (CONT'D)
B6: DUAL TRACK SCHOOLS (1)
D7: PER PUPIL | E7: NO. OF FTE PUPILS | F7: % IN DUAL TRACK SCHOOLS
F8: ENGLISH | G8: FRANÇAIS | H8: FRENCH IMMERSION | I8: OTHER
A9: DIVISION / DISTRICT | B9: AMOUNT | C9: %
A11: BEAUTIFUL PLAINS | B11: 0 | C11: =B11/'- 3 -'!$D11*100 -> 0 | D11: =IF(E11=0,"",B11/E11) ->  | E11: =SUM('- 6 -'!$E11:H11) -> 0 | F11: =IF(E11=0,"",'- 6 -'!$E11/E11*100) ->  | G11: =IF(E11=0,"",'- 6 -'!$F11/E11*100) ->  | H11: =IF(E11=0,"",'- 6 -'!$G11/E11*100) ->  | I11: =IF(E11=0,"",'- 6 -'!$H11/E11*100) -> 
A12: BORDER LAND | B12: 4439963 | C12: =B12/'- 3 -'!$D12*100 -> 11.69507113 | D12: =IF(E12=0,"",B12/E12) -> 7872.274823 | E12: =SUM('- 6 -'!$E12:H12) -> 564 | F12: =IF(E12=0,"",'- 6 -'!$E12/E12*100) -> 73.04964539 | G12: =IF(E12=0,"",'- 6 -'!$F12/E12*100) -> 0 | H12: =IF(E12=0,"",'- 6 -'!$G12/E12*100) -> 26.95035461 | I12: =IF(E12=0,"",'- 6 -'!$H12/E12*100) -> 0
A13: BRANDON | B13: 7705410 | C13: =B13/'- 3 -'!$D13*100 -> 6.311718389 | D13: 6765.065847 | E13: =SUM('- 6 -'!$E13:H13) -> 1139 | F13: =IF(E13=0,"",'- 6 -'!$E13/E13*100) -> 60.57945566 | G13: =IF(E13=0,"",'- 6 -'!$F13/E13*100) -> 0 | H13: =IF(E13=0,"",'- 6 -'!$G13/E13*100) -> 39.42054434 | I13: =IF(E13=0,"",'- 6 -'!$H13/E13*100) -> 0
A14: DSFM | B14: 0 | C14: =B14/'- 3 -'!$D14*100 -> 0 | E14: =SUM('- 6 -'!$E14:H14) -> 0 | F14: =IF(E14=0,"",'- 6 -'!$E14/E14*100) ->  | G14: =IF(E14=0,"",'- 6 -'!$F14/E14*100) ->  | H14: =IF(E14=0,"",'- 6 -'!$G14/E14*100) ->  | I14: =IF(E14=0,"",'- 6 -'!$H14/E14*100) -> 
A15: EVERGREEN | B15: 0 | C15: =B15/'- 3 -'!$D15*100 -> 0 | E15: =SUM('- 6 -'!$E15:H15) -> 0 | F15: =IF(E15=0,"",'- 6 -'!$E15/E15*100) ->  | G15: =IF(E15=0,"",'- 6 -'!$F15/E15*100) ->  | H15: =IF(E15=0,"",'- 6 -'!$G15/E15*100) ->  | I15: =IF(E15=0,"",'- 6 -'!$H15/E15*100) -> 
A16: FLIN FLON | B16: 2680990 | C16: =B16/'- 3 -'!$D16*100 -> 15.91335836 | D16: 9440.105634 | E16: =SUM('- 6 -'!$E16:H16) -> 284 | F16: =IF(E16=0,"",'- 6 -'!$E16/E16*100) -> 64.43661972 | G16: =IF(E16=0,"",'- 6 -'!$F16/E16*100) -> 0 | H16: =IF(E16=0,"",'- 6 -'!$G16/E16*100) -> 35.56338028 | I16: =IF(E16=0,"",'- 6 -'!$H16/E16*100) -> 0
A17: FORT LA BOSSE | B17: 0 | C17: =B17/'- 3 -'!$D17*100 -> 0 | E17: =SUM('- 6 -'!$E17:H17) -> 0 | F17: =IF(E17=0,"",'- 6 -'!$E17/E17*100) ->  | G17: =IF(E17=0,"",'- 6 -'!$F17/E17*100) ->  | H17: =IF(E17=0,"",'- 6 -'!$G17/E17*100) ->  | I17: =IF(E17=0,"",'- 6 -'!$H17/E17*100) -> 
A18: FRONTIER | B18: 0 | C18: =B18/'- 3 -'!$D18*100 -> 0 | E18: =SUM('- 6 -'!$E18:H18) -> 0 | F18: =IF(E18=0,"",'- 6 -'!$E18/E18*100) ->  | G18: =IF(E18=0,"",'- 6 -'!$F18/E18*100) ->  | H18: =IF(E18=0,"",'- 6 -'!$G18/E18*100) ->  | I18: =IF(E18=0,"",'- 6 -'!$H18/E18*100) -> 
A19: GARDEN VALLEY | B19: 0 | C19: =B19/'- 3 -'!$D19*100 -> 0 | E19: =SUM('- 6 -'!$E19:H19) -> 0 | F19: =IF(E19=0,"",'- 6 -'!$E19/E19*100) ->  | G19: =IF(E19=0,"",'- 6 -'!$F19/E19*100) ->  | H19: =IF(E19=0,"",'- 6 -'!$G19/E19*100) ->  | I19: =IF(E19=0,"",'- 6 -'!$H19/E19*100) -> 
A20: HANOVER | B20: 0 | C20: =B20/'- 3 -'!$D20*100 -> 0 | E20: =SUM('- 6 -'!$E20:H20) -> 0 | F20: =IF(E20=0,"",'- 6 -'!$E20/E20*100) ->  | G20: =IF(E20=0,"",'- 6 -'!$F20/E20*100) ->  | H20: =IF(E20=0,"",'- 6 -'!$G20/E20*100) ->  | I20: =IF(E20=0,"",'- 6 -'!$H20/E20*100) -> 
A21: INTERLAKE | B21: 7886525 | C21: =B21/'- 3 -'!$D21*100 -> 19.24764956 | D21: 6118.328161 | E21: =SUM('- 6 -'!$E21:H21) -> 1289 | F21: =IF(E21=0,"",'- 6 -'!$E21/E21*100) -> 67.57176106 | G21: =IF(E21=0,"",'- 6 -'!$F21/E21*100) -> 0 | H21: =IF(E21=0,"",'- 6 -'!$G21/E21*100) -> 32.42823894 | I21: =IF(E21=0,"",'- 6 -'!$H21/E21*100) -> 0
A22: KELSEY | B22: 4802977 | C22: =B22/'- 3 -'!$D22*100 -> 21.93638509 | D22: 7709.433387 | E22: =SUM('- 6 -'!$E22:H22) -> 623 | F22: =IF(E22=0,"",'- 6 -'!$E22/E22*100) -> 73.35473515 | G22: =IF(E22=0,"",'- 6 -'!$F22/E22*100) -> 0 | H22: =IF(E22=0,"",'- 6 -'!$G22/E22*100) -> 26.64526485 | I22: =IF(E22=0,"",'- 6 -'!$H22/E22*100) -> 0
A23: LAKESHORE | B23: 0 | C23: =B23/'- 3 -'!$D23*100 -> 0 | E23: =SUM('- 6 -'!$E23:H23) -> 0 | F23: =IF(E23=0,"",'- 6 -'!$E23/E23*100) ->  | G23: =IF(E23=0,"",'- 6 -'!$F23/E23*100) ->  | H23: =IF(E23=0,"",'- 6 -'!$G23/E23*100) ->  | I23: =IF(E23=0,"",'- 6 -'!$H23/E23*100) -> 
A24: LORD SELKIRK | B24: 5620990 | C24: =B24/'- 3 -'!$D24*100 -> 8.848906363 | D24: 7658.024523 | E24: =SUM('- 6 -'!$E24:H24) -> 734 | F24: =IF(E24=0,"",'- 6 -'!$E24/E24*100) -> 79.15531335 | G24: =IF(E24=0,"",'- 6 -'!$F24/E24*100) -> 0 | H24: =IF(E24=0,"",'- 6 -'!$G24/E24*100) -> 9.809264305 | I24: =IF(E24=0,"",'- 6 -'!$H24/E24*100) -> 11.03542234
A25: LOUIS RIEL | B25: 3884137 | C25: =B25/'- 3 -'!$D25*100 -> 1.746406534 | D25: 5291.739782 | E25: =SUM('- 6 -'!$E25:H25) -> 734 | F25: =IF(E25=0,"",'- 6 -'!$E25/E25*100) -> 42.09809264 | G25: =IF(E25=0,"",'- 6 -'!$F25/E25*100) -> 0 | H25: =IF(E25=0,"",'- 6 -'!$G25/E25*100) -> 57.90190736 | I25: =IF(E25=0,"",'- 6 -'!$H25/E25*100) -> 0
A26: MOUNTAIN VIEW | B26: 2584709 | C26: =B26/'- 3 -'!$D26*100 -> 5.602798619 | D26: 5564.497309 | E26: =SUM('- 6 -'!$E26:H26) -> 464.5 | F26: =IF(E26=0,"",'- 6 -'!$E26/E26*100) -> 71.04413348 | G26: =IF(E26=0,"",'- 6 -'!$F26/E26*100) -> 0 | H26: =IF(E26=0,"",'- 6 -'!$G26/E26*100) -> 14.85468245 | I26: =IF(E26=0,"",'- 6 -'!$H26/E26*100) -> 14.10118407
A27: MYSTERY LAKE | B27: 2680156 | C27: =B27/'- 3 -'!$D27*100 -> 5.778561134 | D27: 7657.588571 | E27: =SUM('- 6 -'!$E27:H27) -> 350 | F27: =IF(E27=0,"",'- 6 -'!$E27/E27*100) -> 44.14285714 | G27: =IF(E27=0,"",'- 6 -'!$F27/E27*100) -> 0 | H27: =IF(E27=0,"",'- 6 -'!$G27/E27*100) -> 55.85714286 | I27: =IF(E27=0,"",'- 6 -'!$H27/E27*100) -> 0
A28: PARK WEST | B28: 0 | C28: =B28/'- 3 -'!$D28*100 -> 0 | E28: =SUM('- 6 -'!$E28:H28) -> 0 | F28: =IF(E28=0,"",'- 6 -'!$E28/E28*100) ->  | G28: =IF(E28=0,"",'- 6 -'!$F28/E28*100) ->  | H28: =IF(E28=0,"",'- 6 -'!$G28/E28*100) ->  | I28: =IF(E28=0,"",'- 6 -'!$H28/E28*100) -> 
A29: PEMBINA TRAILS | B29: 27467860 | C29: =B29/'- 3 -'!$D29*100 -> 13.45991454 | D29: 6039.148693 | E29: =SUM('- 6 -'!$E29:H29) -> 4548.3 | F29: =IF(E29=0,"",'- 6 -'!$E29/E29*100) -> 55.96156806 | G29: =IF(E29=0,"",'- 6 -'!$F29/E29*100) -> 0 | H29: =IF(E29=0,"",'- 6 -'!$G29/E29*100) -> 44.03843194 | I29: =IF(E29=0,"",'- 6 -'!$H29/E29*100) -> 0
A30: PINE CREEK | B30: 0 | C30: =B30/'- 3 -'!$D30*100 -> 0 | E30: =SUM('- 6 -'!$E30:H30) -> 0 | F30: =IF(E30=0,"",'- 6 -'!$E30/E30*100) ->  | G30: =IF(E30=0,"",'- 6 -'!$F30/E30*100) ->  | H30: =IF(E30=0,"",'- 6 -'!$G30/E30*100) ->  | I30: =IF(E30=0,"",'- 6 -'!$H30/E30*100) -> 
A31: PORTAGE LA PRAIRIE | B31: 4718814 | C31: =B31/'- 3 -'!$D31*100 -> 10.19220615 | D31: 5038.776295 | E31: =SUM('- 6 -'!$E31:H31) -> 936.5 | F31: =IF(E31=0,"",'- 6 -'!$E31/E31*100) -> 56.70048051 | G31: =IF(E31=0,"",'- 6 -'!$F31/E31*100) -> 0 | H31: =IF(E31=0,"",'- 6 -'!$G31/E31*100) -> 43.29951949 | I31: =IF(E31=0,"",'- 6 -'!$H31/E31*100) -> 0
A32: PRAIRIE ROSE | B32: 3150595 | C32: =B32/'- 3 -'!$D32*100 -> 9.051368219 | D32: 6436.353422 | E32: =SUM('- 6 -'!$E32:H32) -> 489.5 | F32: =IF(E32=0,"",'- 6 -'!$E32/E32*100) -> 62.61491318 | G32: =IF(E32=0,"",'- 6 -'!$F32/E32*100) -> 0 | H32: =IF(E32=0,"",'- 6 -'!$G32/E32*100) -> 37.38508682 | I32: =IF(E32=0,"",'- 6 -'!$H32/E32*100) -> 0
A33: PRAIRIE SPIRIT | B33: 3088590 | C33: =B33/'- 3 -'!$D33*100 -> 9.871298131 | D33: 6909.597315 | E33: =SUM('- 6 -'!$E33:H33) -> 447 | F33: =IF(E33=0,"",'- 6 -'!$E33/E33*100) -> 52.57270694 | G33: =IF(E33=0,"",'- 6 -'!$F33/E33*100) -> 25.61521253 | H33: =IF(E33=0,"",'- 6 -'!$G33/E33*100) -> 21.81208054 | I33: =IF(E33=0,"",'- 6 -'!$H33/E33*100) -> 0
A34: RED RIVER VALLEY | B34: 1674598 | C34: =B34/'- 3 -'!$D34*100 -> 4.728313509 | D34: 7880.461176 | E34: =SUM('- 6 -'!$E34:H34) -> 212.5 | F34: =IF(E34=0,"",'- 6 -'!$E34/E34*100) -> 40.47058824 | G34: =IF(E34=0,"",'- 6 -'!$F34/E34*100) -> 59.52941176 | H34: =IF(E34=0,"",'- 6 -'!$G34/E34*100) -> 0 | I34: =IF(E34=0,"",'- 6 -'!$H34/E34*100) -> 0
A35: RIVER EAST TRANSCONA | B35: 30329086 | C35: =B35/'- 3 -'!$D35*100 -> 13.48951001 | D35: 4873.316622 | E35: =SUM('- 6 -'!$E35:H35) -> 6223.5 | F35: =IF(E35=0,"",'- 6 -'!$E35/E35*100) -> 60.76966337 | G35: =IF(E35=0,"",'- 6 -'!$F35/E35*100) -> 0 | H35: =IF(E35=0,"",'- 6 -'!$G35/E35*100) -> 30.95525026 | I35: =IF(E35=0,"",'- 6 -'!$H35/E35*100) -> 8.275086366
A36: ROLLING RIVER | B36: 0 | C36: =B36/'- 3 -'!$D36*100 -> 0 | E36: =SUM('- 6 -'!$E36:H36) -> 0 | F36: =IF(E36=0,"",'- 6 -'!$E36/E36*100) ->  | G36: =IF(E36=0,"",'- 6 -'!$F36/E36*100) ->  | H36: =IF(E36=0,"",'- 6 -'!$G36/E36*100) ->  | I36: =IF(E36=0,"",'- 6 -'!$H36/E36*100) -> 
A37: SEINE RIVER | B37: 9545713 | C37: =B37/'- 3 -'!$D37*100 -> 15.64433404 | D37: 6438.929511 | E37: =SUM('- 6 -'!$E37:H37) -> 1482.5 | F37: =IF(E37=0,"",'- 6 -'!$E37/E37*100) -> 53.62563238 | G37: =IF(E37=0,"",'- 6 -'!$F37/E37*100) -> 0 | H37: =IF(E37=0,"",'- 6 -'!$G37/E37*100) -> 46.37436762 | I37: =IF(E37=0,"",'- 6 -'!$H37/E37*100) -> 0
A38: SEVEN OAKS | B38: 24828461.5 | C38: =B38/'- 3 -'!$D38*100 -> 14.83613082 | D38: 7303.99244 | E38: =SUM('- 6 -'!$E38:H38) -> 3399.3 | F38: =IF(E38=0,"",'- 6 -'!$E38/E38*100) -> 51.12228988 | G38: =IF(E38=0,"",'- 6 -'!$F38/E38*100) -> 0 | H38: =IF(E38=0,"",'- 6 -'!$G38/E38*100) -> 38.62559939 | I38: =IF(E38=0,"",'- 6 -'!$H38/E38*100) -> 10.25211073
A39: SOUTHWEST HORIZON | B39: 0 | C39: =B39/'- 3 -'!$D39*100 -> 0 | E39: =SUM('- 6 -'!$E39:H39) -> 0 | F39: =IF(E39=0,"",'- 6 -'!$E39/E39*100) ->  | G39: =IF(E39=0,"",'- 6 -'!$F39/E39*100) ->  | H39: =IF(E39=0,"",'- 6 -'!$G39/E39*100) ->  | I39: =IF(E39=0,"",'- 6 -'!$H39/E39*100) -> 
A40: ST. JAMES-ASSINIBOIA | B40: 5697881 | C40: =B40/'- 3 -'!$D40*100 -> 4.635449508 | D40: 5806.521008 | E40: =SUM('- 6 -'!$E40:H40) -> 981.29 | F40: =IF(E40=0,"",'- 6 -'!$E40/E40*100) -> 54.85534348 | G40: =IF(E40=0,"",'- 6 -'!$F40/E40*100) -> 0 | H40: =IF(E40=0,"",'- 6 -'!$G40/E40*100) -> 45.14465652 | I40: =IF(E40=0,"",'- 6 -'!$H40/E40*100) -> 0
A41: SUNRISE | B41: 18488321 | C41: =B41/'- 3 -'!$D41*100 -> 24.96143048 | D41: 6375.283103 | E41: =SUM('- 6 -'!$E41:H41) -> 2900 | F41: =IF(E41=0,"",'- 6 -'!$E41/E41*100) -> 68.5862069 | G41: =IF(E41=0,"",'- 6 -'!$F41/E41*100) -> 0 | H41: =IF(E41=0,"",'- 6 -'!$G41/E41*100) -> 27.65517241 | I41: =IF(E41=0,"",'- 6 -'!$H41/E41*100) -> 3.75862069
A42: SWAN VALLEY | B42: 1977546 | C42: =B42/'- 3 -'!$D42*100 -> 7.822937593 | D42: 8274.251046 | E42: =SUM('- 6 -'!$E42:H42) -> 239 | F42: =IF(E42=0,"",'- 6 -'!$E42/E42*100) -> 81.58995816 | G42: =IF(E42=0,"",'- 6 -'!$F42/E42*100) -> 0 | H42: =IF(E42=0,"",'- 6 -'!$G42/E42*100) -> 18.41004184 | I42: =IF(E42=0,"",'- 6 -'!$H42/E42*100) -> 0
A43: TURTLE MOUNTAIN | B43: 0 | C43: =B43/'- 3 -'!$D43*100 -> 0 | E43: =SUM('- 6 -'!$E43:H43) -> 0 | F43: =IF(E43=0,"",'- 6 -'!$E43/E43*100) ->  | G43: =IF(E43=0,"",'- 6 -'!$F43/E43*100) ->  | H43: =IF(E43=0,"",'- 6 -'!$G43/E43*100) ->  | I43: =IF(E43=0,"",'- 6 -'!$H43/E43*100) -> 
A44: TURTLE RIVER | B44: 0 | C44: =B44/'- 3 -'!$D44*100 -> 0 | E44: =SUM('- 6 -'!$E44:H44) -> 0 | F44: =IF(E44=0,"",'- 6 -'!$E44/E44*100) ->  | G44: =IF(E44=0,"",'- 6 -'!$F44/E44*100) ->  | H44: =IF(E44=0,"",'- 6 -'!$G44/E44*100) ->  | I44: =IF(E44=0,"",'- 6 -'!$H44/E44*100) -> 
A45: WESTERN | B45: 7554300 | C45: =B45/'- 3 -'!$D45*100 -> 28.10657079 | D45: 6420.994475 | E45: =SUM('- 6 -'!$E45:H45) -> 1176.5 | F45: =IF(E45=0,"",'- 6 -'!$E45/E45*100) -> 72.5881853 | G45: =IF(E45=0,"",'- 6 -'!$F45/E45*100) -> 0 | H45: =IF(E45=0,"",'- 6 -'!$G45/E45*100) -> 27.4118147 | I45: =IF(E45=0,"",'- 6 -'!$H45/E45*100) -> 0
A46: WINNIPEG | B46: 48772962 | C46: =B46/'- 3 -'!$D46*100 -> 10.82166122 | D46: 6050.4853 | E46: =SUM('- 6 -'!$E46:H46) -> 8061 | F46: =IF(E46=0,"",'- 6 -'!$E46/E46*100) -> 60.78650292 | G46: =IF(E46=0,"",'- 6 -'!$F46/E46*100) -> 0 | H46: =IF(E46=0,"",'- 6 -'!$G46/E46*100) -> 33.74271182 | I46: =IF(E46=0,"",'- 6 -'!$H46/E46*100) -> 5.470785262
A48: PROVINCE | B48: =SUM(B11:B46) -> 229580584.5 | C48: =B48/'- 3 -'!$D48*100 -> 8.274384799 | D48: =B48/E48 -> 6158.543448 | E48: =SUM(E11:E46) -> 37278.39 | F48: =IF(E48=0,"",'- 6 -'!$E48/E48*100) -> 60.30944469 | G48: =IF(E48=0,"",'- 6 -'!$F48/E48*100) -> 0.6464871471 | H48: =IF(E48=0,"",'- 6 -'!$G48/E48*100) -> 34.85933808 | I48: =IF(E48=0,"",'- 6 -'!$H48/E48*100) -> 4.184730081
A50: WHITESHELL | B50: 0 | C50: =B50/'- 3 -'!$D50*100 -> 0 | D50: =IF(E50=0,"",B50/E50) ->  | E50: =SUM('- 6 -'!$E50:H50) -> 0 | F50: =IF(E50=0,"",'- 6 -'!$E50/E50*100) ->  | G50: =IF(E50=0,"",'- 6 -'!$F50/E50*100) ->  | H50: =IF(E50=0,"",'- 6 -'!$G50/E50*100) ->  | I50: =IF(E50=0,"",'- 6 -'!$H50/E50*100) -> 
A52: (1) No one language program comprises 90% or more of Regular Instruction enrolment.

Sheet - 21 -
B2: =AEXP_BP -> ANALYSIS OF EXPENSE BY PROGRAM | I2: PAGE 4 OF 16
B3: =OPYEAR -> OPERATING FUND 2023/2024 BUDGET
B5: FUNCTION 200: STUDENT SUPPORT SERVICES
B6: ADMINISTRATION / COORDINATION | E6: CLINICAL AND RELATED SERVICES | H6: SPECIAL PLACEMENT
D8: PER PUPIL | G8: PER PUPIL | I8: %
A9: DIVISION / DISTRICT | B9: AMOUNT | C9: % | E9: AMOUNT | F9: % | H9: AMOUNT
A11: BEAUTIFUL PLAINS | B11: 193025 | C11: =B11/'- 3 -'!$D11*100 -> 0.7291585135 | D11: =B11/'- 7 -'!$E11 -> 92.93452094 | E11: 377005 | F11: =E11/'- 3 -'!$D11*100 -> 1.424149231 | G11: =E11/'- 7 -'!$E11 -> 181.5142032 | H11: 263695 | I11: =H11/'- 3 -'!$D11*100 -> 0.9961168461
A12: BORDER LAND | B12: 197294 | C12: =B12/'- 3 -'!$D12*100 -> 0.5196816649 | D12: =B12/'- 7 -'!$E12 -> 95.01276186 | E12: 778504 | F12: =E12/'- 3 -'!$D12*100 -> 2.05061611 | G12: =E12/'- 7 -'!$E12 -> 374.9116301 | H12: 0 | I12: =H12/'- 3 -'!$D12*100 -> 0
A13: BRANDON | B13: 214000 | C13: =B13/'- 3 -'!$D13*100 -> 0.1752934283 | D13: =B13/'- 7 -'!$E13 -> 23.50873338 | E13: 3503685 | F13: =E13/'- 3 -'!$D13*100 -> 2.869967081 | G13: =E13/'- 7 -'!$E13 -> 384.8934417 | H13: 587305 | I13: =H13/'- 3 -'!$D13*100 -> 0.4810780697
A14: DSFM | B14: 523888 | C14: =B14/'- 3 -'!$D14*100 -> 0.4765155714 | D14: =B14/'- 7 -'!$E14 -> 86.22251481 | E14: 1551183 | F14: =E14/'- 3 -'!$D14*100 -> 1.410917703 | G14: =E14/'- 7 -'!$E14 -> 255.2967413 | H14: 1147478 | I14: =H14/'- 3 -'!$D14*100 -> 1.043717617
A15: EVERGREEN | B15: 129060 | C15: =B15/'- 3 -'!$D15*100 -> 0.550660699 | D15: =B15/'- 7 -'!$E15 -> 92.44985673 | E15: 476420 | F15: =E15/'- 3 -'!$D15*100 -> 2.032742679 | G15: =E15/'- 7 -'!$E15 -> 341.2750716 | H15: 28000 | I15: =H15/'- 3 -'!$D15*100 -> 0.1194676861
A16: FLIN FLON | B16: 162500 | C16: =B16/'- 3 -'!$D16*100 -> 0.964539492 | D16: =B16/'- 7 -'!$E16 -> 191.8536009 | E16: 401668 | F16: =E16/'- 3 -'!$D16*100 -> 2.384151684 | G16: =E16/'- 7 -'!$E16 -> 474.2243211 | H16: 199712 | I16: =H16/'- 3 -'!$D16*100 -> 1.185416068
A17: FORT LA BOSSE | B17: 141920 | C17: =B17/'- 3 -'!$D17*100 -> 0.6602248226 | D17: =B17/'- 7 -'!$E17 -> 93.80039656 | E17: 337950 | F17: =E17/'- 3 -'!$D17*100 -> 1.572174315 | G17: =E17/'- 7 -'!$E17 -> 223.3641771 | H17: 0 | I17: =H17/'- 3 -'!$D17*100 -> 0
A18: FRONTIER | B18: 76500 | C18: =B18/'- 3 -'!$D18*100 -> 0.04620121418 | D18: =B18/'- 7 -'!$E18 -> 12.31091085 | E18: 1958821 | F18: =E18/'- 3 -'!$D18*100 -> 1.183005341 | G18: =E18/'- 7 -'!$E18 -> 315.2270679 | H18: 0 | I18: =H18/'- 3 -'!$D18*100 -> 0
A19: GARDEN VALLEY | B19: 152970 | C19: =B19/'- 3 -'!$D19*100 -> 0.2728906987 | D19: =B19/'- 7 -'!$E19 -> 36.24881517 | E19: 1331630 | F19: =E19/'- 3 -'!$D19*100 -> 2.375560182 | G19: =E19/'- 7 -'!$E19 -> 315.5521327 | H19: 1455750 | I19: =H19/'- 3 -'!$D19*100 -> 2.596983949
A20: HANOVER | B20: 510000 | C20: =B20/'- 3 -'!$D20*100 -> 0.4983111161 | D20: =B20/'- 7 -'!$E20 -> 62.80014777 | E20: 2616100 | F20: =E20/'- 3 -'!$D20*100 -> 2.55614061 | G20: =E20/'- 7 -'!$E20 -> 322.1401305 | H20: 824500 | I20: =H20/'- 3 -'!$D20*100 -> 0.8056029711
A21: INTERLAKE | B21: 185234 | C21: =B21/'- 3 -'!$D21*100 -> 0.452077324 | D21: =B21/'- 7 -'!$E21 -> 65.00579049 | E21: 805975 | F21: =E21/'- 3 -'!$D21*100 -> 1.967041802 | G21: =E21/'- 7 -'!$E21 -> 282.847868 | H21: 224940 | I21: =H21/'- 3 -'!$D21*100 -> 0.5489827638
A22: KELSEY | B22: 28732 | C22: =B22/'- 3 -'!$D22*100 -> 0.1312261575 | D22: =B22/'- 7 -'!$E22 -> 20.09230769 | E22: 288522 | F22: =E22/'- 3 -'!$D22*100 -> 1.317751407 | G22: =E22/'- 7 -'!$E22 -> 201.7636364 | H22: 1107182 | I22: =H22/'- 3 -'!$D22*100 -> 5.056774313
A23: LAKESHORE | B23: 156250 | C23: =B23/'- 3 -'!$D23*100 -> 0.9171657565 | D23: =B23/'- 7 -'!$E23 -> 171.2328767 | E23: 323000 | F23: =E23/'- 3 -'!$D23*100 -> 1.895965052 | G23: =E23/'- 7 -'!$E23 -> 353.9726027 | H23: 0 | I23: =H23/'- 3 -'!$D23*100 -> 0
A24: LORD SELKIRK | B24: 339314 | C24: =B24/'- 3 -'!$D24*100 -> 0.5341688588 | D24: =B24/'- 7 -'!$E24 -> 90.21909067 | E24: 1897628 | F24: =E24/'- 3 -'!$D24*100 -> 2.987362099 | G24: =E24/'- 7 -'!$E24 -> 504.554108 | H24: 341070 | I24: =H24/'- 3 -'!$D24*100 -> 0.5369332614
A25: LOUIS RIEL | B25: 1130006 | C25: =B25/'- 3 -'!$D25*100 -> 0.5080793655 | D25: =B25/'- 7 -'!$E25 -> 69.88719154 | E25: 4687401 | F25: =E25/'- 3 -'!$D25*100 -> 2.107574407 | G25: =E25/'- 7 -'!$E25 -> 289.9004886 | H25: 11275119 | I25: =H25/'- 3 -'!$D25*100 -> 5.069579548
A26: MOUNTAIN VIEW | B26: 163497 | C26: =B26/'- 3 -'!$D26*100 -> 0.3544076977 | D26: =B26/'- 7 -'!$E26 -> 53.94160343 | E26: 864092 | F26: =E26/'- 3 -'!$D26*100 -> 1.873067128 | G26: =E26/'- 7 -'!$E26 -> 285.0847905 | H26: 5000 | I26: =H26/'- 3 -'!$D26*100 -> 0.01083835476
A27: MYSTERY LAKE | B27: 250614 | C27: =B27/'- 3 -'!$D27*100 -> 0.5403373237 | D27: =B27/'- 7 -'!$E27 -> 90.98348158 | E27: 490470 | F27: =E27/'- 3 -'!$D27*100 -> 1.057479818 | G27: =E27/'- 7 -'!$E27 -> 178.0613541 | H27: 2770008 | I27: =H27/'- 3 -'!$D27*100 -> 5.972286901
A28: PARK WEST | B28: 146349 | C28: =B28/'- 3 -'!$D28*100 -> 0.4513378597 | D28: =B28/'- 7 -'!$E28 -> 69.08142554 | E28: 542530 | F28: =E28/'- 3 -'!$D28*100 -> 1.673153414 | G28: =E28/'- 7 -'!$E28 -> 256.0915742 | H28: 0 | I28: =H28/'- 3 -'!$D28*100 -> 0
A29: PEMBINA TRAILS | B29: 637100 | C29: =B29/'- 3 -'!$D29*100 -> 0.3121943811 | D29: =B29/'- 7 -'!$E29 -> 40.66613049 | E29: 4064500 | F29: =E29/'- 3 -'!$D29*100 -> 1.991703127 | G29: =E29/'- 7 -'!$E29 -> 259.4372742 | H29: 739000 | I29: =H29/'- 3 -'!$D29*100 -> 0.3621278412
A30: PINE CREEK | B30: 195474 | C30: =B30/'- 3 -'!$D30*100 -> 1.130667676 | D30: =B30/'- 7 -'!$E30 -> 180.827012 | E30: 507098 | F30: =E30/'- 3 -'!$D30*100 -> 2.933174321 | G30: =E30/'- 7 -'!$E30 -> 469.1008326 | H30: 0 | I30: =H30/'- 3 -'!$D30*100 -> 0
A31: PORTAGE LA PRAIRIE | B31: 181165 | C31: =B31/'- 3 -'!$D31*100 -> 0.3912998111 | D31: =B31/'- 7 -'!$E31 -> 52.60307782 | E31: 1016582 | F31: =E31/'- 3 -'!$D31*100 -> 2.195724034 | G31: =E31/'- 7 -'!$E31 -> 295.1747967 | H31: 903300 | I31: =H31/'- 3 -'!$D31*100 -> 1.951045287
A32: PRAIRIE ROSE | B32: 166050 | C32: =B32/'- 3 -'!$D32*100 -> 0.4770463017 | D32: =B32/'- 7 -'!$E32 -> 70.53950722 | E32: 728902 | F32: =E32/'- 3 -'!$D32*100 -> 2.094068072 | G32: =E32/'- 7 -'!$E32 -> 309.6440102 | H32: 0 | I32: =H32/'- 3 -'!$D32*100 -> 0
A33: PRAIRIE SPIRIT | B33: 222085 | C33: =B33/'- 3 -'!$D33*100 -> 0.7097954877 | D33: =B33/'- 7 -'!$E33 -> 103.391527 | E33: 538575 | F33: =E33/'- 3 -'!$D33*100 -> 1.721314383 | G33: =E33/'- 7 -'!$E33 -> 250.7332402 | H33: 0 | I33: =H33/'- 3 -'!$D33*100 -> 0
A34: RED RIVER VALLEY | B34: 257075 | C34: =B34/'- 3 -'!$D34*100 -> 0.7258644733 | D34: =B34/'- 7 -'!$E34 -> 113 | E34: 728267 | F34: =E34/'- 3 -'!$D34*100 -> 2.056299299 | G34: =E34/'- 7 -'!$E34 -> 320.1173626 | H34: 509819 | I34: =H34/'- 3 -'!$D34*100 -> 1.439500146
A35: RIVER EAST TRANSCONA | B35: 1097807 | C35: =B35/'- 3 -'!$D35*100 -> 0.4882731551 | D35: =B35/'- 7 -'!$E35 -> 64.35165157 | E35: 4282635 | F35: =E35/'- 3 -'!$D35*100 -> 1.90479356 | G35: =E35/'- 7 -'!$E35 -> 251.0410622 | H35: 3176850 | I35: =H35/'- 3 -'!$D35*100 -> 1.412972018
A36: ROLLING RIVER | B36: 172655 | C36: =B36/'- 3 -'!$D36*100 -> 0.645399322 | D36: =B36/'- 7 -'!$E36 -> 97.49011858 | E36: 459080 | F36: =E36/'- 3 -'!$D36*100 -> 1.716080743 | G36: =E36/'- 7 -'!$E36 -> 259.2207792 | H36: 0 | I36: =H36/'- 3 -'!$D36*100 -> 0
A37: SEINE RIVER | B37: 253018 | C37: =B37/'- 3 -'!$D37*100 -> 0.414667622 | D37: =B37/'- 7 -'!$E37 -> 54.80732156 | E37: 1089148 | F37: =E37/'- 3 -'!$D37*100 -> 1.784989254 | G37: =E37/'- 7 -'!$E37 -> 235.9250514 | H37: 0 | I37: =H37/'- 3 -'!$D37*100 -> 0
A38: SEVEN OAKS | B38: 558200 | C38: =B38/'- 3 -'!$D38*100 -> 0.3335497941 | D38: =B38/'- 7 -'!$E38 -> 47.19509617 | E38: 1767120 | F38: =E38/'- 3 -'!$D38*100 -> 1.055934275 | G38: =E38/'- 7 -'!$E38 -> 149.4077362 | H38: 476070 | I38: =H38/'- 3 -'!$D38*100 -> 0.2844733975
A39: SOUTHWEST HORIZON | B39: 256250 | C39: =B39/'- 3 -'!$D39*100 -> 1.00460255 | D39: =B39/'- 7 -'!$E39 -> 177.704577 | E39: 390900 | F39: =E39/'- 3 -'!$D39*100 -> 1.532484436 | G39: =E39/'- 7 -'!$E39 -> 271.0818308 | H39: 0 | I39: =H39/'- 3 -'!$D39*100 -> 0
A40: ST. JAMES-ASSINIBOIA | B40: 223426 | C40: =B40/'- 3 -'!$D40*100 -> 0.1817658076 | D40: =B40/'- 7 -'!$E40 -> 28.04745167 | E40: 3543408 | F40: =E40/'- 3 -'!$D40*100 -> 2.882701283 | G40: =E40/'- 7 -'!$E40 -> 444.81647 | H40: 390500 | I40: =H40/'- 3 -'!$D40*100 -> 0.3176870547
A41: SUNRISE | B41: 283077 | C41: =B41/'- 3 -'!$D41*100 -> 0.3821875905 | D41: =B41/'- 7 -'!$E41 -> 61.53847826 | E41: 2075901 | F41: =E41/'- 3 -'!$D41*100 -> 2.802713048 | G41: =E41/'- 7 -'!$E41 -> 451.2828261 | H41: 658529 | I41: =H41/'- 3 -'!$D41*100 -> 0.8890924088
A42: SWAN VALLEY | B42: 177971 | C42: =B42/'- 3 -'!$D42*100 -> 0.7040321825 | D42: =B42/'- 7 -'!$E42 -> 132.9133682 | E42: 381075 | F42: =E42/'- 3 -'!$D42*100 -> 1.507487534 | G42: =E42/'- 7 -'!$E42 -> 284.596714 | H42: 0 | I42: =H42/'- 3 -'!$D42*100 -> 0
A43: TURTLE MOUNTAIN | B43: 127637 | C43: =B43/'- 3 -'!$D43*100 -> 0.8549953662 | D43: =B43/'- 7 -'!$E43 -> 123.4400387 | E43: 429334 | F43: =E43/'- 3 -'!$D43*100 -> 2.875957446 | G43: =E43/'- 7 -'!$E43 -> 415.2166344 | H43: 0 | I43: =H43/'- 3 -'!$D43*100 -> 0
A44: TURTLE RIVER | B44: 97943 | C44: =B44/'- 3 -'!$D44*100 -> 0.8030058423 | D44: =B44/'- 7 -'!$E44 -> 167.8543273 | E44: 180970 | F44: =E44/'- 3 -'!$D44*100 -> 1.483719789 | G44: =E44/'- 7 -'!$E44 -> 310.1456727 | H44: 0 | I44: =H44/'- 3 -'!$D44*100 -> 0
A45: WESTERN | B45: 173631 | C45: =B45/'- 3 -'!$D45*100 -> 0.6460124689 | D45: =B45/'- 7 -'!$E45 -> 81.11702873 | E45: 436742 | F45: =E45/'- 3 -'!$D45*100 -> 1.624944726 | G45: =E45/'- 7 -'!$E45 -> 204.0373744 | H45: 289829 | I45: =H45/'- 3 -'!$D45*100 -> 1.078339397
A46: WINNIPEG | B46: 746800 | C46: =B46/'- 3 -'!$D46*100 -> 0.1656987042 | D46: =B46/'- 7 -'!$E46 -> 27.31379039 | E46: 14991557 | F46: =E46/'- 3 -'!$D46*100 -> 3.326300975 | G46: =E46/'- 7 -'!$E46 -> 548.3077739 | H46: 35858305 | I46: =H46/'- 3 -'!$D46*100 -> 7.95617926
A48: PROVINCE | B48: =SUM(B11:B46) -> 10528517 | C48: =B48/'- 3 -'!$D48*100 -> 0.3794615351 | D48: =B48/'- 7 -'!$E48 -> 57.4202044 | E48: =SUM(E11:E46) -> 60844378 | F48: =E48/'- 3 -'!$D48*100 -> 2.192911032 | G48: =E48/'- 7 -'!$E48 -> 331.831788 | H48: =SUM(H11:H46) -> 63231961 | I48: =H48/'- 3 -'!$D48*100 -> 2.278962649
A50: WHITESHELL | B50: 25545 | C50: =B50/'- 3 -'!$D50*100 -> 0.6424619433 | D50: =B50/'- 7 -'!$E50 -> 148.5174419 | E50: 72400 | F50: =E50/'- 3 -'!$D50*100 -> 1.820874719 | G50: =E50/'- 7 -'!$E50 -> 420.9302326 | H50: 0 | I50: =H50/'- 3 -'!$D50*100 -> 0

Sheet - 22 -
B2: =AEXP_BP -> ANALYSIS OF EXPENSE BY PROGRAM | J2: PAGE 5 OF 16
B3: =OPYEAR -> OPERATING FUND 2023/2024 BUDGET
B5: FUNCTION 200: STUDENT SUPPORT SERVICES (CONT'D)
B6: REGULAR PLACEMENT (1) | E6: OTHER RESOURCE SERVICES | H6: COUNSELLING AND GUIDANCE
D8: PER PUPIL | G8: PER PUPIL | J8: PER PUPIL
A9: DIVISION / DISTRICT | B9: AMOUNT | C9: % | E9: AMOUNT | F9: % | H9: AMOUNT | I9: %
A11: BEAUTIFUL PLAINS | B11: 1197795 | C11: =B11/'- 3 -'!$D11*100 -> 4.524711419 | D11: =B11/'- 7 -'!$E11 -> 576.694752 | E11: 1030649 | F11: =E11/'- 3 -'!$D11*100 -> 3.89331171 | G11: =E11/'- 7 -'!$E11 -> 496.2200289 | H11: 451043 | I11: =H11/'- 3 -'!$D11*100 -> 1.703830299 | J11: =H11/'- 7 -'!$E11 -> 217.1608089
A12: BORDER LAND | B12: 2769934 | C12: =B12/'- 3 -'!$D12*100 -> 7.296136288 | D12: =B12/'- 7 -'!$E12 -> 1333.943655 | E12: 1554203 | F12: =E12/'- 3 -'!$D12*100 -> 4.093843719 | G12: =E12/'- 7 -'!$E12 -> 748.4724296 | H12: 542599 | I12: =H12/'- 3 -'!$D12*100 -> 1.429231257 | J12: =H12/'- 7 -'!$E12 -> 261.3045991
A13: BRANDON | B13: 12532350 | C13: =B13/'- 3 -'!$D13*100 -> 10.26560092 | D13: =B13/'- 7 -'!$E13 -> 1376.727452 | E13: 4361960 | F13: =E13/'- 3 -'!$D13*100 -> 3.573004311 | G13: =E13/'- 7 -'!$E13 -> 479.1782929 | H13: 3172990 | I13: =H13/'- 3 -'!$D13*100 -> 2.599085491 | J13: =H13/'- 7 -'!$E13 -> 348.5653081
A14: DSFM | B14: 5552916 | C14: =B14/'- 3 -'!$D14*100 -> 5.050795095 | D14: =B14/'- 7 -'!$E14 -> 913.9098091 | E14: 3570522 | F14: =E14/'- 3 -'!$D14*100 -> 3.247658528 | G14: =E14/'- 7 -'!$E14 -> 587.6435155 | H14: 1937342 | I14: =H14/'- 3 -'!$D14*100 -> 1.762158381 | J14: =H14/'- 7 -'!$E14 -> 318.8515471
A15: EVERGREEN | B15: 1620000 | C15: =B15/'- 3 -'!$D15*100 -> 6.912058983 | D15: =B15/'- 7 -'!$E15 -> 1160.458453 | E15: 997075 | F15: =E15/'- 3 -'!$D15*100 -> 4.254222969 | G15: =E15/'- 7 -'!$E15 -> 714.237106 | H15: 597675 | I15: =H15/'- 3 -'!$D15*100 -> 2.550101761 | J15: =H15/'- 7 -'!$E15 -> 428.1339542
A16: FLIN FLON | B16: 1345727 | C16: =B16/'- 3 -'!$D16*100 -> 7.987734382 | D16: =B16/'- 7 -'!$E16 -> 1588.815821 | E16: 756077 | F16: =E16/'- 3 -'!$D16*100 -> 4.487791542 | G16: =E16/'- 7 -'!$E16 -> 892.6528926 | H16: 315476 | I16: =H16/'- 3 -'!$D16*100 -> 1.872548066 | J16: =H16/'- 7 -'!$E16 -> 372.4628099
A17: FORT LA BOSSE | B17: 986180 | C17: =B17/'- 3 -'!$D17*100 -> 4.587799574 | D17: =B17/'- 7 -'!$E17 -> 651.8043622 | E17: 902450 | F17: =E17/'- 3 -'!$D17*100 -> 4.198279954 | G17: =E17/'- 7 -'!$E17 -> 596.4639788 | H17: 195850 | I17: =H17/'- 3 -'!$D17*100 -> 0.911112116 | J17: =H17/'- 7 -'!$E17 -> 129.4448116
A18: FRONTIER | B18: 14670494 | C18: =B18/'- 3 -'!$D18*100 -> 8.860060593 | D18: =B18/'- 7 -'!$E18 -> 2360.877696 | E18: 4641492 | F18: =E18/'- 3 -'!$D18*100 -> 2.803170797 | G18: =E18/'- 7 -'!$E18 -> 746.9411007 | H18: 5636137 | I18: =H18/'- 3 -'!$D18*100 -> 3.403874152 | J18: =H18/'- 7 -'!$E18 -> 907.0062762
A19: GARDEN VALLEY | B19: 3805200 | C19: =B19/'- 3 -'!$D19*100 -> 6.788283236 | D19: =B19/'- 7 -'!$E19 -> 901.7061611 | E19: 2456060 | F19: =E19/'- 3 -'!$D19*100 -> 4.381486105 | G19: =E19/'- 7 -'!$E19 -> 582.0047393 | H19: 1164240 | I19: =H19/'- 3 -'!$D19*100 -> 2.076944937 | J19: =H19/'- 7 -'!$E19 -> 275.8862559
A20: HANOVER | B20: 5883600 | C20: =B20/'- 3 -'!$D20*100 -> 5.748751535 | D20: =B20/'- 7 -'!$E20 -> 724.4920576 | E20: 7473000 | F20: =E20/'- 3 -'!$D20*100 -> 7.301723473 | G20: =E20/'- 7 -'!$E20 -> 920.2068711 | H20: 2187400 | I20: =H20/'- 3 -'!$D20*100 -> 2.137266148 | J20: =H20/'- 7 -'!$E20 -> 269.3510651
A21: INTERLAKE | B21: 3379930 | C21: =B21/'- 3 -'!$D21*100 -> 8.248970004 | D21: =B21/'- 7 -'!$E21 -> 1186.148447 | E21: 2399561 | F21: =E21/'- 3 -'!$D21*100 -> 5.856306702 | G21: =E21/'- 7 -'!$E21 -> 842.0989647 | H21: 1330360 | I21: =H21/'- 3 -'!$D21*100 -> 3.246842312 | J21: =H21/'- 7 -'!$E21 -> 466.8748903
A22: KELSEY | B22: 845730 | C22: =B22/'- 3 -'!$D22*100 -> 3.862658298 | D22: =B22/'- 7 -'!$E22 -> 591.4195804 | E22: 1464785 | F22: =E22/'- 3 -'!$D22*100 -> 6.69003575 | G22: =E22/'- 7 -'!$E22 -> 1024.325175 | H22: 662553 | I22: =H22/'- 3 -'!$D22*100 -> 3.026043588 | J22: =H22/'- 7 -'!$E22 -> 463.3237762
A23: LAKESHORE | B23: 1585000 | C23: =B23/'- 3 -'!$D23*100 -> 9.303729434 | D23: =B23/'- 7 -'!$E23 -> 1736.986301 | E23: 694000 | F23: =E23/'- 3 -'!$D23*100 -> 4.073683424 | G23: =E23/'- 7 -'!$E23 -> 760.5479452 | H23: 358000 | I23: =H23/'- 3 -'!$D23*100 -> 2.101410181 | J23: =H23/'- 7 -'!$E23 -> 392.3287671
A24: LORD SELKIRK | B24: 3572920 | C24: =B24/'- 3 -'!$D24*100 -> 5.624709263 | D24: =B24/'- 7 -'!$E24 -> 949.9920234 | E24: 2764325 | F24: =E24/'- 3 -'!$D24*100 -> 4.351769543 | G24: =E24/'- 7 -'!$E24 -> 734.9973411 | H24: 1827581 | I24: =H24/'- 3 -'!$D24*100 -> 2.877089826 | J24: =H24/'- 7 -'!$E24 -> 485.92954
A25: LOUIS RIEL | B25: 14158162 | C25: =B25/'- 3 -'!$D25*100 -> 6.365868823 | D25: =B25/'- 7 -'!$E25 -> 875.6362175 | E25: 11445564 | F25: =E25/'- 3 -'!$D25*100 -> 5.146215945 | G25: =E25/'- 7 -'!$E25 -> 707.870864 | H25: 4335547 | I25: =H25/'- 3 -'!$D25*100 -> 1.949371923 | J25: =H25/'- 7 -'!$E25 -> 268.1394644
A26: MOUNTAIN VIEW | B26: 2182986 | C26: =B26/'- 3 -'!$D26*100 -> 4.731995341 | D26: =B26/'- 7 -'!$E26 -> 720.2197295 | E26: 2264523 | F26: =E26/'- 3 -'!$D26*100 -> 4.908740728 | G26: =E26/'- 7 -'!$E26 -> 747.1207522 | H26: 1266876 | I26: =H26/'- 3 -'!$D26*100 -> 2.746170305 | J26: =H26/'- 7 -'!$E26 -> 417.9729462
A27: MYSTERY LAKE | B27: 1718230 | C27: =B27/'- 3 -'!$D27*100 -> 3.704596709 | D27: =B27/'- 7 -'!$E27 -> 623.7901616 | E27: 2822577 | F27: =E27/'- 3 -'!$D27*100 -> 6.085628505 | G27: =E27/'- 7 -'!$E27 -> 1024.71483 | H27: 1293548 | I27: =H27/'- 3 -'!$D27*100 -> 2.788959373 | J27: =H27/'- 7 -'!$E27 -> 469.6126339
A28: PARK WEST | B28: 1442354 | C28: =B28/'- 3 -'!$D28*100 -> 4.448195527 | D28: =B28/'- 7 -'!$E28 -> 680.8373849 | E28: 1689581 | F28: =E28/'- 3 -'!$D28*100 -> 5.210639446 | G28: =E28/'- 7 -'!$E28 -> 797.5364645 | H28: 664472 | I28: =H28/'- 3 -'!$D28*100 -> 2.049220495 | J28: =H28/'- 7 -'!$E28 -> 313.6521123
A29: PEMBINA TRAILS | B29: 15871320 | C29: =B29/'- 3 -'!$D29*100 -> 7.777329972 | D29: =B29/'- 7 -'!$E29 -> 1013.06729 | E29: 15643872 | F29: =E29/'- 3 -'!$D29*100 -> 7.665874961 | G29: =E29/'- 7 -'!$E29 -> 998.5492704 | H29: 4314947 | I29: =H29/'- 3 -'!$D29*100 -> 2.114428203 | J29: =H29/'- 7 -'!$E29 -> 275.423321
A30: PINE CREEK | B30: 502025 | C30: =B30/'- 3 -'!$D30*100 -> 2.903830893 | D30: =B30/'- 7 -'!$E30 -> 464.4079556 | E30: 834504 | F30: =E30/'- 3 -'!$D30*100 -> 4.826967772 | G30: =E30/'- 7 -'!$E30 -> 771.9740981 | H30: 49499 | I30: =H30/'- 3 -'!$D30*100 -> 0.2863138796 | J30: =H30/'- 7 -'!$E30 -> 45.79000925
A31: PORTAGE LA PRAIRIE | B31: 2997120 | C31: =B31/'- 3 -'!$D31*100 -> 6.47350476 | D31: =B31/'- 7 -'!$E31 -> 870.2439024 | E31: 1676700 | F31: =E31/'- 3 -'!$D31*100 -> 3.621518468 | G31: =E31/'- 7 -'!$E31 -> 486.8466899 | H31: 1491400 | I31: =H31/'- 3 -'!$D31*100 -> 3.221287435 | J31: =H31/'- 7 -'!$E31 -> 433.0429733
A32: PRAIRIE ROSE | B32: 1843878 | C32: =B32/'- 3 -'!$D32*100 -> 5.297291061 | D32: =B32/'- 7 -'!$E32 -> 783.2956669 | E32: 1890861 | F32: =E32/'- 3 -'!$D32*100 -> 5.432268877 | G32: =E32/'- 7 -'!$E32 -> 803.2544605 | H32: 1012489 | I32: =H32/'- 3 -'!$D32*100 -> 2.908787311 | J32: =H32/'- 7 -'!$E32 -> 430.1142736
A33: PRAIRIE SPIRIT | B33: 1457765 | C33: =B33/'- 3 -'!$D33*100 -> 4.659094577 | D33: =B33/'- 7 -'!$E33 -> 678.6615456 | E33: 1927250 | F33: =E33/'- 3 -'!$D33*100 -> 6.159593641 | G33: =E33/'- 7 -'!$E33 -> 897.2299814 | H33: 552525 | I33: =H33/'- 3 -'!$D33*100 -> 1.765899326 | J33: =H33/'- 7 -'!$E33 -> 257.2276536
A34: RED RIVER VALLEY | B34: 1752038 | C34: =B34/'- 3 -'!$D34*100 -> 4.946969328 | D34: =B34/'- 7 -'!$E34 -> 770.1265934 | E34: 1755240 | F34: =E34/'- 3 -'!$D34*100 -> 4.95601034 | G34: =E34/'- 7 -'!$E34 -> 771.5340659 | H34: 1117449 | I34: =H34/'- 3 -'!$D34*100 -> 3.155174676 | J34: =H34/'- 7 -'!$E34 -> 491.1863736
A35: RIVER EAST TRANSCONA | B35: 19274166 | C35: =B35/'- 3 -'!$D35*100 -> 8.572597774 | D35: =B35/'- 7 -'!$E35 -> 1129.8201 | E35: 13048904 | F35: =E35/'- 3 -'!$D35*100 -> 5.803779286 | G35: =E35/'- 7 -'!$E35 -> 764.9054193 | H35: 3554000 | I35: =H35/'- 3 -'!$D35*100 -> 1.580717552 | J35: =H35/'- 7 -'!$E35 -> 208.3296697
A36: ROLLING RIVER | B36: 794000 | C36: =B36/'- 3 -'!$D36*100 -> 2.968040669 | D36: =B36/'- 7 -'!$E36 -> 448.3342744 | E36: 1554785 | F36: =E36/'- 3 -'!$D36*100 -> 5.811920795 | G36: =E36/'- 7 -'!$E36 -> 877.9136081 | H36: 632565 | I36: =H36/'- 3 -'!$D36*100 -> 2.364582677 | J36: =H36/'- 7 -'!$E36 -> 357.1795596
A37: SEINE RIVER | B37: 4939866 | C37: =B37/'- 3 -'!$D37*100 -> 8.095876527 | D37: =B37/'- 7 -'!$E37 -> 1070.045706 | E37: 3123897 | F37: =E37/'- 3 -'!$D37*100 -> 5.119710615 | G37: =E37/'- 7 -'!$E37 -> 676.6808188 | H37: 1468972 | I37: =H37/'- 3 -'!$D37*100 -> 2.407477436 | J37: =H37/'- 7 -'!$E37 -> 318.2003682
A38: SEVEN OAKS | B38: 17198570 | C38: =B38/'- 3 -'!$D38*100 -> 10.27692491 | D38: =B38/'- 7 -'!$E38 -> 1454.1171 | E38: 5942420 | F38: =E38/'- 3 -'!$D38*100 -> 3.550865223 | G38: =E38/'- 7 -'!$E38 -> 502.4240118 | H38: 3731300 | I38: =H38/'- 3 -'!$D38*100 -> 2.229620829 | J38: =H38/'- 7 -'!$E38 -> 315.4766434
A39: SOUTHWEST HORIZON | B39: 1972700 | C39: =B39/'- 3 -'!$D39*100 -> 7.733773464 | D39: =B39/'- 7 -'!$E39 -> 1368.030513 | E39: 826300 | F39: =E39/'- 3 -'!$D39*100 -> 3.239426681 | G39: =E39/'- 7 -'!$E39 -> 573.0235784 | H39: 668250 | I39: =H39/'- 3 -'!$D39*100 -> 2.61980743 | J39: =H39/'- 7 -'!$E39 -> 463.4188627
A40: ST. JAMES-ASSINIBOIA | B40: 15335857 | C40: =B40/'- 3 -'!$D40*100 -> 12.47632072 | D40: =B40/'- 7 -'!$E40 -> 1925.164072 | E40: 6583340 | F40: =E40/'- 3 -'!$D40*100 -> 5.355805108 | G40: =E40/'- 7 -'!$E40 -> 826.4298268 | H40: 3413072 | I40: =H40/'- 3 -'!$D40*100 -> 2.776667839 | J40: =H40/'- 7 -'!$E40 -> 428.4549335
A41: SUNRISE | B41: 5592097 | C41: =B41/'- 3 -'!$D41*100 -> 7.549995508 | D41: =B41/'- 7 -'!$E41 -> 1215.673261 | E41: 4205342 | F41: =E41/'- 3 -'!$D41*100 -> 5.677711458 | G41: =E41/'- 7 -'!$E41 -> 914.2047826 | H41: 1072590 | I41: =H41/'- 3 -'!$D41*100 -> 1.448123965 | J41: =H41/'- 7 -'!$E41 -> 233.1717391
A42: SWAN VALLEY | B42: 3624203 | C42: =B42/'- 3 -'!$D42*100 -> 14.33691752 | D42: =B42/'- 7 -'!$E42 -> 2706.648992 | E42: 916262 | F42: =E42/'- 3 -'!$D42*100 -> 3.624623875 | G42: =E42/'- 7 -'!$E42 -> 684.2882748 | H42: 580547 | I42: =H42/'- 3 -'!$D42*100 -> 2.296575124 | J42: =H42/'- 7 -'!$E42 -> 433.5675878
A43: TURTLE MOUNTAIN | B43: 292888 | C43: =B43/'- 3 -'!$D43*100 -> 1.961953688 | D43: =B43/'- 7 -'!$E43 -> 283.2572534 | E43: 1790967 | F43: =E43/'- 3 -'!$D43*100 -> 11.99705795 | G43: =E43/'- 7 -'!$E43 -> 1732.076402 | H43: 265710 | I43: =H43/'- 3 -'!$D43*100 -> 1.779897826 | J43: =H43/'- 7 -'!$E43 -> 256.9729207
A44: TURTLE RIVER | B44: 1031672 | C44: =B44/'- 3 -'!$D44*100 -> 8.458375212 | D44: =B44/'- 7 -'!$E44 -> 1768.075407 | E44: 483756 | F44: =E44/'- 3 -'!$D44*100 -> 3.966173124 | G44: =E44/'- 7 -'!$E44 -> 829.059126 | H44: 93064 | I44: =H44/'- 3 -'!$D44*100 -> 0.7630043567 | J44: =H44/'- 7 -'!$E44 -> 159.4927164
A45: WESTERN | B45: 1285551 | C45: =B45/'- 3 -'!$D45*100 -> 4.783028234 | D45: =B45/'- 7 -'!$E45 -> 600.5844429 | E45: 1299727 | F45: =E45/'- 3 -'!$D45*100 -> 4.835771539 | G45: =E45/'- 7 -'!$E45 -> 607.2071946 | H45: 672986 | I45: =H45/'- 3 -'!$D45*100 -> 2.503915472 | J45: =H45/'- 7 -'!$E45 -> 314.4059799
A46: WINNIPEG | B46: 28003153 | C46: =B46/'- 3 -'!$D46*100 -> 6.213291597 | D46: =B46/'- 7 -'!$E46 -> 1024.199587 | E46: 21980951 | F46: =E46/'- 3 -'!$D46*100 -> 4.877095737 | G46: =E46/'- 7 -'!$E46 -> 803.9409323 | H46: 7565600 | I46: =H46/'- 3 -'!$D46*100 -> 1.678642362 | J46: =H46/'- 7 -'!$E46 -> 276.7075691
A48: PROVINCE | B48: =SUM(B11:B46) -> 203018377 | C48: =B48/'- 3 -'!$D48*100 -> 7.317048069 | D48: =B48/'- 7 -'!$E48 -> 1107.217351 | E48: =SUM(E11:E46) -> 138773482 | F48: =E48/'- 3 -'!$D48*100 -> 5.001577953 | G48: =E48/'- 7 -'!$E48 -> 756.839895 | H48: =SUM(H11:H46) -> 60196654 | I48: =H48/'- 3 -'!$D48*100 -> 2.169566211 | J48: =H48/'- 7 -'!$E48 -> 328.2992445
A50: WHITESHELL | B50: 275488 | C50: =B50/'- 3 -'!$D50*100 -> 6.928579207 | D50: =B50/'- 7 -'!$E50 -> 1601.674419 | E50: 2742 | F50: =E50/'- 3 -'!$D50*100 -> 0.06896185745 | G50: =E50/'- 7 -'!$E50 -> 15.94186047 | H50: 118306 | I50: =H50/'- 3 -'!$D50*100 -> 2.975419952 | J50: =H50/'- 7 -'!$E50 -> 687.8255814
A52: (1) Expenses shown are extra costs associated with special needs students in regular classes, not the total cost of educating those students.

Sheet - 23 -
B2: =AEXP_BP -> ANALYSIS OF EXPENSE BY PROGRAM | F2: PAGE 6 OF 16
B3: =OPYEAR -> OPERATING FUND 2023/2024 BUDGET
B5: FUNCTION 300: ADULT LEARNING CENTRES
B6: ADMINISTRATION AND OTHER | D6: INSTRUCTION
A9: DIVISION / DISTRICT | B9: AMOUNT | C9: % | D9: AMOUNT | E9: %
A11: BEAUTIFUL PLAINS | B11: 0 | C11: =B11/'- 3 -'!$D11*100 -> 0 | D11: 0 | E11: =D11/'- 3 -'!$D11*100 -> 0
A12: BORDER LAND | B12: 91950 | C12: =B12/'- 3 -'!$D12*100 -> 0.2422006198 | D12: 259230 | E12: =D12/'- 3 -'!$D12*100 -> 0.6828239986
A13: BRANDON | B13: 0 | C13: =B13/'- 3 -'!$D13*100 -> 0 | D13: 0 | E13: =D13/'- 3 -'!$D13*100 -> 0
A14: DSFM | B14: 103980 | C14: =B14/'- 3 -'!$D14*100 -> 0.09457763704 | D14: 156722 | E14: =D14/'- 3 -'!$D14*100 -> 0.1425504562
A15: EVERGREEN | B15: 0 | C15: =B15/'- 3 -'!$D15*100 -> 0 | D15: 0 | E15: =D15/'- 3 -'!$D15*100 -> 0
A16: FLIN FLON | B16: 19430 | C16: =B16/'- 3 -'!$D16*100 -> 0.1153292451 | D16: 74570 | E16: =D16/'- 3 -'!$D16*100 -> 0.4426197534
A17: FORT LA BOSSE | B17: 0 | C17: =B17/'- 3 -'!$D17*100 -> 0 | D17: 0 | E17: =D17/'- 3 -'!$D17*100 -> 0
A18: FRONTIER | B18: 271082 | C18: =B18/'- 3 -'!$D18*100 -> 0.1637165692 | D18: 2265505 | E18: =D18/'- 3 -'!$D18*100 -> 1.36822329
A19: GARDEN VALLEY | B19: 0 | C19: =B19/'- 3 -'!$D19*100 -> 0 | D19: 0 | E19: =D19/'- 3 -'!$D19*100 -> 0
A20: HANOVER | B20: 0 | C20: =B20/'- 3 -'!$D20*100 -> 0 | D20: 0 | E20: =D20/'- 3 -'!$D20*100 -> 0
A21: INTERLAKE | B21: 0 | C21: =B21/'- 3 -'!$D21*100 -> 0 | D21: 0 | E21: =D21/'- 3 -'!$D21*100 -> 0
A22: KELSEY | B22: 218977 | C22: =B22/'- 3 -'!$D22*100 -> 1.000122174 | D22: 641229 | E22: =D22/'- 3 -'!$D22*100 -> 2.9286516
A23: LAKESHORE | B23: 67540 | C23: =B23/'- 3 -'!$D23*100 -> 0.3964504012 | D23: 208110 | E23: =D23/'- 3 -'!$D23*100 -> 1.22157674
A24: LORD SELKIRK | B24: 119431 | C24: =B24/'- 3 -'!$D24*100 -> 0.1880155873 | D24: 216128 | E24: =D24/'- 3 -'!$D24*100 -> 0.3402419208
A25: LOUIS RIEL | B25: 194445 | C25: =B25/'- 3 -'!$D25*100 -> 0.08742740501 | D25: 1066976 | E25: =D25/'- 3 -'!$D25*100 -> 0.4797394784
A26: MOUNTAIN VIEW | B26: 0 | C26: =B26/'- 3 -'!$D26*100 -> 0 | D26: 0 | E26: =D26/'- 3 -'!$D26*100 -> 0
A27: MYSTERY LAKE | B27: 0 | C27: =B27/'- 3 -'!$D27*100 -> 0 | D27: 0 | E27: =D27/'- 3 -'!$D27*100 -> 0
A28: PARK WEST | B28: 0 | C28: =B28/'- 3 -'!$D28*100 -> 0 | D28: 80620 | E28: =D28/'- 3 -'!$D28*100 -> 0.2486307269
A29: PEMBINA TRAILS | B29: 0 | C29: =B29/'- 3 -'!$D29*100 -> 0 | D29: 0 | E29: =D29/'- 3 -'!$D29*100 -> 0
A30: PINE CREEK | B30: 0 | C30: =B30/'- 3 -'!$D30*100 -> 0 | D30: 0 | E30: =D30/'- 3 -'!$D30*100 -> 0
A31: PORTAGE LA PRAIRIE | B31: 0 | C31: =B31/'- 3 -'!$D31*100 -> 0 | D31: 0 | E31: =D31/'- 3 -'!$D31*100 -> 0
A32: PRAIRIE ROSE | B32: 68809 | C32: =B32/'- 3 -'!$D32*100 -> 0.1976818968 | D32: 259906 | E32: =D32/'- 3 -'!$D32*100 -> 0.7466859144
A33: PRAIRIE SPIRIT | B33: 0 | C33: =B33/'- 3 -'!$D33*100 -> 0 | D33: 0 | E33: =D33/'- 3 -'!$D33*100 -> 0
A34: RED RIVER VALLEY | B34: 0 | C34: =B34/'- 3 -'!$D34*100 -> 0 | D34: 0 | E34: =D34/'- 3 -'!$D34*100 -> 0
A35: RIVER EAST TRANSCONA | B35: 329550 | C35: =B35/'- 3 -'!$D35*100 -> 0.1465744145 | D35: 1331200 | E35: =D35/'- 3 -'!$D35*100 -> 0.5920796862
A36: ROLLING RIVER | B36: 0 | C36: =B36/'- 3 -'!$D36*100 -> 0 | D36: 0 | E36: =D36/'- 3 -'!$D36*100 -> 0
A37: SEINE RIVER | B37: 111181 | C37: =B37/'- 3 -'!$D37*100 -> 0.1822129686 | D37: 205318 | E37: =D37/'- 3 -'!$D37*100 -> 0.3364927666
A38: SEVEN OAKS | B38: 517768 | C38: =B38/'- 3 -'!$D38*100 -> 0.309389842 | D38: 1721067 | E38: =D38/'- 3 -'!$D38*100 -> 1.02841552
A39: SOUTHWEST HORIZON | B39: 0 | C39: =B39/'- 3 -'!$D39*100 -> 0 | D39: 0 | E39: =D39/'- 3 -'!$D39*100 -> 0
A40: ST. JAMES-ASSINIBOIA | B40: 0 | C40: =B40/'- 3 -'!$D40*100 -> 0 | D40: 0 | E40: =D40/'- 3 -'!$D40*100 -> 0
A41: SUNRISE | B41: 326417 | C41: =B41/'- 3 -'!$D41*100 -> 0.440701741 | D41: 714263 | E41: =D41/'- 3 -'!$D41*100 -> 0.9643399322
A42: SWAN VALLEY | B42: 0 | C42: =B42/'- 3 -'!$D42*100 -> 0 | D42: 0 | E42: =D42/'- 3 -'!$D42*100 -> 0
A43: TURTLE MOUNTAIN | B43: 0 | C43: =B43/'- 3 -'!$D43*100 -> 0 | D43: 206422 | E43: =D43/'- 3 -'!$D43*100 -> 1.382748368
A44: TURTLE RIVER | B44: 0 | C44: =B44/'- 3 -'!$D44*100 -> 0 | D44: 0 | E44: =D44/'- 3 -'!$D44*100 -> 0
A45: WESTERN | B45: 203274 | C45: =B45/'- 3 -'!$D45*100 -> 0.7563023803 | D45: 280872 | E45: =D45/'- 3 -'!$D45*100 -> 1.045013933
A46: WINNIPEG | B46: 90928 | C46: =B46/'- 3 -'!$D46*100 -> 0.02017494881 | D46: 701855 | E46: =D46/'- 3 -'!$D46*100 -> 0.1557263846
A48: PROVINCE | B48: =SUM(B11:B46) -> 2734762 | C48: =B48/'- 3 -'!$D48*100 -> 0.09856440243 | D48: =SUM(D11:D46) -> 10389993 | E48: =D48/'- 3 -'!$D48*100 -> 0.3744689488
A50: WHITESHELL | B50: 0 | C50: =B50/'- 3 -'!$D50*100 -> 0 | D50: 0 | E50: =D50/'- 3 -'!$D50*100 -> 0

Sheet - 24 -
B2: =AEXP_BP -> ANALYSIS OF EXPENSE BY PROGRAM | I2: PAGE 7 OF 16
B3: =OPYEAR -> OPERATING FUND 2023/2024 BUDGET
B5: FUNCTION 400: COMMUNITY EDUCATION AND SERVICES
D6: ENGLISH AS AN ADDITIONAL LANGUAGE FOR ADULTS
B7: CONTINUING EDUCATION | F7: COMMUNITY SERVICES & RECREATION | H7: PRE-KINDERGARTEN EDUCATION
A9: DIVISION / DISTRICT | B9: AMOUNT | C9: % | D9: AMOUNT | E9: % | F9: AMOUNT | G9: % | H9: AMOUNT | I9: %
A11: BEAUTIFUL PLAINS | B11: 0 | C11: =B11/'- 3 -'!$D11*100 -> 0 | D11: 0 | E11: =D11/'- 3 -'!$D11*100 -> 0 | F11: 0 | G11: =F11/'- 3 -'!$D11*100 -> 0 | H11: 32980 | I11: =H11/'- 3 -'!$D11*100 -> 0.1245830736
A12: BORDER LAND | B12: 0 | C12: =B12/'- 3 -'!$D12*100 -> 0 | D12: 0 | E12: =D12/'- 3 -'!$D12*100 -> 0 | F12: 0 | G12: =F12/'- 3 -'!$D12*100 -> 0 | H12: 60805 | I12: =H12/'- 3 -'!$D12*100 -> 0.1601632266
A13: BRANDON | B13: 0 | C13: =B13/'- 3 -'!$D13*100 -> 0 | D13: 0 | E13: =D13/'- 3 -'!$D13*100 -> 0 | F13: 238050 | G13: =F13/'- 3 -'!$D13*100 -> 0.1949934608 | H13: 193580 | I13: =H13/'- 3 -'!$D13*100 -> 0.1585668311
A14: DSFM | B14: 0 | C14: =B14/'- 3 -'!$D14*100 -> 0 | D14: 0 | E14: =D14/'- 3 -'!$D14*100 -> 0 | F14: 0 | G14: =F14/'- 3 -'!$D14*100 -> 0 | H14: 906479 | I14: =H14/'- 3 -'!$D14*100 -> 0.8245108852
A15: EVERGREEN | B15: 0 | C15: =B15/'- 3 -'!$D15*100 -> 0 | D15: 0 | E15: =D15/'- 3 -'!$D15*100 -> 0 | F15: 0 | G15: =F15/'- 3 -'!$D15*100 -> 0 | H15: 56600 | I15: =H15/'- 3 -'!$D15*100 -> 0.2414953941
A16: FLIN FLON | B16: 0 | C16: =B16/'- 3 -'!$D16*100 -> 0 | D16: 0 | E16: =D16/'- 3 -'!$D16*100 -> 0 | F16: 0 | G16: =F16/'- 3 -'!$D16*100 -> 0 | H16: 17661 | I16: =H16/'- 3 -'!$D16*100 -> 0.1048291198
A17: FORT LA BOSSE | B17: 0 | C17: =B17/'- 3 -'!$D17*100 -> 0 | D17: 0 | E17: =D17/'- 3 -'!$D17*100 -> 0 | F17: 80000 | G17: =F17/'- 3 -'!$D17*100 -> 0.3721673182 | H17: 170780 | I17: =H17/'- 3 -'!$D17*100 -> 0.7944841826
A18: FRONTIER | B18: 0 | C18: =B18/'- 3 -'!$D18*100 -> 0 | D18: 0 | E18: =D18/'- 3 -'!$D18*100 -> 0 | F18: 670634 | G18: =F18/'- 3 -'!$D18*100 -> 0.4050209813 | H18: 1716614 | I18: =H18/'- 3 -'!$D18*100 -> 1.036727465
A19: GARDEN VALLEY | B19: 0 | C19: =B19/'- 3 -'!$D19*100 -> 0 | D19: 0 | E19: =D19/'- 3 -'!$D19*100 -> 0 | F19: 0 | G19: =F19/'- 3 -'!$D19*100 -> 0 | H19: 52370 | I19: =H19/'- 3 -'!$D19*100 -> 0.09342541603
A20: HANOVER | B20: 0 | C20: =B20/'- 3 -'!$D20*100 -> 0 | D20: 0 | E20: =D20/'- 3 -'!$D20*100 -> 0 | F20: 0 | G20: =F20/'- 3 -'!$D20*100 -> 0 | H20: 111200 | I20: =H20/'- 3 -'!$D20*100 -> 0.1086513649
A21: INTERLAKE | B21: 0 | C21: =B21/'- 3 -'!$D21*100 -> 0 | D21: 0 | E21: =D21/'- 3 -'!$D21*100 -> 0 | F21: 0 | G21: =F21/'- 3 -'!$D21*100 -> 0 | H21: 0 | I21: =H21/'- 3 -'!$D21*100 -> 0
A22: KELSEY | B22: 0 | C22: =B22/'- 3 -'!$D22*100 -> 0 | D22: 0 | E22: =D22/'- 3 -'!$D22*100 -> 0 | F22: 60564 | G22: =F22/'- 3 -'!$D22*100 -> 0.2766107826 | H22: 0 | I22: =H22/'- 3 -'!$D22*100 -> 0
A23: LAKESHORE | B23: 111200 | C23: =B23/'- 3 -'!$D23*100 -> 0.6527285256 | D23: 0 | E23: =D23/'- 3 -'!$D23*100 -> 0 | F23: 0 | G23: =F23/'- 3 -'!$D23*100 -> 0 | H23: 0 | I23: =H23/'- 3 -'!$D23*100 -> 0
A24: LORD SELKIRK | B24: 154876 | C24: =B24/'- 3 -'!$D24*100 -> 0.2438152749 | D24: 0 | E24: =D24/'- 3 -'!$D24*100 -> 0 | F24: 241528 | G24: =F24/'- 3 -'!$D24*100 -> 0.3802281548 | H24: 0 | I24: =H24/'- 3 -'!$D24*100 -> 0
A25: LOUIS RIEL | B25: 156617 | C25: =B25/'- 3 -'!$D25*100 -> 0.07041897652 | D25: 0 | E25: =D25/'- 3 -'!$D25*100 -> 0 | F25: 1277126 | G25: =F25/'- 3 -'!$D25*100 -> 0.5742282499 | H25: 929129 | I25: =H25/'- 3 -'!$D25*100 -> 0.4177599701
A26: MOUNTAIN VIEW | B26: 0 | C26: =B26/'- 3 -'!$D26*100 -> 0 | D26: 0 | E26: =D26/'- 3 -'!$D26*100 -> 0 | F26: 0 | G26: =F26/'- 3 -'!$D26*100 -> 0 | H26: 100573 | I26: =H26/'- 3 -'!$D26*100 -> 0.2180091707
A27: MYSTERY LAKE | B27: 0 | C27: =B27/'- 3 -'!$D27*100 -> 0 | D27: 0 | E27: =D27/'- 3 -'!$D27*100 -> 0 | F27: 0 | G27: =F27/'- 3 -'!$D27*100 -> 0 | H27: 60491 | I27: =H27/'- 3 -'!$D27*100 -> 0.1304218641
A28: PARK WEST | B28: 0 | C28: =B28/'- 3 -'!$D28*100 -> 0 | D28: 0 | E28: =D28/'- 3 -'!$D28*100 -> 0 | F28: 0 | G28: =F28/'- 3 -'!$D28*100 -> 0 | H28: 122332 | I28: =H28/'- 3 -'!$D28*100 -> 0.3772698348
A29: PEMBINA TRAILS | B29: 0 | C29: =B29/'- 3 -'!$D29*100 -> 0 | D29: 0 | E29: =D29/'- 3 -'!$D29*100 -> 0 | F29: 234016 | G29: =F29/'- 3 -'!$D29*100 -> 0.1146734897 | H29: 0 | I29: =H29/'- 3 -'!$D29*100 -> 0
A30: PINE CREEK | B30: 0 | C30: =B30/'- 3 -'!$D30*100 -> 0 | D30: 0 | E30: =D30/'- 3 -'!$D30*100 -> 0 | F30: 0 | G30: =F30/'- 3 -'!$D30*100 -> 0 | H30: 14790 | I30: =H30/'- 3 -'!$D30*100 -> 0.08554884501
A31: PORTAGE LA PRAIRIE | B31: 0 | C31: =B31/'- 3 -'!$D31*100 -> 0 | D31: 0 | E31: =D31/'- 3 -'!$D31*100 -> 0 | F31: 0 | G31: =F31/'- 3 -'!$D31*100 -> 0 | H31: 58165 | I31: =H31/'- 3 -'!$D31*100 -> 0.1256310739
A32: PRAIRIE ROSE | B32: 0 | C32: =B32/'- 3 -'!$D32*100 -> 0 | D32: 0 | E32: =D32/'- 3 -'!$D32*100 -> 0 | F32: 0 | G32: =F32/'- 3 -'!$D32*100 -> 0 | H32: 36323 | I32: =H32/'- 3 -'!$D32*100 -> 0.1043526216
A33: PRAIRIE SPIRIT | B33: 0 | C33: =B33/'- 3 -'!$D33*100 -> 0 | D33: 0 | E33: =D33/'- 3 -'!$D33*100 -> 0 | F33: 0 | G33: =F33/'- 3 -'!$D33*100 -> 0 | H33: 38900 | I33: =H33/'- 3 -'!$D33*100 -> 0.1243264717
A34: RED RIVER VALLEY | B34: 0 | C34: =B34/'- 3 -'!$D34*100 -> 0 | D34: 0 | E34: =D34/'- 3 -'!$D34*100 -> 0 | F34: 0 | G34: =F34/'- 3 -'!$D34*100 -> 0 | H34: 65372 | I34: =H34/'- 3 -'!$D34*100 -> 0.1845812014
A35: RIVER EAST TRANSCONA | B35: 369100 | C35: =B35/'- 3 -'!$D35*100 -> 0.1641651233 | D35: 225148 | E35: =D35/'- 3 -'!$D35*100 -> 0.1001393909 | F35: 0 | G35: =F35/'- 3 -'!$D35*100 -> 0 | H35: 0 | I35: =H35/'- 3 -'!$D35*100 -> 0
A36: ROLLING RIVER | B36: 0 | C36: =B36/'- 3 -'!$D36*100 -> 0 | D36: 0 | E36: =D36/'- 3 -'!$D36*100 -> 0 | F36: 0 | G36: =F36/'- 3 -'!$D36*100 -> 0 | H36: 30390 | I36: =H36/'- 3 -'!$D36*100 -> 0.1136004483
A37: SEINE RIVER | B37: 0 | C37: =B37/'- 3 -'!$D37*100 -> 0 | D37: 0 | E37: =D37/'- 3 -'!$D37*100 -> 0 | F37: 5000 | G37: =F37/'- 3 -'!$D37*100 -> 0.008194429289 | H37: 789711 | I37: =H37/'- 3 -'!$D37*100 -> 1.29424619
A38: SEVEN OAKS | B38: 0 | C38: =B38/'- 3 -'!$D38*100 -> 0 | D38: 713930 | E38: =D38/'- 3 -'!$D38*100 -> 0.4266055258 | F38: 1478555 | G38: =F38/'- 3 -'!$D38*100 -> 0.8835036113 | H38: 552670 | I38: =H38/'- 3 -'!$D38*100 -> 0.3302453685
A39: SOUTHWEST HORIZON | B39: 0 | C39: =B39/'- 3 -'!$D39*100 -> 0 | D39: 0 | E39: =D39/'- 3 -'!$D39*100 -> 0 | F39: 0 | G39: =F39/'- 3 -'!$D39*100 -> 0 | H39: 203800 | I39: =H39/'- 3 -'!$D39*100 -> 0.7989775596
A40: ST. JAMES-ASSINIBOIA | B40: 434088 | C40: =B40/'- 3 -'!$D40*100 -> 0.353147601 | D40: 0 | E40: =D40/'- 3 -'!$D40*100 -> 0 | F40: 392687 | G40: =F40/'- 3 -'!$D40*100 -> 0.3194662649 | H40: 129980 | I40: =H40/'- 3 -'!$D40*100 -> 0.1057438243
A41: SUNRISE | B41: 0 | C41: =B41/'- 3 -'!$D41*100 -> 0 | D41: 0 | E41: =D41/'- 3 -'!$D41*100 -> 0 | F41: 0 | G41: =F41/'- 3 -'!$D41*100 -> 0 | H41: 69811 | I41: =H41/'- 3 -'!$D41*100 -> 0.09425314626
A42: SWAN VALLEY | B42: 0 | C42: =B42/'- 3 -'!$D42*100 -> 0 | D42: 0 | E42: =D42/'- 3 -'!$D42*100 -> 0 | F42: 0 | G42: =F42/'- 3 -'!$D42*100 -> 0 | H42: 95766 | I42: =H42/'- 3 -'!$D42*100 -> 0.3788389456
A43: TURTLE MOUNTAIN | B43: 0 | C43: =B43/'- 3 -'!$D43*100 -> 0 | D43: 0 | E43: =D43/'- 3 -'!$D43*100 -> 0 | F43: 0 | G43: =F43/'- 3 -'!$D43*100 -> 0 | H43: 13955 | I43: =H43/'- 3 -'!$D43*100 -> 0.09347963628
A44: TURTLE RIVER | B44: 0 | C44: =B44/'- 3 -'!$D44*100 -> 0 | D44: 0 | E44: =D44/'- 3 -'!$D44*100 -> 0 | F44: 0 | G44: =F44/'- 3 -'!$D44*100 -> 0 | H44: 28040 | I44: =H44/'- 3 -'!$D44*100 -> 0.2298917107
A45: WESTERN | B45: 0 | C45: =B45/'- 3 -'!$D45*100 -> 0 | D45: 0 | E45: =D45/'- 3 -'!$D45*100 -> 0 | F45: 0 | G45: =F45/'- 3 -'!$D45*100 -> 0 | H45: 47534 | I45: =H45/'- 3 -'!$D45*100 -> 0.176855266
A46: WINNIPEG | B46: 0 | C46: =B46/'- 3 -'!$D46*100 -> 0 | D46: 3358250 | E46: =D46/'- 3 -'!$D46*100 -> 0.7451227547 | F46: 196500 | G46: =F46/'- 3 -'!$D46*100 -> 0.04359908324 | H46: 4719870 | I46: =H46/'- 3 -'!$D46*100 -> 1.047236667
A48: PROVINCE | B48: =SUM(B11:B46) -> 1225881 | C48: =B48/'- 3 -'!$D48*100 -> 0.04418235599 | D48: =SUM(D11:D46) -> 4297328 | E48: =D48/'- 3 -'!$D48*100 -> 0.1548813266 | F48: =SUM(F11:F46) -> 4874660 | G48: =F48/'- 3 -'!$D48*100 -> 0.1756891276 | H48: =SUM(H11:H46) -> 11426671 | I48: =H48/'- 3 -'!$D48*100 -> 0.411832181
A50: WHITESHELL | B50: 0 | C50: =B50/'- 3 -'!$D50*100 -> 0 | D50: 0 | E50: =D50/'- 3 -'!$D50*100 -> 0 | F50: 82314 | G50: =F50/'- 3 -'!$D50*100 -> 2.070213835 | H50: 126386 | I50: =H50/'- 3 -'!$D50*100 -> 3.178633594

Sheet - 25 -
B2: =AEXP_BP -> ANALYSIS OF EXPENSE BY PROGRAM | J2: PAGE 8 OF 16
B3: =OPYEAR -> OPERATING FUND 2023/2024 BUDGET
B5: FUNCTION 500: DIVISIONAL ADMINISTRATION
E6: INSTRUCTIONAL MGMT. AND ADMINISTRATION | H6: BUSINESS AND ADMIN. SERVICES
B7: BOARD OF TRUSTEES
D8: PER PUPIL | G8: PER PUPIL | J8: PER PUPIL
A9: DIVISION / DISTRICT | B9: AMOUNT | C9: % | E9: AMOUNT | F9: % | H9: AMOUNT | I9: %
A11: BEAUTIFUL PLAINS | B11: 144536 | C11: =B11/'- 3 -'!$D11*100 -> 0.5459896641 | D11: =B11/'- 7 -'!$E11 -> 69.58883004 | E11: 176954 | F11: =E11/'- 3 -'!$D11*100 -> 0.6684497635 | G11: =E11/'- 7 -'!$E11 -> 85.19691863 | H11: 456837 | I11: =H11/'- 3 -'!$D11*100 -> 1.725717331 | J11: =H11/'- 7 -'!$E11 -> 219.9504092
A12: BORDER LAND | B12: 185487 | C12: =B12/'- 3 -'!$D12*100 -> 0.4885814722 | D12: =B12/'- 7 -'!$E12 -> 89.32675175 | E12: 202802 | F12: =E12/'- 3 -'!$D12*100 -> 0.5341899957 | G12: =E12/'- 7 -'!$E12 -> 97.66530219 | H12: 679777 | I12: =H12/'- 3 -'!$D12*100 -> 1.790564554 | J12: =H12/'- 7 -'!$E12 -> 327.3667229
A13: BRANDON | B13: 391570 | C13: =B13/'- 3 -'!$D13*100 -> 0.3207460174 | D13: =B13/'- 7 -'!$E13 -> 43.0154894 | E13: 654860 | F13: =E13/'- 3 -'!$D13*100 -> 0.5364142732 | G13: =E13/'- 7 -'!$E13 -> 71.93892123 | H13: 1908260 | I13: =H13/'- 3 -'!$D13*100 -> 1.563109521 | J13: =H13/'- 7 -'!$E13 -> 209.6297924
A14: DSFM | B14: 680442 | C14: =B14/'- 3 -'!$D14*100 -> 0.6189132189 | D14: =B14/'- 7 -'!$E14 -> 111.9884793 | E14: 1688268 | F14: =E14/'- 3 -'!$D14*100 -> 1.535606829 | G14: =E14/'- 7 -'!$E14 -> 277.8584595 | H14: 1354850 | I14: =H14/'- 3 -'!$D14*100 -> 1.232338061 | J14: =H14/'- 7 -'!$E14 -> 222.983871
A15: EVERGREEN | B15: 172544 | C15: =B15/'- 3 -'!$D15*100 -> 0.7361940155 | D15: =B15/'- 7 -'!$E15 -> 123.5988539 | E15: 149310 | F15: =E15/'- 3 -'!$D15*100 -> 0.6370614363 | G15: =E15/'- 7 -'!$E15 -> 106.9555874 | H15: 413685 | I15: =H15/'- 3 -'!$D15*100 -> 1.765071062 | J15: =H15/'- 7 -'!$E15 -> 296.3359599
A16: FLIN FLON | B16: 139621 | C16: =B16/'- 3 -'!$D16*100 -> 0.8287382672 | D16: =B16/'- 7 -'!$E16 -> 164.8417946 | E16: 114088 | F16: =E16/'- 3 -'!$D16*100 -> 0.6771838866 | G16: =E16/'- 7 -'!$E16 -> 134.6965762 | H16: 426138 | I16: =H16/'- 3 -'!$D16*100 -> 2.529396493 | J16: =H16/'- 7 -'!$E16 -> 503.1145218
A17: FORT LA BOSSE | B17: 127180 | C17: =B17/'- 3 -'!$D17*100 -> 0.5916529942 | D17: =B17/'- 7 -'!$E17 -> 84.05816259 | E17: 193220 | F17: =E17/'- 3 -'!$D17*100 -> 0.8988771154 | G17: =E17/'- 7 -'!$E17 -> 127.7065433 | H17: 375173 | I17: =H17/'- 3 -'!$D17*100 -> 1.745339116 | J17: =H17/'- 7 -'!$E17 -> 247.9662921
A18: FRONTIER | B18: 1257783 | C18: =B18/'- 3 -'!$D18*100 -> 0.7596222453 | D18: =B18/'- 7 -'!$E18 -> 202.4111683 | E18: 2857097 | F18: =E18/'- 3 -'!$D18*100 -> 1.725507849 | G18: =E18/'- 7 -'!$E18 -> 459.7838751 | H18: 3548190 | I18: =H18/'- 3 -'!$D18*100 -> 2.142884786 | J18: =H18/'- 7 -'!$E18 -> 570.9993563
A19: GARDEN VALLEY | B19: 224870 | C19: =B19/'- 3 -'!$D19*100 -> 0.4011566413 | D19: =B19/'- 7 -'!$E19 -> 53.28672986 | E19: 366820 | F19: =E19/'- 3 -'!$D19*100 -> 0.6543882205 | G19: =E19/'- 7 -'!$E19 -> 86.92417062 | H19: 920730 | I19: =H19/'- 3 -'!$D19*100 -> 1.642535484 | J19: =H19/'- 7 -'!$E19 -> 218.1824645
A20: HANOVER | B20: 288800 | C20: =B20/'- 3 -'!$D20*100 -> 0.282180883 | D20: =B20/'- 7 -'!$E20 -> 35.56212289 | E20: 665100 | F20: =E20/'- 3 -'!$D20*100 -> 0.6498563203 | G20: =E20/'- 7 -'!$E20 -> 81.89878094 | H20: 1375400 | I20: =H20/'- 3 -'!$D20*100 -> 1.343876685 | J20: =H20/'- 7 -'!$E20 -> 169.3633789
A21: INTERLAKE | B21: 195500 | C21: =B21/'- 3 -'!$D21*100 -> 0.4771322589 | D21: =B21/'- 7 -'!$E21 -> 68.60852781 | E21: 439100 | F21: =E21/'- 3 -'!$D21*100 -> 1.071656138 | G21: =E21/'- 7 -'!$E21 -> 154.09721 | H21: 669500 | I21: =H21/'- 3 -'!$D21*100 -> 1.633964437 | J21: =H21/'- 7 -'!$E21 -> 234.9535006
A22: KELSEY | B22: 109689 | C22: =B22/'- 3 -'!$D22*100 -> 0.5009768201 | D22: =B22/'- 7 -'!$E22 -> 76.70559441 | E22: 178300 | F22: =E22/'- 3 -'!$D22*100 -> 0.814340244 | G22: =E22/'- 7 -'!$E22 -> 124.6853147 | H22: 628680 | I22: =H22/'- 3 -'!$D22*100 -> 2.87133721 | J22: =H22/'- 7 -'!$E22 -> 439.6363636
A23: LAKESHORE | B23: 111000 | C23: =B23/'- 3 -'!$D23*100 -> 0.6515545534 | D23: =B23/'- 7 -'!$E23 -> 121.6438356 | E23: 140750 | F23: =E23/'- 3 -'!$D23*100 -> 0.8261829134 | G23: =E23/'- 7 -'!$E23 -> 154.2465753 | H23: 304750 | I23: =H23/'- 3 -'!$D23*100 -> 1.788840091 | J23: =H23/'- 7 -'!$E23 -> 333.9726027
A24: LORD SELKIRK | B24: 318128 | C24: =B24/'- 3 -'!$D24*100 -> 0.5008165614 | D24: =B24/'- 7 -'!$E24 -> 84.58601436 | E24: 378470 | F24: =E24/'- 3 -'!$D24*100 -> 0.5958106297 | G24: =E24/'- 7 -'!$E24 -> 100.6301516 | H24: 1008706 | I24: =H24/'- 3 -'!$D24*100 -> 1.5879667 | J24: =H24/'- 7 -'!$E24 -> 268.2015421
A25: LOUIS RIEL | B25: 619444 | C25: =B25/'- 3 -'!$D25*100 -> 0.2785177375 | D25: =B25/'- 7 -'!$E25 -> 38.31059435 | E25: 637597 | F25: =E25/'- 3 -'!$D25*100 -> 0.2866797868 | G25: =E25/'- 7 -'!$E25 -> 39.43329829 | H25: 5009054 | I25: =H25/'- 3 -'!$D25*100 -> 2.252197756 | J25: =H25/'- 7 -'!$E25 -> 309.7936793
A26: MOUNTAIN VIEW | B26: 233458 | C26: =B26/'- 3 -'!$D26*100 -> 0.5060601252 | D26: =B26/'- 7 -'!$E26 -> 77.02342461 | E26: 413153 | F26: =E26/'- 3 -'!$D26*100 -> 0.8955797569 | G26: =E26/'- 7 -'!$E26 -> 136.3091389 | H26: 756938 | I26: =H26/'- 3 -'!$D26*100 -> 1.640792515 | J26: =H26/'- 7 -'!$E26 -> 249.7321016
A27: MYSTERY LAKE | B27: 253661 | C27: =B27/'- 3 -'!$D27*100 -> 0.5469068203 | D27: =B27/'- 7 -'!$E27 -> 92.08967145 | E27: 534031 | F27: =E27/'- 3 -'!$D27*100 -> 1.151399688 | G27: =E27/'- 7 -'!$E27 -> 193.8758395 | H27: 904298 | I27: =H27/'- 3 -'!$D27*100 -> 1.949715344 | J27: =H27/'- 7 -'!$E27 -> 328.2984208
A28: PARK WEST | B28: 152014 | C28: =B28/'- 3 -'!$D28*100 -> 0.4688086246 | D28: =B28/'- 7 -'!$E28 -> 71.75548737 | E28: 402682 | F28: =E28/'- 3 -'!$D28*100 -> 1.241864529 | G28: =E28/'- 7 -'!$E28 -> 190.0788294 | H28: 520747 | I28: =H28/'- 3 -'!$D28*100 -> 1.605975008 | J28: =H28/'- 7 -'!$E28 -> 245.809299
A29: PEMBINA TRAILS | B29: 512059 | C29: =B29/'- 3 -'!$D29*100 -> 0.2509212723 | D29: =B29/'- 7 -'!$E29 -> 32.68475611 | E29: 2680518 | F29: =E29/'- 3 -'!$D29*100 -> 1.313518534 | G29: =E29/'- 7 -'!$E29 -> 171.0976217 | H29: 2098638 | I29: =H29/'- 3 -'!$D29*100 -> 1.028383286 | J29: =H29/'- 7 -'!$E29 -> 133.956187
A30: PINE CREEK | B30: 126033 | C30: =B30/'- 3 -'!$D30*100 -> 0.7290045695 | D30: =B30/'- 7 -'!$E30 -> 116.5892692 | E30: 134716 | F30: =E30/'- 3 -'!$D30*100 -> 0.7792290875 | G30: =E30/'- 7 -'!$E30 -> 124.6216466 | H30: 309697 | I30: =H30/'- 3 -'!$D30*100 -> 1.791360423 | J30: =H30/'- 7 -'!$E30 -> 286.4912118
A31: PORTAGE LA PRAIRIE | B31: 185470 | C31: =B31/'- 3 -'!$D31*100 -> 0.4005982169 | D31: =B31/'- 7 -'!$E31 -> 53.85307782 | E31: 299290 | F31: =E31/'- 3 -'!$D31*100 -> 0.6464389946 | G31: =E31/'- 7 -'!$E31 -> 86.9018583 | H31: 550643 | I31: =H31/'- 3 -'!$D31*100 -> 1.189338459 | J31: =H31/'- 7 -'!$E31 -> 159.8847271
A32: PRAIRIE ROSE | B32: 219650 | C32: =B32/'- 3 -'!$D32*100 -> 0.6310341473 | D32: =B32/'- 7 -'!$E32 -> 93.30926083 | E32: 193450 | F32: =E32/'- 3 -'!$D32*100 -> 0.555763969 | G32: =E32/'- 7 -'!$E32 -> 82.17926933 | H32: 588150 | I32: =H32/'- 3 -'!$D32*100 -> 1.689700586 | J32: =H32/'- 7 -'!$E32 -> 249.8513169
A33: PRAIRIE SPIRIT | B33: 180250 | C33: =B33/'- 3 -'!$D33*100 -> 0.5760885997 | D33: =B33/'- 7 -'!$E33 -> 83.91527002 | E33: 231715 | F33: =E33/'- 3 -'!$D33*100 -> 0.7405734806 | G33: =E33/'- 7 -'!$E33 -> 107.8747672 | H33: 450815 | I33: =H33/'- 3 -'!$D33*100 -> 1.440828749 | J33: =H33/'- 7 -'!$E33 -> 209.8766294
A34: RED RIVER VALLEY | B34: 162824 | C34: =B34/'- 3 -'!$D34*100 -> 0.4597419314 | D34: =B34/'- 7 -'!$E34 -> 71.57098901 | E34: 293179 | F34: =E34/'- 3 -'!$D34*100 -> 0.8278059727 | G34: =E34/'- 7 -'!$E34 -> 128.8698901 | H34: 678069 | I34: =H34/'- 3 -'!$D34*100 -> 1.914562667 | J34: =H34/'- 7 -'!$E34 -> 298.0523077
A35: RIVER EAST TRANSCONA | B35: 498135 | C35: =B35/'- 3 -'!$D35*100 -> 0.2215562008 | D35: =B35/'- 7 -'!$E35 -> 29.19985932 | E35: 1242196 | F35: =E35/'- 3 -'!$D35*100 -> 0.5524932526 | G35: =E35/'- 7 -'!$E35 -> 72.8154987 | H35: 2734475 | I35: =H35/'- 3 -'!$D35*100 -> 1.216216271 | J35: =H35/'- 7 -'!$E35 -> 160.290454
A36: ROLLING RIVER | B36: 149575 | C36: =B36/'- 3 -'!$D36*100 -> 0.559124286 | D36: =B36/'- 7 -'!$E36 -> 84.45793337 | E36: 176595 | F36: =E36/'- 3 -'!$D36*100 -> 0.6601273828 | G36: =E36/'- 7 -'!$E36 -> 99.71485037 | H36: 579100 | I36: =H36/'- 3 -'!$D36*100 -> 2.164725883 | J36: =H36/'- 7 -'!$E36 -> 326.9904009
A37: SEINE RIVER | B37: 236503 | C37: =B37/'- 3 -'!$D37*100 -> 0.387601422 | D37: =B37/'- 7 -'!$E37 -> 51.2299361 | E37: 391392 | F37: =E37/'- 3 -'!$D37*100 -> 0.6414468137 | G37: =E37/'- 7 -'!$E37 -> 84.78111123 | H37: 1212546 | I37: =H37/'- 3 -'!$D37*100 -> 1.987224491 | J37: =H37/'- 7 -'!$E37 -> 262.6548251
A38: SEVEN OAKS | B38: 463370 | C38: =B38/'- 3 -'!$D38*100 -> 0.276884572 | D38: =B38/'- 7 -'!$E38 -> 39.17734094 | E38: 1331610 | F38: =E38/'- 3 -'!$D38*100 -> 0.7956973152 | G38: =E38/'- 7 -'!$E38 -> 112.5859226 | H38: 2060860 | I38: =H38/'- 3 -'!$D38*100 -> 1.231457235 | J38: =H38/'- 7 -'!$E38 -> 174.2430776
A39: SOUTHWEST HORIZON | B39: 153000 | C39: =B39/'- 3 -'!$D39*100 -> 0.5998212298 | D39: =B39/'- 7 -'!$E39 -> 106.1026352 | E39: 210000 | F39: =E39/'- 3 -'!$D39*100 -> 0.8232840408 | G39: =E39/'- 7 -'!$E39 -> 145.631068 | H39: 409500 | I39: =H39/'- 3 -'!$D39*100 -> 1.60540388 | J39: =H39/'- 7 -'!$E39 -> 283.9805825
A40: ST. JAMES-ASSINIBOIA | B40: 413080 | C40: =B40/'- 3 -'!$D40*100 -> 0.3360567697 | D40: =B40/'- 7 -'!$E40 -> 51.85538539 | E40: 1120676 | F40: =E40/'- 3 -'!$D40*100 -> 0.9117138482 | G40: =E40/'- 7 -'!$E40 -> 140.6824002 | H40: 1774873 | I40: =H40/'- 3 -'!$D40*100 -> 1.443928747 | J40: =H40/'- 7 -'!$E40 -> 222.8060507
A41: SUNRISE | B41: 308460 | C41: =B41/'- 3 -'!$D41*100 -> 0.416457657 | D41: =B41/'- 7 -'!$E41 -> 67.05652174 | E41: 397379 | F41: =E41/'- 3 -'!$D41*100 -> 0.536508874 | G41: =E41/'- 7 -'!$E41 -> 86.38673913 | H41: 1422044 | I41: =H41/'- 3 -'!$D41*100 -> 1.919928394 | J41: =H41/'- 7 -'!$E41 -> 309.14
A42: SWAN VALLEY | B42: 177537 | C42: =B42/'- 3 -'!$D42*100 -> 0.70231533 | D42: =B42/'- 7 -'!$E42 -> 132.5892457 | E42: 213510 | F42: =E42/'- 3 -'!$D42*100 -> 0.8446202544 | G42: =E42/'- 7 -'!$E42 -> 159.454817 | H42: 370269 | I42: =H42/'- 3 -'!$D42*100 -> 1.464740279 | J42: =H42/'- 7 -'!$E42 -> 276.5265123
A43: TURTLE MOUNTAIN | B43: 91850 | C43: =B43/'- 3 -'!$D43*100 -> 0.6152708414 | D43: =B43/'- 7 -'!$E43 -> 88.82978723 | E43: 131962 | F43: =E43/'- 3 -'!$D43*100 -> 0.8839670199 | G43: =E43/'- 7 -'!$E43 -> 127.622824 | H43: 240038 | I43: =H43/'- 3 -'!$D43*100 -> 1.607930128 | J43: =H43/'- 7 -'!$E43 -> 232.1450677
A44: TURTLE RIVER | B44: 103448 | C44: =B44/'- 3 -'!$D44*100 -> 0.8481397178 | D44: =B44/'- 7 -'!$E44 -> 177.2887746 | E44: 55017 | F44: =E44/'- 3 -'!$D44*100 -> 0.4510681971 | G44: =E44/'- 7 -'!$E44 -> 94.28791774 | H44: 265250 | I44: =H44/'- 3 -'!$D44*100 -> 2.174706714 | J44: =H44/'- 7 -'!$E44 -> 454.5844045
A45: WESTERN | B45: 125724 | C45: =B45/'- 3 -'!$D45*100 -> 0.467769417 | D45: =B45/'- 7 -'!$E45 -> 58.73580939 | E45: 211652 | F45: =E45/'- 3 -'!$D45*100 -> 0.7874736139 | G45: =E45/'- 7 -'!$E45 -> 98.879701 | H45: 488819 | I45: =H45/'- 3 -'!$D45*100 -> 1.818702703 | J45: =H45/'- 7 -'!$E45 -> 228.3667367
A46: WINNIPEG | B46: 1013679 | C46: =B46/'- 3 -'!$D46*100 -> 0.2249133593 | D46: =B46/'- 7 -'!$E46 -> 37.07473986 | E46: 3078060 | F46: =E46/'- 3 -'!$D46*100 -> 0.6829546777 | G46: =E46/'- 7 -'!$E46 -> 112.578315 | H46: 6960966 | I46: =H46/'- 3 -'!$D46*100 -> 1.544487207 | J46: =H46/'- 7 -'!$E46 -> 254.5934203
A48: PROVINCE | B48: =SUM(B11:B46) -> 10726374 | C48: =B48/'- 3 -'!$D48*100 -> 0.3865925604 | D48: =B48/'- 7 -'!$E48 -> 58.49927274 | E48: =SUM(E11:E46) -> 22585519 | F48: =E48/'- 3 -'!$D48*100 -> 0.8140116704 | G48: =E48/'- 7 -'!$E48 -> 123.1764281 | H48: =SUM(H11:H46) -> 44456465 | I48: =H48/'- 3 -'!$D48*100 -> 1.602269195 | J48: =H48/'- 7 -'!$E48 -> 242.455733
A50: WHITESHELL | B50: 55800 | C50: =B50/'- 3 -'!$D50*100 -> 1.403381344 | D50: =B50/'- 7 -'!$E50 -> 324.4186047 | E50: 26473 | F50: =E50/'- 3 -'!$D50*100 -> 0.665801332 | G50: =E50/'- 7 -'!$E50 -> 153.9127907 | H50: 79504 | I50: =H50/'- 3 -'!$D50*100 -> 1.999541763 | J50: =H50/'- 7 -'!$E50 -> 462.2325581

Sheet - 26 -
B2: =AEXP_BP -> ANALYSIS OF EXPENSE BY PROGRAM | E2: PAGE 9 OF 16
B3: =OPYEAR -> OPERATING FUND 2023/2024 BUDGET
B5: FUNCTION 500: (CONT'D)
B6: MANAGEMENT INFORMATION SERVICES
D8: PER PUPIL
A9: DIVISION / DISTRICT | B9: AMOUNT | C9: %
A11: BEAUTIFUL PLAINS | B11: 15600 | C11: =B11/'- 3 -'!$D11*100 -> 0.05892953146 | D11: =B11/'- 7 -'!$E11 -> 7.510832932
A12: BORDER LAND | B12: 60420 | C12: =B12/'- 3 -'!$D12*100 -> 0.1591491185 | D12: =B12/'- 7 -'!$E12 -> 29.09703829
A13: BRANDON | B13: 324920 | C13: =B13/'- 3 -'!$D13*100 -> 0.2661511249 | D13: =B13/'- 7 -'!$E13 -> 35.69372734
A14: DSFM | B14: 178842 | C14: =B14/'- 3 -'!$D14*100 -> 0.1626702612 | D14: =B14/'- 7 -'!$E14 -> 29.43416722
A15: EVERGREEN | B15: 20000 | C15: =B15/'- 3 -'!$D15*100 -> 0.08533406152 | D15: =B15/'- 7 -'!$E15 -> 14.32664756
A16: FLIN FLON | B16: 36123 | C16: =B16/'- 3 -'!$D16*100 -> 0.2144126774 | D16: =B16/'- 7 -'!$E16 -> 42.64817001
A17: FORT LA BOSSE | B17: 94200 | C17: =B17/'- 3 -'!$D17*100 -> 0.4382270172 | D17: =B17/'- 7 -'!$E17 -> 62.26040978
A18: FRONTIER | B18: 930291 | C18: =B18/'- 3 -'!$D18*100 -> 0.5618375652 | D18: =B18/'- 7 -'!$E18 -> 149.7088832
A19: GARDEN VALLEY | B19: 172320 | C19: =B19/'- 3 -'!$D19*100 -> 0.3074101144 | D19: =B19/'- 7 -'!$E19 -> 40.83412322
A20: HANOVER | B20: 92900 | C20: =B20/'- 3 -'!$D20*100 -> 0.09077078959 | D20: =B20/'- 7 -'!$E20 -> 11.4394779
A21: INTERLAKE | B21: 52000 | C21: =B21/'- 3 -'!$D21*100 -> 0.1269098591 | D21: =B21/'- 7 -'!$E21 -> 18.24881558
A22: KELSEY | B22: 45000 | C22: =B22/'- 3 -'!$D22*100 -> 0.2055261412 | D22: =B22/'- 7 -'!$E22 -> 31.46853147
A23: LAKESHORE | B23: 20000 | C23: =B23/'- 3 -'!$D23*100 -> 0.1173972168 | D23: =B23/'- 7 -'!$E23 -> 21.91780822
A24: LORD SELKIRK | B24: 173640 | C24: =B24/'- 3 -'!$D24*100 -> 0.2733547117 | D24: =B24/'- 7 -'!$E24 -> 46.16857219
A25: LOUIS RIEL | B25: 1131578 | C25: =B25/'- 3 -'!$D25*100 -> 0.5087861766 | D25: =B25/'- 7 -'!$E25 -> 69.98441462
A26: MOUNTAIN VIEW | B26: 34000 | C26: =B26/'- 3 -'!$D26*100 -> 0.07370081238 | D26: =B26/'- 7 -'!$E26 -> 11.21741999
A27: MYSTERY LAKE | B27: 211388 | C27: =B27/'- 3 -'!$D27*100 -> 0.4557639485 | D27: =B27/'- 7 -'!$E27 -> 76.74278453
A28: PARK WEST | B28: 85050 | C28: =B28/'- 3 -'!$D28*100 -> 0.2622927725 | D28: =B28/'- 7 -'!$E28 -> 40.14632995
A29: PEMBINA TRAILS | B29: 1027222 | C29: =B29/'- 3 -'!$D29*100 -> 0.5033635796 | D29: =B29/'- 7 -'!$E29 -> 65.56764071
A30: PINE CREEK | B30: 23968 | C30: =B30/'- 3 -'!$D30*100 -> 0.1386365596 | D30: =B30/'- 7 -'!$E30 -> 22.1720629
A31: PORTAGE LA PRAIRIE | B31: 66800 | C31: =B31/'- 3 -'!$D31*100 -> 0.1442818833 | D31: =B31/'- 7 -'!$E31 -> 19.3960511
A32: PRAIRIE ROSE | B32: 65000 | C32: =B32/'- 3 -'!$D32*100 -> 0.1867389919 | D32: =B32/'- 7 -'!$E32 -> 27.61257434
A33: PRAIRIE SPIRIT | B33: 40750 | C33: =B33/'- 3 -'!$D33*100 -> 0.1302391703 | D33: =B33/'- 7 -'!$E33 -> 18.97113594
A34: RED RIVER VALLEY | B34: 52228 | C34: =B34/'- 3 -'!$D34*100 -> 0.1474684419 | D34: =B34/'- 7 -'!$E34 -> 22.95736264
A35: RIVER EAST TRANSCONA | B35: 1272022 | C35: =B35/'- 3 -'!$D35*100 -> 0.5657590043 | D35: =B35/'- 7 -'!$E35 -> 74.56385005
A36: ROLLING RIVER | B36: 34000 | C36: =B36/'- 3 -'!$D36*100 -> 0.1270949405 | D36: =B36/'- 7 -'!$E36 -> 19.19819311
A37: SEINE RIVER | B37: 110500 | C37: =B37/'- 3 -'!$D37*100 -> 0.1810968873 | D37: =B37/'- 7 -'!$E37 -> 23.93588216
A38: SEVEN OAKS | B38: 691950 | C38: =B38/'- 3 -'!$D38*100 -> 0.4134714798 | D38: =B38/'- 7 -'!$E38 -> 58.50348763
A39: SOUTHWEST HORIZON | B39: 59400 | C39: =B39/'- 3 -'!$D39*100 -> 0.2328717716 | D39: =B39/'- 7 -'!$E39 -> 41.19278779
A40: ST. JAMES-ASSINIBOIA | B40: 485527 | C40: =B40/'- 3 -'!$D40*100 -> 0.3949952436 | D40: =B40/'- 7 -'!$E40 -> 60.94991213
A41: SUNRISE | B41: 154418 | C41: =B41/'- 3 -'!$D41*100 -> 0.2084826509 | D41: =B41/'- 7 -'!$E41 -> 33.56913043
A42: SWAN VALLEY | B42: 17500 | C42: =B42/'- 3 -'!$D42*100 -> 0.06922792586 | D42: =B42/'- 7 -'!$E42 -> 13.06945482
A43: TURTLE MOUNTAIN | B43: 21582 | C43: =B43/'- 3 -'!$D43*100 -> 0.1445702265 | D43: =B43/'- 7 -'!$E43 -> 20.87234043
A44: TURTLE RIVER | B44: 8500 | C44: =B44/'- 3 -'!$D44*100 -> 0.06968899931 | D44: =B44/'- 7 -'!$E44 -> 14.5672665
A45: WESTERN | B45: 58000 | C45: =B45/'- 3 -'!$D45*100 -> 0.2157951241 | D45: =B45/'- 7 -'!$E45 -> 27.09647279
A46: WINNIPEG | B46: 870600 | C46: =B46/'- 3 -'!$D46*100 -> 0.193167236 | D46: =B46/'- 7 -'!$E46 -> 31.84170583
A48: PROVINCE | B48: =SUM(B11:B46) -> 8738239 | C48: =B48/'- 3 -'!$D48*100 -> 0.3149375724 | D48: =B48/'- 7 -'!$E48 -> 47.65642392
A50: WHITESHELL | B50: 10200 | C50: =B50/'- 3 -'!$D50*100 -> 0.2565320737 | D50: =B50/'- 7 -'!$E50 -> 59.30232558

Sheet - 27 -
B2: =AEXP_BP -> ANALYSIS OF EXPENSE BY PROGRAM | J2: PAGE 10 OF 16
B3: =OPYEAR -> OPERATING FUND 2023/2024 BUDGET
B5: FUNCTION 600: INSTRUCTIONAL & OTHER SUPPORT SERVICES
B6: CURRICULUM CONSULTING AND DEVELOPMENT ADMINISTRATION | E6: CURRICULUM CONSULTING AND DEVELOPMENT | H6: LIBRARY / MEDIA CENTRE
D8: PER PUPIL | G8: PER PUPIL | J8: PER PUPIL
A9: DIVISION / DISTRICT | B9: AMOUNT | C9: % | E9: AMOUNT | F9: % | H9: AMOUNT | I9: %
A11: BEAUTIFUL PLAINS | B11: 0 | C11: =B11/'- 3 -'!$D11*100 -> 0 | D11: =B11/'- 7 -'!$C11 -> 0 | E11: 129441 | F11: =E11/'- 3 -'!$D11*100 -> 0.4889677873 | G11: =E11/'- 7 -'!$E11 -> 62.32113625 | H11: 273545 | I11: =H11/'- 3 -'!$D11*100 -> 1.033325557 | J11: =H11/'- 7 -'!$E11 -> 131.701974
A12: BORDER LAND | B12: 0 | C12: =B12/'- 3 -'!$D12*100 -> 0 | D12: =B12/'- 7 -'!$C12 -> 0 | E12: 0 | F12: =E12/'- 3 -'!$D12*100 -> 0 | G12: =E12/'- 7 -'!$E12 -> 0 | H12: 303676 | I12: =H12/'- 3 -'!$D12*100 -> 0.7998968507 | J12: =H12/'- 7 -'!$E12 -> 146.2441608
A13: BRANDON | B13: 137660 | C13: =B13/'- 3 -'!$D13*100 -> 0.1127611838 | D13: =B13/'- 7 -'!$C13 -> 15.12248709 | E13: 606010 | F13: =E13/'- 3 -'!$D13*100 -> 0.4963998621 | G13: =E13/'- 7 -'!$E13 -> 66.5725585 | H13: 767327 | I13: =H13/'- 3 -'!$D13*100 -> 0.628539161 | J13: =H13/'- 7 -'!$E13 -> 84.29385917
A14: DSFM | B14: 238058 | C14: =B14/'- 3 -'!$D14*100 -> 0.2165316707 | D14: =B14/'- 7 -'!$C14 -> 39.18005267 | E14: 2132360 | F14: =E14/'- 3 -'!$D14*100 -> 1.939541932 | G14: =E14/'- 7 -'!$E14 -> 350.9479921 | H14: 965684 | I14: =H14/'- 3 -'!$D14*100 -> 0.8783622893 | J14: =H14/'- 7 -'!$E14 -> 158.9341672
A15: EVERGREEN | B15: 33000 | C15: =B15/'- 3 -'!$D15*100 -> 0.1408012015 | D15: =B15/'- 7 -'!$C15 -> 23.63896848 | E15: 280485 | F15: =E15/'- 3 -'!$D15*100 -> 1.196746212 | G15: =E15/'- 7 -'!$E15 -> 200.9204871 | H15: 148400 | I15: =H15/'- 3 -'!$D15*100 -> 0.6331787365 | J15: =H15/'- 7 -'!$E15 -> 106.3037249
A16: FLIN FLON | B16: 0 | C16: =B16/'- 3 -'!$D16*100 -> 0 | D16: =B16/'- 7 -'!$C16 -> 0 | E16: 0 | F16: =E16/'- 3 -'!$D16*100 -> 0 | G16: =E16/'- 7 -'!$E16 -> 0 | H16: 175135 | I16: =H16/'- 3 -'!$D16*100 -> 1.039536147 | J16: =H16/'- 7 -'!$E16 -> 206.7709563
A17: FORT LA BOSSE | B17: 0 | C17: =B17/'- 3 -'!$D17*100 -> 0 | D17: =B17/'- 7 -'!$C17 -> 0 | E17: 67000 | F17: =E17/'- 3 -'!$D17*100 -> 0.311690129 | G17: =E17/'- 7 -'!$E17 -> 44.28288169 | H17: 259410 | I17: =H17/'- 3 -'!$D17*100 -> 1.20679905 | J17: =H17/'- 7 -'!$E17 -> 171.4540648
A18: FRONTIER | B18: 0 | C18: =B18/'- 3 -'!$D18*100 -> 0 | D18: =B18/'- 7 -'!$C18 -> 0 | E18: 6369188 | F18: =E18/'- 3 -'!$D18*100 -> 3.846591097 | G18: =E18/'- 7 -'!$E18 -> 1024.97393 | H18: 1680079 | I18: =H18/'- 3 -'!$D18*100 -> 1.014662611 | J18: =H18/'- 7 -'!$E18 -> 270.369971
A19: GARDEN VALLEY | B19: 52730 | C19: =B19/'- 3 -'!$D19*100 -> 0.09406763772 | D19: =B19/'- 7 -'!$C19 -> 12.49526066 | E19: 319590 | F19: =E19/'- 3 -'!$D19*100 -> 0.570132303 | G19: =E19/'- 7 -'!$E19 -> 75.73222749 | H19: 453860 | I19: =H19/'- 3 -'!$D19*100 -> 0.8096631529 | J19: =H19/'- 7 -'!$E19 -> 107.549763
A20: HANOVER | B20: 0 | C20: =B20/'- 3 -'!$D20*100 -> 0 | D20: =B20/'- 7 -'!$C20 -> 0 | E20: 225000 | F20: =E20/'- 3 -'!$D20*100 -> 0.2198431395 | G20: =E20/'- 7 -'!$E20 -> 27.70594754 | H20: 1002700 | I20: =H20/'- 3 -'!$D20*100 -> 0.9797187376 | J20: =H20/'- 7 -'!$E20 -> 123.470016
A21: INTERLAKE | B21: 0 | C21: =B21/'- 3 -'!$D21*100 -> 0 | D21: =B21/'- 7 -'!$C21 -> 0 | E21: 0 | F21: =E21/'- 3 -'!$D21*100 -> 0 | G21: =E21/'- 7 -'!$E21 -> 0 | H21: 493400 | I21: =H21/'- 3 -'!$D21*100 -> 1.204179317 | J21: =H21/'- 7 -'!$E21 -> 173.1531848
A22: KELSEY | B22: 31761 | C22: =B22/'- 3 -'!$D22*100 -> 0.1450603505 | D22: =B22/'- 7 -'!$C22 -> 22.21048951 | E22: 196045 | F22: =E22/'- 3 -'!$D22*100 -> 0.8953860523 | G22: =E22/'- 7 -'!$E22 -> 137.0944056 | H22: 236757 | I22: =H22/'- 3 -'!$D22*100 -> 1.081327836 | J22: =H22/'- 7 -'!$E22 -> 165.5643357
A23: LAKESHORE | B23: 0 | C23: =B23/'- 3 -'!$D23*100 -> 0 | D23: =B23/'- 7 -'!$C23 -> 0 | E23: 54500 | F23: =E23/'- 3 -'!$D23*100 -> 0.3199074159 | G23: =E23/'- 7 -'!$E23 -> 59.7260274 | H23: 114300 | I23: =H23/'- 3 -'!$D23*100 -> 0.6709250942 | J23: =H23/'- 7 -'!$E23 -> 125.260274
A24: LORD SELKIRK | B24: 0 | C24: =B24/'- 3 -'!$D24*100 -> 0 | D24: =B24/'- 7 -'!$C24 -> 0 | E24: 124852 | F24: =E24/'- 3 -'!$D24*100 -> 0.1965496571 | G24: =E24/'- 7 -'!$E24 -> 33.1964903 | H24: 626442 | I24: =H24/'- 3 -'!$D24*100 -> 0.9861833236 | J24: =H24/'- 7 -'!$E24 -> 166.5626163
A25: LOUIS RIEL | B25: 571337 | C25: =B25/'- 3 -'!$D25*100 -> 0.2568876098 | D25: =B25/'- 7 -'!$C25 -> 35.33533304 | E25: 1859253 | F25: =E25/'- 3 -'!$D25*100 -> 0.8359673174 | G25: =E25/'- 7 -'!$E25 -> 114.9887439 | H25: 4688957 | I25: =H25/'- 3 -'!$D25*100 -> 2.108274024 | J25: =H25/'- 7 -'!$E25 -> 289.9967221
A26: MOUNTAIN VIEW | B26: 22196 | C26: =B26/'- 3 -'!$D26*100 -> 0.04811362446 | D26: =B26/'- 7 -'!$C26 -> 7.322995711 | E26: 406013 | F26: =E26/'- 3 -'!$D26*100 -> 0.8801025863 | G26: =E26/'- 7 -'!$E26 -> 133.9534807 | H26: 524788 | I26: =H26/'- 3 -'!$D26*100 -> 1.137567704 | J26: =H26/'- 7 -'!$E26 -> 173.1402177
A27: MYSTERY LAKE | B27: 0 | C27: =B27/'- 3 -'!$D27*100 -> 0 | D27: =B27/'- 7 -'!$C27 -> 0 | E27: 727796 | F27: =E27/'- 3 -'!$D27*100 -> 1.569167496 | G27: =E27/'- 7 -'!$E27 -> 264.2207297 | H27: 912810 | I27: =H27/'- 3 -'!$D27*100 -> 1.968067676 | J27: =H27/'- 7 -'!$E27 -> 331.3886368
A28: PARK WEST | B28: 49111 | C28: =B28/'- 3 -'!$D28*100 -> 0.1514574997 | D28: =B28/'- 7 -'!$C28 -> 23.18196837 | E28: 979 | F28: =E28/'- 3 -'!$D28*100 -> 0.003019219568 | G28: =E28/'- 7 -'!$E28 -> 0.4621194241 | H28: 331578 | I28: =H28/'- 3 -'!$D28*100 -> 1.022580987 | J28: =H28/'- 7 -'!$E28 -> 156.5154591
A29: PEMBINA TRAILS | B29: 437418 | C29: =B29/'- 3 -'!$D29*100 -> 0.2143453803 | D29: =B29/'- 7 -'!$C29 -> 27.92041668 | E29: 473787 | F29: =E29/'- 3 -'!$D29*100 -> 0.2321670684 | G29: =E29/'- 7 -'!$E29 -> 30.24185209 | H29: 4234818 | I29: =H29/'- 3 -'!$D29*100 -> 2.075163059 | J29: =H29/'- 7 -'!$E29 -> 270.3086822
A30: PINE CREEK | B30: 0 | C30: =B30/'- 3 -'!$D30*100 -> 0 | D30: =B30/'- 7 -'!$C30 -> 0 | E30: 0 | F30: =E30/'- 3 -'!$D30*100 -> 0 | G30: =E30/'- 7 -'!$E30 -> 0 | H30: 343486 | I30: =H30/'- 3 -'!$D30*100 -> 1.986803961 | J30: =H30/'- 7 -'!$E30 -> 317.7483811
A31: PORTAGE LA PRAIRIE | B31: 87880 | C31: =B31/'- 3 -'!$D31*100 -> 0.189812753 | D31: =B31/'- 7 -'!$C31 -> 25.51684088 | E31: 117815 | F31: =E31/'- 3 -'!$D31*100 -> 0.2544696119 | G31: =E31/'- 7 -'!$E31 -> 34.20876887 | H31: 407595 | I31: =H31/'- 3 -'!$D31*100 -> 0.8803678773 | J31: =H31/'- 7 -'!$E31 -> 118.3493031
A32: PRAIRIE ROSE | B32: 0 | C32: =B32/'- 3 -'!$D32*100 -> 0 | D32: =B32/'- 7 -'!$C32 -> 0 | E32: 147308 | F32: =E32/'- 3 -'!$D32*100 -> 0.423202268 | G32: =E32/'- 7 -'!$E32 -> 62.57774002 | H32: 386152 | I32: =H32/'- 3 -'!$D32*100 -> 1.109379003 | J32: =H32/'- 7 -'!$E32 -> 164.0407816
A33: PRAIRIE SPIRIT | B33: 0 | C33: =B33/'- 3 -'!$D33*100 -> 0 | D33: =B33/'- 7 -'!$C33 -> 0 | E33: 149940 | F33: =E33/'- 3 -'!$D33*100 -> 0.4792162255 | G33: =E33/'- 7 -'!$E33 -> 69.80446927 | H33: 462000 | I33: =H33/'- 3 -'!$D33*100 -> 1.476576605 | J33: =H33/'- 7 -'!$E33 -> 215.0837989
A34: RED RIVER VALLEY | B34: 8118 | C34: =B34/'- 3 -'!$D34*100 -> 0.02292159018 | D34: =B34/'- 7 -'!$C34 -> 3.568351648 | E34: 127134 | F34: =E34/'- 3 -'!$D34*100 -> 0.3589693823 | G34: =E34/'- 7 -'!$E34 -> 55.88307692 | H34: 225371 | I34: =H34/'- 3 -'!$D34*100 -> 0.6363466001 | J34: =H34/'- 7 -'!$E34 -> 99.06417582
A35: RIVER EAST TRANSCONA | B35: 517192 | C35: =B35/'- 3 -'!$D35*100 -> 0.2300322093 | D35: =B35/'- 7 -'!$C35 -> 30.3169495 | E35: 1423420 | F35: =E35/'- 3 -'!$D35*100 -> 0.6330965046 | G35: =E35/'- 7 -'!$E35 -> 83.4385533 | H35: 4580827 | I35: =H35/'- 3 -'!$D35*100 -> 2.037420833 | J35: =H35/'- 7 -'!$E35 -> 268.5205897
A36: ROLLING RIVER | B36: 25090 | C36: =B36/'- 3 -'!$D36*100 -> 0.0937885899 | D36: =B36/'- 7 -'!$C36 -> 14.16713721 | E36: 101425 | F36: =E36/'- 3 -'!$D36*100 -> 0.3791354217 | G36: =E36/'- 7 -'!$E36 -> 57.26990401 | H36: 244715 | I36: =H36/'- 3 -'!$D36*100 -> 0.9147658341 | J36: =H36/'- 7 -'!$E36 -> 138.1789949
A37: SEINE RIVER | B37: 194393 | C37: =B37/'- 3 -'!$D37*100 -> 0.3185879386 | D37: =B37/'- 7 -'!$C37 -> 42.10830716 | E37: 696925 | F37: =E37/'- 3 -'!$D37*100 -> 1.142180526 | G37: =E37/'- 7 -'!$E37 -> 150.9639337 | H37: 584079 | I37: =H37/'- 3 -'!$D37*100 -> 0.957238813 | J37: =H37/'- 7 -'!$E37 -> 126.5198744
A38: SEVEN OAKS | B38: 96010 | C38: =B38/'- 3 -'!$D38*100 -> 0.05737032557 | D38: =B38/'- 7 -'!$C38 -> 8.117522722 | E38: 643190 | F38: =E38/'- 3 -'!$D38*100 -> 0.3843351703 | G38: =E38/'- 7 -'!$E38 -> 54.38089199 | H38: 2035923 | I38: =H38/'- 3 -'!$D38*100 -> 1.216556248 | J38: =H38/'- 7 -'!$E38 -> 172.1346861
A39: SOUTHWEST HORIZON | B39: 0 | C39: =B39/'- 3 -'!$D39*100 -> 0 | D39: =B39/'- 7 -'!$C39 -> 0 | E39: 133150 | F39: =E39/'- 3 -'!$D39*100 -> 0.5220012859 | G39: =E39/'- 7 -'!$E39 -> 92.3370319 | H39: 281300 | I39: =H39/'- 3 -'!$D39*100 -> 1.102808575 | J39: =H39/'- 7 -'!$E39 -> 195.0762829
A40: ST. JAMES-ASSINIBOIA | B40: 45796 | C40: =B40/'- 3 -'!$D40*100 -> 0.03725684086 | D40: =B40/'- 7 -'!$C40 -> 5.748932965 | E40: 1084781 | F40: =E40/'- 3 -'!$D40*100 -> 0.8825118589 | G40: =E40/'- 7 -'!$E40 -> 136.1763746 | H40: 1360383 | I40: =H40/'- 3 -'!$D40*100 -> 1.106724887 | J40: =H40/'- 7 -'!$E40 -> 170.7736631
A41: SUNRISE | B41: 0 | C41: =B41/'- 3 -'!$D41*100 -> 0 | D41: =B41/'- 7 -'!$C41 -> 0 | E41: 552726 | F41: =E41/'- 3 -'!$D41*100 -> 0.7462457853 | G41: =E41/'- 7 -'!$E41 -> 120.1578261 | H41: 630718 | I41: =H41/'- 3 -'!$D41*100 -> 0.8515442538 | J41: =H41/'- 7 -'!$E41 -> 137.1126087
A42: SWAN VALLEY | B42: 19043 | C42: =B42/'- 3 -'!$D42*100 -> 0.07533185099 | D42: =B42/'- 7 -'!$C42 -> 14.22180732 | E42: 0 | F42: =E42/'- 3 -'!$D42*100 -> 0 | G42: =E42/'- 7 -'!$E42 -> 0 | H42: 283564 | I42: =H42/'- 3 -'!$D42*100 -> 1.121745575 | J42: =H42/'- 7 -'!$E42 -> 211.7729649
A43: TURTLE MOUNTAIN | B43: 0 | C43: =B43/'- 3 -'!$D43*100 -> 0 | D43: =B43/'- 7 -'!$C43 -> 0 | E43: 61802 | F43: =E43/'- 3 -'!$D43*100 -> 0.4139898589 | G43: =E43/'- 7 -'!$E43 -> 59.76982592 | H43: 134625 | I43: =H43/'- 3 -'!$D43*100 -> 0.9018055202 | J43: =H43/'- 7 -'!$E43 -> 130.1982592
A44: TURTLE RIVER | B44: 0 | C44: =B44/'- 3 -'!$D44*100 -> 0 | D44: =B44/'- 7 -'!$C44 -> 0 | E44: 0 | F44: =E44/'- 3 -'!$D44*100 -> 0 | G44: =E44/'- 7 -'!$E44 -> 0 | H44: 142657 | I44: =H44/'- 3 -'!$D44*100 -> 1.169602774 | J44: =H44/'- 7 -'!$E44 -> 244.4850043
A45: WESTERN | B45: 0 | C45: =B45/'- 3 -'!$D45*100 -> 0 | D45: =B45/'- 7 -'!$C45 -> 0 | E45: 0 | F45: =E45/'- 3 -'!$D45*100 -> 0 | G45: =E45/'- 7 -'!$E45 -> 0 | H45: 287102 | I45: =H45/'- 3 -'!$D45*100 -> 1.068193306 | J45: =H45/'- 7 -'!$E45 -> 134.1284747
A46: WINNIPEG | B46: 973700 | C46: =B46/'- 3 -'!$D46*100 -> 0.2160428873 | D46: =B46/'- 7 -'!$C46 -> 35.6125304 | E46: 2191225 | F46: =E46/'- 3 -'!$D46*100 -> 0.4861852477 | G46: =E46/'- 7 -'!$E46 -> 80.14282318 | H46: 1844360 | I46: =H46/'- 3 -'!$D46*100 -> 0.409223436 | J46: =H46/'- 7 -'!$E46 -> 67.4564307
A48: PROVINCE | B48: =SUM(B11:B46) -> 3540493 | C48: =B48/'- 3 -'!$D48*100 -> 0.1276040024 | D48: =B48/'- 7 -'!$C48 -> 19.3090662 | E48: =SUM(E11:E46) -> 21403140 | F48: =E48/'- 3 -'!$D48*100 -> 0.7713971835 | G48: =E48/'- 7 -'!$E48 -> 116.7279944 | H48: =SUM(H11:H46) -> 32428523 | I48: =H48/'- 3 -'!$D48*100 -> 1.16876642 | J48: =H48/'- 7 -'!$E48 -> 176.8579961
A50: WHITESHELL | B50: 0 | C50: =B50/'- 3 -'!$D50*100 -> 0 | D50: =B50/'- 7 -'!$C50 -> 0 | E50: 0 | F50: =E50/'- 3 -'!$D50*100 -> 0 | G50: =E50/'- 7 -'!$E50 -> 0 | H50: 15800 | I50: =H50/'- 3 -'!$D50*100 -> 0.3973732122 | J50: =H50/'- 7 -'!$E50 -> 91.86046512

Sheet - 28 -
B2: =AEXP_BP -> ANALYSIS OF EXPENSE BY PROGRAM | G2: PAGE 11 OF 16
B3: =OPYEAR -> OPERATING FUND 2023/2024 BUDGET
B5: FUNCTION 600: INSTRUCTIONAL & OTHER SUPPORT SERVICES
B6: PROFESSIONAL AND STAFF DEVELOPMENT
E7: OTHER (1)
D8: PER PUPIL | G8: PER PUPIL
A9: DIVISION / DISTRICT | B9: AMOUNT | C9: % | E9: AMOUNT | F9: %
A11: BEAUTIFUL PLAINS | B11: 171000 | C11: =B11/'- 3 -'!$D11*100 -> 0.6459583256 | D11: =B11/'- 7 -'!$E11 -> 82.33028406 | E11: 16489 | F11: =E11/'- 3 -'!$D11*100 -> 0.06228775925 | G11: =E11/'- 7 -'!$E11 -> 7.938854117
A12: BORDER LAND | B12: 361228 | C12: =B12/'- 3 -'!$D12*100 -> 0.9514915225 | D12: =B12/'- 7 -'!$E12 -> 173.9600289 | E12: 156497 | F12: =E12/'- 3 -'!$D12*100 -> 0.4122204502 | G12: =E12/'- 7 -'!$E12 -> 75.36575969
A13: BRANDON | B13: 1538746 | C13: =B13/'- 3 -'!$D13*100 -> 1.260430194 | D13: =B13/'- 7 -'!$E13 -> 169.0372405 | E13: 100510 | F13: =E13/'- 3 -'!$D13*100 -> 0.08233057233 | G13: =E13/'- 7 -'!$E13 -> 11.04141492
A14: DSFM | B14: 705910 | C14: =B14/'- 3 -'!$D14*100 -> 0.642078282 | D14: =B14/'- 7 -'!$E14 -> 116.1800527 | E14: 165906 | F14: =E14/'- 3 -'!$D14*100 -> 0.1509039955 | G14: =E14/'- 7 -'!$E14 -> 27.30513496
A15: EVERGREEN | B15: 186212 | C15: =B15/'- 3 -'!$D15*100 -> 0.7945113132 | D15: =B15/'- 7 -'!$E15 -> 133.3896848 | E15: 2100 | F15: =E15/'- 3 -'!$D15*100 -> 0.008960076459 | G15: =E15/'- 7 -'!$E15 -> 1.504297994
A16: FLIN FLON | B16: 97292 | C16: =B16/'- 3 -'!$D16*100 -> 0.5774890847 | D16: =B16/'- 7 -'!$E16 -> 114.866588 | E16: 47674 | F16: =E16/'- 3 -'!$D16*100 -> 0.2829751123 | G16: =E16/'- 7 -'!$E16 -> 56.28571429
A17: FORT LA BOSSE | B17: 105940 | C17: =B17/'- 3 -'!$D17*100 -> 0.4928425712 | D17: =B17/'- 7 -'!$E17 -> 70.01982816 | E17: 1500 | F17: =E17/'- 3 -'!$D17*100 -> 0.006978137217 | G17: =E17/'- 7 -'!$E17 -> 0.9914077991
A18: FRONTIER | B18: 915335 | C18: =B18/'- 3 -'!$D18*100 -> 0.5528050768 | D18: =B18/'- 7 -'!$E18 -> 147.3020599 | E18: 1973546 | F18: =E18/'- 3 -'!$D18*100 -> 1.191898319 | G18: =E18/'- 7 -'!$E18 -> 317.5967171
A19: GARDEN VALLEY | B19: 510660 | C19: =B19/'- 3 -'!$D19*100 -> 0.9109914636 | D19: =B19/'- 7 -'!$E19 -> 121.0094787 | E19: 249960 | F19: =E19/'- 3 -'!$D19*100 -> 0.445915925 | G19: =E19/'- 7 -'!$E19 -> 59.23222749
A20: HANOVER | B20: 549000 | C20: =B20/'- 3 -'!$D20*100 -> 0.5364172603 | D20: =B20/'- 7 -'!$E20 -> 67.60251201 | E20: 244800 | F20: =E20/'- 3 -'!$D20*100 -> 0.2391893358 | G20: =E20/'- 7 -'!$E20 -> 30.14407093
A21: INTERLAKE | B21: 450872 | C21: =B21/'- 3 -'!$D21*100 -> 1.100386577 | D21: =B21/'- 7 -'!$E21 -> 158.2284611 | E21: 172028 | F21: =E21/'- 3 -'!$D21*100 -> 0.419847101 | G21: =E21/'- 7 -'!$E21 -> 60.37129321
A22: KELSEY | B22: 72344 | C22: =B22/'- 3 -'!$D22*100 -> 0.3304129591 | D22: =B22/'- 7 -'!$E22 -> 50.59020979 | E22: 0 | F22: =E22/'- 3 -'!$D22*100 -> 0 | G22: =E22/'- 7 -'!$E22 -> 0
A23: LAKESHORE | B23: 159500 | C23: =B23/'- 3 -'!$D23*100 -> 0.9362428042 | D23: =B23/'- 7 -'!$E23 -> 174.7945205 | E23: 7000 | F23: =E23/'- 3 -'!$D23*100 -> 0.04108902589 | G23: =E23/'- 7 -'!$E23 -> 7.671232877
A24: LORD SELKIRK | B24: 345910 | C24: =B24/'- 3 -'!$D24*100 -> 0.5445526856 | D24: =B24/'- 7 -'!$E24 -> 91.97287955 | E24: 117255 | F24: =E24/'- 3 -'!$D24*100 -> 0.1845899949 | G24: =E24/'- 7 -'!$E24 -> 31.17654879
A25: LOUIS RIEL | B25: 1367166 | C25: =B25/'- 3 -'!$D25*100 -> 0.6147125181 | D25: =B25/'- 7 -'!$E25 -> 84.55476529 | E25: 835683 | F25: =E25/'- 3 -'!$D25*100 -> 0.3757442778 | G25: =E25/'- 7 -'!$E25 -> 51.68427237
A26: MOUNTAIN VIEW | B26: 407017 | C26: =B26/'- 3 -'!$D26*100 -> 0.882278928 | D26: =B26/'- 7 -'!$E26 -> 134.2847245 | E26: 299604 | F26: =E26/'- 3 -'!$D26*100 -> 0.649442888 | G26: =E26/'- 7 -'!$E26 -> 98.84658529
A27: MYSTERY LAKE | B27: 139000 | C27: =B27/'- 3 -'!$D27*100 -> 0.2996915096 | D27: =B27/'- 7 -'!$E27 -> 50.46287893 | E27: 9000 | F27: =E27/'- 3 -'!$D27*100 -> 0.01940448624 | G27: =E27/'- 7 -'!$E27 -> 3.26738065
A28: PARK WEST | B28: 357166 | C28: =B28/'- 3 -'!$D28*100 -> 1.101493949 | D28: =B28/'- 7 -'!$E28 -> 168.5938164 | E28: 0 | F28: =E28/'- 3 -'!$D28*100 -> 0 | G28: =E28/'- 7 -'!$E28 -> 0
A29: PEMBINA TRAILS | B29: 1559599 | C29: =B29/'- 3 -'!$D29*100 -> 0.7642411625 | D29: =B29/'- 7 -'!$E29 -> 99.54929595 | E29: 801712 | F29: =E29/'- 3 -'!$D29*100 -> 0.3928582353 | G29: =E29/'- 7 -'!$E29 -> 51.17332414
A30: PINE CREEK | B30: 101333 | C30: =B30/'- 3 -'!$D30*100 -> 0.5861339494 | D30: =B30/'- 7 -'!$E30 -> 93.7400555 | E30: 9909 | F30: =E30/'- 3 -'!$D30*100 -> 0.05731599088 | G30: =E30/'- 7 -'!$E30 -> 9.166512488
A31: PORTAGE LA PRAIRIE | B31: 428022 | C31: =B31/'- 3 -'!$D31*100 -> 0.9244883269 | D31: =B31/'- 7 -'!$E31 -> 124.2804878 | E31: 791558 | F31: =E31/'- 3 -'!$D31*100 -> 1.709692799 | G31: =E31/'- 7 -'!$E31 -> 229.8368177
A32: PRAIRIE ROSE | B32: 285755 | C32: =B32/'- 3 -'!$D32*100 -> 0.8209477021 | D32: =B32/'- 7 -'!$E32 -> 121.3912489 | E32: 2000 | F32: =E32/'- 3 -'!$D32*100 -> 0.005745815136 | G32: =E32/'- 7 -'!$E32 -> 0.849617672
A33: PRAIRIE SPIRIT | B33: 124440 | C33: =B33/'- 3 -'!$D33*100 -> 0.3977168674 | D33: =B33/'- 7 -'!$E33 -> 57.93296089 | E33: 11500 | F33: =E33/'- 3 -'!$D33*100 -> 0.03675461246 | G33: =E33/'- 7 -'!$E33 -> 5.353817505
A34: RED RIVER VALLEY | B34: 200040 | C34: =B34/'- 3 -'!$D34*100 -> 0.5648232198 | D34: =B34/'- 7 -'!$E34 -> 87.92967033 | E34: 98354 | F34: =E34/'- 3 -'!$D34*100 -> 0.2777075733 | G34: =E34/'- 7 -'!$E34 -> 43.23252747
A35: RIVER EAST TRANSCONA | B35: 1726762 | C35: =B35/'- 3 -'!$D35*100 -> 0.7680143502 | D35: =B35/'- 7 -'!$E35 -> 101.2199654 | E35: 587247 | F35: =E35/'- 3 -'!$D35*100 -> 0.2611906697 | G35: =E35/'- 7 -'!$E35 -> 34.42345907
A36: ROLLING RIVER | B36: 127500 | C36: =B36/'- 3 -'!$D36*100 -> 0.4766060268 | D36: =B36/'- 7 -'!$E36 -> 71.99322417 | E36: 27400 | F36: =E36/'- 3 -'!$D36*100 -> 0.1024235697 | G36: =E36/'- 7 -'!$E36 -> 15.47148504
A37: SEINE RIVER | B37: 383177 | C37: =B37/'- 3 -'!$D37*100 -> 0.6279833664 | D37: =B37/'- 7 -'!$E37 -> 83.00162461 | E37: 86500 | F37: =E37/'- 3 -'!$D37*100 -> 0.1417636267 | G37: =E37/'- 7 -'!$E37 -> 18.73713852
A38: SEVEN OAKS | B38: 1194680 | C38: =B38/'- 3 -'!$D38*100 -> 0.7138754354 | D38: =B38/'- 7 -'!$E38 -> 101.0086662 | E38: 2147927 | F38: =E38/'- 3 -'!$D38*100 -> 1.283483713 | G38: =E38/'- 7 -'!$E38 -> 181.6044811
A39: SOUTHWEST HORIZON | B39: 79150 | C39: =B39/'- 3 -'!$D39*100 -> 0.3102996754 | D39: =B39/'- 7 -'!$E39 -> 54.889043 | E39: 29900 | F39: =E39/'- 3 -'!$D39*100 -> 0.1172199658 | G39: =E39/'- 7 -'!$E39 -> 20.73509015
A40: ST. JAMES-ASSINIBOIA | B40: 1736423 | C40: =B40/'- 3 -'!$D40*100 -> 1.412648165 | D40: =B40/'- 7 -'!$E40 -> 217.979287 | E40: 408264 | F40: =E40/'- 3 -'!$D40*100 -> 0.3321387649 | G40: =E40/'- 7 -'!$E40 -> 51.25081597
A41: SUNRISE | B41: 397990 | C41: =B41/'- 3 -'!$D41*100 -> 0.5373337967 | D41: =B41/'- 7 -'!$E41 -> 86.51956522 | E41: 33019 | F41: =E41/'- 3 -'!$D41*100 -> 0.04457957394 | G41: =E41/'- 7 -'!$E41 -> 7.178043478
A42: SWAN VALLEY | B42: 106746 | C42: =B42/'- 3 -'!$D42*100 -> 0.4222745242 | D42: =B42/'- 7 -'!$E42 -> 79.72068708 | E42: 26486 | F42: =E42/'- 3 -'!$D42*100 -> 0.1047754768 | G42: =E42/'- 7 -'!$E42 -> 19.78043316
A43: TURTLE MOUNTAIN | B43: 145967 | C43: =B43/'- 3 -'!$D43*100 -> 0.9777815886 | D43: =B43/'- 7 -'!$E43 -> 141.1673114 | E43: 100270 | F43: =E43/'- 3 -'!$D43*100 -> 0.6716734597 | G43: =E43/'- 7 -'!$E43 -> 96.9729207
A44: TURTLE RIVER | B44: 31073 | C44: =B44/'- 3 -'!$D44*100 -> 0.2547583854 | D44: =B44/'- 7 -'!$E44 -> 53.25278492 | E44: 80000 | F44: =E44/'- 3 -'!$D44*100 -> 0.6558964641 | G44: =E44/'- 7 -'!$E44 -> 137.1036847
A45: WESTERN | B45: 132097 | C45: =B45/'- 3 -'!$D45*100 -> 0.4914808364 | D45: =B45/'- 7 -'!$E45 -> 61.71315113 | E45: 196219 | F45: =E45/'- 3 -'!$D45*100 -> 0.7300535079 | G45: =E45/'- 7 -'!$E45 -> 91.66970334
A46: WINNIPEG | B46: 2689476 | C46: =B46/'- 3 -'!$D46*100 -> 0.5967363257 | D46: =B46/'- 7 -'!$E46 -> 98.36607355 | E46: 3016527 | F46: =E46/'- 3 -'!$D46*100 -> 0.6693018411 | G46: =E46/'- 7 -'!$E46 -> 110.3277801
A48: PROVINCE | B48: =SUM(B11:B46) -> 19890528 | C48: =B48/'- 3 -'!$D48*100 -> 0.7168806669 | D48: =B48/'- 7 -'!$E48 -> 108.4785429 | E48: =SUM(E11:E46) -> 12854344 | F48: =E48/'- 3 -'!$D48*100 -> 0.4632873848 | G48: =E48/'- 7 -'!$E48 -> 70.10475073
A50: WHITESHELL | B50: 45773 | C50: =B50/'- 3 -'!$D50*100 -> 1.151200256 | D50: =B50/'- 7 -'!$E50 -> 266.122093 | E50: 50893 | F50: =E50/'- 3 -'!$D50*100 -> 1.279969297 | G50: =E50/'- 7 -'!$E50 -> 295.8895349
A52: (1) Includes food services, health services, and other activities related to instructional and other support not included in previous programs.

Sheet - 29 -
B2: =AEXP_BP -> ANALYSIS OF EXPENSE BY PROGRAM | G2: PAGE 12 OF 16
B3: =OPYEAR -> OPERATING FUND 2023/2024 BUDGET
B6: FUNCTION 700: TRANSPORTATION OF PUPILS
F7: ALLOWANCES IN LIEU OF TRANSPORTATION
B8: ADMINISTRATION | D8: REGULAR
A9: DIVISION / DISTRICT | B9: AMOUNT | C9: % | D9: AMOUNT | E9: % | F9: AMOUNT | G9: %
A11: BEAUTIFUL PLAINS | B11: 102891 | C11: =B11/'- 3 -'!$D11*100 -> 0.3886742578 | D11: 1412831 | E11: =D11/'- 3 -'!$D11*100 -> 5.337017235 | F11: 5604 | G11: =F11/'- 3 -'!$D11*100 -> 0.02116930092
A12: BORDER LAND | B12: 149207 | C12: =B12/'- 3 -'!$D12*100 -> 0.3930182478 | D12: 2248825 | E12: =D12/'- 3 -'!$D12*100 -> 5.9235107 | F12: 0 | G12: =F12/'- 3 -'!$D12*100 -> 0
A13: BRANDON | B13: 250710 | C13: =B13/'- 3 -'!$D13*100 -> 0.2053636234 | D13: 2639710 | E13: =D13/'- 3 -'!$D13*100 -> 2.162260821 | F13: 1770 | G13: =F13/'- 3 -'!$D13*100 -> 0.00144985686
A14: DSFM | B14: 290433 | C14: =B14/'- 3 -'!$D14*100 -> 0.2641706757 | D14: 11180707 | E14: =D14/'- 3 -'!$D14*100 -> 10.16969464 | F14: 399923 | G14: =F14/'- 3 -'!$D14*100 -> 0.3637600725
A15: EVERGREEN | B15: 217510 | C15: =B15/'- 3 -'!$D15*100 -> 0.928050586 | D15: 1574368 | E15: =D15/'- 3 -'!$D15*100 -> 6.717360788 | F15: 5000 | G15: =F15/'- 3 -'!$D15*100 -> 0.02133351538
A16: FLIN FLON | B16: 0 | C16: =B16/'- 3 -'!$D16*100 -> 0 | D16: 401016 | E16: =D16/'- 3 -'!$D16*100 -> 2.380281655 | F16: 375 | G16: =F16/'- 3 -'!$D16*100 -> 0.002225860366
A17: FORT LA BOSSE | B17: 76595 | C17: =B17/'- 3 -'!$D17*100 -> 0.3563269468 | D17: 1568076 | E17: =D17/'- 3 -'!$D17*100 -> 7.294832996 | F17: 1500 | G17: =F17/'- 3 -'!$D17*100 -> 0.006978137217
A18: FRONTIER | B18: 415552 | C18: =B18/'- 3 -'!$D18*100 -> 0.2509674111 | D18: 8777485 | E18: =D18/'- 3 -'!$D18*100 -> 5.301051822 | F18: 112685 | G18: =F18/'- 3 -'!$D18*100 -> 0.06805469045
A19: GARDEN VALLEY | B19: 136590 | C19: =B19/'- 3 -'!$D19*100 -> 0.2436696119 | D19: 2683080 | E19: =D19/'- 3 -'!$D19*100 -> 4.786478236 | F19: 18000 | G19: =F19/'- 3 -'!$D19*100 -> 0.03211108437
A20: HANOVER | B20: 315400 | C20: =B20/'- 3 -'!$D20*100 -> 0.3081712275 | D20: 3800000 | E20: =D20/'- 3 -'!$D20*100 -> 3.712906356 | F20: 1500 | G20: =F20/'- 3 -'!$D20*100 -> 0.00146562093
A21: INTERLAKE | B21: 158500 | C21: =B21/'- 3 -'!$D21*100 -> 0.386831013 | D21: 2439000 | E21: =D21/'- 3 -'!$D21*100 -> 5.952560509 | F21: 0 | G21: =F21/'- 3 -'!$D21*100 -> 0
A22: KELSEY | B22: 96046 | C22: =B22/'- 3 -'!$D22*100 -> 0.4386658613 | D22: 428196 | E22: =D22/'- 3 -'!$D22*100 -> 1.955677146 | F22: 4000 | G22: =F22/'- 3 -'!$D22*100 -> 0.01826899033
A23: LAKESHORE | B23: 103300 | C23: =B23/'- 3 -'!$D23*100 -> 0.6063566249 | D23: 1716800 | E23: =D23/'- 3 -'!$D23*100 -> 10.07737709 | F23: 4500 | G23: =F23/'- 3 -'!$D23*100 -> 0.02641437379
A24: LORD SELKIRK | B24: 230735 | C24: =B24/'- 3 -'!$D24*100 -> 0.3632371539 | D24: 2734979 | E24: =D24/'- 3 -'!$D24*100 -> 4.305571274 | F24: 5000 | G24: =F24/'- 3 -'!$D24*100 -> 0.007871305912
A25: LOUIS RIEL | B25: 500407 | C25: =B25/'- 3 -'!$D25*100 -> 0.2249956824 | D25: 5931606 | E25: =D25/'- 3 -'!$D25*100 -> 2.66700054 | F25: 10000 | G25: =F25/'- 3 -'!$D25*100 -> 0.004496253697
A26: MOUNTAIN VIEW | B26: 223831 | C26: =B26/'- 3 -'!$D26*100 -> 0.4851919569 | D26: 2827515 | E26: =D26/'- 3 -'!$D26*100 -> 6.129122132 | F26: 10500 | G26: =F26/'- 3 -'!$D26*100 -> 0.022760545
A27: MYSTERY LAKE | B27: 0 | C27: =B27/'- 3 -'!$D27*100 -> 0 | D27: 57500 | E27: =D27/'- 3 -'!$D27*100 -> 0.1239731065 | F27: 270000 | G27: =F27/'- 3 -'!$D27*100 -> 0.5821345871
A28: PARK WEST | B28: 66141 | C28: =B28/'- 3 -'!$D28*100 -> 0.2039777339 | D28: 2027492 | E28: =D28/'- 3 -'!$D28*100 -> 6.252751299 | F28: 0 | G28: =F28/'- 3 -'!$D28*100 -> 0
A29: PEMBINA TRAILS | B29: 578977 | C29: =B29/'- 3 -'!$D29*100 -> 0.2837127079 | D29: 3646215 | E29: =D29/'- 3 -'!$D29*100 -> 1.786733378 | F29: 115000 | G29: =F29/'- 3 -'!$D29*100 -> 0.05635277638
A30: PINE CREEK | B30: 185722 | C30: =B30/'- 3 -'!$D30*100 -> 1.07425981 | D30: 1383324 | E30: =D30/'- 3 -'!$D30*100 -> 8.001471972 | F30: 0 | G30: =F30/'- 3 -'!$D30*100 -> 0
A31: PORTAGE LA PRAIRIE | B31: 177530 | C31: =B31/'- 3 -'!$D31*100 -> 0.3834485439 | D31: 1247663 | E31: =D31/'- 3 -'!$D31*100 -> 2.694837834 | F31: 5000 | G31: =F31/'- 3 -'!$D31*100 -> 0.01079954216
A32: PRAIRIE ROSE | B32: 171986 | C32: =B32/'- 3 -'!$D32*100 -> 0.494099881 | D32: 2493978 | E32: =D32/'- 3 -'!$D32*100 -> 7.164968271 | F32: 0 | G32: =F32/'- 3 -'!$D32*100 -> 0
A33: PRAIRIE SPIRIT | B33: 132115 | C33: =B33/'- 3 -'!$D33*100 -> 0.4222465761 | D33: 2602125 | E33: =D33/'- 3 -'!$D33*100 -> 8.316530083 | F33: 0 | G33: =F33/'- 3 -'!$D33*100 -> 0
A34: RED RIVER VALLEY | B34: 190009 | C34: =B34/'- 3 -'!$D34*100 -> 0.5365001759 | D34: 2759572 | E34: =D34/'- 3 -'!$D34*100 -> 7.791793354 | F34: 80000 | G34: =F34/'- 3 -'!$D34*100 -> 0.2258841111
A35: RIVER EAST TRANSCONA | B35: 469780 | C35: =B35/'- 3 -'!$D35*100 -> 0.2089447078 | D35: 4849588 | E35: =D35/'- 3 -'!$D35*100 -> 2.156958039 | F35: 17500 | G35: =F35/'- 3 -'!$D35*100 -> 0.00778349948
A36: ROLLING RIVER | B36: 67650 | C36: =B36/'- 3 -'!$D36*100 -> 0.2528815507 | D36: 1840725 | E36: =D36/'- 3 -'!$D36*100 -> 6.880789245 | F36: 9500 | G36: =F36/'- 3 -'!$D36*100 -> 0.03551182161
A37: SEINE RIVER | B37: 242293 | C37: =B37/'- 3 -'!$D37*100 -> 0.3970905712 | D37: 3799973 | E37: =D37/'- 3 -'!$D37*100 -> 6.22772201 | F37: 2000 | G37: =F37/'- 3 -'!$D37*100 -> 0.003277771716
A38: SEVEN OAKS | B38: 344870 | C38: =B38/'- 3 -'!$D38*100 -> 0.2060754523 | D38: 3795524 | E38: =D38/'- 3 -'!$D38*100 -> 2.267997579 | F38: 0 | G38: =F38/'- 3 -'!$D38*100 -> 0
A39: SOUTHWEST HORIZON | B39: 134300 | C39: =B39/'- 3 -'!$D39*100 -> 0.5265097461 | D39: 2318300 | E39: =D39/'- 3 -'!$D39*100 -> 9.088663771 | F39: 900 | G39: =F39/'- 3 -'!$D39*100 -> 0.003528360175
A40: ST. JAMES-ASSINIBOIA | B40: 164044 | C40: =B40/'- 3 -'!$D40*100 -> 0.1334562233 | D40: 2550891 | E40: =D40/'- 3 -'!$D40*100 -> 2.075249805 | F40: 2400 | G40: =F40/'- 3 -'!$D40*100 -> 0.001952494062
A41: SUNRISE | B41: 454235 | C41: =B41/'- 3 -'!$D41*100 -> 0.6132712307 | D41: 5288759 | E41: =D41/'- 3 -'!$D41*100 -> 7.14045316 | F41: 38000 | G41: =F41/'- 3 -'!$D41*100 -> 0.05130451587
A42: SWAN VALLEY | B42: 138695 | C42: =B42/'- 3 -'!$D42*100 -> 0.5486609816 | D42: 1883748 | E42: =D42/'- 3 -'!$D42*100 -> 7.451883822 | F42: 0 | G42: =F42/'- 3 -'!$D42*100 -> 0
A43: TURTLE MOUNTAIN | B43: 72475 | C43: =B43/'- 3 -'!$D43*100 -> 0.4854845316 | D43: 1168409 | E43: =D43/'- 3 -'!$D43*100 -> 7.826760899 | F43: 0 | G43: =F43/'- 3 -'!$D43*100 -> 0
A44: TURTLE RIVER | B44: 60700 | C44: =B44/'- 3 -'!$D44*100 -> 0.4976614422 | D44: 1193773 | E44: =D44/'- 3 -'!$D44*100 -> 9.787393621 | F44: 0 | G44: =F44/'- 3 -'!$D44*100 -> 0
A45: WESTERN | B45: 93788 | C45: =B45/'- 3 -'!$D45*100 -> 0.3489481569 | D45: 977442 | E45: =D45/'- 3 -'!$D45*100 -> 3.636676167 | F45: 15000 | G45: =F45/'- 3 -'!$D45*100 -> 0.05580908382
A46: WINNIPEG | B46: 727700 | C46: =B46/'- 3 -'!$D46*100 -> 0.1614608289 | D46: 6809294 | E46: =D46/'- 3 -'!$D46*100 -> 1.510834483 | F46: 0 | G46: =F46/'- 3 -'!$D46*100 -> 0
A48: PROVINCE | B48: =SUM(B11:B46) -> 7740717 | C48: =B48/'- 3 -'!$D48*100 -> 0.2789855737 | D48: =SUM(D11:D46) -> 105058489 | E48: =D48/'- 3 -'!$D48*100 -> 3.786445471 | F48: =SUM(F11:F46) -> 1135657 | G48: =F48/'- 3 -'!$D48*100 -> 0.04093056492
A50: WHITESHELL | B50: 0 | C50: =B50/'- 3 -'!$D50*100 -> 0 | D50: 0 | E50: =D50/'- 3 -'!$D50*100 -> 0 | F50: 4000 | G50: =F50/'- 3 -'!$D50*100 -> 0.1006008132

Sheet - 30 -
B2: =AEXP_BP -> ANALYSIS OF EXPENSE BY PROGRAM | F2: PAGE 13 OF 16
B3: =OPYEAR -> OPERATING FUND 2023/2024 BUDGET
B6: FUNCTION 700: TRANSPORTATION (CONT'D)
B7: BOARDING OF STUDENTS | D7: FIELD TRIPS AND OTHER
A9: DIVISION / DISTRICT | B9: AMOUNT | C9: % | D9: AMOUNT | E9: %
A11: BEAUTIFUL PLAINS | B11: 0 | C11: =B11/'- 3 -'!$D11*100 -> 0 | D11: 140000 | E11: =D11/'- 3 -'!$D11*100 -> 0.5288547695
A12: BORDER LAND | B12: 1200 | C12: =B12/'- 3 -'!$D12*100 -> 0.003160856376 | D12: 307120 | E12: =D12/'- 3 -'!$D12*100 -> 0.8089685085
A13: BRANDON | B13: 0 | C13: =B13/'- 3 -'!$D13*100 -> 0 | D13: 82600 | E13: =D13/'- 3 -'!$D13*100 -> 0.06765998681
A14: DSFM | B14: 0 | C14: =B14/'- 3 -'!$D14*100 -> 0 | D14: 307494 | E14: =D14/'- 3 -'!$D14*100 -> 0.2796889394
A15: EVERGREEN | B15: 0 | C15: =B15/'- 3 -'!$D15*100 -> 0 | D15: 88325 | E15: =D15/'- 3 -'!$D15*100 -> 0.3768565492
A16: FLIN FLON | B16: 0 | C16: =B16/'- 3 -'!$D16*100 -> 0 | D16: 157231 | E16: =D16/'- 3 -'!$D16*100 -> 0.93326467
A17: FORT LA BOSSE | B17: 0 | C17: =B17/'- 3 -'!$D17*100 -> 0 | D17: 36750 | E17: =D17/'- 3 -'!$D17*100 -> 0.1709643618
A18: FRONTIER | B18: 2950088 | C18: =B18/'- 3 -'!$D18*100 -> 1.781668595 | D18: 1286463 | E18: =D18/'- 3 -'!$D18*100 -> 0.7769431711
A19: GARDEN VALLEY | B19: 0 | C19: =B19/'- 3 -'!$D19*100 -> 0 | D19: 154500 | E19: =D19/'- 3 -'!$D19*100 -> 0.2756201409
A20: HANOVER | B20: 0 | C20: =B20/'- 3 -'!$D20*100 -> 0 | D20: 633700 | E20: =D20/'- 3 -'!$D20*100 -> 0.6191759888
A21: INTERLAKE | B21: 0 | C21: =B21/'- 3 -'!$D21*100 -> 0 | D21: 140000 | E21: =D21/'- 3 -'!$D21*100 -> 0.34168039
A22: KELSEY | B22: 0 | C22: =B22/'- 3 -'!$D22*100 -> 0 | D22: 33850 | E22: =D22/'- 3 -'!$D22*100 -> 0.1546013307
A23: LAKESHORE | B23: 0 | C23: =B23/'- 3 -'!$D23*100 -> 0 | D23: 20000 | E23: =D23/'- 3 -'!$D23*100 -> 0.1173972168
A24: LORD SELKIRK | B24: 0 | C24: =B24/'- 3 -'!$D24*100 -> 0 | D24: 98000 | E24: =D24/'- 3 -'!$D24*100 -> 0.1542775959
A25: LOUIS RIEL | B25: 0 | C25: =B25/'- 3 -'!$D25*100 -> 0 | D25: 134829 | E25: =D25/'- 3 -'!$D25*100 -> 0.06062253897
A26: MOUNTAIN VIEW | B26: 0 | C26: =B26/'- 3 -'!$D26*100 -> 0 | D26: 224482 | E26: =D26/'- 3 -'!$D26*100 -> 0.4866031107
A27: MYSTERY LAKE | B27: 0 | C27: =B27/'- 3 -'!$D27*100 -> 0 | D27: 172000 | E27: =D27/'- 3 -'!$D27*100 -> 0.3708412925
A28: PARK WEST | B28: 0 | C28: =B28/'- 3 -'!$D28*100 -> 0 | D28: 114341 | E28: =D28/'- 3 -'!$D28*100 -> 0.3526257249
A29: PEMBINA TRAILS | B29: 0 | C29: =B29/'- 3 -'!$D29*100 -> 0 | D29: 200000 | E29: =D29/'- 3 -'!$D29*100 -> 0.09800482848
A30: PINE CREEK | B30: 0 | C30: =B30/'- 3 -'!$D30*100 -> 0 | D30: 59896 | E30: =D30/'- 3 -'!$D30*100 -> 0.3464525775
A31: PORTAGE LA PRAIRIE | B31: 0 | C31: =B31/'- 3 -'!$D31*100 -> 0 | D31: 37600 | E31: =D31/'- 3 -'!$D31*100 -> 0.08121255704
A32: PRAIRIE ROSE | B32: 0 | C32: =B32/'- 3 -'!$D32*100 -> 0 | D32: 72884 | E32: =D32/'- 3 -'!$D32*100 -> 0.2093889952
A33: PRAIRIE SPIRIT | B33: 0 | C33: =B33/'- 3 -'!$D33*100 -> 0 | D33: 75000 | E33: =D33/'- 3 -'!$D33*100 -> 0.2397039943
A34: RED RIVER VALLEY | B34: 0 | C34: =B34/'- 3 -'!$D34*100 -> 0 | D34: 155783 | E34: =D34/'- 3 -'!$D34*100 -> 0.439861306
A35: RIVER EAST TRANSCONA | B35: 0 | C35: =B35/'- 3 -'!$D35*100 -> 0 | D35: 190110 | E35: =D35/'- 3 -'!$D35*100 -> 0.08455549064
A36: ROLLING RIVER | B36: 0 | C36: =B36/'- 3 -'!$D36*100 -> 0 | D36: 97500 | E36: =D36/'- 3 -'!$D36*100 -> 0.3644634323
A37: SEINE RIVER | B37: 0 | C37: =B37/'- 3 -'!$D37*100 -> 0 | D37: 53934 | E37: =D37/'- 3 -'!$D37*100 -> 0.08839166986
A38: SEVEN OAKS | B38: 0 | C38: =B38/'- 3 -'!$D38*100 -> 0 | D38: 387400 | E38: =D38/'- 3 -'!$D38*100 -> 0.2314890545
A39: SOUTHWEST HORIZON | B39: 0 | C39: =B39/'- 3 -'!$D39*100 -> 0 | D39: 15900 | E39: =D39/'- 3 -'!$D39*100 -> 0.06233436309
A40: ST. JAMES-ASSINIBOIA | B40: 0 | C40: =B40/'- 3 -'!$D40*100 -> 0 | D40: 132208 | E40: =D40/'- 3 -'!$D40*100 -> 0.1075563896
A41: SUNRISE | B41: 0 | C41: =B41/'- 3 -'!$D41*100 -> 0 | D41: 158000 | E41: =D41/'- 3 -'!$D41*100 -> 0.2133187765
A42: SWAN VALLEY | B42: 0 | C42: =B42/'- 3 -'!$D42*100 -> 0 | D42: 118159 | E42: =D42/'- 3 -'!$D42*100 -> 0.4674229996
A43: TURTLE MOUNTAIN | B43: 0 | C43: =B43/'- 3 -'!$D43*100 -> 0 | D43: 60000 | E43: =D43/'- 3 -'!$D43*100 -> 0.4019188948
A44: TURTLE RIVER | B44: 0 | C44: =B44/'- 3 -'!$D44*100 -> 0 | D44: 52800 | E44: =D44/'- 3 -'!$D44*100 -> 0.4328916663
A45: WESTERN | B45: 0 | C45: =B45/'- 3 -'!$D45*100 -> 0 | D45: 85156 | E45: =D45/'- 3 -'!$D45*100 -> 0.3168318895
A46: WINNIPEG | B46: 0 | C46: =B46/'- 3 -'!$D46*100 -> 0 | D46: 428250 | E46: =D46/'- 3 -'!$D46*100 -> 0.09501937608
A48: PROVINCE | B48: =SUM(B11:B46) -> 2951288 | C48: =B48/'- 3 -'!$D48*100 -> 0.1063682829 | D48: =SUM(D11:D46) -> 6512265 | E48: =D48/'- 3 -'!$D48*100 -> 0.2347105555
A50: WHITESHELL | B50: 0 | C50: =B50/'- 3 -'!$D50*100 -> 0 | D50: 55931 | E50: =D50/'- 3 -'!$D50*100 -> 1.406676021

Sheet - 31 -
B2: =AEXP_BP -> ANALYSIS OF EXPENSE BY PROGRAM | G2: PAGE 14 OF 16
B3: =OPYEAR -> OPERATING FUND 2023/2024 BUDGET
B6: FUNCTION 800: OPERATIONS AND MAINTENANCE
D7: SCHOOL BUILDINGS
B8: ADMINISTRATION | D8: MAINTENANCE | F8: REPAIRS
A9: DIVISION / DISTRICT | B9: AMOUNT | C9: % | D9: AMOUNT | E9: % | F9: AMOUNT | G9: %
A11: BEAUTIFUL PLAINS | B11: 98046 | C11: =B11/'- 3 -'!$D11*100 -> 0.3703721052 | D11: 2027030 | E11: =D11/'- 3 -'!$D11*100 -> 7.657174882 | F11: 267800 | G11: =F11/'- 3 -'!$D11*100 -> 1.011623623
A12: BORDER LAND | B12: 139649 | C12: =B12/'- 3 -'!$D12*100 -> 0.3678420267 | D12: 3270702 | E12: =D12/'- 3 -'!$D12*100 -> 8.615182726 | F12: 212000 | G12: =F12/'- 3 -'!$D12*100 -> 0.5584179598
A13: BRANDON | B13: 454610 | C13: =B13/'- 3 -'!$D13*100 -> 0.3723838572 | D13: 9168500 | E13: =D13/'- 3 -'!$D13*100 -> 7.510176623 | F13: 609997 | G13: =F13/'- 3 -'!$D13*100 -> 0.4996657261
A14: DSFM | B14: 275933 | C14: =B14/'- 3 -'!$D14*100 -> 0.2509818342 | D14: 10150229 | E14: =D14/'- 3 -'!$D14*100 -> 9.232397329 | F14: 600000 | G14: =F14/'- 3 -'!$D14*100 -> 0.5457451647
A15: EVERGREEN | B15: 54325 | C15: =B15/'- 3 -'!$D15*100 -> 0.2317886446 | D15: 2561185 | E15: =D15/'- 3 -'!$D15*100 -> 10.92781592 | F15: 160000 | G15: =F15/'- 3 -'!$D15*100 -> 0.6826724921
A16: FLIN FLON | B16: 119766 | C16: =B16/'- 3 -'!$D16*100 -> 0.7108863803 | D16: 2166429 | E16: =D16/'- 3 -'!$D16*100 -> 12.85911586 | F16: 80000 | G16: =F16/'- 3 -'!$D16*100 -> 0.4748502115
A17: FORT LA BOSSE | B17: 76295 | C17: =B17/'- 3 -'!$D17*100 -> 0.3549313193 | D17: 1796204 | E17: =D17/'- 3 -'!$D17*100 -> 8.356105321 | F17: 70000 | G17: =F17/'- 3 -'!$D17*100 -> 0.3256464035
A18: FRONTIER | B18: 1176141 | C18: =B18/'- 3 -'!$D18*100 -> 0.7103155849 | D18: 21085884 | E18: =D18/'- 3 -'!$D18*100 -> 12.73455481 | F18: 2370922 | G18: =F18/'- 3 -'!$D18*100 -> 1.431888564
A19: GARDEN VALLEY | B19: 213740 | C19: =B19/'- 3 -'!$D19*100 -> 0.3813012874 | D19: 4990990 | E19: =D19/'- 3 -'!$D19*100 -> 8.903672277 | F19: 283500 | G19: =F19/'- 3 -'!$D19*100 -> 0.5057495789
A20: HANOVER | B20: 231600 | C20: =B20/'- 3 -'!$D20*100 -> 0.2262918716 | D20: 7059900 | E20: =D20/'- 3 -'!$D20*100 -> 6.898091468 | F20: 599000 | G20: =F20/'- 3 -'!$D20*100 -> 0.5852712913
A21: INTERLAKE | B21: 181900 | C21: =B21/'- 3 -'!$D21*100 -> 0.4439404496 | D21: 3185900 | E21: =D21/'- 3 -'!$D21*100 -> 7.77542539 | F21: 215000 | G21: =F21/'- 3 -'!$D21*100 -> 0.5247234561
A22: KELSEY | B22: 74159 | C22: =B22/'- 3 -'!$D22*100 -> 0.3387025135 | D22: 2380264 | E22: =D22/'- 3 -'!$D22*100 -> 10.871255 | F22: 38000 | G22: =F22/'- 3 -'!$D22*100 -> 0.1735554081
A23: LAKESHORE | B23: 82595 | C23: =B23/'- 3 -'!$D23*100 -> 0.4848211562 | D23: 1474150 | E23: =D23/'- 3 -'!$D23*100 -> 8.653055359 | F23: 135000 | G23: =F23/'- 3 -'!$D23*100 -> 0.7924312136
A24: LORD SELKIRK | B24: 150463 | C24: =B24/'- 3 -'!$D24*100 -> 0.2368680603 | D24: 5902751 | E24: =D24/'- 3 -'!$D24*100 -> 9.292471768 | F24: 305800 | G24: =F24/'- 3 -'!$D24*100 -> 0.4814090695
A25: LOUIS RIEL | B25: 810450 | C25: =B25/'- 3 -'!$D25*100 -> 0.3643988808 | D25: 20333468 | E25: =D25/'- 3 -'!$D25*100 -> 9.142443066 | F25: 430020 | G25: =F25/'- 3 -'!$D25*100 -> 0.1933479015
A26: MOUNTAIN VIEW | B26: 159229 | C26: =B26/'- 3 -'!$D26*100 -> 0.3451560781 | D26: 5106584 | E26: =D26/'- 3 -'!$D26*100 -> 11.0693938 | F26: 259700 | G26: =F26/'- 3 -'!$D26*100 -> 0.5629441463
A27: MYSTERY LAKE | B27: 225524 | C27: =B27/'- 3 -'!$D27*100 -> 0.4862419282 | D27: 5000656 | E27: =D27/'- 3 -'!$D27*100 -> 10.7816845 | F27: 606000 | G27: =F27/'- 3 -'!$D27*100 -> 1.30656874
A28: PARK WEST | B28: 80233 | C28: =B28/'- 3 -'!$D28*100 -> 0.2474372254 | D28: 3300183 | E28: =D28/'- 3 -'!$D28*100 -> 10.17770898 | F28: 156017 | G28: =F28/'- 3 -'!$D28*100 -> 0.4811538094
A29: PEMBINA TRAILS | B29: 1289004 | C29: =B29/'- 3 -'!$D29*100 -> 0.6316430797 | D29: 18911476 | E29: =D29/'- 3 -'!$D29*100 -> 9.267079809 | F29: 1116158 | G29: =F29/'- 3 -'!$D29*100 -> 0.5469443667
A30: PINE CREEK | B30: 165748 | C30: =B30/'- 3 -'!$D30*100 -> 0.9587254876 | D30: 1370793 | E30: =D30/'- 3 -'!$D30*100 -> 7.928989716 | F30: 119273 | G30: =F30/'- 3 -'!$D30*100 -> 0.6899031366
A31: PORTAGE LA PRAIRIE | B31: 84670 | C31: =B31/'- 3 -'!$D31*100 -> 0.1828794469 | D31: 4001790 | E31: =D31/'- 3 -'!$D31*100 -> 8.643499964 | F31: 155000 | G31: =F31/'- 3 -'!$D31*100 -> 0.334785807
A32: PRAIRIE ROSE | B32: 164011 | C32: =B32/'- 3 -'!$D32*100 -> 0.4711884431 | D32: 2909075 | E32: =D32/'- 3 -'!$D32*100 -> 8.357503584 | F32: 121440 | G32: =F32/'- 3 -'!$D32*100 -> 0.3488858951
A33: PRAIRIE SPIRIT | B33: 130700 | C33: =B33/'- 3 -'!$D33*100 -> 0.4177241608 | D33: 3011435 | E33: =D33/'- 3 -'!$D33*100 -> 9.624706642 | F33: 279640 | G33: =F33/'- 3 -'!$D33*100 -> 0.893744333
A34: RED RIVER VALLEY | B34: 74641 | C34: =B34/'- 3 -'!$D34*100 -> 0.2107526992 | D34: 2577012 | E34: =D34/'- 3 -'!$D34*100 -> 7.276325812 | F34: 313519 | G34: =F34/'- 3 -'!$D34*100 -> 0.8852370079
A35: RIVER EAST TRANSCONA | B35: 1078198 | C35: =B35/'- 3 -'!$D35*100 -> 0.4795516327 | D35: 20465632 | E35: =D35/'- 3 -'!$D35*100 -> 9.102527773 | F35: 84000 | G35: =F35/'- 3 -'!$D35*100 -> 0.0373607975
A36: ROLLING RIVER | B36: 71220 | C36: =B36/'- 3 -'!$D36*100 -> 0.2662265194 | D36: 2808275 | E36: =D36/'- 3 -'!$D36*100 -> 10.49757482 | F36: 110000 | G36: =F36/'- 3 -'!$D36*100 -> 0.4111895133
A37: SEINE RIVER | B37: 136598 | C37: =B37/'- 3 -'!$D37*100 -> 0.2238685304 | D37: 4707440 | E37: =D37/'- 3 -'!$D37*100 -> 7.714956843 | F37: 445000 | G37: =F37/'- 3 -'!$D37*100 -> 0.7293042067
A38: SEVEN OAKS | B38: 825090 | C38: =B38/'- 3 -'!$D38*100 -> 0.4930286629 | D38: 12289286 | E38: =D38/'- 3 -'!$D38*100 -> 7.343405258 | F38: 889000 | G38: =F38/'- 3 -'!$D38*100 -> 0.5312177839
A39: SOUTHWEST HORIZON | B39: 122400 | C39: =B39/'- 3 -'!$D39*100 -> 0.4798569838 | D39: 2233000 | E39: =D39/'- 3 -'!$D39*100 -> 8.754253634 | F39: 160000 | G39: =F39/'- 3 -'!$D39*100 -> 0.6272640311
A40: ST. JAMES-ASSINIBOIA | B40: 494871 | C40: =B40/'- 3 -'!$D40*100 -> 0.4025969538 | D40: 9454997 | E40: =D40/'- 3 -'!$D40*100 -> 7.692010625 | F40: 825501 | G40: =F40/'- 3 -'!$D40*100 -> 0.671577417
A41: SUNRISE | B41: 205875 | C41: =B41/'- 3 -'!$D41*100 -> 0.2779557159 | D41: 5749413 | E41: =D41/'- 3 -'!$D41*100 -> 7.762390803 | F41: 625000 | G41: =F41/'- 3 -'!$D41*100 -> 0.8438242743
A42: SWAN VALLEY | B42: 101621 | C42: =B42/'- 3 -'!$D42*100 -> 0.4020006317 | D42: 2168341 | E42: =D42/'- 3 -'!$D42*100 -> 8.5777 | F42: 173599 | G42: =F42/'- 3 -'!$D42*100 -> 0.6867370687
A43: TURTLE MOUNTAIN | B43: 47018 | C43: =B43/'- 3 -'!$D43*100 -> 0.3149570432 | D43: 867269 | E43: =D43/'- 3 -'!$D43*100 -> 5.809529966 | F43: 155783 | G43: =F43/'- 3 -'!$D43*100 -> 1.04353552
A44: TURTLE RIVER | B44: 59548 | C44: =B44/'- 3 -'!$D44*100 -> 0.4882165331 | D44: 1100008 | E44: =D44/'- 3 -'!$D44*100 -> 9.018641971 | F44: 49520 | G44: =F44/'- 3 -'!$D44*100 -> 0.4059999113
A45: WESTERN | B45: 100555 | C45: =B45/'- 3 -'!$D45*100 -> 0.3741254949 | D45: 1949589 | E45: =D45/'- 3 -'!$D45*100 -> 7.253651728 | F45: 139000 | G45: =F45/'- 3 -'!$D45*100 -> 0.5171641767
A46: WINNIPEG | B46: 1376200 | C46: =B46/'- 3 -'!$D46*100 -> 0.3053488975 | D46: 46731641 | E46: =D46/'- 3 -'!$D46*100 -> 10.36873642 | F46: 6605296 | G46: =F46/'- 3 -'!$D46*100 -> 1.465571756
A48: PROVINCE | B48: =SUM(B11:B46) -> 11132626 | C48: =B48/'- 3 -'!$D48*100 -> 0.4012344143 | D48: =SUM(D11:D46) -> 254267481 | E48: =D48/'- 3 -'!$D48*100 -> 9.164132865 | F48: =SUM(F11:F46) -> 19765485 | G48: =F48/'- 3 -'!$D48*100 -> 0.7123739535
A50: WHITESHELL | B50: 35224 | C50: =B50/'- 3 -'!$D50*100 -> 0.8858907611 | D50: 502723 | E50: =D50/'- 3 -'!$D50*100 -> 12.64358565 | F50: 22000 | G50: =F50/'- 3 -'!$D50*100 -> 0.5533044726

Sheet - 32 -
B2: =AEXP_BP -> ANALYSIS OF EXPENSE BY PROGRAM | F2: PAGE 15 OF 16
B3: =OPYEAR -> OPERATING FUND 2023/2024 BUDGET
B6: FUNCTION 800: (CONT'D)
B8: OTHER BUILDINGS | D8: GROUNDS
A9: DIVISION / DISTRICT | B9: AMOUNT | C9: % | D9: AMOUNT | E9: %
A11: BEAUTIFUL PLAINS | B11: 76324 | C11: =B11/'- 3 -'!$D11*100 -> 0.2883165102 | D11: 34400 | E11: =D11/'- 3 -'!$D11*100 -> 0.1299471719
A12: BORDER LAND | B12: 355680 | C12: =B12/'- 3 -'!$D12*100 -> 0.9368778299 | D12: 164358 | E12: =D12/'- 3 -'!$D12*100 -> 0.4329266936
A13: BRANDON | B13: 390320 | C13: =B13/'- 3 -'!$D13*100 -> 0.3197221072 | D13: 285730 | E13: =D13/'- 3 -'!$D13*100 -> 0.2340494919
A14: DSFM | B14: 386551 | C14: =B14/'- 3 -'!$D14*100 -> 0.3515972319 | D14: 700000 | E14: =D14/'- 3 -'!$D14*100 -> 0.6367026921
A15: EVERGREEN | B15: 147400 | C15: =B15/'- 3 -'!$D15*100 -> 0.6289120334 | D15: 128500 | E15: =D15/'- 3 -'!$D15*100 -> 0.5482713452
A16: FLIN FLON | B16: 20704 | C16: =B16/'- 3 -'!$D16*100 -> 0.1228912347 | D16: 32417 | E16: =D16/'- 3 -'!$D16*100 -> 0.1924152413
A17: FORT LA BOSSE | B17: 107595 | C17: =B17/'- 3 -'!$D17*100 -> 0.5005417826 | D17: 57000 | E17: =D17/'- 3 -'!$D17*100 -> 0.2651692142
A18: FRONTIER | B18: 4066288 | C18: =B18/'- 3 -'!$D18*100 -> 2.455783566 | D18: 36590 | E18: =D18/'- 3 -'!$D18*100 -> 0.02209807094
A19: GARDEN VALLEY | B19: 109000 | C19: =B19/'- 3 -'!$D19*100 -> 0.1944504554 | D19: 65000 | E19: =D19/'- 3 -'!$D19*100 -> 0.1159566936
A20: HANOVER | B20: 1616100 | C20: =B20/'- 3 -'!$D20*100 -> 1.57905999 | D20: 451200 | E20: =D20/'- 3 -'!$D20*100 -> 0.4408587757
A21: INTERLAKE | B21: 178000 | C21: =B21/'- 3 -'!$D21*100 -> 0.4344222102 | D21: 132000 | E21: =D21/'- 3 -'!$D21*100 -> 0.3221557963
A22: KELSEY | B22: 76271 | C22: =B22/'- 3 -'!$D22*100 -> 0.3483485404 | D22: 25000 | E22: =D22/'- 3 -'!$D22*100 -> 0.1141811896
A23: LAKESHORE | B23: 57300 | C23: =B23/'- 3 -'!$D23*100 -> 0.3363430262 | D23: 15000 | E23: =D23/'- 3 -'!$D23*100 -> 0.08804791262
A24: LORD SELKIRK | B24: 166462 | C24: =B24/'- 3 -'!$D24*100 -> 0.2620546649 | D24: 171500 | E24: =D24/'- 3 -'!$D24*100 -> 0.2699857928
A25: LOUIS RIEL | B25: 620000 | C25: =B25/'- 3 -'!$D25*100 -> 0.2787677292 | D25: 685000 | E25: =D25/'- 3 -'!$D25*100 -> 0.3079933782
A26: MOUNTAIN VIEW | B26: 199082 | C26: =B26/'- 3 -'!$D26*100 -> 0.4315442685 | D26: 100250 | E26: =D26/'- 3 -'!$D26*100 -> 0.217309013
A27: MYSTERY LAKE | B27: 139066 | C27: =B27/'- 3 -'!$D27*100 -> 0.2998338092 | D27: 139440 | E27: =D27/'- 3 -'!$D27*100 -> 0.3006401734
A28: PARK WEST | B28: 80950 | C28: =B28/'- 3 -'!$D28*100 -> 0.2496484413 | D28: 97000 | E28: =D28/'- 3 -'!$D28*100 -> 0.2991463719
A29: PEMBINA TRAILS | B29: 471407 | C29: =B29/'- 3 -'!$D29*100 -> 0.2310008109 | D29: 1111909 | E29: =D29/'- 3 -'!$D29*100 -> 0.5448622542
A30: PINE CREEK | B30: 52828 | C30: =B30/'- 3 -'!$D30*100 -> 0.3055696 | D30: 49500 | E30: =D30/'- 3 -'!$D30*100 -> 0.2863196638
A31: PORTAGE LA PRAIRIE | B31: 105530 | C31: =B31/'- 3 -'!$D31*100 -> 0.2279351368 | D31: 147000 | E31: =D31/'- 3 -'!$D31*100 -> 0.3175065395
A32: PRAIRIE ROSE | B32: 174150 | C32: =B32/'- 3 -'!$D32*100 -> 0.500316853 | D32: 140450 | E32: =D32/'- 3 -'!$D32*100 -> 0.4034998679
A33: PRAIRIE SPIRIT | B33: 117275 | C33: =B33/'- 3 -'!$D33*100 -> 0.3748171458 | D33: 46450 | E33: =D33/'- 3 -'!$D33*100 -> 0.1484566738
A34: RED RIVER VALLEY | B34: 126932 | C34: =B34/'- 3 -'!$D34*100 -> 0.3583990249 | D34: 158873 | E34: =D34/'- 3 -'!$D34*100 -> 0.4485860798
A35: RIVER EAST TRANSCONA | B35: 1950722 | C35: =B35/'- 3 -'!$D35*100 -> 0.8676253527 | D35: 0 | E35: =D35/'- 3 -'!$D35*100 -> 0
A36: ROLLING RIVER | B36: 177900 | C36: =B36/'- 3 -'!$D36*100 -> 0.6650055856 | D36: 86000 | E36: =D36/'- 3 -'!$D36*100 -> 0.3214754377
A37: SEINE RIVER | B37: 141218 | C37: =B37/'- 3 -'!$D37*100 -> 0.2314401831 | D37: 213000 | E37: =D37/'- 3 -'!$D37*100 -> 0.3490826877
A38: SEVEN OAKS | B38: 745123 | C38: =B38/'- 3 -'!$D38*100 -> 0.4452447568 | D38: 497137 | E38: =D38/'- 3 -'!$D38*100 -> 0.2970618846
A39: SOUTHWEST HORIZON | B39: 88200 | C39: =B39/'- 3 -'!$D39*100 -> 0.3457792972 | D39: 70100 | E39: =D39/'- 3 -'!$D39*100 -> 0.2748200536
A40: ST. JAMES-ASSINIBOIA | B40: 602903 | C40: =B40/'- 3 -'!$D40*100 -> 0.4904852198 | D40: 440466 | E40: =D40/'- 3 -'!$D40*100 -> 0.358336354
A41: SUNRISE | B41: 346928 | C41: =B41/'- 3 -'!$D41*100 -> 0.4683940285 | D41: 330800 | E41: =D41/'- 3 -'!$D41*100 -> 0.4466193119
A42: SWAN VALLEY | B42: 180323 | C42: =B42/'- 3 -'!$D42*100 -> 0.7133364158 | D42: 127093 | E42: =D42/'- 3 -'!$D42*100 -> 0.5027648447
A43: TURTLE MOUNTAIN | B43: 137118 | C43: =B43/'- 3 -'!$D43*100 -> 0.9185052502 | D43: 26028 | E43: =D43/'- 3 -'!$D43*100 -> 0.1743524166
A44: TURTLE RIVER | B44: 45323 | C44: =B44/'- 3 -'!$D44*100 -> 0.371589943 | D44: 39804 | E44: =D44/'- 3 -'!$D44*100 -> 0.3263412857
A45: WESTERN | B45: 52200 | C45: =B45/'- 3 -'!$D45*100 -> 0.1942156117 | D45: 107000 | E45: =D45/'- 3 -'!$D45*100 -> 0.3981047979
A46: WINNIPEG | B46: 3001381 | C46: =B46/'- 3 -'!$D46*100 -> 0.6659412726 | D46: 1777961 | E46: =D46/'- 3 -'!$D46*100 -> 0.3944909397
A48: PROVINCE | B48: =SUM(B11:B46) -> 17310554 | C48: =B48/'- 3 -'!$D48*100 -> 0.6238950266 | D48: =SUM(D11:D46) -> 8689956 | E48: =D48/'- 3 -'!$D48*100 -> 0.3131973899
A50: WHITESHELL | B50: 0 | C50: =B50/'- 3 -'!$D50*100 -> 0 | D50: 47000 | E50: =D50/'- 3 -'!$D50*100 -> 1.182059555

Sheet - 33 -
B2: =AEXP_BP -> ANALYSIS OF EXPENSE BY PROGRAM | F2: PAGE 16 OF 16
B3: =OPYEAR -> OPERATING FUND 2023/2024 BUDGET
B6: FUNCTION 900: FISCAL
D7: HEALTH AND EDUCATION LEVY
B8: DEBT SERVICES
A9: DIVISION / DISTRICT | B9: AMOUNT | C9: % | D9: AMOUNT | E9: %
A11: BEAUTIFUL PLAINS | B11: 7500 | C11: =B11/'- 3 -'!$D11*100 -> 0.02833150551 | D11: 441368 | E11: =D11/'- 3 -'!$D11*100 -> 1.667282657
A12: BORDER LAND | B12: 50000 | C12: =B12/'- 3 -'!$D12*100 -> 0.131702349 | D12: 592000 | E12: =D12/'- 3 -'!$D12*100 -> 1.559355812
A13: BRANDON | B13: 26250 | C13: =B13/'- 3 -'!$D13*100 -> 0.02150211445 | D13: 2093929 | E13: =D13/'- 3 -'!$D13*100 -> 1.715196229
A14: DSFM | B14: 5000 | C14: =B14/'- 3 -'!$D14*100 -> 0.004547876372 | D14: 1616277 | E14: =D14/'- 3 -'!$D14*100 -> 1.470125596
A15: EVERGREEN | B15: 0 | C15: =B15/'- 3 -'!$D15*100 -> 0 | D15: 376193 | E15: =D15/'- 3 -'!$D15*100 -> 1.60510383
A16: FLIN FLON | B16: 20000 | C16: =B16/'- 3 -'!$D16*100 -> 0.1187125529 | D16: 267892 | E16: =D16/'- 3 -'!$D16*100 -> 1.590107161
A17: FORT LA BOSSE | B17: 100000 | C17: =B17/'- 3 -'!$D17*100 -> 0.4652091478 | D17: 364000 | E17: =D17/'- 3 -'!$D17*100 -> 1.693361298
A18: FRONTIER | B18: 0 | C18: =B18/'- 3 -'!$D18*100 -> 0 | D18: 1332375 | E18: =D18/'- 3 -'!$D18*100 -> 0.8046711469
A19: GARDEN VALLEY | B19: 36000 | C19: =B19/'- 3 -'!$D19*100 -> 0.06422216874 | D19: 928800 | E19: =D19/'- 3 -'!$D19*100 -> 1.656931954
A20: HANOVER | B20: 295900 | C20: =B20/'- 3 -'!$D20*100 -> 0.2891181554 | D20: 1742800 | E20: =D20/'- 3 -'!$D20*100 -> 1.702856104
A21: INTERLAKE | B21: 60000 | C21: =B21/'- 3 -'!$D21*100 -> 0.1464344529 | D21: 691000 | E21: =D21/'- 3 -'!$D21*100 -> 1.686436782
A22: KELSEY | B22: 4000 | C22: =B22/'- 3 -'!$D22*100 -> 0.01826899033 | D22: 373719 | E22: =D22/'- 3 -'!$D22*100 -> 1.706867199
A23: LAKESHORE | B23: 5000 | C23: =B23/'- 3 -'!$D23*100 -> 0.02934930421 | D23: 260000 | E23: =D23/'- 3 -'!$D23*100 -> 1.526163819
A24: LORD SELKIRK | B24: 125000 | C24: =B24/'- 3 -'!$D24*100 -> 0.1967826478 | D24: 1067700 | E24: =D24/'- 3 -'!$D24*100 -> 1.680838664
A25: LOUIS RIEL | B25: 215000 | C25: =B25/'- 3 -'!$D25*100 -> 0.09666945448 | D25: 3667159 | E25: =D25/'- 3 -'!$D25*100 -> 1.648847721
A26: MOUNTAIN VIEW | B26: 160000 | C26: =B26/'- 3 -'!$D26*100 -> 0.3468273524 | D26: 713904 | E26: =D26/'- 3 -'!$D26*100 -> 1.547508963
A27: MYSTERY LAKE | B27: 49600 | C27: =B27/'- 3 -'!$D27*100 -> 0.1069402797 | D27: 753011 | E27: =D27/'- 3 -'!$D27*100 -> 1.623532398
A28: PARK WEST | B28: 92600 | C28: =B28/'- 3 -'!$D28*100 -> 0.2855768458 | D28: 434000 | E28: =D28/'- 3 -'!$D28*100 -> 1.338448716
A29: PEMBINA TRAILS | B29: 0 | C29: =B29/'- 3 -'!$D29*100 -> 0 | D29: 3711467 | E29: =D29/'- 3 -'!$D29*100 -> 1.818708434
A30: PINE CREEK | B30: 0 | C30: =B30/'- 3 -'!$D30*100 -> 0 | D30: 278605 | E30: =D30/'- 3 -'!$D30*100 -> 1.611516968
A31: PORTAGE LA PRAIRIE | B31: 15000 | C31: =B31/'- 3 -'!$D31*100 -> 0.03239862648 | D31: 774000 | E31: =D31/'- 3 -'!$D31*100 -> 1.671769126
A32: PRAIRIE ROSE | B32: 90000 | C32: =B32/'- 3 -'!$D32*100 -> 0.2585616811 | D32: 555000 | E32: =D32/'- 3 -'!$D32*100 -> 1.5944637
A33: PRAIRIE SPIRIT | B33: 42500 | C33: =B33/'- 3 -'!$D33*100 -> 0.1358322635 | D33: 464500 | E33: =D33/'- 3 -'!$D33*100 -> 1.484566738
A34: RED RIVER VALLEY | B34: 124000 | C34: =B34/'- 3 -'!$D34*100 -> 0.3501203722 | D34: 583117 | E34: =D34/'- 3 -'!$D34*100 -> 1.646460815
A35: RIVER EAST TRANSCONA | B35: 59000 | C35: =B35/'- 3 -'!$D35*100 -> 0.02624151253 | D35: 3671000 | E35: =D35/'- 3 -'!$D35*100 -> 1.632755805
A36: ROLLING RIVER | B36: 193000 | C36: =B36/'- 3 -'!$D36*100 -> 0.7214506916 | D36: 434500 | E36: =D36/'- 3 -'!$D36*100 -> 1.624198578
A37: SEINE RIVER | B37: 60000 | C37: =B37/'- 3 -'!$D37*100 -> 0.09833315147 | D37: 850000 | E37: =D37/'- 3 -'!$D37*100 -> 1.393052979
A38: SEVEN OAKS | B38: 244163 | C38: =B38/'- 3 -'!$D38*100 -> 0.1458984564 | D38: 2783990 | E38: =D38/'- 3 -'!$D38*100 -> 1.663560178
A39: SOUTHWEST HORIZON | B39: 37400 | C39: =B39/'- 3 -'!$D39*100 -> 0.1466229673 | D39: 401800 | E39: =D39/'- 3 -'!$D39*100 -> 1.575216798
A40: ST. JAMES-ASSINIBOIA | B40: 56035 | C40: =B40/'- 3 -'!$D40*100 -> 0.04558666866 | D40: 2076146 | E40: =D40/'- 3 -'!$D40*100 -> 1.689026141
A41: SUNRISE | B41: 513000 | C41: =B41/'- 3 -'!$D41*100 -> 0.6926109643 | D41: 1241143 | E41: =D41/'- 3 -'!$D41*100 -> 1.675690546
A42: SWAN VALLEY | B42: 5000 | C42: =B42/'- 3 -'!$D42*100 -> 0.01977940739 | D42: 415600 | E42: =D42/'- 3 -'!$D42*100 -> 1.644064342
A43: TURTLE MOUNTAIN | B43: 56000 | C43: =B43/'- 3 -'!$D43*100 -> 0.3751243018 | D43: 240000 | E43: =D43/'- 3 -'!$D43*100 -> 1.607675579
A44: TURTLE RIVER | B44: 3000 | C44: =B44/'- 3 -'!$D44*100 -> 0.0245961174 | D44: 199766 | E44: =D44/'- 3 -'!$D44*100 -> 1.637822663
A45: WESTERN | B45: 35000 | C45: =B45/'- 3 -'!$D45*100 -> 0.1302211956 | D45: 458138 | E45: =D45/'- 3 -'!$D45*100 -> 1.704550803
A46: WINNIPEG | B46: 435342 | C46: =B46/'- 3 -'!$D46*100 -> 0.09659293688 | D46: 7614400 | E46: =D46/'- 3 -'!$D46*100 -> 1.689470023
A48: PROVINCE | B48: =SUM(B11:B46) -> 3220290 | C48: =B48/'- 3 -'!$D48*100 -> 0.1160634671 | D48: =SUM(D11:D46) -> 44469299 | E48: =D48/'- 3 -'!$D48*100 -> 1.602731749
A50: WHITESHELL | B50: 0 | C50: =B50/'- 3 -'!$D50*100 -> 0 | D50: 0 | E50: =D50/'- 3 -'!$D50*100 -> 0

Sheet - 34 -
D2: =IF(Lang=1,BA2,BB2) -> ANALYSIS OF TRANSPORTATION EXPENSES | BA2: ANALYSIS OF TRANSPORTATION EXPENSES | BB2: ANALYSE DES DÉPENSES DE TRANSPORT
D3: =OPYEAR -> OPERATING FUND 2023/2024 BUDGET
B6: REGULAR TRANSPORTATION
B7: (PROGRAM 720)
C8: TRANSPORTED PUPILS | D8: PER PUPIL | E8: TOTAL KM (ROUTES) | F8: COST PER KM | G8: LOADED KM | H8: COST PER KM
A9: DIVISION / DISTRICT | B9: AMOUNT
A11: BEAUTIFUL PLAINS | B11: ='- 29 -'!$D11 -> 1412831 | C11: 619 | D11: =IF(AND(CELL("type",C11)="v",C11>0),B11/C11,"") -> 2282.441034 | E11: 575484 | F11: =IF(AND(CELL("type",E11)="v",E11>0),B11/E11,"") -> 2.455030896 | G11: 410571 | H11: =IF(AND(CELL("type",G11)="v",G11>0),B11/G11,"") -> 3.441136856
A12: BORDER LAND | B12: ='- 29 -'!$D12 -> 2248825 | C12: 1675 | D12: =IF(AND(CELL("type",C12)="v",C12>0),B12/C12,"") -> 1342.58209 | E12: 1108072 | F12: =IF(AND(CELL("type",E12)="v",E12>0),B12/E12,"") -> 2.029493571 | G12: 700300 | H12: =IF(AND(CELL("type",G12)="v",G12>0),B12/G12,"") -> 3.211230901
A13: BRANDON | B13: ='- 29 -'!$D13 -> 2639710 | C13: 3200 | D13: 824.909375 | E13: 830000 | F13: 3.180373494 | G13: 509000 | H13: 5.186070727
A14: DSFM | B14: ='- 29 -'!$D14 -> 11180707 | C14: 4454 | D14: 2510.262012 | E14: 3393384 | F14: 3.294854635 | G14: 1767372 | H14: 6.326176379
A15: EVERGREEN | B15: ='- 29 -'!$D15 -> 1574368 | C15: 984 | D15: 1599.96748 | E15: 745542 | F15: 2.111709334 | G15: 422730 | H15: 3.72428737
A16: FLIN FLON | B16: ='- 29 -'!$D16 -> 401016 | C16: 163 | D16: 2460.220859 | E16: 62310 | F16: 6.435820896 | G16: 39060 | H16: 10.26666667
A17: FORT LA BOSSE | B17: ='- 29 -'!$D17 -> 1568076 | C17: 720 | D17: 2177.883333 | E17: 1005200 | F17: 1.559964186 | G17: 655165 | H17: 2.393406241
A18: FRONTIER | B18: ='- 29 -'!$D18 -> 8777485 | C18: 5540 | D18: 1584.383574 | E18: 1730000 | F18: 5.073690751 | G18: 1143000 | H18: 7.679339458
A19: GARDEN VALLEY | B19: ='- 29 -'!$D19 -> 2683080 | C19: 2900 | D19: 925.2 | E19: 825000 | F19: 3.252218182 | G19: 464000 | H19: 5.7825
A20: HANOVER | B20: ='- 29 -'!$D20 -> 3800000 | C20: 5484 | D20: 692.9248724 | E20: 1355123 | F20: 2.804173496 | G20: 794254 | H20: 4.784363692
A21: INTERLAKE | B21: ='- 29 -'!$D21 -> 2439000 | C21: 1847 | D21: 1320.519762 | E21: 966270 | F21: 2.524139216 | G21: 523032 | H21: 4.663194604
A22: KELSEY | B22: ='- 29 -'!$D22 -> 428196 | C22: 410 | D22: 1044.380488 | E22: 159952 | F22: 2.677028108 | G22: 108088 | H22: 3.961549848
A23: LAKESHORE | B23: ='- 29 -'!$D23 -> 1716800 | C23: 621 | D23: 2764.573269 | E23: 840000 | F23: 2.043809524 | G23: 510000 | H23: 3.36627451
A24: LORD SELKIRK | B24: ='- 29 -'!$D24 -> 2734979 | C24: 2549 | D24: 1072.961554 | E24: 1018200 | F24: 2.686092123 | G24: 673900 | H24: 4.058434486
A25: LOUIS RIEL | B25: ='- 29 -'!$D25 -> 5931606 | C25: 3041 | D25: 1950.544558 | E25: 1051930 | F25: 5.63878395 | G25: 504981 | H25: 11.74619639
A26: MOUNTAIN VIEW | B26: ='- 29 -'!$D26 -> 2827515 | C26: 1616 | D26: 1749.699876 | E26: 1305819 | F26: 2.165319236 | G26: 949541 | H26: 2.977770312
A27: MYSTERY LAKE | B27: ='- 29 -'!$D27 -> 57500 | C27: N/A | D27: =IF(AND(CELL("type",C27)="v",C27>0),B27/C27,"") ->  | E27: N/A | F27: =IF(AND(CELL("type",E27)="v",E27>0),B27/E27,"") ->  | G27: N/A
A28: PARK WEST | B28: ='- 29 -'!$D28 -> 2027492 | C28: 820 | D28: 2472.55122 | E28: 1000000 | F28: 2.027492 | G28: 700000 | H28: 2.896417143
A29: PEMBINA TRAILS | B29: ='- 29 -'!$D29 -> 3646215 | C29: 3050 | D29: 1195.480328 | E29: 680000 | F29: 5.362080882 | G29: 380000 | H29: 9.595302632
A30: PINE CREEK | B30: ='- 29 -'!$D30 -> 1383324 | C30: 580 | D30: 2385.041379 | E30: 652288 | F30: 2.120725814 | G30: 374448 | H30: 3.694302013
A31: PORTAGE LA PRAIRIE | B31: ='- 29 -'!$D31 -> 1247663 | C31: 1432 | D31: 871.2730447 | E31: 592408 | F31: 2.106087359 | G31: 388253 | H31: 3.213530868
A32: PRAIRIE ROSE | B32: ='- 29 -'!$D32 -> 2493978 | C32: 1547 | D32: 1612.138332 | E32: 1130117 | F32: 2.206831682 | G32: 718202 | H32: 3.472530012
A33: PRAIRIE SPIRIT | B33: ='- 29 -'!$D33 -> 2602125 | C33: 1134 | D33: 2294.642857 | E33: 1451730 | F33: 1.792430411 | G33: 872712 | H33: 2.981653741
A34: RED RIVER VALLEY | B34: ='- 29 -'!$D34 -> 2759572 | C34: 1372 | D34: 2011.349854 | E34: 1307142 | F34: 2.111149363 | G34: 803971 | H34: 3.432427289
A35: RIVER EAST TRANSCONA | B35: ='- 29 -'!$D35 -> 4849588 | C35: 3025 | D35: 1603.169587 | E35: 1105770 | F35: 4.385711314 | G35: 502572 | H35: 9.649538773
A36: ROLLING RIVER | B36: ='- 29 -'!$D36 -> 1840725 | C36: 910 | D36: 2022.774725 | E36: 848718 | F36: 2.168829929 | G36: 529356 | H36: 3.477291275
A37: SEINE RIVER | B37: ='- 29 -'!$D37 -> 3799973 | C37: 0 | E37: 0 | G37: 0
A38: SEVEN OAKS | B38: ='- 29 -'!$D38 -> 3795524 | C38: 2941 | D38: 1290.555593 | E38: 752862 | F38: 5.041460454 | G38: 404613 | H38: 9.380627909
A39: SOUTHWEST HORIZON | B39: ='- 29 -'!$D39 -> 2318300 | C39: 707 | D39: 3279.066478 | E39: 953172 | F39: 2.432194819 | G39: 574200 | H39: 4.0374434
A40: ST. JAMES-ASSINIBOIA | B40: ='- 29 -'!$D40 -> 2550891 | C40: 1570 | D40: 1624.771338 | E40: 556000 | F40: 4.587933453 | G40: 291000 | H40: 8.765948454
A41: SUNRISE | B41: ='- 29 -'!$D41 -> 5288759 | C41: 3642 | D41: 1452.15788 | E41: 2043106 | F41: 2.58858767 | G41: 1266067 | H41: 4.177313681
A42: SWAN VALLEY | B42: ='- 29 -'!$D42 -> 1883748 | C42: 1194 | D42: 1577.678392 | E42: 794406 | F42: 2.371266078 | G42: 680946 | H42: 2.766369139
A43: TURTLE MOUNTAIN | B43: ='- 29 -'!$D43 -> 1168409 | C43: 428 | D43: 2729.92757 | E43: 406531 | F43: 2.874095702 | G43: 595434 | H43: 1.962281294
A44: TURTLE RIVER | B44: ='- 29 -'!$D44 -> 1193773 | C44: 383 | D44: 3116.900783 | E44: 666486 | F44: 1.7911449 | G44: 455853 | H44: 2.618767454
A45: WESTERN | B45: ='- 29 -'!$D45 -> 977442 | C45: 1300 | D45: 751.8784615 | E45: 273000 | F45: 3.580373626 | G45: 165000 | H45: 5.923890909
A46: WINNIPEG | B46: ='- 29 -'!$D46 -> 6809294 | C46: 1706 | D46: 3991.379836 | E46: 698389 | F46: 9.75000179 | G46: 494847 | H46: 13.76040271
A48: PROVINCE | B48: =SUM(B11:B46) -> 105058489 | C48: =SUM(C11:C46) -> 63564 | D48: =B48/C48 -> 1652.798581 | E48: =SUM(E11:E46) -> 32884411 | F48: =B48/E48 -> 3.194780925 | G48: =SUM(G11:G46) -> 20372468 | H48: =B48/G48 -> 5.156885705
A50: WHITESHELL | B50: ='- 29 -'!$D50 -> 0 | C50: N/A | D50: =IF(AND(CELL("type",C50)="v",C50>0),B50/C50,"") ->  | E50: N/A | F50: =IF(AND(CELL("type",E50)="v",E50>0),B50/E50,"") ->  | G50: N/A | H50: =IF(AND(CELL("type",G50)="v",G50>0),B50/G50,"") -> 

Sheet - 35 -
B2: =IF(Lang=1,BA2,BB2) -> ANALYSIS OF TRANSPORTATION EXPENSES (CONT'D) | BA2: ANALYSIS OF TRANSPORTATION EXPENSES (CONT'D) | BB2: ANALYSE DES DÉPENSES DE TRANSPORT (SUITE)
B3: =OPYEAR -> OPERATING FUND 2023/2024 BUDGET
B6: ADMINISTRATION, REGULAR AND OTHER
B7: (PROGRAMS 710, 720 AND 790)
C8: TOTAL KM (LOG BOOK) | D8: COST PER KM
A9: DIVISION / DISTRICT | B9: AMOUNT
A11: BEAUTIFUL PLAINS | B11: =SUM('- 29 -'!$B11,'- 29 -'!$D11,'- 30 -'!$D11) -> 1655722 | C11: 608587 | D11: =IF(AND(CELL("type",C11)="v",C11>0),B11/C11,"") -> 2.720600341
A12: BORDER LAND | B12: =SUM('- 29 -'!$B12,'- 29 -'!$D12,'- 30 -'!$D12) -> 2705152 | C12: 1185072 | D12: =IF(AND(CELL("type",C12)="v",C12>0),B12/C12,"") -> 2.282689997
A13: BRANDON | B13: =SUM('- 29 -'!$B13,'- 29 -'!$D13,'- 30 -'!$D13) -> 2973020 | C13: 900000 | D13: 3.303355556
A14: DSFM | B14: =SUM('- 29 -'!$B14,'- 29 -'!$D14,'- 30 -'!$D14) -> 11778634 | C14: N/A
A15: EVERGREEN | B15: =SUM('- 29 -'!$B15,'- 29 -'!$D15,'- 30 -'!$D15) -> 1880203 | C15: 745542 | D15: 2.521927671
A16: FLIN FLON | B16: =SUM('- 29 -'!$B16,'- 29 -'!$D16,'- 30 -'!$D16) -> 558247 | C16: 62310 | D16: 8.959187931
A17: FORT LA BOSSE | B17: =SUM('- 29 -'!$B17,'- 29 -'!$D17,'- 30 -'!$D17) -> 1681421 | C17: 1055330 | D17: 1.593265614
A18: FRONTIER | B18: =SUM('- 29 -'!$B18,'- 29 -'!$D18,'- 30 -'!$D18) -> 10479500 | C18: 1850000 | D18: 5.664594595
A19: GARDEN VALLEY | B19: =SUM('- 29 -'!$B19,'- 29 -'!$D19,'- 30 -'!$D19) -> 2974170 | C19: 753000 | D19: 3.949760956
A20: HANOVER | B20: =SUM('- 29 -'!$B20,'- 29 -'!$D20,'- 30 -'!$D20) -> 4749100 | C20: 1720144 | D20: 2.760873508
A21: INTERLAKE | B21: =SUM('- 29 -'!$B21,'- 29 -'!$D21,'- 30 -'!$D21) -> 2737500 | C21: 800000 | D21: 3.421875
A22: KELSEY | B22: =SUM('- 29 -'!$B22,'- 29 -'!$D22,'- 30 -'!$D22) -> 558092 | C22: 135844 | D22: 4.108330143
A23: LAKESHORE | B23: =SUM('- 29 -'!$B23,'- 29 -'!$D23,'- 30 -'!$D23) -> 1840100 | C23: 735000 | D23: 2.503537415
A24: LORD SELKIRK | B24: =SUM('- 29 -'!$B24,'- 29 -'!$D24,'- 30 -'!$D24) -> 3063714 | C24: 1018200 | D24: 3.00895109
A25: LOUIS RIEL | B25: =SUM('- 29 -'!$B25,'- 29 -'!$D25,'- 30 -'!$D25) -> 6566842 | C25: 1406366 | D25: 4.66936914
A26: MOUNTAIN VIEW | B26: =SUM('- 29 -'!$B26,'- 29 -'!$D26,'- 30 -'!$D26) -> 3275828 | C26: 1380819 | D26: 2.37238045
A27: MYSTERY LAKE | B27: =SUM('- 29 -'!$B27,'- 29 -'!$D27,'- 30 -'!$D27) -> 229500 | C27: N/A
A28: PARK WEST | B28: =SUM('- 29 -'!$B28,'- 29 -'!$D28,'- 30 -'!$D28) -> 2207974 | C28: 900000 | D28: 2.453304444
A29: PEMBINA TRAILS | B29: =SUM('- 29 -'!$B29,'- 29 -'!$D29,'- 30 -'!$D29) -> 4425192 | C29: 715000 | D29: 6.18907972
A30: PINE CREEK | B30: =SUM('- 29 -'!$B30,'- 29 -'!$D30,'- 30 -'!$D30) -> 1628942 | C30: 518097 | D30: 3.144086918
A31: PORTAGE LA PRAIRIE | B31: =SUM('- 29 -'!$B31,'- 29 -'!$D31,'- 30 -'!$D31) -> 1462793 | C31: 472470 | D31: 3.096054776
A32: PRAIRIE ROSE | B32: =SUM('- 29 -'!$B32,'- 29 -'!$D32,'- 30 -'!$D32) -> 2738848 | C32: 1061383 | D32: 2.580452108
A33: PRAIRIE SPIRIT | B33: =SUM('- 29 -'!$B33,'- 29 -'!$D33,'- 30 -'!$D33) -> 2809240 | C33: 1491730 | D33: 1.883209428
A34: RED RIVER VALLEY | B34: =SUM('- 29 -'!$B34,'- 29 -'!$D34,'- 30 -'!$D34) -> 3105364 | C34: 1170263 | D34: 2.653560781
A35: RIVER EAST TRANSCONA | B35: =SUM('- 29 -'!$B35,'- 29 -'!$D35,'- 30 -'!$D35) -> 5509478 | C35: 1151859 | D35: 4.78311842
A36: ROLLING RIVER | B36: =SUM('- 29 -'!$B36,'- 29 -'!$D36,'- 30 -'!$D36) -> 2005875 | C36: 886910 | D36: 2.261644361
A37: SEINE RIVER | B37: =SUM('- 29 -'!$B37,'- 29 -'!$D37,'- 30 -'!$D37) -> 4096200 | C37: 0
A38: SEVEN OAKS | B38: =SUM('- 29 -'!$B38,'- 29 -'!$D38,'- 30 -'!$D38) -> 4527794 | C38: 1168000 | D38: 3.876535959
A39: SOUTHWEST HORIZON | B39: =SUM('- 29 -'!$B39,'- 29 -'!$D39,'- 30 -'!$D39) -> 2468500 | C39: 865873 | D39: 2.850879979
A40: ST. JAMES-ASSINIBOIA | B40: =SUM('- 29 -'!$B40,'- 29 -'!$D40,'- 30 -'!$D40) -> 2847143 | C40: 630000 | D40: 4.519274603
A41: SUNRISE | B41: =SUM('- 29 -'!$B41,'- 29 -'!$D41,'- 30 -'!$D41) -> 5900994 | C41: 1929887 | D41: 3.05768887
A42: SWAN VALLEY | B42: =SUM('- 29 -'!$B42,'- 29 -'!$D42,'- 30 -'!$D42) -> 2140602 | C42: 736812 | D42: 2.905221413
A43: TURTLE MOUNTAIN | B43: =SUM('- 29 -'!$B43,'- 29 -'!$D43,'- 30 -'!$D43) -> 1300884 | C43: 523962 | D43: 2.482783103
A44: TURTLE RIVER | B44: =SUM('- 29 -'!$B44,'- 29 -'!$D44,'- 30 -'!$D44) -> 1307273 | C44: 672799 | D44: 1.943036479
A45: WESTERN | B45: =SUM('- 29 -'!$B45,'- 29 -'!$D45,'- 30 -'!$D45) -> 1156386 | C45: 315000 | D45: 3.671066667
A46: WINNIPEG | B46: =SUM('- 29 -'!$B46,'- 29 -'!$D46,'- 30 -'!$D46) -> 7965244 | C46: 768104 | D46: 10.37000719
A48: PROVINCE | B48: =SUM(B11:B46) -> 119311471 | C48: =SUM(C11:C46) -> 30334363 | D48: =B48/C48 -> 3.933211685
A50: WHITESHELL | B50: =SUM('- 29 -'!$B50,'- 29 -'!$D50,'- 30 -'!$D50) -> 55931 | C50: N/A | D50: =IF(AND(CELL("type",C50)="v",C50>0),B50/C50,"") -> 

Sheet - 36 -
A2: =IF(Lang=1,BA2,BB2) -> ANALYSIS OF OPERATIONS AND MAINTENANCE EXPENSES FOR SCHOOL BUILDINGS | BA2: ANALYSIS OF OPERATIONS AND MAINTENANCE EXPENSES FOR SCHOOL BUILDINGS | BB2: ANALYSE DES DÉPENSES DE FONCTIONNEMENT ET D'ENTRETIEN DES BÂTIMENTS SCOLAIRES
A3: =OPYEAR -> OPERATING FUND 2023/2024 BUDGET
F6: REPAIRS AND REPLACEMENTS
B7: MAINTENANCE | I7: TOTAL
C8: COST PER PUPIL | D8: COST PER SQ FT (1) | E8: SQ FT PER PUPIL (2) | G8: COST PER SQ FT (1) | I8: AREA
A9: DIVISION / DISTRICT | B9: AMOUNT | F9: AMOUNT | I9: at September 30, 2022 | J9: 0 | K9: 0 | L9: 0 | M9: 0
A11: BEAUTIFUL PLAINS | B11: ='- 31 -'!D11 -> 2027030 | C11: =B11/'- 7 -'!E11 -> 975.9412614 | D11: =B11/I11 -> 6.61230974 | E11: =I11/'- 7 -'!E11 -> 147.5946076 | F11: ='- 31 -'!F11 -> 267800 | G11: =F11/I11 -> 0.8735818159 | I11: 306554
A12: BORDER LAND | B12: ='- 31 -'!D12 -> 3270702 | C12: =B12/'- 7 -'!E12 -> 1575.103299 | D12: 7.671491398 | E12: =I12/'- 7 -'!E12 -> 205.3190465 | F12: ='- 31 -'!F12 -> 212000 | G12: 0.4972498798 | I12: 426345
A13: BRANDON | B13: ='- 31 -'!D13 -> 9168500 | C13: =B13/'- 7 -'!E13 -> 1007.19543 | D13: 8.113142432 | E13: =I13/'- 7 -'!E13 -> 124.1436889 | F13: ='- 31 -'!F13 -> 609997 | G13: 0.5397821393 | I13: 1130080
A14: DSFM | B14: ='- 31 -'!D14 -> 10150229 | C14: =B14/'- 7 -'!E14 -> 1670.544602 | D14: 9.389709481 | E14: =I14/'- 7 -'!E14 -> 177.9122778 | F14: ='- 31 -'!F14 -> 600000 | G14: 0.5550441954 | I14: 1080995
A15: EVERGREEN | B15: ='- 31 -'!D15 -> 2561185 | C15: =B15/'- 7 -'!E15 -> 1834.659742 | D15: 8.793647469 | E15: =I15/'- 7 -'!E15 -> 208.6346705 | F15: ='- 31 -'!F15 -> 160000 | G15: 0.5493486785 | I15: 291254
A16: FLIN FLON | B16: ='- 31 -'!D16 -> 2166429 | C16: =B16/'- 7 -'!E16 -> 2557.767414 | D16: 10.32887077 | E16: =I16/'- 7 -'!E16 -> 247.6328217 | F16: ='- 31 -'!F16 -> 80000 | G16: 0.3814155284 | I16: 209745
A17: FORT LA BOSSE | B17: ='- 31 -'!D17 -> 1796204 | C17: =B17/'- 7 -'!E17 -> 1187.180436 | D17: 6.802385867 | E17: =I17/'- 7 -'!E17 -> 174.5241243 | F17: ='- 31 -'!F17 -> 70000 | G17: 0.2650962868 | I17: 264055
A18: FRONTIER | B18: ='- 31 -'!D18 -> 21085884 | C18: =B18/'- 7 -'!E18 -> 3393.286772 | D18: 14.31485662 | E18: =I18/'- 7 -'!E18 -> 237.0465079 | F18: ='- 31 -'!F18 -> 2370922 | G18: 1.609579588 | I18: 1473007
A19: GARDEN VALLEY | B19: ='- 31 -'!D19 -> 4990990 | C19: =B19/'- 7 -'!E19 -> 1182.699052 | D19: 6.95601576 | E19: =I19/'- 7 -'!E19 -> 170.0253555 | F19: ='- 31 -'!F19 -> 283500 | G19: 0.3951180964 | I19: 717507
A20: HANOVER | B20: ='- 31 -'!D20 -> 7059900 | C20: =B20/'- 7 -'!E20 -> 869.3387514 | D20: 6.294024247 | E20: =I20/'- 7 -'!E20 -> 138.1212905 | F20: ='- 31 -'!F20 -> 599000 | G20: 0.5340189697 | I20: 1121683
A21: INTERLAKE | B21: ='- 31 -'!D21 -> 3185900 | C21: =B21/'- 7 -'!E21 -> 1118.055799 | D21: 7.025540604 | E21: =I21/'- 7 -'!E21 -> 159.1416038 | F21: ='- 31 -'!F21 -> 215000 | G21: 0.47411759 | I21: 453474
A22: KELSEY | B22: ='- 31 -'!D22 -> 2380264 | C22: =B22/'- 7 -'!E22 -> 1664.52028 | D22: 6.98253972 | E22: =I22/'- 7 -'!E22 -> 238.3832168 | F22: ='- 31 -'!F22 -> 38000 | G22: 0.1114735632 | I22: 340888
A23: LAKESHORE | B23: ='- 31 -'!D23 -> 1474150 | C23: =B23/'- 7 -'!E23 -> 1615.506849 | D23: 6.319880303 | E23: =I23/'- 7 -'!E23 -> 255.6230137 | F23: ='- 31 -'!F23 -> 135000 | G23: 0.5787632472 | I23: 233256
A24: LORD SELKIRK | B24: ='- 31 -'!D24 -> 5902751 | C24: =B24/'- 7 -'!E24 -> 1569.463175 | D24: 8.303045094 | E24: =I24/'- 7 -'!E24 -> 189.0226004 | F24: ='- 31 -'!F24 -> 305800 | G24: 0.4301504823 | I24: 710914
A25: LOUIS RIEL | B25: ='- 31 -'!D25 -> 20333468 | C25: =B25/'- 7 -'!E25 -> 1257.558785 | D25: 8.763859233 | E25: =I25/'- 7 -'!E25 -> 143.4937226 | F25: ='- 31 -'!F25 -> 430020 | G25: 0.185341465 | I25: 2320150
A26: MOUNTAIN VIEW | B26: ='- 31 -'!D26 -> 5106584 | C26: =B26/'- 7 -'!E26 -> 1684.785219 | D26: 6.633624447 | E26: =I26/'- 7 -'!E26 -> 253.9765754 | F26: ='- 31 -'!F26 -> 259700 | G26: 0.3373590386 | I26: 769803
A27: MYSTERY LAKE | B27: ='- 31 -'!D27 -> 5000656 | C27: =B27/'- 7 -'!E27 -> 1815.449628 | D27: 10.65145554 | E27: =I27/'- 7 -'!E27 -> 170.4414594 | F27: ='- 31 -'!F27 -> 606000 | G27: 1.290787061 | I27: 469481 | L27: AREA
A28: PARK WEST | B28: ='- 31 -'!D28 -> 3300183 | C28: =B28/'- 7 -'!E28 -> 1557.792306 | D28: 7.445068592 | E28: =I28/'- 7 -'!E28 -> 209.2381402 | F28: ='- 31 -'!F28 -> 156017 | G28: 0.3519675323 | I28: 443271 | K28: 50000 | L28: Waywayseecapo Included | N28: 50000
A29: PEMBINA TRAILS | B29: ='- 31 -'!D29 -> 18911476 | C29: =B29/'- 7 -'!E29 -> 1207.120626 | D29: 10.20957195 | E29: =I29/'- 7 -'!E29 -> 118.2342053 | F29: ='- 31 -'!F29 -> 1116158 | G29: 0.6025703871 | I29: 1852328
A30: PINE CREEK | B30: ='- 31 -'!D30 -> 1370793 | C30: =B30/'- 7 -'!E30 -> 1268.078631 | D30: 6.533870676 | E30: =I30/'- 7 -'!E30 -> 194.0777058 | F30: ='- 31 -'!F30 -> 119273 | G30: 0.5685135225 | I30: 209798
A31: PORTAGE LA PRAIRIE | B31: ='- 31 -'!D31 -> 4001790 | C31: =B31/'- 7 -'!E31 -> 1161.95993 | D31: 6.756539093 | E31: =I31/'- 7 -'!E31 -> 171.9756098 | F31: ='- 31 -'!F31 -> 155000 | G31: 0.2616987796 | I31: 592284
A32: PRAIRIE ROSE | B32: ='- 31 -'!D32 -> 2909075 | C32: =B32/'- 7 -'!E32 -> 1235.800765 | D32: 7.589155275 | E32: =I32/'- 7 -'!E32 -> 162.837723 | F32: ='- 31 -'!F32 -> 121440 | G32: 0.3168110195 | I32: 383320
A33: PRAIRIE SPIRIT | B33: ='- 31 -'!D33 -> 3011435 | C33: =B33/'- 7 -'!E33 -> 1401.971601 | D33: 6.121362726 | E33: =I33/'- 7 -'!E33 -> 229.0293296 | F33: ='- 31 -'!F33 -> 279640 | G33: 0.5684259739 | I33: 491955
A34: RED RIVER VALLEY | B34: ='- 31 -'!D34 -> 2577012 | C34: =B34/'- 7 -'!E34 -> 1132.752527 | D34: 6.717949119 | E34: =I34/'- 7 -'!E34 -> 168.6158242 | F34: ='- 31 -'!F34 -> 313519 | G34: 0.8173049601 | I34: 383601
A35: RIVER EAST TRANSCONA | B35: ='- 31 -'!D35 -> 20465632 | C35: =B35/'- 7 -'!E35 -> 1199.661889 | D35: 8.256479109 | E35: =I35/'- 7 -'!E35 -> 145.2994519 | F35: ='- 31 -'!F35 -> 84000 | G35: 0.03388823981 | I35: 2478736
A36: ROLLING RIVER | B36: ='- 31 -'!D36 -> 2808275 | C36: =B36/'- 7 -'!E36 -> 1585.700169 | D36: 8.746912561 | E36: =I36/'- 7 -'!E36 -> 181.2868436 | F36: ='- 31 -'!F36 -> 110000 | G36: 0.3426161547 | I36: 321059
A37: SEINE RIVER | B37: ='- 31 -'!D37 -> 4707440 | C37: =B37/'- 7 -'!E37 -> 1019.698906 | D37: 7.968460912 | E37: =I37/'- 7 -'!E37 -> 127.966858 | F37: ='- 31 -'!F37 -> 445000 | G37: 0.7532682532 | I37: 590759
A38: SEVEN OAKS | B38: ='- 31 -'!D38 -> 12289286 | C38: =B38/'- 7 -'!E38 -> 1039.043416 | D38: 8.424803404 | E38: =I38/'- 7 -'!E38 -> 123.3314733 | F38: ='- 31 -'!F38 -> 889000 | G38: 0.6094455143 | I38: 1458703
A39: SOUTHWEST HORIZON | B39: ='- 31 -'!D39 -> 2233000 | C39: =B39/'- 7 -'!E39 -> 1548.543689 | D39: 7.089271484 | E39: =I39/'- 7 -'!E39 -> 218.4348128 | F39: ='- 31 -'!F39 -> 160000 | G39: 0.5079639219 | I39: 314983
A40: ST. JAMES-ASSINIBOIA | B40: ='- 31 -'!D40 -> 9454997 | C40: =B40/'- 7 -'!E40 -> 1186.919031 | D40: 6.480241938 | E40: =I40/'- 7 -'!E40 -> 183.1596786 | F40: ='- 31 -'!F40 -> 825501 | G40: 0.5657797882 | I40: 1459050
A41: SUNRISE | B41: ='- 31 -'!D41 -> 5749413 | C41: =B41/'- 7 -'!E41 -> 1249.872391 | D41: 7.58871186 | E41: =I41/'- 7 -'!E41 -> 164.7015217 | F41: ='- 31 -'!F41 -> 625000 | G41: 0.8249442008 | I41: 757627
A42: SWAN VALLEY | B42: ='- 31 -'!D42 -> 2168341 | C42: =B42/'- 7 -'!E42 -> 1619.373413 | D42: 7.45885376 | E42: =I42/'- 7 -'!E42 -> 217.1075429 | F42: ='- 31 -'!F42 -> 173599 | G42: 0.5971614031 | I42: 290707
A43: TURTLE MOUNTAIN | B43: ='- 31 -'!D43 -> 867269 | C43: =B43/'- 7 -'!E43 -> 838.7514507 | D43: =B43/I43 -> 4.749608429 | E43: =I43/'- 7 -'!E43 -> 176.5938104 | F43: ='- 31 -'!F43 -> 155783 | G43: =F43/I43 -> 0.853147351 | I43: 182598
A44: TURTLE RIVER | B44: ='- 31 -'!D44 -> 1100008 | C44: =B44/'- 7 -'!E44 -> 1885.189374 | D44: =B44/I44 -> 6.007460119 | E44: =I44/'- 7 -'!E44 -> 313.8080548 | F44: ='- 31 -'!F44 -> 49520 | G44: =F44/I44 -> 0.270442965 | I44: 183107
A45: WESTERN | B45: ='- 31 -'!D45 -> 1949589 | C45: =B45/'- 7 -'!E45 -> 910.8100911 | D45: =B45/I45 -> 8.644822433 | E45: =I45/'- 7 -'!E45 -> 105.3590283 | F45: ='- 31 -'!F45 -> 139000 | G45: =F45/I45 -> 0.6163505838 | I45: 225521
A46: WINNIPEG | B46: ='- 31 -'!D46 -> 46731641 | C46: =B46/'- 7 -'!E46 -> 1709.183512 | D46: =B46/I46 -> 9.047939812 | E46: =I46/'- 7 -'!E46 -> 188.9030595 | F46: ='- 31 -'!F46 -> 6605296 | G46: =F46/I46 -> 1.278883415 | I46: 5164893
A48: PROVINCE | B48: =SUM(B11:B46) -> 254267481 | C48: =B48/'- 7 -'!E48 -> 1386.718636 | D48: =B48/I48 -> 8.446444999 | E48: =I48/'- 7 -'!E48 -> 164.1777856 | F48: =SUM(F11:F46) -> 19765485 | G48: =F48/I48 -> 0.6565844805 | I48: =SUM(I11:I46) -> 30103491
A50: WHITESHELL | B50: ='- 31 -'!D50 -> 502723 | C50: =B50/'- 7 -'!E50 -> 2922.80814 | D50: =B50/I50 -> 6.881337604 | E50: =I50/'- 7 -'!E50 -> 424.744186 | F50: ='- 31 -'!F50 -> 22000 | G50: N/A | I50: 73056
A52: ="(1) Based on area (square footage) of active school buildings as at September 29, "&FAllYR-1&". Includes rented and leased space." -> (1) Based on area (square footage) of active school buildings as at September 29, 2022. Includes rented and leased space.
A53: (2) Square footage (as per note above) divided by total FTE enrolment (from page 7).

Sheet - 37 -
E2: =IF(Lang=1,BA2,BB2) -> ANALYSIS OF INFORMATION TECHNOLOGY EXPENSES | BA2: ANALYSIS OF INFORMATION TECHNOLOGY EXPENSES | BB2: ANALYSE DES DÉPENSES DE TECHNOLOGIE DE L'INFORMATION
E3: =OPYEAR -> OPERATING FUND 2023/2024 BUDGET
B6: INFORMATION TECHNOLOGY EXPENSES (1)
B7: SALARIES | E7: SERVICES | H7: EQUIPMENT
D8: PER PUPIL | G8: PER PUPIL | J8: PER PUPIL
A9: DIVISION / DISTRICT | B9: AMOUNT | C9: % | E9: AMOUNT | F9: % | H9: AMOUNT | I9: %
A11: BEAUTIFUL PLAINS | B11: 204984 | C11: =B11/'- 3 -'!$D11*100 -> 0.7743340434 | D11: =B11/'- 7 -'!$E11 -> 98.69234473 | E11: 200988 | F11: =E11/'- 3 -'!$D11*100 -> 0.7592390173 | G11: =E11/'- 7 -'!$E11 -> 96.76841598 | H11: 231292 | I11: =H11/'- 3 -'!$D11*100 -> 0.8737134097 | J11: =H11/'- 7 -'!$E11 -> 111.3586904
A12: BORDER LAND | B12: 320617 | C12: =B12/'- 3 -'!$D12*100 -> 0.8445202406 | D12: =B12/'- 7 -'!$E12 -> 154.4026005 | E12: 214800 | F12: =E12/'- 3 -'!$D12*100 -> 0.5657932913 | G12: =E12/'- 7 -'!$E12 -> 103.443294 | H12: 516853 | I12: =H12/'- 3 -'!$D12*100 -> 1.361415084 | J12: =H12/'- 7 -'!$E12 -> 248.9058512
A13: BRANDON | B13: 589830 | C13: =B13/'- 3 -'!$D13*100 -> 0.4831463683 | D13: =B13/'- 7 -'!$E13 -> 64.79512249 | E13: 741940 | F13: =E13/'- 3 -'!$D13*100 -> 0.6077439542 | G13: =E13/'- 7 -'!$E13 -> 81.50499835 | H13: 980946 | I13: =H13/'- 3 -'!$D13*100 -> 0.8035205015 | J13: =H13/'- 7 -'!$E13 -> 107.7607382
A14: DSFM | B14: 418767 | C14: =B14/'- 3 -'!$D14*100 -> 0.380900109 | D14: =B14/'- 7 -'!$E14 -> 68.9214944 | E14: 740652 | F14: =E14/'- 3 -'!$D14*100 -> 0.6736787462 | G14: =E14/'- 7 -'!$E14 -> 121.8979592 | H14: 648000 | I14: =H14/'- 3 -'!$D14*100 -> 0.5894047779 | J14: =H14/'- 7 -'!$E14 -> 106.6491113
A15: EVERGREEN | B15: 158000 | C15: =B15/'- 3 -'!$D15*100 -> 0.674139086 | D15: =B15/'- 7 -'!$E15 -> 113.1805158 | E15: 202700 | F15: =E15/'- 3 -'!$D15*100 -> 0.8648607135 | G15: =E15/'- 7 -'!$E15 -> 145.2005731 | H15: 27000 | I15: =H15/'- 3 -'!$D15*100 -> 0.115200983 | J15: =H15/'- 7 -'!$E15 -> 19.34097421
A16: FLIN FLON | B16: 0 | C16: =B16/'- 3 -'!$D16*100 -> 0 | D16: =B16/'- 7 -'!$E16 -> 0 | E16: 171275 | F16: =E16/'- 3 -'!$D16*100 -> 1.016624625 | G16: =E16/'- 7 -'!$E16 -> 202.2136954 | H16: 32000 | I16: =H16/'- 3 -'!$D16*100 -> 0.1899400846 | J16: =H16/'- 7 -'!$E16 -> 37.78040142
A17: FORT LA BOSSE | B17: 132300 | C17: =B17/'- 3 -'!$D17*100 -> 0.6154717025 | D17: =B17/'- 7 -'!$E17 -> 87.44216788 | E17: 162800 | F17: =E17/'- 3 -'!$D17*100 -> 0.7573604926 | G17: =E17/'- 7 -'!$E17 -> 107.6007931 | H17: 138395 | I17: =H17/'- 3 -'!$D17*100 -> 0.6438262001 | J17: =H17/'- 7 -'!$E17 -> 91.47058824
A18: FRONTIER | B18: 405753 | C18: =B18/'- 3 -'!$D18*100 -> 0.2450494282 | D18: =B18/'- 7 -'!$E18 -> 65.29658835 | E18: 0 | F18: =E18/'- 3 -'!$D18*100 -> 0 | G18: =E18/'- 7 -'!$E18 -> 0 | H18: 2181786 | I18: =H18/'- 3 -'!$D18*100 -> 1.317662252 | J18: =H18/'- 7 -'!$E18 -> 351.1081429
A19: GARDEN VALLEY | B19: 547550 | C19: =B19/'- 3 -'!$D19*100 -> 0.9768013471 | D19: =B19/'- 7 -'!$E19 -> 129.7511848 | E19: 237000 | F19: =E19/'- 3 -'!$D19*100 -> 0.4227959442 | G19: =E19/'- 7 -'!$E19 -> 56.16113744 | H19: 621400 | I19: =H19/'- 3 -'!$D19*100 -> 1.10854599 | J19: =H19/'- 7 -'!$E19 -> 147.2511848
A20: HANOVER | B20: 802700 | C20: =B20/'- 3 -'!$D20*100 -> 0.7843026136 | D20: =B20/'- 7 -'!$E20 -> 98.84250708 | E20: 391900 | F20: =E20/'- 3 -'!$D20*100 -> 0.3829178949 | G20: =E20/'- 7 -'!$E20 -> 48.25760374 | H20: 2104900 | I20: =H20/'- 3 -'!$D20*100 -> 2.056656997 | J20: =H20/'- 7 -'!$E20 -> 259.1922177
A21: INTERLAKE | B21: 325230 | C21: =B21/'- 3 -'!$D21*100 -> 0.7937479517 | D21: =B21/'- 7 -'!$E21 -> 114.1358133 | E21: 159600 | F21: =E21/'- 3 -'!$D21*100 -> 0.3895156446 | G21: =E21/'- 7 -'!$E21 -> 56.00982629 | H21: 370652 | I21: =H21/'- 3 -'!$D21*100 -> 0.9046037137 | J21: =H21/'- 7 -'!$E21 -> 130.0761537
A22: KELSEY | B22: 96856 | C22: =B22/'- 3 -'!$D22*100 -> 0.4423653319 | D22: =B22/'- 7 -'!$E22 -> 67.73146853 | E22: 85000 | F22: =E22/'- 3 -'!$D22*100 -> 0.3882160445 | G22: =E22/'- 7 -'!$E22 -> 59.44055944 | H22: 95500 | I22: =H22/'- 3 -'!$D22*100 -> 0.4361721441 | J22: =H22/'- 7 -'!$E22 -> 66.78321678
A23: LAKESHORE | B23: 107000 | C23: =B23/'- 3 -'!$D23*100 -> 0.62807511 | D23: =B23/'- 7 -'!$E23 -> 117.260274 | E23: 111400 | F23: =E23/'- 3 -'!$D23*100 -> 0.6539024977 | G23: =E23/'- 7 -'!$E23 -> 122.0821918 | H23: 150000 | I23: =H23/'- 3 -'!$D23*100 -> 0.8804791262 | J23: =H23/'- 7 -'!$E23 -> 164.3835616
A24: LORD SELKIRK | B24: 481656 | C24: =B24/'- 3 -'!$D24*100 -> 0.758252344 | D24: =B24/'- 7 -'!$E24 -> 128.0659399 | E24: 461805 | F24: =E24/'- 3 -'!$D24*100 -> 0.7270016853 | G24: =E24/'- 7 -'!$E24 -> 122.7878224 | H24: 816956 | I24: =H24/'- 3 -'!$D24*100 -> 1.286102118 | J24: =H24/'- 7 -'!$E24 -> 217.2177612
A25: LOUIS RIEL | B25: 1028906 | C25: =B25/'- 3 -'!$D25*100 -> 0.4626222406 | D25: =B25/'- 7 -'!$E25 -> 63.63448574 | E25: 1853382 | F25: =E25/'- 3 -'!$D25*100 -> 0.8333275669 | G25: =E25/'- 7 -'!$E25 -> 114.6256417 | H25: 1501756 | I25: =H25/'- 3 -'!$D25*100 -> 0.6752275967 | J25: =H25/'- 7 -'!$E25 -> 92.87871854
A26: MOUNTAIN VIEW | B26: 434773 | C26: =B26/'- 3 -'!$D26*100 -> 0.9424448029 | D26: =B26/'- 7 -'!$E26 -> 143.4420983 | E26: 566289 | F26: =E26/'- 3 -'!$D26*100 -> 1.227528216 | G26: =E26/'- 7 -'!$E26 -> 186.8323985 | H26: 342361 | I26: =H26/'- 3 -'!$D26*100 -> 0.7421259949 | J26: =H26/'- 7 -'!$E26 -> 112.9531508
A27: MYSTERY LAKE | B27: 141704 | C27: =B27/'- 3 -'!$D27*100 -> 0.3055214797 | D27: =B27/'- 7 -'!$E27 -> 51.44454529 | E27: 228750 | F27: =E27/'- 3 -'!$D27*100 -> 0.4931973585 | G27: =E27/'- 7 -'!$E27 -> 83.04592485 | H27: 174800 | I27: =H27/'- 3 -'!$D27*100 -> 0.3768782438 | J27: =H27/'- 7 -'!$E27 -> 63.45979307
A28: PARK WEST | B28: 295640 | C28: =B28/'- 3 -'!$D28*100 -> 0.911748798 | D28: =B28/'- 7 -'!$E28 -> 139.5515695 | E28: 238700 | F28: =E28/'- 3 -'!$D28*100 -> 0.7361467937 | G28: =E28/'- 7 -'!$E28 -> 112.6740618 | H28: 339241 | I28: =H28/'- 3 -'!$D28*100 -> 1.04621355 | J28: =H28/'- 7 -'!$E28 -> 160.132641
A29: PEMBINA TRAILS | B29: 1646330 | C29: =B29/'- 3 -'!$D29*100 -> 0.8067414464 | D29: =B29/'- 7 -'!$E29 -> 105.0853408 | E29: 1422520 | F29: =E29/'- 3 -'!$D29*100 -> 0.6970691431 | G29: =E29/'- 7 -'!$E29 -> 90.79953532 | H29: 1623200 | I29: =H29/'- 3 -'!$D29*100 -> 0.795407188 | J29: =H29/'- 7 -'!$E29 -> 103.6089515
A30: PINE CREEK | B30: 163662 | C30: =B30/'- 3 -'!$D30*100 -> 0.9466595721 | D30: =B30/'- 7 -'!$E30 -> 151.3987049 | E30: 143090 | F30: =E30/'- 3 -'!$D30*100 -> 0.8276662767 | G30: =E30/'- 7 -'!$E30 -> 132.3681776 | H30: 130297 | I30: =H30/'- 3 -'!$D30*100 -> 0.7536685502 | J30: =H30/'- 7 -'!$E30 -> 120.533765
A31: PORTAGE LA PRAIRIE | B31: 422640 | C31: =B31/'- 3 -'!$D31*100 -> 0.9128636997 | D31: =B31/'- 7 -'!$E31 -> 122.71777 | E31: 317735 | F31: =E31/'- 3 -'!$D31*100 -> 0.6862785056 | G31: =E31/'- 7 -'!$E31 -> 92.25754936 | H31: 217500 | I31: =H31/'- 3 -'!$D31*100 -> 0.469780084 | J31: =H31/'- 7 -'!$E31 -> 63.1533101
A32: PRAIRIE ROSE | B32: 332920 | C32: =B32/'- 3 -'!$D32*100 -> 0.9564483876 | D32: =B32/'- 7 -'!$E32 -> 141.4273577 | E32: 224250 | F32: =E32/'- 3 -'!$D32*100 -> 0.6442495221 | G32: =E32/'- 7 -'!$E32 -> 95.26338148 | H32: 269817 | I32: =H32/'- 3 -'!$D32*100 -> 0.7751593013 | J32: =H32/'- 7 -'!$E32 -> 114.6206457
A33: PRAIRIE SPIRIT | B33: 285050 | C33: =B33/'- 3 -'!$D33*100 -> 0.9110349811 | D33: =B33/'- 7 -'!$E33 -> 132.7048417 | E33: 320205 | F33: =E33/'- 3 -'!$D33*100 -> 1.023392233 | G33: =E33/'- 7 -'!$E33 -> 149.0712291 | H33: 163750 | I33: =H33/'- 3 -'!$D33*100 -> 0.523353721 | J33: =H33/'- 7 -'!$E33 -> 76.23370577
A34: RED RIVER VALLEY | B34: 222726 | C34: =B34/'- 3 -'!$D34*100 -> 0.6288783067 | D34: =B34/'- 7 -'!$E34 -> 97.90153846 | E34: 168920 | F34: =E34/'- 3 -'!$D34*100 -> 0.4769543006 | G34: =E34/'- 7 -'!$E34 -> 74.25054945 | H34: 189324 | I34: =H34/'- 3 -'!$D34*100 -> 0.5345660432 | J34: =H34/'- 7 -'!$E34 -> 83.21934066
A35: RIVER EAST TRANSCONA | B35: 986400 | C35: =B35/'- 3 -'!$D35*100 -> 0.4387225078 | D35: =B35/'- 7 -'!$E35 -> 57.82115537 | E35: 861182 | F35: =E35/'- 3 -'!$D35*100 -> 0.3830291228 | G35: =E35/'- 7 -'!$E35 -> 50.48108092 | H35: 2724709 | I35: =H35/'- 3 -'!$D35*100 -> 1.211872633 | J35: =H35/'- 7 -'!$E35 -> 159.717987
A36: ROLLING RIVER | B36: 217825 | C36: =B36/'- 3 -'!$D36*100 -> 0.8142486885 | D36: =B36/'- 7 -'!$E36 -> 122.9954828 | E36: 219000 | F36: =E36/'- 3 -'!$D36*100 -> 0.8186409402 | G36: =E36/'- 7 -'!$E36 -> 123.6589497 | H36: 282500 | I36: =H36/'- 3 -'!$D36*100 -> 1.056009432 | J36: =H36/'- 7 -'!$E36 -> 159.5143986
A37: SEINE RIVER | B37: 415168 | C37: =B37/'- 3 -'!$D37*100 -> 0.6804129638 | D37: =B37/'- 7 -'!$E37 -> 89.93133326 | E37: 604700 | F37: =E37/'- 3 -'!$D37*100 -> 0.9910342782 | G37: =E37/'- 7 -'!$E37 -> 130.9866782 | H37: 483831 | I37: =H37/'- 3 -'!$D37*100 -> 0.7929437835 | J37: =H37/'- 7 -'!$E37 -> 104.8047222
A38: SEVEN OAKS | B38: 355930 | C38: =B38/'- 3 -'!$D38*100 -> 0.2126843035 | D38: =B38/'- 7 -'!$E38 -> 30.09342634 | E38: 875484 | F38: =E38/'- 3 -'!$D38*100 -> 0.5231413614 | G38: =E38/'- 7 -'!$E38 -> 74.02105263 | H38: 1291760 | I38: =H38/'- 3 -'!$D38*100 -> 0.7718851345 | J38: =H38/'- 7 -'!$E38 -> 109.2166561
A39: SOUTHWEST HORIZON | B39: 175600 | C39: =B39/'- 3 -'!$D39*100 -> 0.6884222741 | D39: =B39/'- 7 -'!$E39 -> 121.7753121 | E39: 129400 | F39: =E39/'- 3 -'!$D39*100 -> 0.5072997852 | G39: =E39/'- 7 -'!$E39 -> 89.73647712 | H39: 42700 | I39: =H39/'- 3 -'!$D39*100 -> 0.1674010883 | J39: =H39/'- 7 -'!$E39 -> 29.61165049
A40: ST. JAMES-ASSINIBOIA | B40: 738362 | C40: =B40/'- 3 -'!$D40*100 -> 0.6006864253 | D40: =B40/'- 7 -'!$E40 -> 92.68917901 | E40: 675976 | F40: =E40/'- 3 -'!$D40*100 -> 0.5499329693 | G40: =E40/'- 7 -'!$E40 -> 84.85764499 | H40: 968736 | I40: =H40/'- 3 -'!$D40*100 -> 0.7881047033 | J40: =H40/'- 7 -'!$E40 -> 121.6088376
A41: SUNRISE | B41: 432056 | C41: =B41/'- 3 -'!$D41*100 -> 0.583326945 | D41: =B41/'- 7 -'!$E41 -> 93.92521739 | E41: 781105 | F41: =E41/'- 3 -'!$D41*100 -> 1.054584576 | G41: =E41/'- 7 -'!$E41 -> 169.8054348 | H41: 81000 | I41: =H41/'- 3 -'!$D41*100 -> 0.1093596259 | J41: =H41/'- 7 -'!$E41 -> 17.60869565
A42: SWAN VALLEY | B42: 247633 | C42: =B42/'- 3 -'!$D42*100 -> 0.979606798 | D42: =B42/'- 7 -'!$E42 -> 184.9387603 | E42: 285330 | F42: =E42/'- 3 -'!$D42*100 -> 1.128731662 | G42: =E42/'- 7 -'!$E42 -> 213.0918596 | H42: 99400 | I42: =H42/'- 3 -'!$D42*100 -> 0.3932146189 | J42: =H42/'- 7 -'!$E42 -> 74.23450336
A43: TURTLE MOUNTAIN | B43: 76891 | C43: =B43/'- 3 -'!$D43*100 -> 0.5150657623 | D43: =B43/'- 7 -'!$E43 -> 74.36266925 | E43: 61403 | F43: =E43/'- 3 -'!$D43*100 -> 0.4113170983 | G43: =E43/'- 7 -'!$E43 -> 59.38394584 | H43: 130645 | I43: =H43/'- 3 -'!$D43*100 -> 0.8751449001 | J43: =H43/'- 7 -'!$E43 -> 126.3491296
A44: TURTLE RIVER | B44: 137036 | C44: =B44/'- 3 -'!$D44*100 -> 1.123517848 | D44: =B44/'- 7 -'!$E44 -> 234.8517566 | E44: 76400 | F44: =E44/'- 3 -'!$D44*100 -> 0.6263811232 | G44: =E44/'- 7 -'!$E44 -> 130.9340189 | H44: 133693 | I44: =H44/'- 3 -'!$D44*100 -> 1.096109575 | J44: =H44/'- 7 -'!$E44 -> 229.1225364
A45: WESTERN | B45: 272984 | C45: =B45/'- 3 -'!$D45*100 -> 1.015665796 | D45: =B45/'- 7 -'!$E45 -> 127.5328194 | E45: 133100 | F45: =E45/'- 3 -'!$D45*100 -> 0.4952126038 | G45: =E45/'- 7 -'!$E45 -> 62.18173324 | H45: 155681 | I45: =H45/'- 3 -'!$D45*100 -> 0.5792275986 | J45: =H45/'- 7 -'!$E45 -> 72.73113758
A46: WINNIPEG | B46: 1079500 | C46: =B46/'- 3 -'!$D46*100 -> 0.23951761 | D46: =B46/'- 7 -'!$E46 -> 39.48210596 | E46: 1459620 | F46: =E46/'- 3 -'!$D46*100 -> 0.3238579841 | G46: =E46/'- 7 -'!$E46 -> 53.38478138 | H46: 2847303 | I46: =H46/'- 3 -'!$D46*100 -> 0.63175471 | J46: =H46/'- 7 -'!$E46 -> 104.1385074
A48: PROVINCE | B48: =SUM(B11:B46) -> 14700979 | C48: =B48/'- 3 -'!$D48*100 -> 0.5298425275 | D48: =B48/'- 7 -'!$E48 -> 80.17588982 | E48: =SUM(E11:E46) -> 15528401 | F48: =E48/'- 3 -'!$D48*100 -> 0.5596638996 | G48: =E48/'- 7 -'!$E48 -> 84.68846651 | H48: =SUM(H11:H46) -> 23109684 | I48: =H48/'- 3 -'!$D48*100 -> 0.8329032632 | J48: =H48/'- 7 -'!$E48 -> 126.0351082
A50: WHITESHELL | B50: 0 | C50: =B50/'- 3 -'!$D50*100 -> 0 | D50: =B50/'- 7 -'!$E50 -> 0 | E50: 52037 | F50: =E50/'- 3 -'!$D50*100 -> 1.308741129 | G50: =E50/'- 7 -'!$E50 -> 302.5406977 | H50: 17000 | I50: =H50/'- 3 -'!$D50*100 -> 0.4275534561 | J50: =H50/'- 7 -'!$E50 -> 98.8372093
A52: (1) Excludes information technology expenses in Function 300 (Adult Learning Centres) and Function 400 (Community Education and Services) and Management Information Services in Function 500. Total expenses for Management Information Services are included on page 38 and form part of total Information Technology Expenses.

Sheet - 38 -
B2: =+'- 37 -'!E2 -> ANALYSIS OF INFORMATION TECHNOLOGY EXPENSES
B3: =OPYEAR -> OPERATING FUND 2023/2024 BUDGET
B5: INFORMATION TECHNOLOGY EXPENSES (1)
B6: MANAGEMENT INFORMATION SERVICES (2)
E7: TOTAL
D8: PER PUPIL | G8: PER PUPIL
A9: DIVISION / DISTRICT | B9: AMOUNT | C9: % | E9: AMOUNT | F9: %
A11: BEAUTIFUL PLAINS | B11: ='- 26 -'!B11 -> 15600 | C11: ='- 26 -'!C11 -> 0.05892953146 | D11: ='- 26 -'!D11 -> 7.510832932 | E11: =SUM('- 37 -'!B11,'- 37 -'!E11,'- 37 -'!H11,B11) -> 652864 | F11: =E11/'- 3 -'!D11*100 -> 2.466216002 | G11: =E11/'- 7 -'!E11 -> 314.3302841
A12: BORDER LAND | B12: ='- 26 -'!B12 -> 60420 | C12: ='- 26 -'!C12 -> 0.1591491185 | D12: ='- 26 -'!D12 -> 29.09703829 | E12: =SUM('- 37 -'!B12,'- 37 -'!E12,'- 37 -'!H12,B12) -> 1112690 | F12: =E12/'- 3 -'!D12*100 -> 2.930877734 | G12: =E12/'- 7 -'!E12 -> 535.848784
A13: BRANDON | B13: ='- 26 -'!B13 -> 324920 | C13: ='- 26 -'!C13 -> 0.2661511249 | D13: ='- 26 -'!D13 -> 35.69372734 | E13: =SUM('- 37 -'!B13,'- 37 -'!E13,'- 37 -'!H13,B13) -> 2637636 | F13: =E13/'- 3 -'!D13*100 -> 2.160561949 | G13: =E13/'- 7 -'!E13 -> 289.7545864
A14: DSFM | B14: ='- 26 -'!B14 -> 178842 | C14: ='- 26 -'!C14 -> 0.1626702612 | D14: ='- 26 -'!D14 -> 29.43416722 | E14: =SUM('- 37 -'!B14,'- 37 -'!E14,'- 37 -'!H14,B14) -> 1986261 | F14: =E14/'- 3 -'!D14*100 -> 1.806653894 | G14: =E14/'- 7 -'!E14 -> 326.9027321
